Workbook

Sheet TIEOSAT
D1: Uudenmaan ELY-keskuksen tieverkon merkittävyysluokitus
D2: PISTEYTYSTEKIJÄT JA PAINOARVOT | N2: PALAUTUS- JA LAJITTELUTYÖKALUT
D3: OSA-ALUEET | J3: Taajama | P3: Tietokannan palauttaminen oletusarvoihin
D4: Säännöllinen henkilöliikenne | G4: Yht. | H4: painotus | J4: tieosasta | K4: 0.5
D5: KVL | F5: 9 | G5: =SUM(F5:F7) -> 15 | H5: =1/3 -> 0.3333333333 | J5: Liikenne | K5: Vähä/loput
D6: Linja-autovuorot | F6: 3 | J6: KVL | K6: 1000
D7: Työmatkat | F7: 3 | J7: KVLRAS | K7: 50 | P7: Lajittele muutosten/ nollauksen jälkeen
D8: Säännöllinen tavaraliikenne | G8: Yht. | H8: painotus | J8: KKVL | K8: 1000 | Q8: HELMIKUU 2025
D9: KVLRAS | F9: 8 | G9: =SUM(F9:F20) -> 25 | H9: 0.3333333333 | J9: Työmatkat
D10: Maito | F10: 2 | J10: Pisteet | L10: Työmatkoja | U10: TILASTOTIEDOT
D11: Jäte | F11: 1 | J11: =F7 -> 3 | K11: =CONCATENATE("≥ ",L11,) -> ≥ 300 | L11: 300
D12: Maa-aines | F12: 1 | J12: =CONCATENATE("0-",J11) -> 0-3 | K12: 0–299 lineaarisesti | N12: SUODATUS- JA HAKUTYÖKALUT | Q12: TIEJAKSO RAPORTTI | U12: Merkittävyysluokka | X12: % max pisteistä | Z12: Tieosista
D13: Turve | F13: 1 | J13: Linja-autovuorot | U13: 1 luokka | X13: =CW27 -> 0.8456175438 | Z13: 0.05
D14: Viljansäilytys ja kasvih. | F14: 2 | J14: Pisteet | L14: Vuoromäärä | P14: KVL tekijät poistetaan käytöstä | U14: 2 luokka | X14: =CW28 -> 0.6917540243 | Z14: 0.2
D15: Eläintilat | F15: 2 | J15: 3 | K15: ≥ 40 | L15: 40 | U15: 3 luokka | X15: =CW29 -> 0.1933774044 | Z15: 0.5
D16: Elintarvikelaitos | F16: 2 | J16: 0-3 | K16: 0–39 lineaariseti | U16: 4 luokka | X16: =CW30 -> 0.07000846763 | Z16: =1-SUM(Z13:Z15) -> 0.25
D17: Tuotantolaitos | F17: 2 | J17: Eläintilat (tieosalle kumuloitunut lkm) | P17: Järjestä tieosat luokan mukaan | Q17: NÄYTÄ VAIN SORATIET
D18: Logistiikka-alue | F18: 1 | J18: Pisteet (0-0,5 lineaarisesti) | L18: Eläinten lkm | U18: Pituus km | W18: Km | X18: Km | Y18: LOPUT | Z18: VÄHÄ
D19: Päivittäistavarakauppa | F19: 2 | J19: =$F$15/4 -> 0.5 | K19: Nauta | L19: 300 | U19: Luokka | V19: 1 | W19: =SUMIFS(X37:X1821,N37:N1821,"LOPUT",K37:K1821,1)/1000 -> 558.903 | X19: =SUMIFS(X37:X1821,N37:N1821,"VÄHÄ",K37:K1821,1)/1000 -> 0
D20: Puun kuljetusreitit | F20: 1 | J20: =$F$15/4 -> 0.5 | K20: Lammas/vuohi/hevonen | L20: 100 | P20: Poista käytössä olevat suodatukset | U20: Luokka | V20: 2 | W20: =SUMIFS(X37:X1821,N37:N1821,"LOPUT",K37:K1821,2)/1000 -> 1620.706 | X20: =SUMIFS(X37:X1821,N37:N1821,"VÄHÄ",K37:K1821,2)/1000 -> 119.962
D21: Muut tekijät | G21: Yht. | H21: painotus | J21: =$F$15/4 -> 0.5 | K21: Sika | L21: 1000 | U21: Luokka | V21: 3 | W21: =SUMIFS(X37:X1821,N37:N1821,"LOPUT",K37:K1821,3)/1000 -> 831.167 | X21: =SUMIFS(X37:X1821,N37:N1821,"VÄHÄ",K37:K1821,3)/1000 -> 3439.139 | CW21: Luokkien min pist.
D22: Koulu | F22: 1 | G22: =SUM(F22:F30) -> 10 | H22: =1/3 -> 0.3333333333 | J22: =$F$15/4 -> 0.5 | K22: Linnut | L22: 30 | Q22: =HYPERLINK("https://linea.maps.arcgis.com/apps/instant/sidebar/index.html?appid=6a26f2bfa66e4b1b82c25dc079beaf25","ONLINE-KARTTA") -> ONLINE-KARTTA | U22: Luokka | V22: 4 | W22: =SUMIFS(X37:X1821,N37:N1821,"LOPUT",K37:K1821,4)/1000 -> 0 | X22: =SUMIFS(X37:X1821,N37:N1821,"VÄHÄ",K37:K1821,4)/1000 -> 2131.908 | CW22: =MIN(IF(K37:K1747=V19,G37:G1747)) -> 12.68741521
D23: Eriku-reitti | F23: 1 | J23: Tuotantolaitokset (kumuloituneet) | P23: Tienumerojärjestys | U23: Yht. | W23: =SUM(W19:W22) -> 3010.776 | X23: =SUM(X19:X22) -> 5691.009 | CW23: =MIN(IF(K37:K1747=V20,G37:G1747)) -> 10.37888889
D24: Varareitti | F24: 1 | J24: Pisteet | L24: Laitosten lkm | CW24: =MIN(IF(K37:K1747=V21,G37:G1747)) -> 2.901381883
D25: Taajama | F25: 1 | J25: =F17 -> 2 | K25: =CONCATENATE("≥ ",L25,) -> ≥ 3 | L25: 3 | U25: Tieosia (kpl) | W25: kpl | X25: osuus | Y25: kpl | Z25: osuus | AA25: KAIKKI | CW25: =MIN(IF(K37:K1747=V22,G37:G1747)) -> 1.050387972
D26: Asukastiheys | F26: 1 | J26: 0-2 | K26: 0–2 lineaariseti | P26: Hae tiejakso | U26: Luokka 1 | W26: =COUNTIFS(N37:N1821,"LOPUT",K37:K1821,1) -> 89 | X26: =W26/$W$30 -> 0.137345679 | Y26: =COUNTIFS(N37:N1821,"VÄHÄ",K37:K1821,1) -> 0 | Z26: =Y26/$Y$30 -> 0 | AA26: =(W26+Y26)/($W$30+$Y$30) -> 0.04985994398 | CW26: Osuusmax | DA26: Koulubufferi (3 km tieverkkoa pitkin)
D27: KKVL | F27: 2 | I27: Puukuljetukset (ka valituilta vuosilta) | Q27: TIENUMEROA TUPLA-KLIKKAAMALLA SIIRTYMINEN KVL-JAKSOIHIN | U27: Luokka 2 | W27: =COUNTIFS(N37:N1821,"LOPUT",K37:K1821,2) -> 339 | X27: =W27/$W$30 -> 0.5231481481 | Y27: =COUNTIFS(N37:N1821,"VÄHÄ",K37:K1821,2) -> 18 | Z27: =Y27/$Y$30 -> 0.01583113456 | AA27: =(W27+Y27)/($W$30+$Y$30) -> 0.2 | CW27: =CW22/$CQ$30 -> 0.8456175438 | DA27: Pisteet | DC27: Tieosasta
D28: Matkailureitti | F28: 1 | I28: 2020 | J28: 2021 | K28: 2022 | L28: 2023 | U28: Luokka 3 | W28: =COUNTIFS(N37:N1821,"LOPUT",K37:K1821,3) -> 220 | X28: =W28/$W$30 -> 0.3395061728 | Y28: =COUNTIFS(N37:N1821,"VÄHÄ",K37:K1821,3) -> 672 | Z28: =Y28/$Y$30 -> 0.5910290237 | AA28: =(W28+Y28)/($W$30+$Y$30) -> 0.499719888 | CW28: =CW23/$CQ$30 -> 0.6917540243 | DA28: =$F$22 -> 1 | DB28: =CONCATENATE("≥ ",DC28*100," %") -> ≥ 50 % | DC28: 0.5
D29: Matkailukohde | F29: 1 | I29: TRUE | J29: TRUE | K29: TRUE | L29: FALSE | P29: Suodata KVL:n perusteella | Q29: TIEOSA JAKAUTUU KVL-JAKSOIHIN | U29: Luokka 4 | W29: =COUNTIFS(N37:N1821,"LOPUT",K37:K1821,4) -> 0 | X29: =W29/$W$30 -> 0 | Y29: =COUNTIFS(N37:N1821,"VÄHÄ",K37:K1821,4) -> 447 | Z29: =Y29/$Y$30 -> 0.3931398417 | AA29: =(W29+Y29)/($W$30+$Y$30) -> 0.2504201681 | CQ29: MAX | CW29: =CW24/$CQ$30 -> 0.1933774044 | DA29: =F22/2 -> 0.5 | DB29: =CONCATENATE("1-",DC28*100-1," %") -> 1-49 % | EI29: Luokka muuttunut VÄHÄ/LOPUT
D30: Tien verkollinen asema | F30: 1 | I30: Raja-arvo (ajon./vrk) | K30: 9 | L30: 5 | U30: Yht. | W30: =SUM(W26:W29) -> 648 | X30: =SUM(X26:X29) -> 1 | Y30: =SUM(Y26:Y29) -> 1137 | Z30: =SUM(Z26:Z29) -> 1 | CQ30: =MAX(CP37:CP1821) -> 15.00372752 | CW30: =CW25/$CQ$30 -> 0.07000846763 | EI30: 4 x VÄHÄ → LOPUT ja 12 x LOPUT → VÄHÄ
A31: 1 | B31: 2 | D31: 1 | E31: 2 | F31: 3 | G31: 4 | K31: 5 | L31: 6 | M31: 7 | N31: 8 | O31: 9 | P31: 10 | U31: 14 | V31: 15 | W31: 16 | X31: 17 | Y31: 18 | Z31: 19 | AA31: 20 | AB31: 21 | AC31: 22 | AD31: 23 | AE31: 24 | AJ31: 28 | AM31: 31 | AR31: 32 | AS31: 33 | AW31: 35 | AX31: 36 | AY31: 37 | AZ31: 38 | BA31: 39 | BB31: 40 | BC31: 41 | BD31: 42 | BE31: 43 | BF31: 44 | BG31: 45 | BH31: 46 | BI31: 47 | BJ31: 48 | BK31: 49 | BU31: 50 | BV31: 51 | BW31: 52 | BX31: 53 | BY31: 54 | BZ31: 55 | CA31: 56 | CB31: 57 | CC31: 58 | CD31: 59 | CE31: 60 | CF31: 61 | CL31: 67 | CM31: 68 | CN31: 69 | CO31: 70 | CP31: 10.6 | CQ31: 71 | CW31: 72 | CX31: 73
A32: Lajittelu, ID | B32: LUOKKA | C32: Lajittelu | D32: Sija | E32: Herkkyys, sija ennen muutosta | F32: Herkkyys, sijamuutos | G32: Pisteet | H32: Sään. henkliik. pisteet | I32: Sään. tavaraliik. pisteet | J32: Muut tekijät pisteet | K32: Merkittävyys-luokka | L32: Luokan muutos | M32: Google Maps | S32: TIEOSAN OMINAISUUDET | AR32: SÄÄNNÖLLINEN HENKILÖLIIKENNE | AY32: PISTEET YHTEENSÄ (max. 15) | AZ32: PISTEET YHTEENSÄ, PAINOTETTU | BA32: SÄÄNNÖLLINEN TAVARALIIKENNE | BU32: PISTEET YHTEENSÄ (max. 25) | BV32: PISTEET YHTEENSÄ, PAINOTETTU | BW32: MUUT TEKIJÄT | CM32: PISTEET YHTEENSÄ (max. 10) | CN32: PISTEET YHTEENSÄ, PAINOTETTU | CO32: PISTEET YHTEENSÄ (max. 50) | CP32: PISTEET YHTEENSÄ, PAINOTETTU | CQ32: MERKITTÄVYYS-LUOKKA | EI32: Muutokset 2020-2022
AN33: Kaduksi muutettava % | AO33: Jkpp-väylä % | AR33: Liikennemäärä | AS33: Linja-autoliikenne (matka.fi) | AW33: Työmatkareitti | BA33: KVLRAS pisteet | BB33: Maito | BC33: Jäte | BD33: Maa-aines | BE33: Turve | BF33: Vilja + kasvih. | BG33: Nauta | BH33: Lammas | BI33: Sika | BJ33: Siipikarja | BK33: Elintarvikelaitos | BL33: Tuotantolaitos | BM33: Logistiikka-alue | BN33: Päivittäistavarakauppa | BO33: Puukuljetusreitit (Väylä) | BS33: Metsäavain | BT33: Pisteet | BW33: 3 km koulubufferi | BZ33: Erikoiskuljetusreitti | CC33: Varareitti | CD33: Taajama | CG33: Asukastiheys | CI33: Liikennemäärä | CJ33: Matkailureitti | CK33: Matkailukohde | CL33: Tien verkollinen asema | EB33: vertailu | EI33: LUOKKA 2020 | EJ33: Sija 2020 | EK33: Sija-muutos | EL33: Luokka 2020 | EM33: Luokanmuutos
A34: Lajittelu, ID | B34: Lajittelu, KVL | N34: LUOKKA | O34: TOIML | P34: Tien nimi | Q34: Kunta | R34: Maakunta | S34: TIE | T34: AOSA | U34: AET | V34: LOSA | W34: LET | X34: PITUUS | Y34: KVL, ka | Z34: KVLRAS | AA34: KKVL | AB34: KVL, ketjutus | AC34: Nopeusrajoitus | AD34: Hoitoluokka | AE34: Päällyste | AF34: PK-LUOKKA | AG34: HEVA 18-22 | AH34: kaikki onn. 18-22 | AI34: Huonokuntoinen päällyste | AJ34: KVLYHD | AK34: TEN-T | AL34: PÄÄVÄYLÄ | AM34: HCT | AR34: KVL pisteet | AS34: Vuorot | AT34: Uusi | AU34: Ilman HSL | AV34: Pisteet | AW34: Työmatkat | AX34: Pisteet | BO34: Autoa/vrk 2020 | BP34: Autoa/vrk 2021 | BQ34: Autoa/vrk 2022 | BR34: Autoa/vrk 2023 | BW34: Pituus | BX34: Prosentti | BY34: Pisteet | BZ34: Pituus | CA34: Prosentti | CB34: Pisteet | CC34: Pisteet | CD34: Pituus | CE34: Prosentti | CF34: Pisteet | CG34: Asukkaat | CH34: Pisteet | CI34: KKVL pisteet | CJ34: Pisteet | CK34: Pisteet | CL34: Pisteet | CR34: KVLosuus | CX34: Gmaps linkki | DA34: Maito, reititys lypsytilat | DB34: Maito, Arla | DC34: Maito, Valio | DD34: Maito yht. | DE34: Jäte | DF34: Maa-aines | DG34: Turve | DH34: Viljan säilytys | DI34: Kasvihuone | DJ34: Nauta | DK34: Lammas/Vuohi/Hevonen | DL34: Sika | DM34: Siipikarja | DN34: Elintarvikelaitos | DP34: Koulubufferi | DQ34: Tuotanto | DR34: Logistiikka | DS34: Varareitit | DT34: Taajama | DU34: jos kkvl > raja | DV34: jos kkvl/kvl > 1,5 kertainen | DW34: kkvl yhteensä | DX34: Matkailukohde reititys | DY34: Matkailutie | DZ34: Pyörämatkailu | EA34: Matkailureitti | EB34: Matkailukohde | EC34: Tien verkollinen asema | ED34: Kauppa | EE34: Katukohde, osuus | EF34: jkp-osuus | EG34: logistiikka kerroala | EO34: 2020 tiedot
G35: 15
D36: Sija | E36: Ennen muutosta | F36: Sijamuutos | G36: Pisteet | K36: Luokka | L36: Luokan muutos | M36: ID | N36: Gmaps | O36: LUOKKA | S36: TIE | T36: AOSA | U36: AET | V36: LOSA | W36: LET | X36: PITUUS | Y36: KVL | Z36: KVLRAS | AA36: KKVL | AB36: KVL, ketjutus | AC36: Nopeusrajoitus | AD36: Hoitoluokka | AE36: Päällyste | AF36: Kunta | AG36: HEVA 09-13 | AH36: kaikki onn. | AI36: Asukkaat (500m) | AJ36: Siltanumero | AK36: Kuntoluokka | AM36: Painorajoitus | AR36: KVL pisteet | AS36: Vuorot | AV36: Pisteet | AW36: Työmatkat | AX36: Pisteet | AY36: PISTEET YHTEENSÄ (max. 15) | AZ36: PISTEET YHTEENSÄ, PAINOTETTU | BA36: KVLRAS pisteet | BB36: Maito | BC36: Jäte | BD36: Maa-aines | BE36: Turve | BF36: Maatalousrakennukset | BH36: Lammas | BI36: Sika | BJ36: Siipikarja | BK36: Elintarvikelaitos | BL36: Tuotantolaitos | BM36: Logistiikka-alue | BU36: PISTEET YHTEENSÄ (max. 15) | BV36: PISTEET YHTEENSÄ, PAINOTETTU | BW36: Pituus | BX36: Prosentti | BY36: KOULU | BZ36: Pituus | CA36: Prosentti | CB36: ERIKU | CC36: VARAREITTI | CD36: Pituus | CE36: Prosentti | CF36: TAAJAMA | CG36: Asukkaat | CH36: KYLÄ | CI36: KKVL pisteet | CJ36: Matkailureitti | CK36: Matkailukohde | CL36: Tien verkollinen asema | CM36: PISTEET YHTEENSÄ (max. 15) | CN36: PISTEET YHTEENSÄ, PAINOTETTU | CO36: PISTEET YHTEENSÄ (max. 45) | CP36: PISTEET YHTEENSÄ, PAINOTETTU | CQ36: MERKITSEVYYS-LUOKKA
A37: =CONCATENATE(S37,"_",T37,"_",U37) -> 292_1_0 | B37: 1 | C37: =CONCATENATE(S37,"_",T37) -> 292_1 | D37: =RANK(CP37,$CP$37:$CP$1821) -> 1 | E37: 1 | F37: =E37-D37 -> 0 | G37: =CP37 -> 15.00372752 | H37: =AZ37 -> 5 | I37: =BV37 -> 7.33706085 | J37: =CN37 -> 2.666666667 | K37: =CQ37 -> 1 | L37: =B37-K37 -> 0 | M37: =HYPERLINK(CX37,"Gmaps") -> Gmaps | N37: =IF(Y37>$K$6,"LOPUT","VÄHÄ") -> LOPUT | O37: =IF(S37<40,"Valta",IF(S37<100,"Kanta",IF(S37<1000,"Seutu",IF(S37>999,"Yhdys")))) -> Seutu | R37: Kanta-Häme | S37: 292 | T37: 1 | U37: 0 | V37: 1 | W37: 6483 | X37: 6483 | Y37: 5351 | Z37: 295 | AA37: 5835 | AC37: 40 (11 %), 50 (26 %), 60 (13 %), 70 (50 %) | AF37: PK2 (98 %) | AI37: 0.1448016218 | AJ37: 107 | AR37: =+IF(Y37>=$K$6,$F$5,($F$5/($K$6))*Y37) -> 9 | AS37: 42 | AV37: =+IF(AS37>=$L$15,$J$15,IF(AS37<($L$15),AS37*($J$15/($L$15)),)) -> 3 | AW37: 3034 | AX37: =+IF(AW37>=$L$11,$J$11,IF(AW37<($L$11),AW37*($J$11/($L$11)),)) -> 3 | AY37: =SUM(AR37,AV37,AX37) -> 15 | AZ37: =+AY37*$H$5 -> 5 | BA37: =+IF(Z37=0,0,IF(Z37>$K$7,$F$9,($F$9/$K$7)*Z37)) -> 8 | BB37: =IF(DD37>0,$F$10,0) -> 2 | BC37: =IF(DE37>0,$F$11,0) -> 1 | BD37: =IF(DF37>0,$F$12,0) -> 1 | BE37: =IF(DG37>0,$F$13,0) -> 0 | BF37: =IF(DI37>0,$F$14,IF(DH37>0,$F$14/2,0)) -> 2 | BG37: =+IF(DJ37>=$L$19,$J$19,IF(DJ37<($L$19),DJ37*($J$19/($L$19)),)) -> 0.5 | BH37: =+IF(DK37>=$L$20,$J$20,IF(DK37<($L$20),DK37*($J$20/($L$20)),)) -> 0.49 | BI37: =+IF(DL37>=$L$21,$J$21,IF(DL37<($L$21),DL37*($J$21/($L$21)),)) -> 0 | BJ37: =+IF(DM37>=$L$22,$J$22,IF(DM37<($L$22),DM37*($J$22/($L$22)),)) -> 0 | BK37: =IF(DN37>0,$F$16,0) -> 2 | BL37: =+IF(DQ37>=$L$25,$J$25,IF(DQ37<($L$25),DQ37*($J$25/($L$25)),)) -> 2 | BM37: =IF(EG37>100000,$F$18,IF(EG37>0,$F$18/2,0)) -> 0.5 | BN37: =IF(ED37>0,$F$19,0) -> 2 | BO37: 3.56364 | BP37: 6.32628 | BQ37: 6.50822 | BR37: 4.70339 | BS37: 0.423651 | BT37: =IF(COUNTIF($I$29:$L$29,TRUE)=0,0,IF(SUMIF($I$29:$L$29,TRUE,BO37:BR37)/COUNTIF($I$29:$L$29,TRUE)>=$L$30,$F$20/2,$F$20/2*(SUMIF($I$29:$L$29,TRUE,BO37:BR37)/COUNTIF($I$29:$L$29,TRUE)/$L$30)))+IF(BS37>=10,$F$20/2,IF(BS37<(10),BS37*($F$20/2/10))) -> 0.52118255 | BU37: =SUM(BA37+BB37+BC37+BD37+BE37+BF37+BK37+BG37+BH37+BI37+BJ37+BL37+BM37+BN37+BT37) -> 22.01118255 | BV37: =+BU37*$H$9 -> 7.33706085 | BW37: 4724.684718 | BX37: =BW37/X37 -> 0.7287806136 | BY37: =IF(BX37>0,IF(BX37>=$DC$28,$DA$28,IF(BX37<$DC$28,$DA$29,0)),0) -> 1 | BZ37: 1945.80741 | CA37: =BZ37/X37 -> 0.3001399676 | CB37: =IF(CA37,$F$23,0) -> 1 | CC37: =IF(DS37>0,$F$24,0) -> 1 | CD37: 2222.176397 | CE37: =CD37/X37 -> 0.3427697666 | CF37: =+IF(CE37>=$K$4,$F$25,0) -> 0 | CG37: 263.2952337 | CH37: =IF(CG37>0,IF(CG37>=100,$F$26,IF(CG37<100,$F$26/2)),0) -> 1 | CI37: =SUM(DW37) -> 1 | CJ37: =IF(EA37>0,$F$28,0) -> 1 | CK37: =IF(DX37>0,$F$29,0) -> 1 | CL37: =IF(EC37>0,$F$30,0) -> 1 | CM37: =SUM(BY37,CB37,CH37,CC37,CF37,CI37,CJ37,CK37,CL37) -> 8 | CN37: =+CM37*$H$22 -> 2.666666667 | CO37: =SUM(AY37,BU37,CM37) -> 45.01118255 | CP37: =SUM(AZ37,BV37,CN37) -> 15.00372752 | CQ37: =IF(D37<($Z$13*1785),1,IF(D37<(($Z$14+$Z$13)*1785),2,IF(D37<(($Z$15+$Z$13+$Z$14)*1785),3,4))) -> 1 | CR37: =VLOOKUP(A37,Taul1!$F$6:$G$1718,2,FALSE) ->  | DA37: 0 | DB37: 1 | DC37: 0 | DD37: =SUM(DA37:DC37) -> 1 | DE37: 1 | DF37: 6 | DG37: 0 | DH37: 46 | DI37: 2 | DJ37: 475 | DK37: 98 | DL37: 0 | DM37: 0 | DN37: 3 | DP37: 4724.684718 | DQ37: 13 | DR37: 2 | DS37: 10 | DT37: 2222.176397 | DU37: =+IF(AA37>$K$8,$F$27/2,0) -> 1 | DV37: =+IF(AA37/Y37>1.5,$F$27/2,0) -> 0 | DW37: =SUM(DU37:DV37) -> 1 | DX37: 3 | DY37: 0 | DZ37: 1 | EA37: =SUM(DY37:DZ37) -> 1 | EC37: 1 | ED37: 5 | EG37: 56161
A38: =CONCATENATE(S38,"_",T38,"_",U38) -> 51_14_0 | B38: 1 | C38: =CONCATENATE(S38,"_",T38) -> 51_14 | D38: =RANK(CP38,$CP$37:$CP$1821) -> 2 | E38: 2 | F38: =E38-D38 -> 0 | G38: =CP38 -> 14.85935544 | H38: =AZ38 -> 5 | I38: =BV38 -> 7.526022111 | J38: =CN38 -> 2.333333333 | K38: =CQ38 -> 1 | L38: =B38-K38 -> 0 | M38: =HYPERLINK(CX38,"Gmaps") -> Gmaps | N38: =IF(Y38>$K$6,"LOPUT","VÄHÄ") -> LOPUT | O38: =IF(S38<40,"Valta",IF(S38<100,"Kanta",IF(S38<1000,"Seutu",IF(S38>999,"Yhdys")))) -> Kanta | R38: Uusimaa | S38: 51 | T38: 14 | U38: 0 | V38: 14 | W38: 11185 | X38: 11185 | Y38: 5685 | Z38: 427 | AA38: 6925 | AC38: 80 (11 %), 100 (88 %) | AF38: PK1 (100 %) | AI38: 0 | AJ38: 285 | AR38: =+IF(Y38>=$K$6,$F$5,($F$5/($K$6))*Y38) -> 9 | AS38: 110 | AV38: =+IF(AS38>=$L$15,$J$15,IF(AS38<($L$15),AS38*($J$15/($L$15)),)) -> 3 | AW38: 1898 | AX38: =+IF(AW38>=$L$11,$J$11,IF(AW38<($L$11),AW38*($J$11/($L$11)),)) -> 3 | AY38: =SUM(AR38,AV38,AX38) -> 15 | AZ38: =+AY38*$H$5 -> 5 | BA38: =+IF(Z38=0,0,IF(Z38>$K$7,$F$9,($F$9/$K$7)*Z38)) -> 8 | BB38: =IF(DD38>0,$F$10,0) -> 2 | BC38: =IF(DE38>0,$F$11,0) -> 1 | BD38: =IF(DF38>0,$F$12,0) -> 1 | BE38: =IF(DG38>0,$F$13,0) -> 1 | BF38: =IF(DI38>0,$F$14,IF(DH38>0,$F$14/2,0)) -> 2 | BG38: =+IF(DJ38>=$L$19,$J$19,IF(DJ38<($L$19),DJ38*($J$19/($L$19)),)) -> 0.315 | BH38: =+IF(DK38>=$L$20,$J$20,IF(DK38<($L$20),DK38*($J$20/($L$20)),)) -> 0.255 | BI38: =+IF(DL38>=$L$21,$J$21,IF(DL38<($L$21),DL38*($J$21/($L$21)),)) -> 0 | BJ38: =+IF(DM38>=$L$22,$J$22,IF(DM38<($L$22),DM38*($J$22/($L$22)),)) -> 0 | BK38: =IF(DN38>0,$F$16,0) -> 2 | BL38: =+IF(DQ38>=$L$25,$J$25,IF(DQ38<($L$25),DQ38*($J$25/($L$25)),)) -> 2 | BM38: =IF(EG38>100000,$F$18,IF(EG38>0,$F$18/2,0)) -> 0.5 | BN38: =IF(ED38>0,$F$19,0) -> 2 | BO38: 2.72295 | BP38: 2.61805 | BQ38: 1.19967 | BR38: 0.447423 | BS38: 5.80088 | BT38: =IF(COUNTIF($I$29:$L$29,TRUE)=0,0,IF(SUMIF($I$29:$L$29,TRUE,BO38:BR38)/COUNTIF($I$29:$L$29,TRUE)>=$L$30,$F$20/2,$F$20/2*(SUMIF($I$29:$L$29,TRUE,BO38:BR38)/COUNTIF($I$29:$L$29,TRUE)/$L$30)))+IF(BS38>=10,$F$20/2,IF(BS38<(10),BS38*($F$20/2/10))) -> 0.5080663333 | BU38: =SUM(BA38+BB38+BC38+BD38+BE38+BF38+BK38+BG38+BH38+BI38+BJ38+BL38+BM38+BN38+BT38) -> 22.57806633 | BV38: =+BU38*$H$9 -> 7.526022111 | BW38: 4437.823535 | BX38: =BW38/X38 -> 0.3967656268 | BY38: =IF(BX38>0,IF(BX38>=$DC$28,$DA$28,IF(BX38<$DC$28,$DA$29,0)),0) -> 0.5 | BZ38: 11153.54967 | CA38: =BZ38/X38 -> 0.9971881694 | CB38: =IF(CA38,$F$23,0) -> 1 | CC38: =IF(DS38>0,$F$24,0) -> 1 | CD38: 1180.973855 | CE38: =CD38/X38 -> 0.1055855033 | CF38: =+IF(CE38>=$K$4,$F$25,0) -> 0 | CG38: 21.28743853 | CH38: =IF(CG38>0,IF(CG38>=100,$F$26,IF(CG38<100,$F$26/2)),0) -> 0.5 | CI38: =SUM(DW38) -> 1 | CJ38: =IF(EA38>0,$F$28,0) -> 1 | CK38: =IF(DX38>0,$F$29,0) -> 1 | CL38: =IF(EC38>0,$F$30,0) -> 1 | CM38: =SUM(BY38,CB38,CH38,CC38,CF38,CI38,CJ38,CK38,CL38) -> 7 | CN38: =+CM38*$H$22 -> 2.333333333 | CO38: =SUM(AY38,BU38,CM38) -> 44.57806633 | CP38: =SUM(AZ38,BV38,CN38) -> 14.85935544 | CQ38: =IF(D38<($Z$13*1785),1,IF(D38<(($Z$14+$Z$13)*1785),2,IF(D38<(($Z$15+$Z$13+$Z$14)*1785),3,4))) -> 1 | CR38: =VLOOKUP(A38,Taul1!$F$6:$G$1718,2,FALSE) ->  | DA38: 0 | DB38: 1 | DC38: 0 | DD38: =SUM(DA38:DC38) -> 1 | DE38: 1 | DF38: 2 | DG38: 1 | DH38: 8 | DI38: 3 | DJ38: 189 | DK38: 51 | DL38: 0 | DM38: 0 | DN38: 2 | DP38: 4437.823535 | DQ38: 9 | DR38: 1 | DS38: 4 | DT38: 1180.973855 | DU38: =+IF(AA38>$K$8,$F$27/2,0) -> 1 | DV38: =+IF(AA38/Y38>1.5,$F$27/2,0) -> 0 | DW38: =SUM(DU38:DV38) -> 1 | DX38: 2 | DY38: 0 | DZ38: 1 | EA38: =SUM(DY38:DZ38) -> 1 | EC38: 1 | ED38: 2 | EG38: 18543
A39: =CONCATENATE(S39,"_",T39,"_",U39) -> 140_5_0 | B39: 1 | C39: =CONCATENATE(S39,"_",T39) -> 140_5 | D39: =RANK(CP39,$CP$37:$CP$1821) -> 3 | E39: 3 | F39: =E39-D39 -> 0 | G39: =CP39 -> 14.57786923 | H39: =AZ39 -> 5 | I39: =BV39 -> 6.577869233 | J39: =CN39 -> 3 | K39: =CQ39 -> 1 | L39: =B39-K39 -> 0 | M39: =HYPERLINK(CX39,"Gmaps") -> Gmaps | N39: =IF(Y39>$K$6,"LOPUT","VÄHÄ") -> LOPUT | O39: =IF(S39<40,"Valta",IF(S39<100,"Kanta",IF(S39<1000,"Seutu",IF(S39>999,"Yhdys")))) -> Seutu | R39: Uusimaa | S39: 140 | T39: 5 | U39: 0 | V39: 5 | W39: 18701 | X39: 18701 | Y39: 7249 | Z39: 380 | AA39: 8002 | AC39: 50 (1 %), 60 (28 %), 80 (69 %) | AF39: PK2 (100 %) | AI39: 0.01030290542 | AJ39: 91 | AR39: =+IF(Y39>=$K$6,$F$5,($F$5/($K$6))*Y39) -> 9 | AS39: 1042 | AV39: =+IF(AS39>=$L$15,$J$15,IF(AS39<($L$15),AS39*($J$15/($L$15)),)) -> 3 | AW39: 8185 | AX39: =+IF(AW39>=$L$11,$J$11,IF(AW39<($L$11),AW39*($J$11/($L$11)),)) -> 3 | AY39: =SUM(AR39,AV39,AX39) -> 15 | AZ39: =+AY39*$H$5 -> 5 | BA39: =+IF(Z39=0,0,IF(Z39>$K$7,$F$9,($F$9/$K$7)*Z39)) -> 8 | BB39: =IF(DD39>0,$F$10,0) -> 0 | BC39: =IF(DE39>0,$F$11,0) -> 1 | BD39: =IF(DF39>0,$F$12,0) -> 1 | BE39: =IF(DG39>0,$F$13,0) -> 0 | BF39: =IF(DI39>0,$F$14,IF(DH39>0,$F$14/2,0)) -> 2 | BG39: =+IF(DJ39>=$L$19,$J$19,IF(DJ39<($L$19),DJ39*($J$19/($L$19)),)) -> 0.2166666667 | BH39: =+IF(DK39>=$L$20,$J$20,IF(DK39<($L$20),DK39*($J$20/($L$20)),)) -> 0.075 | BI39: =+IF(DL39>=$L$21,$J$21,IF(DL39<($L$21),DL39*($J$21/($L$21)),)) -> 0 | BJ39: =+IF(DM39>=$L$22,$J$22,IF(DM39<($L$22),DM39*($J$22/($L$22)),)) -> 0 | BK39: =IF(DN39>0,$F$16,0) -> 2 | BL39: =+IF(DQ39>=$L$25,$J$25,IF(DQ39<($L$25),DQ39*($J$25/($L$25)),)) -> 2 | BM39: =IF(EG39>100000,$F$18,IF(EG39>0,$F$18/2,0)) -> 1 | BN39: =IF(ED39>0,$F$19,0) -> 2 | BO39: 0.220779 | BP39: 0.240067 | BQ39: 0.675735 | BR39: 0.0320567 | BS39: 8.0811 | BT39: =IF(COUNTIF($I$29:$L$29,TRUE)=0,0,IF(SUMIF($I$29:$L$29,TRUE,BO39:BR39)/COUNTIF($I$29:$L$29,TRUE)>=$L$30,$F$20/2,$F$20/2*(SUMIF($I$29:$L$29,TRUE,BO39:BR39)/COUNTIF($I$29:$L$29,TRUE)/$L$30)))+IF(BS39>=10,$F$20/2,IF(BS39<(10),BS39*($F$20/2/10))) -> 0.4419410333 | BU39: =SUM(BA39+BB39+BC39+BD39+BE39+BF39+BK39+BG39+BH39+BI39+BJ39+BL39+BM39+BN39+BT39) -> 19.7336077 | BV39: =+BU39*$H$9 -> 6.577869233 | BW39: 16183.14673 | BX39: =BW39/X39 -> 0.86536264 | BY39: =IF(BX39>0,IF(BX39>=$DC$28,$DA$28,IF(BX39<$DC$28,$DA$29,0)),0) -> 1 | BZ39: 17743.20204 | CA39: =BZ39/X39 -> 0.9487835965 | CB39: =IF(CA39,$F$23,0) -> 1 | CC39: =IF(DS39>0,$F$24,0) -> 1 | CD39: 10340.30047 | CE39: =CD39/X39 -> 0.5529276761 | CF39: =+IF(CE39>=$K$4,$F$25,0) -> 1 | CG39: 221.9895193 | CH39: =IF(CG39>0,IF(CG39>=100,$F$26,IF(CG39<100,$F$26/2)),0) -> 1 | CI39: =SUM(DW39) -> 1 | CJ39: =IF(EA39>0,$F$28,0) -> 1 | CK39: =IF(DX39>0,$F$29,0) -> 1 | CL39: =IF(EC39>0,$F$30,0) -> 1 | CM39: =SUM(BY39,CB39,CH39,CC39,CF39,CI39,CJ39,CK39,CL39) -> 9 | CN39: =+CM39*$H$22 -> 3 | CO39: =SUM(AY39,BU39,CM39) -> 43.7336077 | CP39: =SUM(AZ39,BV39,CN39) -> 14.57786923 | CQ39: =IF(D39<($Z$13*1785),1,IF(D39<(($Z$14+$Z$13)*1785),2,IF(D39<(($Z$15+$Z$13+$Z$14)*1785),3,4))) -> 1 | CR39: =VLOOKUP(A39,Taul1!$F$6:$G$1718,2,FALSE) ->  | DA39: 0 | DB39: 0 | DC39: 0 | DD39: =SUM(DA39:DC39) -> 0 | DE39: 5 | DF39: 5 | DG39: 0 | DH39: 16 | DI39: 7 | DJ39: 130 | DK39: 15 | DL39: 0 | DM39: 0 | DN39: 2 | DP39: 16183.14673 | DQ39: 22 | DR39: 3 | DS39: 10 | DT39: 10340.30047 | DU39: =+IF(AA39>$K$8,$F$27/2,0) -> 1 | DV39: =+IF(AA39/Y39>1.5,$F$27/2,0) -> 0 | DW39: =SUM(DU39:DV39) -> 1 | DX39: 3 | DY39: 0 | DZ39: 1 | EA39: =SUM(DY39:DZ39) -> 1 | EC39: 1 | ED39: 5 | EG39: 113746
A40: =CONCATENATE(S40,"_",T40,"_",U40) -> 2_13_0 | B40: 1 | C40: =CONCATENATE(S40,"_",T40) -> 2_13 | D40: =RANK(CP40,$CP$37:$CP$1821) -> 4 | E40: 4 | F40: =E40-D40 -> 0 | G40: =CP40 -> 14.53878644 | H40: =AZ40 -> 5 | I40: =BV40 -> 7.205453111 | J40: =CN40 -> 2.333333333 | K40: =CQ40 -> 1 | L40: =B40-K40 -> 0 | M40: =HYPERLINK(CX40,"Gmaps") -> Gmaps | N40: =IF(Y40>$K$6,"LOPUT","VÄHÄ") -> LOPUT | O40: =IF(S40<40,"Valta",IF(S40<100,"Kanta",IF(S40<1000,"Seutu",IF(S40>999,"Yhdys")))) -> Valta | R40: Uusimaa | S40: 2 | T40: 13 | U40: 0 | V40: 13 | W40: 5174 | X40: 5174 | Y40: 6607 | Z40: 591 | AA40: 8199 | AC40: 60 (8 %), 80 (76 %), 100 (16 %) | AF40: PK1 (100 %) | AI40: 0.01075731497 | AJ40: 340 | AR40: =+IF(Y40>=$K$6,$F$5,($F$5/($K$6))*Y40) -> 9 | AS40: 197 | AV40: =+IF(AS40>=$L$15,$J$15,IF(AS40<($L$15),AS40*($J$15/($L$15)),)) -> 3 | AW40: 3149 | AX40: =+IF(AW40>=$L$11,$J$11,IF(AW40<($L$11),AW40*($J$11/($L$11)),)) -> 3 | AY40: =SUM(AR40,AV40,AX40) -> 15 | AZ40: =+AY40*$H$5 -> 5 | BA40: =+IF(Z40=0,0,IF(Z40>$K$7,$F$9,($F$9/$K$7)*Z40)) -> 8 | BB40: =IF(DD40>0,$F$10,0) -> 2 | BC40: =IF(DE40>0,$F$11,0) -> 1 | BD40: =IF(DF40>0,$F$12,0) -> 1 | BE40: =IF(DG40>0,$F$13,0) -> 1 | BF40: =IF(DI40>0,$F$14,IF(DH40>0,$F$14/2,0)) -> 1 | BG40: =+IF(DJ40>=$L$19,$J$19,IF(DJ40<($L$19),DJ40*($J$19/($L$19)),)) -> 0.1183333333 | BH40: =+IF(DK40>=$L$20,$J$20,IF(DK40<($L$20),DK40*($J$20/($L$20)),)) -> 0.03 | BI40: =+IF(DL40>=$L$21,$J$21,IF(DL40<($L$21),DL40*($J$21/($L$21)),)) -> 0.0365 | BJ40: =+IF(DM40>=$L$22,$J$22,IF(DM40<($L$22),DM40*($J$22/($L$22)),)) -> 0 | BK40: =IF(DN40>0,$F$16,0) -> 2 | BL40: =+IF(DQ40>=$L$25,$J$25,IF(DQ40<($L$25),DQ40*($J$25/($L$25)),)) -> 2 | BM40: =IF(EG40>100000,$F$18,IF(EG40>0,$F$18/2,0)) -> 0.5 | BN40: =IF(ED40>0,$F$19,0) -> 2 | BO40: 4.98236 | BP40: 9.17177 | BQ40: 7.26638 | BR40: 3.161 | BS40: 8.63052 | BT40: =IF(COUNTIF($I$29:$L$29,TRUE)=0,0,IF(SUMIF($I$29:$L$29,TRUE,BO40:BR40)/COUNTIF($I$29:$L$29,TRUE)>=$L$30,$F$20/2,$F$20/2*(SUMIF($I$29:$L$29,TRUE,BO40:BR40)/COUNTIF($I$29:$L$29,TRUE)/$L$30)))+IF(BS40>=10,$F$20/2,IF(BS40<(10),BS40*($F$20/2/10))) -> 0.931526 | BU40: =SUM(BA40+BB40+BC40+BD40+BE40+BF40+BK40+BG40+BH40+BI40+BJ40+BL40+BM40+BN40+BT40) -> 21.61635933 | BV40: =+BU40*$H$9 -> 7.205453111 | BW40: 3742.003646 | BX40: =BW40/X40 -> 0.7232322469 | BY40: =IF(BX40>0,IF(BX40>=$DC$28,$DA$28,IF(BX40<$DC$28,$DA$29,0)),0) -> 1 | BZ40: 4514.291018 | CA40: =BZ40/X40 -> 0.8724953648 | CB40: =IF(CA40,$F$23,0) -> 1 | CC40: =IF(DS40>0,$F$24,0) -> 1 | CD40: 3842.062396 | CE40: =CD40/X40 -> 0.7425710082 | CF40: =+IF(CE40>=$K$4,$F$25,0) -> 1 | CG40: 313.0390414 | CH40: =IF(CG40>0,IF(CG40>=100,$F$26,IF(CG40<100,$F$26/2)),0) -> 1 | CI40: =SUM(DW40) -> 1 | CJ40: =IF(EA40>0,$F$28,0) -> 0 | CK40: =IF(DX40>0,$F$29,0) -> 0 | CL40: =IF(EC40>0,$F$30,0) -> 1 | CM40: =SUM(BY40,CB40,CH40,CC40,CF40,CI40,CJ40,CK40,CL40) -> 7 | CN40: =+CM40*$H$22 -> 2.333333333 | CO40: =SUM(AY40,BU40,CM40) -> 43.61635933 | CP40: =SUM(AZ40,BV40,CN40) -> 14.53878644 | CQ40: =IF(D40<($Z$13*1785),1,IF(D40<(($Z$14+$Z$13)*1785),2,IF(D40<(($Z$15+$Z$13+$Z$14)*1785),3,4))) -> 1 | CR40: =VLOOKUP(A40,Taul1!$F$6:$G$1718,2,FALSE) ->  | DA40: 0 | DB40: 0 | DC40: 4 | DD40: =SUM(DA40:DC40) -> 4 | DE40: 1 | DF40: 3 | DG40: 1 | DH40: 2 | DI40: 0 | DJ40: 71 | DK40: 6 | DL40: 73 | DM40: 0 | DN40: 3 | DP40: 3742.003646 | DQ40: 6 | DR40: 1 | DS40: 4 | DT40: 3842.062396 | DU40: =+IF(AA40>$K$8,$F$27/2,0) -> 1 | DV40: =+IF(AA40/Y40>1.5,$F$27/2,0) -> 0 | DW40: =SUM(DU40:DV40) -> 1 | DX40: 0 | DY40: 0 | DZ40: 0 | EA40: =SUM(DY40:DZ40) -> 0 | EC40: 1 | ED40: 4 | EG40: 10088
A41: =CONCATENATE(S41,"_",T41,"_",U41) -> 111_2_0 | B41: 1 | C41: =CONCATENATE(S41,"_",T41) -> 111_2 | D41: =RANK(CP41,$CP$37:$CP$1821) -> 5 | E41: 5 | F41: =E41-D41 -> 0 | G41: =CP41 -> 14.43542489 | H41: =AZ41 -> 5 | I41: =BV41 -> 6.435424889 | J41: =CN41 -> 3 | K41: =CQ41 -> 1 | L41: =B41-K41 -> 0 | M41: =HYPERLINK(CX41,"Gmaps") -> Gmaps | N41: =IF(Y41>$K$6,"LOPUT","VÄHÄ") -> LOPUT | O41: =IF(S41<40,"Valta",IF(S41<100,"Kanta",IF(S41<1000,"Seutu",IF(S41>999,"Yhdys")))) -> Seutu | R41: Uusimaa | S41: 111 | T41: 2 | U41: 0 | V41: 2 | W41: 8477 | X41: 8477 | Y41: 4272 | Z41: 193 | AA41: 5398 | AC41: 50 (12 %), 80 (88 %) | AF41: PK2 (99 %) | AI41: 0 | AJ41: 49 | AR41: =+IF(Y41>=$K$6,$F$5,($F$5/($K$6))*Y41) -> 9 | AS41: 49 | AV41: =+IF(AS41>=$L$15,$J$15,IF(AS41<($L$15),AS41*($J$15/($L$15)),)) -> 3 | AW41: 1343 | AX41: =+IF(AW41>=$L$11,$J$11,IF(AW41<($L$11),AW41*($J$11/($L$11)),)) -> 3 | AY41: =SUM(AR41,AV41,AX41) -> 15 | AZ41: =+AY41*$H$5 -> 5 | BA41: =+IF(Z41=0,0,IF(Z41>$K$7,$F$9,($F$9/$K$7)*Z41)) -> 8 | BB41: =IF(DD41>0,$F$10,0) -> 2 | BC41: =IF(DE41>0,$F$11,0) -> 0 | BD41: =IF(DF41>0,$F$12,0) -> 0 | BE41: =IF(DG41>0,$F$13,0) -> 0 | BF41: =IF(DI41>0,$F$14,IF(DH41>0,$F$14/2,0)) -> 2 | BG41: =+IF(DJ41>=$L$19,$J$19,IF(DJ41<($L$19),DJ41*($J$19/($L$19)),)) -> 0.1366666667 | BH41: =+IF(DK41>=$L$20,$J$20,IF(DK41<($L$20),DK41*($J$20/($L$20)),)) -> 0.5 | BI41: =+IF(DL41>=$L$21,$J$21,IF(DL41<($L$21),DL41*($J$21/($L$21)),)) -> 0 | BJ41: =+IF(DM41>=$L$22,$J$22,IF(DM41<($L$22),DM41*($J$22/($L$22)),)) -> 0 | BK41: =IF(DN41>0,$F$16,0) -> 2 | BL41: =+IF(DQ41>=$L$25,$J$25,IF(DQ41<($L$25),DQ41*($J$25/($L$25)),)) -> 2 | BM41: =IF(EG41>100000,$F$18,IF(EG41>0,$F$18/2,0)) -> 0 | BN41: =IF(ED41>0,$F$19,0) -> 2 | BO41: 5.18463 | BP41: 6.0555 | BQ41: 6.64346 | BR41: 3.26948 | BS41: 3.39216 | BT41: =IF(COUNTIF($I$29:$L$29,TRUE)=0,0,IF(SUMIF($I$29:$L$29,TRUE,BO41:BR41)/COUNTIF($I$29:$L$29,TRUE)>=$L$30,$F$20/2,$F$20/2*(SUMIF($I$29:$L$29,TRUE,BO41:BR41)/COUNTIF($I$29:$L$29,TRUE)/$L$30)))+IF(BS41>=10,$F$20/2,IF(BS41<(10),BS41*($F$20/2/10))) -> 0.669608 | BU41: =SUM(BA41+BB41+BC41+BD41+BE41+BF41+BK41+BG41+BH41+BI41+BJ41+BL41+BM41+BN41+BT41) -> 19.30627467 | BV41: =+BU41*$H$9 -> 6.435424889 | BW41: 5824.612346 | BX41: =BW41/X41 -> 0.6871077441 | BY41: =IF(BX41>0,IF(BX41>=$DC$28,$DA$28,IF(BX41<$DC$28,$DA$29,0)),0) -> 1 | BZ41: 8468.607844 | CA41: =BZ41/X41 -> 0.9990100087 | CB41: =IF(CA41,$F$23,0) -> 1 | CC41: =IF(DS41>0,$F$24,0) -> 1 | CD41: 5238.695462 | CE41: =CD41/X41 -> 0.6179893195 | CF41: =+IF(CE41>=$K$4,$F$25,0) -> 1 | CG41: 188.6800755 | CH41: =IF(CG41>0,IF(CG41>=100,$F$26,IF(CG41<100,$F$26/2)),0) -> 1 | CI41: =SUM(DW41) -> 1 | CJ41: =IF(EA41>0,$F$28,0) -> 1 | CK41: =IF(DX41>0,$F$29,0) -> 1 | CL41: =IF(EC41>0,$F$30,0) -> 1 | CM41: =SUM(BY41,CB41,CH41,CC41,CF41,CI41,CJ41,CK41,CL41) -> 9 | CN41: =+CM41*$H$22 -> 3 | CO41: =SUM(AY41,BU41,CM41) -> 43.30627467 | CP41: =SUM(AZ41,BV41,CN41) -> 14.43542489 | CQ41: =IF(D41<($Z$13*1785),1,IF(D41<(($Z$14+$Z$13)*1785),2,IF(D41<(($Z$15+$Z$13+$Z$14)*1785),3,4))) -> 1 | CR41: =VLOOKUP(A41,Taul1!$F$6:$G$1718,2,FALSE) ->  | DA41: 0 | DB41: 0 | DC41: 2 | DD41: =SUM(DA41:DC41) -> 2 | DE41: 0 | DF41: 0 | DG41: 0 | DH41: 4 | DI41: 1 | DJ41: 82 | DK41: 108 | DL41: 0 | DM41: 0 | DN41: 2 | DP41: 5824.612346 | DQ41: 5 | DR41: 0 | DS41: 5 | DT41: 5238.695462 | DU41: =+IF(AA41>$K$8,$F$27/2,0) -> 1 | DV41: =+IF(AA41/Y41>1.5,$F$27/2,0) -> 0 | DW41: =SUM(DU41:DV41) -> 1 | DX41: 1 | DY41: 0 | DZ41: 1 | EA41: =SUM(DY41:DZ41) -> 1 | EC41: 1 | ED41: 3 | EG41: 0
A42: =CONCATENATE(S42,"_",T42,"_",U42) -> 57_1_405 | B42: 1 | C42: =CONCATENATE(S42,"_",T42) -> 57_1 | D42: =RANK(CP42,$CP$37:$CP$1821) -> 6 | E42: 6 | F42: =E42-D42 -> 0 | G42: =CP42 -> 14.42163467 | H42: =AZ42 -> 5 | I42: =BV42 -> 6.754968 | J42: =CN42 -> 2.666666667 | K42: =CQ42 -> 1 | L42: =B42-K42 -> 0 | M42: =HYPERLINK(CX42,"Gmaps") -> Gmaps | N42: =IF(Y42>$K$6,"LOPUT","VÄHÄ") -> LOPUT | O42: =IF(S42<40,"Valta",IF(S42<100,"Kanta",IF(S42<1000,"Seutu",IF(S42>999,"Yhdys")))) -> Kanta | R42: Kanta-Häme | S42: 57 | T42: 1 | U42: 405 | V42: 1 | W42: 6825 | X42: 6420 | Y42: 8120 | Z42: 354 | AA42: 9193 | AC42: 50 (2 %), 60 (29 %), 80 (68 %) | AF42: PK2 (100 %) | AI42: 0.0401243856 | AJ42: 121 | AR42: =+IF(Y42>=$K$6,$F$5,($F$5/($K$6))*Y42) -> 9 | AS42: 181 | AV42: =+IF(AS42>=$L$15,$J$15,IF(AS42<($L$15),AS42*($J$15/($L$15)),)) -> 3 | AW42: 5115 | AX42: =+IF(AW42>=$L$11,$J$11,IF(AW42<($L$11),AW42*($J$11/($L$11)),)) -> 3 | AY42: =SUM(AR42,AV42,AX42) -> 15 | AZ42: =+AY42*$H$5 -> 5 | BA42: =+IF(Z42=0,0,IF(Z42>$K$7,$F$9,($F$9/$K$7)*Z42)) -> 8 | BB42: =IF(DD42>0,$F$10,0) -> 2 | BC42: =IF(DE42>0,$F$11,0) -> 1 | BD42: =IF(DF42>0,$F$12,0) -> 1 | BE42: =IF(DG42>0,$F$13,0) -> 0 | BF42: =IF(DI42>0,$F$14,IF(DH42>0,$F$14/2,0)) -> 1 | BG42: =+IF(DJ42>=$L$19,$J$19,IF(DJ42<($L$19),DJ42*($J$19/($L$19)),)) -> 0.1716666667 | BH42: =+IF(DK42>=$L$20,$J$20,IF(DK42<($L$20),DK42*($J$20/($L$20)),)) -> 0 | BI42: =+IF(DL42>=$L$21,$J$21,IF(DL42<($L$21),DL42*($J$21/($L$21)),)) -> 0 | BJ42: =+IF(DM42>=$L$22,$J$22,IF(DM42<($L$22),DM42*($J$22/($L$22)),)) -> 0 | BK42: =IF(DN42>0,$F$16,0) -> 2 | BL42: =+IF(DQ42>=$L$25,$J$25,IF(DQ42<($L$25),DQ42*($J$25/($L$25)),)) -> 2 | BM42: =IF(EG42>100000,$F$18,IF(EG42>0,$F$18/2,0)) -> 0.5 | BN42: =IF(ED42>0,$F$19,0) -> 2 | BO42: 1.77907 | BP42: 2.23282 | BQ42: 2.0027 | BR42: 0.806157 | BS42: 7.85502 | BT42: =IF(COUNTIF($I$29:$L$29,TRUE)=0,0,IF(SUMIF($I$29:$L$29,TRUE,BO42:BR42)/COUNTIF($I$29:$L$29,TRUE)>=$L$30,$F$20/2,$F$20/2*(SUMIF($I$29:$L$29,TRUE,BO42:BR42)/COUNTIF($I$29:$L$29,TRUE)/$L$30)))+IF(BS42>=10,$F$20/2,IF(BS42<(10),BS42*($F$20/2/10))) -> 0.5932373333 | BU42: =SUM(BA42+BB42+BC42+BD42+BE42+BF42+BK42+BG42+BH42+BI42+BJ42+BL42+BM42+BN42+BT42) -> 20.264904 | BV42: =+BU42*$H$9 -> 6.754968 | BW42: 6398.878774 | BX42: =BW42/X42 -> 0.9967100895 | BY42: =IF(BX42>0,IF(BX42>=$DC$28,$DA$28,IF(BX42<$DC$28,$DA$29,0)),0) -> 1 | BZ42: 6398.878773 | CA42: =BZ42/X42 -> 0.9967100893 | CB42: =IF(CA42,$F$23,0) -> 1 | CC42: =IF(DS42>0,$F$24,0) -> 1 | CD42: 3816.72093 | CE42: =CD42/X42 -> 0.5945048177 | CF42: =+IF(CE42>=$K$4,$F$25,0) -> 1 | CG42: 272.2936137 | CH42: =IF(CG42>0,IF(CG42>=100,$F$26,IF(CG42<100,$F$26/2)),0) -> 1 | CI42: =SUM(DW42) -> 1 | CJ42: =IF(EA42>0,$F$28,0) -> 0 | CK42: =IF(DX42>0,$F$29,0) -> 1 | CL42: =IF(EC42>0,$F$30,0) -> 1 | CM42: =SUM(BY42,CB42,CH42,CC42,CF42,CI42,CJ42,CK42,CL42) -> 8 | CN42: =+CM42*$H$22 -> 2.666666667 | CO42: =SUM(AY42,BU42,CM42) -> 43.264904 | CP42: =SUM(AZ42,BV42,CN42) -> 14.42163467 | CQ42: =IF(D42<($Z$13*1785),1,IF(D42<(($Z$14+$Z$13)*1785),2,IF(D42<(($Z$15+$Z$13+$Z$14)*1785),3,4))) -> 1 | CR42: =VLOOKUP(A42,Taul1!$F$6:$G$1718,2,FALSE) ->  | DA42: 0 | DB42: 3 | DC42: 2 | DD42: =SUM(DA42:DC42) -> 5 | DE42: 2 | DF42: 1 | DG42: 0 | DH42: 16 | DI42: 0 | DJ42: 103 | DK42: 0 | DL42: 0 | DM42: 0 | DN42: 1 | DP42: 6398.878774 | DQ42: 11 | DR42: 2 | DS42: 33 | DT42: 3816.72093 | DU42: =+IF(AA42>$K$8,$F$27/2,0) -> 1 | DV42: =+IF(AA42/Y42>1.5,$F$27/2,0) -> 0 | DW42: =SUM(DU42:DV42) -> 1 | DX42: 2 | DY42: 0 | DZ42: 0 | EA42: =SUM(DY42:DZ42) -> 0 | EC42: 1 | ED42: 2 | EG42: 34526
A43: =CONCATENATE(S43,"_",T43,"_",U43) -> 6_116_0 | B43: 1 | C43: =CONCATENATE(S43,"_",T43) -> 6_116 | D43: =RANK(CP43,$CP$37:$CP$1821) -> 7 | E43: 7 | F43: =E43-D43 -> 0 | G43: =CP43 -> 14.33333333 | H43: =AZ43 -> 5 | I43: =BV43 -> 7.333333333 | J43: =CN43 -> 2 | K43: =CQ43 -> 1 | L43: =B43-K43 -> 0 | M43: =HYPERLINK(CX43,"Gmaps") -> Gmaps | N43: =IF(Y43>$K$6,"LOPUT","VÄHÄ") -> LOPUT | O43: =IF(S43<40,"Valta",IF(S43<100,"Kanta",IF(S43<1000,"Seutu",IF(S43>999,"Yhdys")))) -> Valta | R43: Uusimaa | S43: 6 | T43: 116 | U43: 0 | V43: 116 | W43: 10270 | X43: 10270 | Y43: 5748 | Z43: 638 | AA43: 7071 | AC43: 80 (21 %), 100 (79 %) | AF43: PK1 (100 %) | AI43: 0.01098018211 | AJ43: 472 | AR43: =+IF(Y43>=$K$6,$F$5,($F$5/($K$6))*Y43) -> 9 | AS43: 46 | AV43: =+IF(AS43>=$L$15,$J$15,IF(AS43<($L$15),AS43*($J$15/($L$15)),)) -> 3 | AW43: 3053 | AX43: =+IF(AW43>=$L$11,$J$11,IF(AW43<($L$11),AW43*($J$11/($L$11)),)) -> 3 | AY43: =SUM(AR43,AV43,AX43) -> 15 | AZ43: =+AY43*$H$5 -> 5 | BA43: =+IF(Z43=0,0,IF(Z43>$K$7,$F$9,($F$9/$K$7)*Z43)) -> 8 | BB43: =IF(DD43>0,$F$10,0) -> 2 | BC43: =IF(DE43>0,$F$11,0) -> 1 | BD43: =IF(DF43>0,$F$12,0) -> 1 | BE43: =IF(DG43>0,$F$13,0) -> 0 | BF43: =IF(DI43>0,$F$14,IF(DH43>0,$F$14/2,0)) -> 2 | BG43: =+IF(DJ43>=$L$19,$J$19,IF(DJ43<($L$19),DJ43*($J$19/($L$19)),)) -> 0.5 | BH43: =+IF(DK43>=$L$20,$J$20,IF(DK43<($L$20),DK43*($J$20/($L$20)),)) -> 0.5 | BI43: =+IF(DL43>=$L$21,$J$21,IF(DL43<($L$21),DL43*($J$21/($L$21)),)) -> 0 | BJ43: =+IF(DM43>=$L$22,$J$22,IF(DM43<($L$22),DM43*($J$22/($L$22)),)) -> 0 | BK43: =IF(DN43>0,$F$16,0) -> 2 | BL43: =+IF(DQ43>=$L$25,$J$25,IF(DQ43<($L$25),DQ43*($J$25/($L$25)),)) -> 2 | BM43: =IF(EG43>100000,$F$18,IF(EG43>0,$F$18/2,0)) -> 0 | BN43: =IF(ED43>0,$F$19,0) -> 2 | BO43: 7.38712 | BP43: 10.9139 | BQ43: 10.4782 | BR43: 6.95193 | BS43: 26.7119 | BT43: =IF(COUNTIF($I$29:$L$29,TRUE)=0,0,IF(SUMIF($I$29:$L$29,TRUE,BO43:BR43)/COUNTIF($I$29:$L$29,TRUE)>=$L$30,$F$20/2,$F$20/2*(SUMIF($I$29:$L$29,TRUE,BO43:BR43)/COUNTIF($I$29:$L$29,TRUE)/$L$30)))+IF(BS43>=10,$F$20/2,IF(BS43<(10),BS43*($F$20/2/10))) -> 1 | BU43: =SUM(BA43+BB43+BC43+BD43+BE43+BF43+BK43+BG43+BH43+BI43+BJ43+BL43+BM43+BN43+BT43) -> 22 | BV43: =+BU43*$H$9 -> 7.333333333 | BW43: 3297.921728 | BX43: =BW43/X43 -> 0.321121882 | BY43: =IF(BX43>0,IF(BX43>=$DC$28,$DA$28,IF(BX43<$DC$28,$DA$29,0)),0) -> 0.5 | BZ43: 10259.45363 | CA43: =BZ43/X43 -> 0.9989730894 | CB43: =IF(CA43,$F$23,0) -> 1 | CC43: =IF(DS43>0,$F$24,0) -> 1 | CD43: 591.0992917 | CE43: =CD43/X43 -> 0.05755591935 | CF43: =+IF(CE43>=$K$4,$F$25,0) -> 0 | CG43: 9.341772152 | CH43: =IF(CG43>0,IF(CG43>=100,$F$26,IF(CG43<100,$F$26/2)),0) -> 0.5 | CI43: =SUM(DW43) -> 1 | CJ43: =IF(EA43>0,$F$28,0) -> 0 | CK43: =IF(DX43>0,$F$29,0) -> 1 | CL43: =IF(EC43>0,$F$30,0) -> 1 | CM43: =SUM(BY43,CB43,CH43,CC43,CF43,CI43,CJ43,CK43,CL43) -> 6 | CN43: =+CM43*$H$22 -> 2 | CO43: =SUM(AY43,BU43,CM43) -> 43 | CP43: =SUM(AZ43,BV43,CN43) -> 14.33333333 | CQ43: =IF(D43<($Z$13*1785),1,IF(D43<(($Z$14+$Z$13)*1785),2,IF(D43<(($Z$15+$Z$13+$Z$14)*1785),3,4))) -> 1 | CR43: =VLOOKUP(A43,Taul1!$F$6:$G$1718,2,FALSE) ->  | DA43: 0 | DB43: 3 | DC43: 0 | DD43: =SUM(DA43:DC43) -> 3 | DE43: 2 | DF43: 13 | DG43: 0 | DH43: 24 | DI43: 1 | DJ43: 529 | DK43: 175 | DL43: 0 | DM43: 0 | DN43: 1 | DP43: 3297.921728 | DQ43: 5 | DR43: 0 | DS43: 5 | DT43: 591.0992917 | DU43: =+IF(AA43>$K$8,$F$27/2,0) -> 1 | DV43: =+IF(AA43/Y43>1.5,$F$27/2,0) -> 0 | DW43: =SUM(DU43:DV43) -> 1 | DX43: 1 | DY43: 0 | DZ43: 0 | EA43: =SUM(DY43:DZ43) -> 0 | EC43: 1 | ED43: 2 | EG43: 0
A44: =CONCATENATE(S44,"_",T44,"_",U44) -> 24_6_0 | B44: 1 | C44: =CONCATENATE(S44,"_",T44) -> 24_6 | D44: =RANK(CP44,$CP$37:$CP$1821) -> 8 | E44: 8 | F44: =E44-D44 -> 0 | G44: =CP44 -> 14.30777778 | H44: =AZ44 -> 5 | I44: =BV44 -> 6.474444444 | J44: =CN44 -> 2.833333333 | K44: =CQ44 -> 1 | L44: =B44-K44 -> 0 | M44: =HYPERLINK(CX44,"Gmaps") -> Gmaps | N44: =IF(Y44>$K$6,"LOPUT","VÄHÄ") -> LOPUT | O44: =IF(S44<40,"Valta",IF(S44<100,"Kanta",IF(S44<1000,"Seutu",IF(S44>999,"Yhdys")))) -> Valta | R44: Päijät-Häme | S44: 24 | T44: 6 | U44: 0 | V44: 6 | W44: 5930 | X44: 5930 | Y44: 4270 | Z44: 201 | AA44: 5429 | AC44: 50 (7 %), 80 (93 %) | AF44: PK2 (100 %) | AI44: 0.04770992366 | AJ44: 91 | AR44: =+IF(Y44>=$K$6,$F$5,($F$5/($K$6))*Y44) -> 9 | AS44: 56 | AV44: =+IF(AS44>=$L$15,$J$15,IF(AS44<($L$15),AS44*($J$15/($L$15)),)) -> 3 | AW44: 947 | AX44: =+IF(AW44>=$L$11,$J$11,IF(AW44<($L$11),AW44*($J$11/($L$11)),)) -> 3 | AY44: =SUM(AR44,AV44,AX44) -> 15 | AZ44: =+AY44*$H$5 -> 5 | BA44: =+IF(Z44=0,0,IF(Z44>$K$7,$F$9,($F$9/$K$7)*Z44)) -> 8 | BB44: =IF(DD44>0,$F$10,0) -> 2 | BC44: =IF(DE44>0,$F$11,0) -> 0 | BD44: =IF(DF44>0,$F$12,0) -> 0 | BE44: =IF(DG44>0,$F$13,0) -> 0 | BF44: =IF(DI44>0,$F$14,IF(DH44>0,$F$14/2,0)) -> 2 | BG44: =+IF(DJ44>=$L$19,$J$19,IF(DJ44<($L$19),DJ44*($J$19/($L$19)),)) -> 0.2233333333 | BH44: =+IF(DK44>=$L$20,$J$20,IF(DK44<($L$20),DK44*($J$20/($L$20)),)) -> 0 | BI44: =+IF(DL44>=$L$21,$J$21,IF(DL44<($L$21),DL44*($J$21/($L$21)),)) -> 0.2 | BJ44: =+IF(DM44>=$L$22,$J$22,IF(DM44<($L$22),DM44*($J$22/($L$22)),)) -> 0 | BK44: =IF(DN44>0,$F$16,0) -> 2 | BL44: =+IF(DQ44>=$L$25,$J$25,IF(DQ44<($L$25),DQ44*($J$25/($L$25)),)) -> 2 | BM44: =IF(EG44>100000,$F$18,IF(EG44>0,$F$18/2,0)) -> 0 | BN44: =IF(ED44>0,$F$19,0) -> 2 | BO44: 7.50951 | BP44: 9.72127 | BQ44: 4.89954 | BR44: 4.30226 | BS44: 28.4903 | BT44: =IF(COUNTIF($I$29:$L$29,TRUE)=0,0,IF(SUMIF($I$29:$L$29,TRUE,BO44:BR44)/COUNTIF($I$29:$L$29,TRUE)>=$L$30,$F$20/2,$F$20/2*(SUMIF($I$29:$L$29,TRUE,BO44:BR44)/COUNTIF($I$29:$L$29,TRUE)/$L$30)))+IF(BS44>=10,$F$20/2,IF(BS44<(10),BS44*($F$20/2/10))) -> 1 | BU44: =SUM(BA44+BB44+BC44+BD44+BE44+BF44+BK44+BG44+BH44+BI44+BJ44+BL44+BM44+BN44+BT44) -> 19.42333333 | BV44: =+BU44*$H$9 -> 6.474444444 | BW44: 4097.819272 | BX44: =BW44/X44 -> 0.6910319177 | BY44: =IF(BX44>0,IF(BX44>=$DC$28,$DA$28,IF(BX44<$DC$28,$DA$29,0)),0) -> 1 | BZ44: 5906.496656 | CA44: =BZ44/X44 -> 0.9960365356 | CB44: =IF(CA44,$F$23,0) -> 1 | CC44: =IF(DS44>0,$F$24,0) -> 1 | CD44: 2982.539288 | CE44: =CD44/X44 -> 0.5029577214 | CF44: =+IF(CE44>=$K$4,$F$25,0) -> 1 | CG44: 66.74873524 | CH44: =IF(CG44>0,IF(CG44>=100,$F$26,IF(CG44<100,$F$26/2)),0) -> 0.5 | CI44: =SUM(DW44) -> 1 | CJ44: =IF(EA44>0,$F$28,0) -> 1 | CK44: =IF(DX44>0,$F$29,0) -> 1 | CL44: =IF(EC44>0,$F$30,0) -> 1 | CM44: =SUM(BY44,CB44,CH44,CC44,CF44,CI44,CJ44,CK44,CL44) -> 8.5 | CN44: =+CM44*$H$22 -> 2.833333333 | CO44: =SUM(AY44,BU44,CM44) -> 42.92333333 | CP44: =SUM(AZ44,BV44,CN44) -> 14.30777778 | CQ44: =IF(D44<($Z$13*1785),1,IF(D44<(($Z$14+$Z$13)*1785),2,IF(D44<(($Z$15+$Z$13+$Z$14)*1785),3,4))) -> 1 | CR44: =VLOOKUP(A44,Taul1!$F$6:$G$1718,2,FALSE) ->  | DA44: 0 | DB44: 1 | DC44: 1 | DD44: =SUM(DA44:DC44) -> 2 | DE44: 0 | DF44: 0 | DG44: 0 | DH44: 12 | DI44: 1 | DJ44: 134 | DK44: 0 | DL44: 400 | DM44: 0 | DN44: 1 | DP44: 4097.819272 | DQ44: 4 | DR44: 0 | DS44: 12 | DT44: 2982.539288 | DU44: =+IF(AA44>$K$8,$F$27/2,0) -> 1 | DV44: =+IF(AA44/Y44>1.5,$F$27/2,0) -> 0 | DW44: =SUM(DU44:DV44) -> 1 | DX44: 2 | DY44: 0 | DZ44: 1 | EA44: =SUM(DY44:DZ44) -> 1 | EC44: 1 | ED44: 1 | EG44: 0
A45: =CONCATENATE(S45,"_",T45,"_",U45) -> 313_4_0 | B45: 1 | C45: =CONCATENATE(S45,"_",T45) -> 313_4 | D45: =RANK(CP45,$CP$37:$CP$1821) -> 9 | E45: 9 | F45: =E45-D45 -> 0 | G45: =CP45 -> 14.305 | H45: =AZ45 -> 5 | I45: =BV45 -> 7.138333333 | J45: =CN45 -> 2.166666667 | K45: =CQ45 -> 1 | L45: =B45-K45 -> 0 | M45: =HYPERLINK(CX45,"Gmaps") -> Gmaps | N45: =IF(Y45>$K$6,"LOPUT","VÄHÄ") -> LOPUT | O45: =IF(S45<40,"Valta",IF(S45<100,"Kanta",IF(S45<1000,"Seutu",IF(S45>999,"Yhdys")))) -> Seutu | R45: Päijät-Häme | S45: 313 | T45: 4 | U45: 0 | V45: 4 | W45: 8732 | X45: 8732 | Y45: 1594 | Z45: 146 | AA45: 2356 | AC45: 50 (8 %), 60 (37 %), 70 (12 %), 80 (44 %) | AF45: PK2 (97 %) | AI45: 0.35854228 | AJ45: 75 | AR45: =+IF(Y45>=$K$6,$F$5,($F$5/($K$6))*Y45) -> 9 | AS45: 212 | AV45: =+IF(AS45>=$L$15,$J$15,IF(AS45<($L$15),AS45*($J$15/($L$15)),)) -> 3 | AW45: 1313 | AX45: =+IF(AW45>=$L$11,$J$11,IF(AW45<($L$11),AW45*($J$11/($L$11)),)) -> 3 | AY45: =SUM(AR45,AV45,AX45) -> 15 | AZ45: =+AY45*$H$5 -> 5 | BA45: =+IF(Z45=0,0,IF(Z45>$K$7,$F$9,($F$9/$K$7)*Z45)) -> 8 | BB45: =IF(DD45>0,$F$10,0) -> 2 | BC45: =IF(DE45>0,$F$11,0) -> 1 | BD45: =IF(DF45>0,$F$12,0) -> 1 | BE45: =IF(DG45>0,$F$13,0) -> 1 | BF45: =IF(DI45>0,$F$14,IF(DH45>0,$F$14/2,0)) -> 2 | BG45: =+IF(DJ45>=$L$19,$J$19,IF(DJ45<($L$19),DJ45*($J$19/($L$19)),)) -> 0.5 | BH45: =+IF(DK45>=$L$20,$J$20,IF(DK45<($L$20),DK45*($J$20/($L$20)),)) -> 0.415 | BI45: =+IF(DL45>=$L$21,$J$21,IF(DL45<($L$21),DL45*($J$21/($L$21)),)) -> 0 | BJ45: =+IF(DM45>=$L$22,$J$22,IF(DM45<($L$22),DM45*($J$22/($L$22)),)) -> 0 | BK45: =IF(DN45>0,$F$16,0) -> 0 | BL45: =+IF(DQ45>=$L$25,$J$25,IF(DQ45<($L$25),DQ45*($J$25/($L$25)),)) -> 2 | BM45: =IF(EG45>100000,$F$18,IF(EG45>0,$F$18/2,0)) -> 0.5 | BN45: =IF(ED45>0,$F$19,0) -> 2 | BO45: 5.65664 | BP45: 9.29792 | BQ45: 7.65727 | BR45: 4.23943 | BS45: 11.5215 | BT45: =IF(COUNTIF($I$29:$L$29,TRUE)=0,0,IF(SUMIF($I$29:$L$29,TRUE,BO45:BR45)/COUNTIF($I$29:$L$29,TRUE)>=$L$30,$F$20/2,$F$20/2*(SUMIF($I$29:$L$29,TRUE,BO45:BR45)/COUNTIF($I$29:$L$29,TRUE)/$L$30)))+IF(BS45>=10,$F$20/2,IF(BS45<(10),BS45*($F$20/2/10))) -> 1 | BU45: =SUM(BA45+BB45+BC45+BD45+BE45+BF45+BK45+BG45+BH45+BI45+BJ45+BL45+BM45+BN45+BT45) -> 21.415 | BV45: =+BU45*$H$9 -> 7.138333333 | BW45: 0 | BX45: =BW45/X45 -> 0 | BY45: =IF(BX45>0,IF(BX45>=$DC$28,$DA$28,IF(BX45<$DC$28,$DA$29,0)),0) -> 0 | BZ45: 8377.117541 | CA45: =BZ45/X45 -> 0.9593583991 | CB45: =IF(CA45,$F$23,0) -> 1 | CC45: =IF(DS45>0,$F$24,0) -> 1 | CD45: 608.7098335 | CE45: =CD45/X45 -> 0.06971024204 | CF45: =+IF(CE45>=$K$4,$F$25,0) -> 0 | CG45: 15.85890976 | CH45: =IF(CG45>0,IF(CG45>=100,$F$26,IF(CG45<100,$F$26/2)),0) -> 0.5 | CI45: =SUM(DW45) -> 1 | CJ45: =IF(EA45>0,$F$28,0) -> 1 | CK45: =IF(DX45>0,$F$29,0) -> 1 | CL45: =IF(EC45>0,$F$30,0) -> 1 | CM45: =SUM(BY45,CB45,CH45,CC45,CF45,CI45,CJ45,CK45,CL45) -> 6.5 | CN45: =+CM45*$H$22 -> 2.166666667 | CO45: =SUM(AY45,BU45,CM45) -> 42.915 | CP45: =SUM(AZ45,BV45,CN45) -> 14.305 | CQ45: =IF(D45<($Z$13*1785),1,IF(D45<(($Z$14+$Z$13)*1785),2,IF(D45<(($Z$15+$Z$13+$Z$14)*1785),3,4))) -> 1 | CR45: =VLOOKUP(A45,Taul1!$F$6:$G$1718,2,FALSE) ->  | DA45: 0 | DB45: 0 | DC45: 1 | DD45: =SUM(DA45:DC45) -> 1 | DE45: 2 | DF45: 8 | DG45: 1 | DH45: 15 | DI45: 1 | DJ45: 568 | DK45: 83 | DL45: 0 | DM45: 0 | DN45: 0 | DP45: 0 | DQ45: 17 | DR45: 1 | DS45: 41 | DT45: 608.7098335 | DU45: =+IF(AA45>$K$8,$F$27/2,0) -> 1 | DV45: =+IF(AA45/Y45>1.5,$F$27/2,0) -> 0 | DW45: =SUM(DU45:DV45) -> 1 | DX45: 2 | DY45: 0 | DZ45: 1 | EA45: =SUM(DY45:DZ45) -> 1 | EC45: 1 | ED45: 2 | EG45: 44888
A46: =CONCATENATE(S46,"_",T46,"_",U46) -> 2804_2_0 | B46: 1 | C46: =CONCATENATE(S46,"_",T46) -> 2804_2 | D46: =RANK(CP46,$CP$37:$CP$1821) -> 10 | E46: 10 | F46: =E46-D46 -> 0 | G46: =CP46 -> 14.30467092 | H46: =AZ46 -> 5 | I46: =BV46 -> 6.304670922 | J46: =CN46 -> 3 | K46: =CQ46 -> 1 | L46: =B46-K46 -> 0 | M46: =HYPERLINK(CX46,"Gmaps") -> Gmaps | N46: =IF(Y46>$K$6,"LOPUT","VÄHÄ") -> LOPUT | O46: =IF(S46<40,"Valta",IF(S46<100,"Kanta",IF(S46<1000,"Seutu",IF(S46>999,"Yhdys")))) -> Yhdys | R46: Kanta-Häme | S46: 2804 | T46: 2 | U46: 0 | V46: 2 | W46: 7505 | X46: 7505 | Y46: 4718 | Z46: 226 | AA46: 4908 | AC46: 40 (8 %), 50 (12 %), 60 (44 %), 80 (35 %) | AF46: PK2 (98 %) | AI46: 0.06436314363 | AJ46: 73 | AR46: =+IF(Y46>=$K$6,$F$5,($F$5/($K$6))*Y46) -> 9 | AS46: 133 | AV46: =+IF(AS46>=$L$15,$J$15,IF(AS46<($L$15),AS46*($J$15/($L$15)),)) -> 3 | AW46: 2577 | AX46: =+IF(AW46>=$L$11,$J$11,IF(AW46<($L$11),AW46*($J$11/($L$11)),)) -> 3 | AY46: =SUM(AR46,AV46,AX46) -> 15 | AZ46: =+AY46*$H$5 -> 5 | BA46: =+IF(Z46=0,0,IF(Z46>$K$7,$F$9,($F$9/$K$7)*Z46)) -> 8 | BB46: =IF(DD46>0,$F$10,0) -> 2 | BC46: =IF(DE46>0,$F$11,0) -> 1 | BD46: =IF(DF46>0,$F$12,0) -> 1 | BE46: =IF(DG46>0,$F$13,0) -> 1 | BF46: =IF(DI46>0,$F$14,IF(DH46>0,$F$14/2,0)) -> 1 | BG46: =+IF(DJ46>=$L$19,$J$19,IF(DJ46<($L$19),DJ46*($J$19/($L$19)),)) -> 0.1933333333 | BH46: =+IF(DK46>=$L$20,$J$20,IF(DK46<($L$20),DK46*($J$20/($L$20)),)) -> 0 | BI46: =+IF(DL46>=$L$21,$J$21,IF(DL46<($L$21),DL46*($J$21/($L$21)),)) -> 0 | BJ46: =+IF(DM46>=$L$22,$J$22,IF(DM46<($L$22),DM46*($J$22/($L$22)),)) -> 0 | BK46: =IF(DN46>0,$F$16,0) -> 0 | BL46: =+IF(DQ46>=$L$25,$J$25,IF(DQ46<($L$25),DQ46*($J$25/($L$25)),)) -> 2 | BM46: =IF(EG46>100000,$F$18,IF(EG46>0,$F$18/2,0)) -> 0.5 | BN46: =IF(ED46>0,$F$19,0) -> 2 | BO46: 0.975135 | BP46: 0.784479 | BQ46: 0.464029 | BR46: 0.0893952 | BS46: 2.93116 | BT46: =IF(COUNTIF($I$29:$L$29,TRUE)=0,0,IF(SUMIF($I$29:$L$29,TRUE,BO46:BR46)/COUNTIF($I$29:$L$29,TRUE)>=$L$30,$F$20/2,$F$20/2*(SUMIF($I$29:$L$29,TRUE,BO46:BR46)/COUNTIF($I$29:$L$29,TRUE)/$L$30)))+IF(BS46>=10,$F$20/2,IF(BS46<(10),BS46*($F$20/2/10))) -> 0.2206794333 | BU46: =SUM(BA46+BB46+BC46+BD46+BE46+BF46+BK46+BG46+BH46+BI46+BJ46+BL46+BM46+BN46+BT46) -> 18.91401277 | BV46: =+BU46*$H$9 -> 6.304670922 | BW46: 5974.918477 | BX46: =BW46/X46 -> 0.7961250469 | BY46: =IF(BX46>0,IF(BX46>=$DC$28,$DA$28,IF(BX46<$DC$28,$DA$29,0)),0) -> 1 | BZ46: 7240.148187 | CA46: =BZ46/X46 -> 0.9647099516 | CB46: =IF(CA46,$F$23,0) -> 1 | CC46: =IF(DS46>0,$F$24,0) -> 1 | CD46: 4405.25262 | CE46: =CD46/X46 -> 0.5869756989 | CF46: =+IF(CE46>=$K$4,$F$25,0) -> 1 | CG46: 215.6695536 | CH46: =IF(CG46>0,IF(CG46>=100,$F$26,IF(CG46<100,$F$26/2)),0) -> 1 | CI46: =SUM(DW46) -> 1 | CJ46: =IF(EA46>0,$F$28,0) -> 1 | CK46: =IF(DX46>0,$F$29,0) -> 1 | CL46: =IF(EC46>0,$F$30,0) -> 1 | CM46: =SUM(BY46,CB46,CH46,CC46,CF46,CI46,CJ46,CK46,CL46) -> 9 | CN46: =+CM46*$H$22 -> 3 | CO46: =SUM(AY46,BU46,CM46) -> 42.91401277 | CP46: =SUM(AZ46,BV46,CN46) -> 14.30467092 | CQ46: =IF(D46<($Z$13*1785),1,IF(D46<(($Z$14+$Z$13)*1785),2,IF(D46<(($Z$15+$Z$13+$Z$14)*1785),3,4))) -> 1 | CR46: =VLOOKUP(A46,Taul1!$F$6:$G$1718,2,FALSE) ->  | DA46: 0 | DB46: 0 | DC46: 3 | DD46: =SUM(DA46:DC46) -> 3 | DE46: 8 | DF46: 1 | DG46: 1 | DH46: 1 | DI46: 0 | DJ46: 116 | DK46: 0 | DL46: 0 | DM46: 0 | DN46: 0 | DP46: 5974.918477 | DQ46: 14 | DR46: 1 | DS46: 40 | DT46: 4405.25262 | DU46: =+IF(AA46>$K$8,$F$27/2,0) -> 1 | DV46: =+IF(AA46/Y46>1.5,$F$27/2,0) -> 0 | DW46: =SUM(DU46:DV46) -> 1 | DX46: 2 | DY46: 0 | DZ46: 1 | EA46: =SUM(DY46:DZ46) -> 1 | EC46: 1 | ED46: 4 | EG46: 11078
A47: =CONCATENATE(S47,"_",T47,"_",U47) -> 176_1_0 | B47: 1 | C47: =CONCATENATE(S47,"_",T47) -> 176_1 | D47: =RANK(CP47,$CP$37:$CP$1821) -> 11 | E47: 11 | F47: =E47-D47 -> 0 | G47: =CP47 -> 14.2727009 | H47: =AZ47 -> 5 | I47: =BV47 -> 6.939367567 | J47: =CN47 -> 2.333333333 | K47: =CQ47 -> 1 | L47: =B47-K47 -> 0 | M47: =HYPERLINK(CX47,"Gmaps") -> Gmaps | N47: =IF(Y47>$K$6,"LOPUT","VÄHÄ") -> LOPUT | O47: =IF(S47<40,"Valta",IF(S47<100,"Kanta",IF(S47<1000,"Seutu",IF(S47>999,"Yhdys")))) -> Seutu | R47: Uusimaa | S47: 176 | T47: 1 | U47: 0 | V47: 1 | W47: 6557 | X47: 6557 | Y47: 2016 | Z47: 101 | AA47: 2217 | AC47: 50 (59 %), 60 (10 %), 70 (30 %) | AF47: PK2 (100 %) | AI47: 0 | AJ47: 32 | AR47: =+IF(Y47>=$K$6,$F$5,($F$5/($K$6))*Y47) -> 9 | AS47: 44 | AV47: =+IF(AS47>=$L$15,$J$15,IF(AS47<($L$15),AS47*($J$15/($L$15)),)) -> 3 | AW47: 2092 | AX47: =+IF(AW47>=$L$11,$J$11,IF(AW47<($L$11),AW47*($J$11/($L$11)),)) -> 3 | AY47: =SUM(AR47,AV47,AX47) -> 15 | AZ47: =+AY47*$H$5 -> 5 | BA47: =+IF(Z47=0,0,IF(Z47>$K$7,$F$9,($F$9/$K$7)*Z47)) -> 8 | BB47: =IF(DD47>0,$F$10,0) -> 2 | BC47: =IF(DE47>0,$F$11,0) -> 1 | BD47: =IF(DF47>0,$F$12,0) -> 1 | BE47: =IF(DG47>0,$F$13,0) -> 0 | BF47: =IF(DI47>0,$F$14,IF(DH47>0,$F$14/2,0)) -> 2 | BG47: =+IF(DJ47>=$L$19,$J$19,IF(DJ47<($L$19),DJ47*($J$19/($L$19)),)) -> 0.04 | BH47: =+IF(DK47>=$L$20,$J$20,IF(DK47<($L$20),DK47*($J$20/($L$20)),)) -> 0.08 | BI47: =+IF(DL47>=$L$21,$J$21,IF(DL47<($L$21),DL47*($J$21/($L$21)),)) -> 0 | BJ47: =+IF(DM47>=$L$22,$J$22,IF(DM47<($L$22),DM47*($J$22/($L$22)),)) -> 0 | BK47: =IF(DN47>0,$F$16,0) -> 2 | BL47: =+IF(DQ47>=$L$25,$J$25,IF(DQ47<($L$25),DQ47*($J$25/($L$25)),)) -> 2 | BM47: =IF(EG47>100000,$F$18,IF(EG47>0,$F$18/2,0)) -> 0.5 | BN47: =IF(ED47>0,$F$19,0) -> 2 | BO47: 1.08887 | BP47: 1.04862 | BQ47: 0.580651 | BR47: 0.330684 | BS47: 2.14996 | BT47: =IF(COUNTIF($I$29:$L$29,TRUE)=0,0,IF(SUMIF($I$29:$L$29,TRUE,BO47:BR47)/COUNTIF($I$29:$L$29,TRUE)>=$L$30,$F$20/2,$F$20/2*(SUMIF($I$29:$L$29,TRUE,BO47:BR47)/COUNTIF($I$29:$L$29,TRUE)/$L$30)))+IF(BS47>=10,$F$20/2,IF(BS47<(10),BS47*($F$20/2/10))) -> 0.1981027 | BU47: =SUM(BA47+BB47+BC47+BD47+BE47+BF47+BK47+BG47+BH47+BI47+BJ47+BL47+BM47+BN47+BT47) -> 20.8181027 | BV47: =+BU47*$H$9 -> 6.939367567 | BW47: 1899.926003 | BX47: =BW47/X47 -> 0.2897553764 | BY47: =IF(BX47>0,IF(BX47>=$DC$28,$DA$28,IF(BX47<$DC$28,$DA$29,0)),0) -> 0.5 | BZ47: 6546.405807 | CA47: =BZ47/X47 -> 0.9983842927 | CB47: =IF(CA47,$F$23,0) -> 1 | CC47: =IF(DS47>0,$F$24,0) -> 1 | CD47: 4471.796457 | CE47: =CD47/X47 -> 0.681988174 | CF47: =+IF(CE47>=$K$4,$F$25,0) -> 1 | CG47: 52.48604545 | CH47: =IF(CG47>0,IF(CG47>=100,$F$26,IF(CG47<100,$F$26/2)),0) -> 0.5 | CI47: =SUM(DW47) -> 1 | CJ47: =IF(EA47>0,$F$28,0) -> 0 | CK47: =IF(DX47>0,$F$29,0) -> 1 | CL47: =IF(EC47>0,$F$30,0) -> 1 | CM47: =SUM(BY47,CB47,CH47,CC47,CF47,CI47,CJ47,CK47,CL47) -> 7 | CN47: =+CM47*$H$22 -> 2.333333333 | CO47: =SUM(AY47,BU47,CM47) -> 42.8181027 | CP47: =SUM(AZ47,BV47,CN47) -> 14.2727009 | CQ47: =IF(D47<($Z$13*1785),1,IF(D47<(($Z$14+$Z$13)*1785),2,IF(D47<(($Z$15+$Z$13+$Z$14)*1785),3,4))) -> 1 | CR47: =VLOOKUP(A47,Taul1!$F$6:$G$1718,2,FALSE) ->  | DA47: 0 | DB47: 1 | DC47: 0 | DD47: =SUM(DA47:DC47) -> 1 | DE47: 2 | DF47: 1 | DG47: 0 | DH47: 14 | DI47: 3 | DJ47: 24 | DK47: 16 | DL47: 0 | DM47: 0 | DN47: 1 | DP47: 1899.926003 | DQ47: 16 | DR47: 1 | DS47: 6 | DT47: 4471.796457 | DU47: =+IF(AA47>$K$8,$F$27/2,0) -> 1 | DV47: =+IF(AA47/Y47>1.5,$F$27/2,0) -> 0 | DW47: =SUM(DU47:DV47) -> 1 | DX47: 3 | DY47: 0 | DZ47: 0 | EA47: =SUM(DY47:DZ47) -> 0 | EC47: 1 | ED47: 7 | EG47: 37753
A48: =CONCATENATE(S48,"_",T48,"_",U48) -> 2_23_0 | B48: 1 | C48: =CONCATENATE(S48,"_",T48) -> 2_23 | D48: =RANK(CP48,$CP$37:$CP$1821) -> 12 | E48: 12 | F48: =E48-D48 -> 0 | G48: =CP48 -> 14.26401928 | H48: =AZ48 -> 5 | I48: =BV48 -> 6.597352611 | J48: =CN48 -> 2.666666667 | K48: =CQ48 -> 1 | L48: =B48-K48 -> 0 | M48: =HYPERLINK(CX48,"Gmaps") -> Gmaps | N48: =IF(Y48>$K$6,"LOPUT","VÄHÄ") -> LOPUT | O48: =IF(S48<40,"Valta",IF(S48<100,"Kanta",IF(S48<1000,"Seutu",IF(S48>999,"Yhdys")))) -> Valta | R48: Kanta-Häme | S48: 2 | T48: 23 | U48: 0 | V48: 23 | W48: 14438 | X48: 14438 | Y48: 5901 | Z48: 817 | AA48: 7182 | AC48: 60 (6 %), 80 (57 %), 100 (38 %) | AF48: PK1 (100 %) | AI48: 0.04072990789 | AJ48: 517 | AR48: =+IF(Y48>=$K$6,$F$5,($F$5/($K$6))*Y48) -> 9 | AS48: 141 | AV48: =+IF(AS48>=$L$15,$J$15,IF(AS48<($L$15),AS48*($J$15/($L$15)),)) -> 3 | AW48: 3860 | AX48: =+IF(AW48>=$L$11,$J$11,IF(AW48<($L$11),AW48*($J$11/($L$11)),)) -> 3 | AY48: =SUM(AR48,AV48,AX48) -> 15 | AZ48: =+AY48*$H$5 -> 5 | BA48: =+IF(Z48=0,0,IF(Z48>$K$7,$F$9,($F$9/$K$7)*Z48)) -> 8 | BB48: =IF(DD48>0,$F$10,0) -> 2 | BC48: =IF(DE48>0,$F$11,0) -> 1 | BD48: =IF(DF48>0,$F$12,0) -> 1 | BE48: =IF(DG48>0,$F$13,0) -> 1 | BF48: =IF(DI48>0,$F$14,IF(DH48>0,$F$14/2,0)) -> 1 | BG48: =+IF(DJ48>=$L$19,$J$19,IF(DJ48<($L$19),DJ48*($J$19/($L$19)),)) -> 0.05333333333 | BH48: =+IF(DK48>=$L$20,$J$20,IF(DK48<($L$20),DK48*($J$20/($L$20)),)) -> 0.015 | BI48: =+IF(DL48>=$L$21,$J$21,IF(DL48<($L$21),DL48*($J$21/($L$21)),)) -> 0.5 | BJ48: =+IF(DM48>=$L$22,$J$22,IF(DM48<($L$22),DM48*($J$22/($L$22)),)) -> 0 | BK48: =IF(DN48>0,$F$16,0) -> 0 | BL48: =+IF(DQ48>=$L$25,$J$25,IF(DQ48<($L$25),DQ48*($J$25/($L$25)),)) -> 2 | BM48: =IF(EG48>100000,$F$18,IF(EG48>0,$F$18/2,0)) -> 0.5 | BN48: =IF(ED48>0,$F$19,0) -> 2 | BO48: 7.07897 | BP48: 10.9914 | BQ48: 9.0101 | BR48: 4.98257 | BS48: 4.47449 | BT48: =IF(COUNTIF($I$29:$L$29,TRUE)=0,0,IF(SUMIF($I$29:$L$29,TRUE,BO48:BR48)/COUNTIF($I$29:$L$29,TRUE)>=$L$30,$F$20/2,$F$20/2*(SUMIF($I$29:$L$29,TRUE,BO48:BR48)/COUNTIF($I$29:$L$29,TRUE)/$L$30)))+IF(BS48>=10,$F$20/2,IF(BS48<(10),BS48*($F$20/2/10))) -> 0.7237245 | BU48: =SUM(BA48+BB48+BC48+BD48+BE48+BF48+BK48+BG48+BH48+BI48+BJ48+BL48+BM48+BN48+BT48) -> 19.79205783 | BV48: =+BU48*$H$9 -> 6.597352611 | BW48: 9933.283366 | BX48: =BW48/X48 -> 0.6879958004 | BY48: =IF(BX48>0,IF(BX48>=$DC$28,$DA$28,IF(BX48<$DC$28,$DA$29,0)),0) -> 1 | BZ48: 14461.36861 | CA48: =BZ48/X48 -> 1.001618549 | CB48: =IF(CA48,$F$23,0) -> 1 | CC48: =IF(DS48>0,$F$24,0) -> 1 | CD48: 7282.534726 | CE48: =CD48/X48 -> 0.5044005212 | CF48: =+IF(CE48>=$K$4,$F$25,0) -> 1 | CG48: 223.4647458 | CH48: =IF(CG48>0,IF(CG48>=100,$F$26,IF(CG48<100,$F$26/2)),0) -> 1 | CI48: =SUM(DW48) -> 1 | CJ48: =IF(EA48>0,$F$28,0) -> 0 | CK48: =IF(DX48>0,$F$29,0) -> 1 | CL48: =IF(EC48>0,$F$30,0) -> 1 | CM48: =SUM(BY48,CB48,CH48,CC48,CF48,CI48,CJ48,CK48,CL48) -> 8 | CN48: =+CM48*$H$22 -> 2.666666667 | CO48: =SUM(AY48,BU48,CM48) -> 42.79205783 | CP48: =SUM(AZ48,BV48,CN48) -> 14.26401928 | CQ48: =IF(D48<($Z$13*1785),1,IF(D48<(($Z$14+$Z$13)*1785),2,IF(D48<(($Z$15+$Z$13+$Z$14)*1785),3,4))) -> 1 | CR48: =VLOOKUP(A48,Taul1!$F$6:$G$1718,2,FALSE) ->  | DA48: 0 | DB48: 0 | DC48: 5 | DD48: =SUM(DA48:DC48) -> 5 | DE48: 9 | DF48: 1 | DG48: 1 | DH48: 23 | DI48: 0 | DJ48: 32 | DK48: 3 | DL48: 4173 | DM48: 0 | DN48: 0 | DP48: 9933.283366 | DQ48: 29 | DR48: 3 | DS48: 47 | DT48: 7282.534726 | DU48: =+IF(AA48>$K$8,$F$27/2,0) -> 1 | DV48: =+IF(AA48/Y48>1.5,$F$27/2,0) -> 0 | DW48: =SUM(DU48:DV48) -> 1 | DX48: 1 | DY48: 0 | DZ48: 0 | EA48: =SUM(DY48:DZ48) -> 0 | EC48: 1 | ED48: 5 | EG48: 40406
A49: =CONCATENATE(S49,"_",T49,"_",U49) -> 312_1_1445 | B49: 1 | C49: =CONCATENATE(S49,"_",T49) -> 312_1 | D49: =RANK(CP49,$CP$37:$CP$1821) -> 13 | E49: 13 | F49: =E49-D49 -> 0 | G49: =CP49 -> 14.22192017 | H49: =AZ49 -> 5 | I49: =BV49 -> 6.221920172 | J49: =CN49 -> 3 | K49: =CQ49 -> 1 | L49: =B49-K49 -> 0 | M49: =HYPERLINK(CX49,"Gmaps") -> Gmaps | N49: =IF(Y49>$K$6,"LOPUT","VÄHÄ") -> LOPUT | O49: =IF(S49<40,"Valta",IF(S49<100,"Kanta",IF(S49<1000,"Seutu",IF(S49>999,"Yhdys")))) -> Seutu | R49: Päijät-Häme | S49: 312 | T49: 1 | U49: 1445 | V49: 1 | W49: 11406 | X49: 9961 | Y49: 5011 | Z49: 484 | AA49: 5175 | AC49: 40 (14 %), 50 (38 %), 60 (48 %) | AF49: PK2 (100 %) | AI49: 0.3855200294 | AJ49: 137 | AR49: =+IF(Y49>=$K$6,$F$5,($F$5/($K$6))*Y49) -> 9 | AS49: 614 | AV49: =+IF(AS49>=$L$15,$J$15,IF(AS49<($L$15),AS49*($J$15/($L$15)),)) -> 3 | AW49: 4601 | AX49: =+IF(AW49>=$L$11,$J$11,IF(AW49<($L$11),AW49*($J$11/($L$11)),)) -> 3 | AY49: =SUM(AR49,AV49,AX49) -> 15 | AZ49: =+AY49*$H$5 -> 5 | BA49: =+IF(Z49=0,0,IF(Z49>$K$7,$F$9,($F$9/$K$7)*Z49)) -> 8 | BB49: =IF(DD49>0,$F$10,0) -> 2 | BC49: =IF(DE49>0,$F$11,0) -> 1 | BD49: =IF(DF49>0,$F$12,0) -> 1 | BE49: =IF(DG49>0,$F$13,0) -> 0 | BF49: =IF(DI49>0,$F$14,IF(DH49>0,$F$14/2,0)) -> 2 | BG49: =+IF(DJ49>=$L$19,$J$19,IF(DJ49<($L$19),DJ49*($J$19/($L$19)),)) -> 0.02833333333 | BH49: =+IF(DK49>=$L$20,$J$20,IF(DK49<($L$20),DK49*($J$20/($L$20)),)) -> 0.08 | BI49: =+IF(DL49>=$L$21,$J$21,IF(DL49<($L$21),DL49*($J$21/($L$21)),)) -> 0 | BJ49: =+IF(DM49>=$L$22,$J$22,IF(DM49<($L$22),DM49*($J$22/($L$22)),)) -> 0 | BK49: =IF(DN49>0,$F$16,0) -> 0 | BL49: =+IF(DQ49>=$L$25,$J$25,IF(DQ49<($L$25),DQ49*($J$25/($L$25)),)) -> 2 | BM49: =IF(EG49>100000,$F$18,IF(EG49>0,$F$18/2,0)) -> 0.5 | BN49: =IF(ED49>0,$F$19,0) -> 2 | BO49: 0.226215 | BP49: 0.290176 | BQ49: 0.352173 | BR49: 0.156706 | BS49: 0.569501 | BT49: =IF(COUNTIF($I$29:$L$29,TRUE)=0,0,IF(SUMIF($I$29:$L$29,TRUE,BO49:BR49)/COUNTIF($I$29:$L$29,TRUE)>=$L$30,$F$20/2,$F$20/2*(SUMIF($I$29:$L$29,TRUE,BO49:BR49)/COUNTIF($I$29:$L$29,TRUE)/$L$30)))+IF(BS49>=10,$F$20/2,IF(BS49<(10),BS49*($F$20/2/10))) -> 0.05742718333 | BU49: =SUM(BA49+BB49+BC49+BD49+BE49+BF49+BK49+BG49+BH49+BI49+BJ49+BL49+BM49+BN49+BT49) -> 18.66576052 | BV49: =+BU49*$H$9 -> 6.221920172 | BW49: 8768.412187 | BX49: =BW49/X49 -> 0.8802742884 | BY49: =IF(BX49>0,IF(BX49>=$DC$28,$DA$28,IF(BX49<$DC$28,$DA$29,0)),0) -> 1 | BZ49: 7677.416508 | CA49: =BZ49/X49 -> 0.7707475663 | CB49: =IF(CA49,$F$23,0) -> 1 | CC49: =IF(DS49>0,$F$24,0) -> 1 | CD49: 7428.337597 | CE49: =CD49/X49 -> 0.7457421541 | CF49: =+IF(CE49>=$K$4,$F$25,0) -> 1 | CG49: 242.6661982 | CH49: =IF(CG49>0,IF(CG49>=100,$F$26,IF(CG49<100,$F$26/2)),0) -> 1 | CI49: =SUM(DW49) -> 1 | CJ49: =IF(EA49>0,$F$28,0) -> 1 | CK49: =IF(DX49>0,$F$29,0) -> 1 | CL49: =IF(EC49>0,$F$30,0) -> 1 | CM49: =SUM(BY49,CB49,CH49,CC49,CF49,CI49,CJ49,CK49,CL49) -> 9 | CN49: =+CM49*$H$22 -> 3 | CO49: =SUM(AY49,BU49,CM49) -> 42.66576052 | CP49: =SUM(AZ49,BV49,CN49) -> 14.22192017 | CQ49: =IF(D49<($Z$13*1785),1,IF(D49<(($Z$14+$Z$13)*1785),2,IF(D49<(($Z$15+$Z$13+$Z$14)*1785),3,4))) -> 1 | CR49: =VLOOKUP(A49,Taul1!$F$6:$G$1718,2,FALSE) ->  | DA49: 0 | DB49: 0 | DC49: 6 | DD49: =SUM(DA49:DC49) -> 6 | DE49: 6 | DF49: 5 | DG49: 0 | DH49: 15 | DI49: 1 | DJ49: 17 | DK49: 16 | DL49: 0 | DM49: 0 | DN49: 0 | DP49: 8768.412187 | DQ49: 24 | DR49: 1 | DS49: 30 | DT49: 7428.337597 | DU49: =+IF(AA49>$K$8,$F$27/2,0) -> 1 | DV49: =+IF(AA49/Y49>1.5,$F$27/2,0) -> 0 | DW49: =SUM(DU49:DV49) -> 1 | DX49: 2 | DY49: 0 | DZ49: 1 | EA49: =SUM(DY49:DZ49) -> 1 | EC49: 1 | ED49: 4 | EG49: 10800
A50: =CONCATENATE(S50,"_",T50,"_",U50) -> 12_224_0 | B50: 1 | C50: =CONCATENATE(S50,"_",T50) -> 12_224 | D50: =RANK(CP50,$CP$37:$CP$1821) -> 14 | E50: 14 | F50: =E50-D50 -> 0 | G50: =CP50 -> 14.16666667 | H50: =AZ50 -> 5 | I50: =BV50 -> 7 | J50: =CN50 -> 2.166666667 | K50: =CQ50 -> 1 | L50: =B50-K50 -> 0 | M50: =HYPERLINK(CX50,"Gmaps") -> Gmaps | N50: =IF(Y50>$K$6,"LOPUT","VÄHÄ") -> LOPUT | O50: =IF(S50<40,"Valta",IF(S50<100,"Kanta",IF(S50<1000,"Seutu",IF(S50>999,"Yhdys")))) -> Valta | R50: Päijät-Häme | S50: 12 | T50: 224 | U50: 0 | V50: 224 | W50: 26205 | X50: 26205 | Y50: 8622 | Z50: 926 | AA50: 9556 | AC50: 60 (9 %), 80 (29 %), 100 (61 %) | AF50: PK1 (100 %) | AI50: 0.06191950464 | AJ50: 578 | AR50: =+IF(Y50>=$K$6,$F$5,($F$5/($K$6))*Y50) -> 9 | AS50: 348 | AV50: =+IF(AS50>=$L$15,$J$15,IF(AS50<($L$15),AS50*($J$15/($L$15)),)) -> 3 | AW50: 10572 | AX50: =+IF(AW50>=$L$11,$J$11,IF(AW50<($L$11),AW50*($J$11/($L$11)),)) -> 3 | AY50: =SUM(AR50,AV50,AX50) -> 15 | AZ50: =+AY50*$H$5 -> 5 | BA50: =+IF(Z50=0,0,IF(Z50>$K$7,$F$9,($F$9/$K$7)*Z50)) -> 8 | BB50: =IF(DD50>0,$F$10,0) -> 2 | BC50: =IF(DE50>0,$F$11,0) -> 1 | BD50: =IF(DF50>0,$F$12,0) -> 1 | BE50: =IF(DG50>0,$F$13,0) -> 0 | BF50: =IF(DI50>0,$F$14,IF(DH50>0,$F$14/2,0)) -> 2 | BG50: =+IF(DJ50>=$L$19,$J$19,IF(DJ50<($L$19),DJ50*($J$19/($L$19)),)) -> 0.5 | BH50: =+IF(DK50>=$L$20,$J$20,IF(DK50<($L$20),DK50*($J$20/($L$20)),)) -> 0.5 | BI50: =+IF(DL50>=$L$21,$J$21,IF(DL50<($L$21),DL50*($J$21/($L$21)),)) -> 0 | BJ50: =+IF(DM50>=$L$22,$J$22,IF(DM50<($L$22),DM50*($J$22/($L$22)),)) -> 0.5 | BK50: =IF(DN50>0,$F$16,0) -> 0 | BL50: =+IF(DQ50>=$L$25,$J$25,IF(DQ50<($L$25),DQ50*($J$25/($L$25)),)) -> 2 | BM50: =IF(EG50>100000,$F$18,IF(EG50>0,$F$18/2,0)) -> 0.5 | BN50: =IF(ED50>0,$F$19,0) -> 2 | BO50: 37.6441 | BP50: 37.8461 | BQ50: 23.6852 | BR50: 21.0006 | BS50: 49.2211 | BT50: =IF(COUNTIF($I$29:$L$29,TRUE)=0,0,IF(SUMIF($I$29:$L$29,TRUE,BO50:BR50)/COUNTIF($I$29:$L$29,TRUE)>=$L$30,$F$20/2,$F$20/2*(SUMIF($I$29:$L$29,TRUE,BO50:BR50)/COUNTIF($I$29:$L$29,TRUE)/$L$30)))+IF(BS50>=10,$F$20/2,IF(BS50<(10),BS50*($F$20/2/10))) -> 1 | BU50: =SUM(BA50+BB50+BC50+BD50+BE50+BF50+BK50+BG50+BH50+BI50+BJ50+BL50+BM50+BN50+BT50) -> 21 | BV50: =+BU50*$H$9 -> 7 | BW50: 10556.22465 | BX50: =BW50/X50 -> 0.4028324614 | BY50: =IF(BX50>0,IF(BX50>=$DC$28,$DA$28,IF(BX50<$DC$28,$DA$29,0)),0) -> 0.5 | BZ50: 23859.0436 | CA50: =BZ50/X50 -> 0.910476764 | CB50: =IF(CA50,$F$23,0) -> 1 | CC50: =IF(DS50>0,$F$24,0) -> 1 | CD50: 6636.484616 | CE50: =CD50/X50 -> 0.2532526089 | CF50: =+IF(CE50>=$K$4,$F$25,0) -> 0 | CG50: 100.9692807 | CH50: =IF(CG50>0,IF(CG50>=100,$F$26,IF(CG50<100,$F$26/2)),0) -> 1 | CI50: =SUM(DW50) -> 1 | CJ50: =IF(EA50>0,$F$28,0) -> 0 | CK50: =IF(DX50>0,$F$29,0) -> 1 | CL50: =IF(EC50>0,$F$30,0) -> 1 | CM50: =SUM(BY50,CB50,CH50,CC50,CF50,CI50,CJ50,CK50,CL50) -> 6.5 | CN50: =+CM50*$H$22 -> 2.166666667 | CO50: =SUM(AY50,BU50,CM50) -> 42.5 | CP50: =SUM(AZ50,BV50,CN50) -> 14.16666667 | CQ50: =IF(D50<($Z$13*1785),1,IF(D50<(($Z$14+$Z$13)*1785),2,IF(D50<(($Z$15+$Z$13+$Z$14)*1785),3,4))) -> 1 | CR50: =VLOOKUP(A50,Taul1!$F$6:$G$1718,2,FALSE) ->  | DA50: 0 | DB50: 1 | DC50: 6 | DD50: =SUM(DA50:DC50) -> 7 | DE50: 1 | DF50: 16 | DG50: 0 | DH50: 67 | DI50: 2 | DJ50: 514 | DK50: 141 | DL50: 0 | DM50: 138 | DN50: 0 | DP50: 10556.22465 | DQ50: 35 | DR50: 1 | DS50: 12 | DT50: 6636.484616 | DU50: =+IF(AA50>$K$8,$F$27/2,0) -> 1 | DV50: =+IF(AA50/Y50>1.5,$F$27/2,0) -> 0 | DW50: =SUM(DU50:DV50) -> 1 | DX50: 2 | DY50: 0 | DZ50: 0 | EA50: =SUM(DY50:DZ50) -> 0 | EC50: 1 | ED50: 7 | EG50: 10800
A51: =CONCATENATE(S51,"_",T51,"_",U51) -> 24_4_0 | B51: 1 | C51: =CONCATENATE(S51,"_",T51) -> 24_4 | D51: =RANK(CP51,$CP$37:$CP$1821) -> 15 | E51: 15 | F51: =E51-D51 -> 0 | G51: =CP51 -> 14.16127889 | H51: =AZ51 -> 5 | I51: =BV51 -> 6.494612222 | J51: =CN51 -> 2.666666667 | K51: =CQ51 -> 1 | L51: =B51-K51 -> 0 | M51: =HYPERLINK(CX51,"Gmaps") -> Gmaps | N51: =IF(Y51>$K$6,"LOPUT","VÄHÄ") -> LOPUT | O51: =IF(S51<40,"Valta",IF(S51<100,"Kanta",IF(S51<1000,"Seutu",IF(S51>999,"Yhdys")))) -> Valta | R51: Päijät-Häme | S51: 24 | T51: 4 | U51: 0 | V51: 4 | W51: 10200 | X51: 10200 | Y51: 6817 | Z51: 288 | AA51: 8668 | AC51: 60 (13 %), 80 (50 %), 100 (37 %) | AF51: PK2 (99 %) | AI51: 0.04909180167 | AJ51: 149 | AR51: =+IF(Y51>=$K$6,$F$5,($F$5/($K$6))*Y51) -> 9 | AS51: 68 | AV51: =+IF(AS51>=$L$15,$J$15,IF(AS51<($L$15),AS51*($J$15/($L$15)),)) -> 3 | AW51: 2505 | AX51: =+IF(AW51>=$L$11,$J$11,IF(AW51<($L$11),AW51*($J$11/($L$11)),)) -> 3 | AY51: =SUM(AR51,AV51,AX51) -> 15 | AZ51: =+AY51*$H$5 -> 5 | BA51: =+IF(Z51=0,0,IF(Z51>$K$7,$F$9,($F$9/$K$7)*Z51)) -> 8 | BB51: =IF(DD51>0,$F$10,0) -> 0 | BC51: =IF(DE51>0,$F$11,0) -> 1 | BD51: =IF(DF51>0,$F$12,0) -> 1 | BE51: =IF(DG51>0,$F$13,0) -> 0 | BF51: =IF(DI51>0,$F$14,IF(DH51>0,$F$14/2,0)) -> 2 | BG51: =+IF(DJ51>=$L$19,$J$19,IF(DJ51<($L$19),DJ51*($J$19/($L$19)),)) -> 0.5 | BH51: =+IF(DK51>=$L$20,$J$20,IF(DK51<($L$20),DK51*($J$20/($L$20)),)) -> 0.045 | BI51: =+IF(DL51>=$L$21,$J$21,IF(DL51<($L$21),DL51*($J$21/($L$21)),)) -> 0 | BJ51: =+IF(DM51>=$L$22,$J$22,IF(DM51<($L$22),DM51*($J$22/($L$22)),)) -> 0.1666666667 | BK51: =IF(DN51>0,$F$16,0) -> 2 | BL51: =+IF(DQ51>=$L$25,$J$25,IF(DQ51<($L$25),DQ51*($J$25/($L$25)),)) -> 2 | BM51: =IF(EG51>100000,$F$18,IF(EG51>0,$F$18/2,0)) -> 0 | BN51: =IF(ED51>0,$F$19,0) -> 2 | BO51: 7.56556 | BP51: 5.44387 | BQ51: 2.39536 | BR51: 2.86418 | BS51: 5.4434 | BT51: =IF(COUNTIF($I$29:$L$29,TRUE)=0,0,IF(SUMIF($I$29:$L$29,TRUE,BO51:BR51)/COUNTIF($I$29:$L$29,TRUE)>=$L$30,$F$20/2,$F$20/2*(SUMIF($I$29:$L$29,TRUE,BO51:BR51)/COUNTIF($I$29:$L$29,TRUE)/$L$30)))+IF(BS51>=10,$F$20/2,IF(BS51<(10),BS51*($F$20/2/10))) -> 0.77217 | BU51: =SUM(BA51+BB51+BC51+BD51+BE51+BF51+BK51+BG51+BH51+BI51+BJ51+BL51+BM51+BN51+BT51) -> 19.48383667 | BV51: =+BU51*$H$9 -> 6.494612222 | BW51: 6458.920143 | BX51: =BW51/X51 -> 0.633227465 | BY51: =IF(BX51>0,IF(BX51>=$DC$28,$DA$28,IF(BX51<$DC$28,$DA$29,0)),0) -> 1 | BZ51: 10177.58697 | CA51: =BZ51/X51 -> 0.9978026438 | CB51: =IF(CA51,$F$23,0) -> 1 | CC51: =IF(DS51>0,$F$24,0) -> 1 | CD51: 4433.965328 | CE51: =CD51/X51 -> 0.4347024832 | CF51: =+IF(CE51>=$K$4,$F$25,0) -> 0 | CG51: 264.7254902 | CH51: =IF(CG51>0,IF(CG51>=100,$F$26,IF(CG51<100,$F$26/2)),0) -> 1 | CI51: =SUM(DW51) -> 1 | CJ51: =IF(EA51>0,$F$28,0) -> 1 | CK51: =IF(DX51>0,$F$29,0) -> 1 | CL51: =IF(EC51>0,$F$30,0) -> 1 | CM51: =SUM(BY51,CB51,CH51,CC51,CF51,CI51,CJ51,CK51,CL51) -> 8 | CN51: =+CM51*$H$22 -> 2.666666667 | CO51: =SUM(AY51,BU51,CM51) -> 42.48383667 | CP51: =SUM(AZ51,BV51,CN51) -> 14.16127889 | CQ51: =IF(D51<($Z$13*1785),1,IF(D51<(($Z$14+$Z$13)*1785),2,IF(D51<(($Z$15+$Z$13+$Z$14)*1785),3,4))) -> 1 | CR51: =VLOOKUP(A51,Taul1!$F$6:$G$1718,2,FALSE) ->  | DA51: 0 | DB51: 0 | DC51: 0 | DD51: =SUM(DA51:DC51) -> 0 | DE51: 1 | DF51: 4 | DG51: 0 | DH51: 19 | DI51: 2 | DJ51: 599 | DK51: 9 | DL51: 0 | DM51: 10 | DN51: 2 | DP51: 6458.920143 | DQ51: 16 | DR51: 0 | DS51: 30 | DT51: 4433.965328 | DU51: =+IF(AA51>$K$8,$F$27/2,0) -> 1 | DV51: =+IF(AA51/Y51>1.5,$F$27/2,0) -> 0 | DW51: =SUM(DU51:DV51) -> 1 | DX51: 1 | DY51: 0 | DZ51: 1 | EA51: =SUM(DY51:DZ51) -> 1 | EC51: 1 | ED51: 4 | EG51: 0
A52: =CONCATENATE(S52,"_",T52,"_",U52) -> 54_11_0 | B52: 1 | C52: =CONCATENATE(S52,"_",T52) -> 54_11 | D52: =RANK(CP52,$CP$37:$CP$1821) -> 16 | E52: 16 | F52: =E52-D52 -> 0 | G52: =CP52 -> 14.14467489 | H52: =AZ52 -> 5 | I52: =BV52 -> 6.978008222 | J52: =CN52 -> 2.166666667 | K52: =CQ52 -> 1 | L52: =B52-K52 -> 0 | M52: =HYPERLINK(CX52,"Gmaps") -> Gmaps | N52: =IF(Y52>$K$6,"LOPUT","VÄHÄ") -> LOPUT | O52: =IF(S52<40,"Valta",IF(S52<100,"Kanta",IF(S52<1000,"Seutu",IF(S52>999,"Yhdys")))) -> Kanta | R52: Kanta-Häme | S52: 54 | T52: 11 | U52: 0 | V52: 11 | W52: 10712 | X52: 10712 | Y52: 5515 | Z52: 634 | AA52: 6296 | AC52: 60 (4 %), 70 (16 %), 80 (50 %), 100 (30 %) | AF52: PK1 (98 %) | AI52: 0.02943254062 | AJ52: 412 | AR52: =+IF(Y52>=$K$6,$F$5,($F$5/($K$6))*Y52) -> 9 | AS52: 63 | AV52: =+IF(AS52>=$L$15,$J$15,IF(AS52<($L$15),AS52*($J$15/($L$15)),)) -> 3 | AW52: 8053 | AX52: =+IF(AW52>=$L$11,$J$11,IF(AW52<($L$11),AW52*($J$11/($L$11)),)) -> 3 | AY52: =SUM(AR52,AV52,AX52) -> 15 | AZ52: =+AY52*$H$5 -> 5 | BA52: =+IF(Z52=0,0,IF(Z52>$K$7,$F$9,($F$9/$K$7)*Z52)) -> 8 | BB52: =IF(DD52>0,$F$10,0) -> 2 | BC52: =IF(DE52>0,$F$11,0) -> 1 | BD52: =IF(DF52>0,$F$12,0) -> 1 | BE52: =IF(DG52>0,$F$13,0) -> 1 | BF52: =IF(DI52>0,$F$14,IF(DH52>0,$F$14/2,0)) -> 2 | BG52: =+IF(DJ52>=$L$19,$J$19,IF(DJ52<($L$19),DJ52*($J$19/($L$19)),)) -> 0.2733333333 | BH52: =+IF(DK52>=$L$20,$J$20,IF(DK52<($L$20),DK52*($J$20/($L$20)),)) -> 0.5 | BI52: =+IF(DL52>=$L$21,$J$21,IF(DL52<($L$21),DL52*($J$21/($L$21)),)) -> 0.2325 | BJ52: =+IF(DM52>=$L$22,$J$22,IF(DM52<($L$22),DM52*($J$22/($L$22)),)) -> 0 | BK52: =IF(DN52>0,$F$16,0) -> 0 | BL52: =+IF(DQ52>=$L$25,$J$25,IF(DQ52<($L$25),DQ52*($J$25/($L$25)),)) -> 2 | BM52: =IF(EG52>100000,$F$18,IF(EG52>0,$F$18/2,0)) -> 0 | BN52: =IF(ED52>0,$F$19,0) -> 2 | BO52: 4.34079 | BP52: 4.89469 | BQ52: 3.61026 | BR52: 2.65114 | BS52: 38.5657 | BT52: =IF(COUNTIF($I$29:$L$29,TRUE)=0,0,IF(SUMIF($I$29:$L$29,TRUE,BO52:BR52)/COUNTIF($I$29:$L$29,TRUE)>=$L$30,$F$20/2,$F$20/2*(SUMIF($I$29:$L$29,TRUE,BO52:BR52)/COUNTIF($I$29:$L$29,TRUE)/$L$30)))+IF(BS52>=10,$F$20/2,IF(BS52<(10),BS52*($F$20/2/10))) -> 0.9281913333 | BU52: =SUM(BA52+BB52+BC52+BD52+BE52+BF52+BK52+BG52+BH52+BI52+BJ52+BL52+BM52+BN52+BT52) -> 20.93402467 | BV52: =+BU52*$H$9 -> 6.978008222 | BW52: 6817.415376 | BX52: =BW52/X52 -> 0.636427873 | BY52: =IF(BX52>0,IF(BX52>=$DC$28,$DA$28,IF(BX52<$DC$28,$DA$29,0)),0) -> 1 | BZ52: 10705.57022 | CA52: =BZ52/X52 -> 0.9993997591 | CB52: =IF(CA52,$F$23,0) -> 1 | CC52: =IF(DS52>0,$F$24,0) -> 1 | CD52: 2634.804187 | CE52: =CD52/X52 -> 0.2459675305 | CF52: =+IF(CE52>=$K$4,$F$25,0) -> 0 | CG52: 74.61725168 | CH52: =IF(CG52>0,IF(CG52>=100,$F$26,IF(CG52<100,$F$26/2)),0) -> 0.5 | CI52: =SUM(DW52) -> 1 | CJ52: =IF(EA52>0,$F$28,0) -> 0 | CK52: =IF(DX52>0,$F$29,0) -> 1 | CL52: =IF(EC52>0,$F$30,0) -> 1 | CM52: =SUM(BY52,CB52,CH52,CC52,CF52,CI52,CJ52,CK52,CL52) -> 6.5 | CN52: =+CM52*$H$22 -> 2.166666667 | CO52: =SUM(AY52,BU52,CM52) -> 42.43402467 | CP52: =SUM(AZ52,BV52,CN52) -> 14.14467489 | CQ52: =IF(D52<($Z$13*1785),1,IF(D52<(($Z$14+$Z$13)*1785),2,IF(D52<(($Z$15+$Z$13+$Z$14)*1785),3,4))) -> 1 | CR52: =VLOOKUP(A52,Taul1!$F$6:$G$1718,2,FALSE) ->  | DA52: 0 | DB52: 0 | DC52: 12 | DD52: =SUM(DA52:DC52) -> 12 | DE52: 6 | DF52: 8 | DG52: 1 | DH52: 63 | DI52: 10 | DJ52: 164 | DK52: 124 | DL52: 465 | DM52: 0 | DN52: 0 | DP52: 6817.415376 | DQ52: 33 | DR52: 0 | DS52: 77 | DT52: 2634.804187 | DU52: =+IF(AA52>$K$8,$F$27/2,0) -> 1 | DV52: =+IF(AA52/Y52>1.5,$F$27/2,0) -> 0 | DW52: =SUM(DU52:DV52) -> 1 | DX52: 4 | DY52: 0 | DZ52: 0 | EA52: =SUM(DY52:DZ52) -> 0 | EC52: 1 | ED52: 16 | EG52: 0
A53: =CONCATENATE(S53,"_",T53,"_",U53) -> 2896_1_0 | B53: 1 | C53: =CONCATENATE(S53,"_",T53) -> 2896_1 | D53: =RANK(CP53,$CP$37:$CP$1821) -> 17 | E53: 17 | F53: =E53-D53 -> 0 | G53: =CP53 -> 14.11115933 | H53: =AZ53 -> 4.75 | I53: =BV53 -> 6.861159333 | J53: =CN53 -> 2.5 | K53: =CQ53 -> 1 | L53: =B53-K53 -> 0 | M53: =HYPERLINK(CX53,"Gmaps") -> Gmaps | N53: =IF(Y53>$K$6,"LOPUT","VÄHÄ") -> LOPUT | O53: =IF(S53<40,"Valta",IF(S53<100,"Kanta",IF(S53<1000,"Seutu",IF(S53>999,"Yhdys")))) -> Yhdys | R53: Kanta-Häme | S53: 2896 | T53: 1 | U53: 0 | V53: 1 | W53: 1955 | X53: 1955 | Y53: 3441 | Z53: 226 | AA53: 4198 | AC53: 50 (42 %), 80 (60 %) | AF53: PK2 (99 %) | AI53: 0 | AJ53: 106 | AR53: =+IF(Y53>=$K$6,$F$5,($F$5/($K$6))*Y53) -> 9 | AS53: 30 | AV53: =+IF(AS53>=$L$15,$J$15,IF(AS53<($L$15),AS53*($J$15/($L$15)),)) -> 2.25 | AW53: 2126 | AX53: =+IF(AW53>=$L$11,$J$11,IF(AW53<($L$11),AW53*($J$11/($L$11)),)) -> 3 | AY53: =SUM(AR53,AV53,AX53) -> 14.25 | AZ53: =+AY53*$H$5 -> 4.75 | BA53: =+IF(Z53=0,0,IF(Z53>$K$7,$F$9,($F$9/$K$7)*Z53)) -> 8 | BB53: =IF(DD53>0,$F$10,0) -> 2 | BC53: =IF(DE53>0,$F$11,0) -> 1 | BD53: =IF(DF53>0,$F$12,0) -> 1 | BE53: =IF(DG53>0,$F$13,0) -> 1 | BF53: =IF(DI53>0,$F$14,IF(DH53>0,$F$14/2,0)) -> 2 | BG53: =+IF(DJ53>=$L$19,$J$19,IF(DJ53<($L$19),DJ53*($J$19/($L$19)),)) -> 0.395 | BH53: =+IF(DK53>=$L$20,$J$20,IF(DK53<($L$20),DK53*($J$20/($L$20)),)) -> 0.22 | BI53: =+IF(DL53>=$L$21,$J$21,IF(DL53<($L$21),DL53*($J$21/($L$21)),)) -> 0 | BJ53: =+IF(DM53>=$L$22,$J$22,IF(DM53<($L$22),DM53*($J$22/($L$22)),)) -> 0.5 | BK53: =IF(DN53>0,$F$16,0) -> 0 | BL53: =+IF(DQ53>=$L$25,$J$25,IF(DQ53<($L$25),DQ53*($J$25/($L$25)),)) -> 2 | BM53: =IF(EG53>100000,$F$18,IF(EG53>0,$F$18/2,0)) -> 0 | BN53: =IF(ED53>0,$F$19,0) -> 2 | BO53: 1.31328 | BP53: 2.44282 | BQ53: 3.03107 | BR53: 0.24284 | BS53: 4.84478 | BT53: =IF(COUNTIF($I$29:$L$29,TRUE)=0,0,IF(SUMIF($I$29:$L$29,TRUE,BO53:BR53)/COUNTIF($I$29:$L$29,TRUE)>=$L$30,$F$20/2,$F$20/2*(SUMIF($I$29:$L$29,TRUE,BO53:BR53)/COUNTIF($I$29:$L$29,TRUE)/$L$30)))+IF(BS53>=10,$F$20/2,IF(BS53<(10),BS53*($F$20/2/10))) -> 0.468478 | BU53: =SUM(BA53+BB53+BC53+BD53+BE53+BF53+BK53+BG53+BH53+BI53+BJ53+BL53+BM53+BN53+BT53) -> 20.583478 | BV53: =+BU53*$H$9 -> 6.861159333 | BW53: 1983.865729 | BX53: =BW53/X53 -> 1.014765079 | BY53: =IF(BX53>0,IF(BX53>=$DC$28,$DA$28,IF(BX53<$DC$28,$DA$29,0)),0) -> 1 | BZ53: 231.6429203 | CA53: =BZ53/X53 -> 0.1184874273 | CB53: =IF(CA53,$F$23,0) -> 1 | CC53: =IF(DS53>0,$F$24,0) -> 1 | CD53: 956.5631183 | CE53: =CD53/X53 -> 0.4892905976 | CF53: =+IF(CE53>=$K$4,$F$25,0) -> 0 | CG53: 70.74168798 | CH53: =IF(CG53>0,IF(CG53>=100,$F$26,IF(CG53<100,$F$26/2)),0) -> 0.5 | CI53: =SUM(DW53) -> 1 | CJ53: =IF(EA53>0,$F$28,0) -> 1 | CK53: =IF(DX53>0,$F$29,0) -> 1 | CL53: =IF(EC53>0,$F$30,0) -> 1 | CM53: =SUM(BY53,CB53,CH53,CC53,CF53,CI53,CJ53,CK53,CL53) -> 7.5 | CN53: =+CM53*$H$22 -> 2.5 | CO53: =SUM(AY53,BU53,CM53) -> 42.333478 | CP53: =SUM(AZ53,BV53,CN53) -> 14.11115933 | CQ53: =IF(D53<($Z$13*1785),1,IF(D53<(($Z$14+$Z$13)*1785),2,IF(D53<(($Z$15+$Z$13+$Z$14)*1785),3,4))) -> 1 | CR53: =VLOOKUP(A53,Taul1!$F$6:$G$1718,2,FALSE) ->  | DA53: 0 | DB53: 1 | DC53: 0 | DD53: =SUM(DA53:DC53) -> 1 | DE53: 2 | DF53: 5 | DG53: 1 | DH53: 73 | DI53: 8 | DJ53: 237 | DK53: 44 | DL53: 0 | DM53: 3755 | DN53: 0 | DP53: 1983.865729 | DQ53: 15 | DR53: 0 | DS53: 13 | DT53: 956.5631183 | DU53: =+IF(AA53>$K$8,$F$27/2,0) -> 1 | DV53: =+IF(AA53/Y53>1.5,$F$27/2,0) -> 0 | DW53: =SUM(DU53:DV53) -> 1 | DX53: 2 | DY53: 0 | DZ53: 1 | EA53: =SUM(DY53:DZ53) -> 1 | EC53: 1 | ED53: 4 | EG53: 0
A54: =CONCATENATE(S54,"_",T54,"_",U54) -> 167_2_0 | B54: 1 | C54: =CONCATENATE(S54,"_",T54) -> 167_2 | D54: =RANK(CP54,$CP$37:$CP$1821) -> 18 | E54: 18 | F54: =E54-D54 -> 0 | G54: =CP54 -> 13.92431811 | H54: =AZ54 -> 5 | I54: =BV54 -> 6.757651444 | J54: =CN54 -> 2.166666667 | K54: =CQ54 -> 1 | L54: =B54-K54 -> 0 | M54: =HYPERLINK(CX54,"Gmaps") -> Gmaps | N54: =IF(Y54>$K$6,"LOPUT","VÄHÄ") -> LOPUT | O54: =IF(S54<40,"Valta",IF(S54<100,"Kanta",IF(S54<1000,"Seutu",IF(S54>999,"Yhdys")))) -> Seutu | R54: Päijät-Häme | S54: 167 | T54: 2 | U54: 0 | V54: 2 | W54: 6590 | X54: 6590 | Y54: 10365 | Z54: 642 | AA54: 11591 | AC54: 60 (22 %), 70 (9 %), 80 (69 %) | AF54: PK2 (91 %) | AI54: 0.1948811225 | AJ54: 291 | AR54: =+IF(Y54>=$K$6,$F$5,($F$5/($K$6))*Y54) -> 9 | AS54: 430 | AV54: =+IF(AS54>=$L$15,$J$15,IF(AS54<($L$15),AS54*($J$15/($L$15)),)) -> 3 | AW54: 7878 | AX54: =+IF(AW54>=$L$11,$J$11,IF(AW54<($L$11),AW54*($J$11/($L$11)),)) -> 3 | AY54: =SUM(AR54,AV54,AX54) -> 15 | AZ54: =+AY54*$H$5 -> 5 | BA54: =+IF(Z54=0,0,IF(Z54>$K$7,$F$9,($F$9/$K$7)*Z54)) -> 8 | BB54: =IF(DD54>0,$F$10,0) -> 2 | BC54: =IF(DE54>0,$F$11,0) -> 0 | BD54: =IF(DF54>0,$F$12,0) -> 1 | BE54: =IF(DG54>0,$F$13,0) -> 0 | BF54: =IF(DI54>0,$F$14,IF(DH54>0,$F$14/2,0)) -> 1 | BG54: =+IF(DJ54>=$L$19,$J$19,IF(DJ54<($L$19),DJ54*($J$19/($L$19)),)) -> 0.1883333333 | BH54: =+IF(DK54>=$L$20,$J$20,IF(DK54<($L$20),DK54*($J$20/($L$20)),)) -> 0.5 | BI54: =+IF(DL54>=$L$21,$J$21,IF(DL54<($L$21),DL54*($J$21/($L$21)),)) -> 0 | BJ54: =+IF(DM54>=$L$22,$J$22,IF(DM54<($L$22),DM54*($J$22/($L$22)),)) -> 0 | BK54: =IF(DN54>0,$F$16,0) -> 2 | BL54: =+IF(DQ54>=$L$25,$J$25,IF(DQ54<($L$25),DQ54*($J$25/($L$25)),)) -> 2 | BM54: =IF(EG54>100000,$F$18,IF(EG54>0,$F$18/2,0)) -> 1 | BN54: =IF(ED54>0,$F$19,0) -> 2 | BO54: 1.24788 | BP54: 2.28253 | BQ54: 1.11515 | BR54: 0.896422 | BS54: 8.59538 | BT54: =IF(COUNTIF($I$29:$L$29,TRUE)=0,0,IF(SUMIF($I$29:$L$29,TRUE,BO54:BR54)/COUNTIF($I$29:$L$29,TRUE)>=$L$30,$F$20/2,$F$20/2*(SUMIF($I$29:$L$29,TRUE,BO54:BR54)/COUNTIF($I$29:$L$29,TRUE)/$L$30)))+IF(BS54>=10,$F$20/2,IF(BS54<(10),BS54*($F$20/2/10))) -> 0.584621 | BU54: =SUM(BA54+BB54+BC54+BD54+BE54+BF54+BK54+BG54+BH54+BI54+BJ54+BL54+BM54+BN54+BT54) -> 20.27295433 | BV54: =+BU54*$H$9 -> 6.757651444 | BW54: 5373.732725 | BX54: =BW54/X54 -> 0.8154374393 | BY54: =IF(BX54>0,IF(BX54>=$DC$28,$DA$28,IF(BX54<$DC$28,$DA$29,0)),0) -> 1 | BZ54: 6496.124882 | CA54: =BZ54/X54 -> 0.9857549139 | CB54: =IF(CA54,$F$23,0) -> 1 | CC54: =IF(DS54>0,$F$24,0) -> 1 | CD54: 1968.907209 | CE54: =CD54/X54 -> 0.2987719589 | CF54: =+IF(CE54>=$K$4,$F$25,0) -> 0 | CG54: 43.68740516 | CH54: =IF(CG54>0,IF(CG54>=100,$F$26,IF(CG54<100,$F$26/2)),0) -> 0.5 | CI54: =SUM(DW54) -> 1 | CJ54: =IF(EA54>0,$F$28,0) -> 0 | CK54: =IF(DX54>0,$F$29,0) -> 1 | CL54: =IF(EC54>0,$F$30,0) -> 1 | CM54: =SUM(BY54,CB54,CH54,CC54,CF54,CI54,CJ54,CK54,CL54) -> 6.5 | CN54: =+CM54*$H$22 -> 2.166666667 | CO54: =SUM(AY54,BU54,CM54) -> 41.77295433 | CP54: =SUM(AZ54,BV54,CN54) -> 13.92431811 | CQ54: =IF(D54<($Z$13*1785),1,IF(D54<(($Z$14+$Z$13)*1785),2,IF(D54<(($Z$15+$Z$13+$Z$14)*1785),3,4))) -> 1 | CR54: =VLOOKUP(A54,Taul1!$F$6:$G$1718,2,FALSE) ->  | DA54: 0 | DB54: 0 | DC54: 3 | DD54: =SUM(DA54:DC54) -> 3 | DE54: 0 | DF54: 2 | DG54: 0 | DH54: 22 | DI54: 0 | DJ54: 113 | DK54: 108 | DL54: 0 | DM54: 0 | DN54: 1 | DP54: 5373.732725 | DQ54: 17 | DR54: 2 | DS54: 44 | DT54: 1968.907209 | DU54: =+IF(AA54>$K$8,$F$27/2,0) -> 1 | DV54: =+IF(AA54/Y54>1.5,$F$27/2,0) -> 0 | DW54: =SUM(DU54:DV54) -> 1 | DX54: 1 | DY54: 0 | DZ54: 0 | EA54: =SUM(DY54:DZ54) -> 0 | EC54: 1 | ED54: 3 | EG54: 117662
A55: =CONCATENATE(S55,"_",T55,"_",U55) -> 296_2_0 | B55: 1 | C55: =CONCATENATE(S55,"_",T55) -> 296_2 | D55: =RANK(CP55,$CP$37:$CP$1821) -> 19 | E55: 19 | F55: =E55-D55 -> 0 | G55: =CP55 -> 13.91038393 | H55: =AZ55 -> 5 | I55: =BV55 -> 6.243717267 | J55: =CN55 -> 2.666666667 | K55: =CQ55 -> 1 | L55: =B55-K55 -> 0 | M55: =HYPERLINK(CX55,"Gmaps") -> Gmaps | N55: =IF(Y55>$K$6,"LOPUT","VÄHÄ") -> LOPUT | O55: =IF(S55<40,"Valta",IF(S55<100,"Kanta",IF(S55<1000,"Seutu",IF(S55>999,"Yhdys")))) -> Seutu | R55: Päijät-Häme | S55: 296 | T55: 2 | U55: 0 | V55: 2 | W55: 1930 | X55: 1930 | Y55: 10692 | Z55: 476 | AA55: 11761 | AC55: 60 (101 %) | AF55: PK2 (99 %) | AI55: 0.09171779141 | AJ55: 165 | AR55: =+IF(Y55>=$K$6,$F$5,($F$5/($K$6))*Y55) -> 9 | AS55: 239 | AV55: =+IF(AS55>=$L$15,$J$15,IF(AS55<($L$15),AS55*($J$15/($L$15)),)) -> 3 | AW55: 3885 | AX55: =+IF(AW55>=$L$11,$J$11,IF(AW55<($L$11),AW55*($J$11/($L$11)),)) -> 3 | AY55: =SUM(AR55,AV55,AX55) -> 15 | AZ55: =+AY55*$H$5 -> 5 | BA55: =+IF(Z55=0,0,IF(Z55>$K$7,$F$9,($F$9/$K$7)*Z55)) -> 8 | BB55: =IF(DD55>0,$F$10,0) -> 2 | BC55: =IF(DE55>0,$F$11,0) -> 0 | BD55: =IF(DF55>0,$F$12,0) -> 1 | BE55: =IF(DG55>0,$F$13,0) -> 0 | BF55: =IF(DI55>0,$F$14,IF(DH55>0,$F$14/2,0)) -> 1 | BG55: =+IF(DJ55>=$L$19,$J$19,IF(DJ55<($L$19),DJ55*($J$19/($L$19)),)) -> 0.09333333333 | BH55: =+IF(DK55>=$L$20,$J$20,IF(DK55<($L$20),DK55*($J$20/($L$20)),)) -> 0 | BI55: =+IF(DL55>=$L$21,$J$21,IF(DL55<($L$21),DL55*($J$21/($L$21)),)) -> 0 | BJ55: =+IF(DM55>=$L$22,$J$22,IF(DM55<($L$22),DM55*($J$22/($L$22)),)) -> 0 | BK55: =IF(DN55>0,$F$16,0) -> 2 | BL55: =+IF(DQ55>=$L$25,$J$25,IF(DQ55<($L$25),DQ55*($J$25/($L$25)),)) -> 2 | BM55: =IF(EG55>100000,$F$18,IF(EG55>0,$F$18/2,0)) -> 0.5 | BN55: =IF(ED55>0,$F$19,0) -> 2 | BO55: 0.710775 | BP55: 0.570065 | BQ55: 0.432819 | BR55: 0.2691 | BS55: 1.61393 | BT55: =IF(COUNTIF($I$29:$L$29,TRUE)=0,0,IF(SUMIF($I$29:$L$29,TRUE,BO55:BR55)/COUNTIF($I$29:$L$29,TRUE)>=$L$30,$F$20/2,$F$20/2*(SUMIF($I$29:$L$29,TRUE,BO55:BR55)/COUNTIF($I$29:$L$29,TRUE)/$L$30)))+IF(BS55>=10,$F$20/2,IF(BS55<(10),BS55*($F$20/2/10))) -> 0.1378184667 | BU55: =SUM(BA55+BB55+BC55+BD55+BE55+BF55+BK55+BG55+BH55+BI55+BJ55+BL55+BM55+BN55+BT55) -> 18.7311518 | BV55: =+BU55*$H$9 -> 6.243717267 | BW55: 1944.477046 | BX55: =BW55/X55 -> 1.00750106 | BY55: =IF(BX55>0,IF(BX55>=$DC$28,$DA$28,IF(BX55<$DC$28,$DA$29,0)),0) -> 1 | BZ55: 1944.477046 | CA55: =BZ55/X55 -> 1.00750106 | CB55: =IF(CA55,$F$23,0) -> 1 | CC55: =IF(DS55>0,$F$24,0) -> 1 | CD55: 1864.903573 | CE55: =CD55/X55 -> 0.9662712814 | CF55: =+IF(CE55>=$K$4,$F$25,0) -> 1 | CG55: 147.0777202 | CH55: =IF(CG55>0,IF(CG55>=100,$F$26,IF(CG55<100,$F$26/2)),0) -> 1 | CI55: =SUM(DW55) -> 1 | CJ55: =IF(EA55>0,$F$28,0) -> 0 | CK55: =IF(DX55>0,$F$29,0) -> 1 | CL55: =IF(EC55>0,$F$30,0) -> 1 | CM55: =SUM(BY55,CB55,CH55,CC55,CF55,CI55,CJ55,CK55,CL55) -> 8 | CN55: =+CM55*$H$22 -> 2.666666667 | CO55: =SUM(AY55,BU55,CM55) -> 41.7311518 | CP55: =SUM(AZ55,BV55,CN55) -> 13.91038393 | CQ55: =IF(D55<($Z$13*1785),1,IF(D55<(($Z$14+$Z$13)*1785),2,IF(D55<(($Z$15+$Z$13+$Z$14)*1785),3,4))) -> 1 | CR55: =VLOOKUP(A55,Taul1!$F$6:$G$1718,2,FALSE) ->  | DA55: 0 | DB55: 0 | DC55: 2 | DD55: =SUM(DA55:DC55) -> 2 | DE55: 0 | DF55: 1 | DG55: 0 | DH55: 3 | DI55: 0 | DJ55: 56 | DK55: 0 | DL55: 0 | DM55: 0 | DN55: 2 | DP55: 1944.477046 | DQ55: 3 | DR55: 1 | DS55: 40 | DT55: 1864.903573 | DU55: =+IF(AA55>$K$8,$F$27/2,0) -> 1 | DV55: =+IF(AA55/Y55>1.5,$F$27/2,0) -> 0 | DW55: =SUM(DU55:DV55) -> 1 | DX55: 1 | DY55: 0 | DZ55: 0 | EA55: =SUM(DY55:DZ55) -> 0 | EC55: 1 | ED55: 1 | EG55: 16490
A56: =CONCATENATE(S56,"_",T56,"_",U56) -> 1452_1_0 | B56: 1 | C56: =CONCATENATE(S56,"_",T56) -> 1452_1 | D56: =RANK(CP56,$CP$37:$CP$1821) -> 20 | E56: 20 | F56: =E56-D56 -> 0 | G56: =CP56 -> 13.89350847 | H56: =AZ56 -> 4.925 | I56: =BV56 -> 6.301841806 | J56: =CN56 -> 2.666666667 | K56: =CQ56 -> 1 | L56: =B56-K56 -> 0 | M56: =HYPERLINK(CX56,"Gmaps") -> Gmaps | N56: =IF(Y56>$K$6,"LOPUT","VÄHÄ") -> LOPUT | O56: =IF(S56<40,"Valta",IF(S56<100,"Kanta",IF(S56<1000,"Seutu",IF(S56>999,"Yhdys")))) -> Yhdys | R56: Uusimaa | S56: 1452 | T56: 1 | U56: 0 | V56: 1 | W56: 3610 | X56: 3610 | Y56: 8543 | Z56: 503 | AA56: 8456 | AC56: 50 (25 %), 60 (75 %) | AF56: PK2 (100 %) | AI56: 0.002082032063 | AJ56: 167 | AR56: =+IF(Y56>=$K$6,$F$5,($F$5/($K$6))*Y56) -> 9 | AS56: 37 | AV56: =+IF(AS56>=$L$15,$J$15,IF(AS56<($L$15),AS56*($J$15/($L$15)),)) -> 2.775 | AW56: 8287 | AX56: =+IF(AW56>=$L$11,$J$11,IF(AW56<($L$11),AW56*($J$11/($L$11)),)) -> 3 | AY56: =SUM(AR56,AV56,AX56) -> 14.775 | AZ56: =+AY56*$H$5 -> 4.925 | BA56: =+IF(Z56=0,0,IF(Z56>$K$7,$F$9,($F$9/$K$7)*Z56)) -> 8 | BB56: =IF(DD56>0,$F$10,0) -> 0 | BC56: =IF(DE56>0,$F$11,0) -> 1 | BD56: =IF(DF56>0,$F$12,0) -> 1 | BE56: =IF(DG56>0,$F$13,0) -> 0 | BF56: =IF(DI56>0,$F$14,IF(DH56>0,$F$14/2,0)) -> 2 | BG56: =+IF(DJ56>=$L$19,$J$19,IF(DJ56<($L$19),DJ56*($J$19/($L$19)),)) -> 0.09833333333 | BH56: =+IF(DK56>=$L$20,$J$20,IF(DK56<($L$20),DK56*($J$20/($L$20)),)) -> 0.255 | BI56: =+IF(DL56>=$L$21,$J$21,IF(DL56<($L$21),DL56*($J$21/($L$21)),)) -> 0 | BJ56: =+IF(DM56>=$L$22,$J$22,IF(DM56<($L$22),DM56*($J$22/($L$22)),)) -> 0 | BK56: =IF(DN56>0,$F$16,0) -> 2 | BL56: =+IF(DQ56>=$L$25,$J$25,IF(DQ56<($L$25),DQ56*($J$25/($L$25)),)) -> 2 | BM56: =IF(EG56>100000,$F$18,IF(EG56>0,$F$18/2,0)) -> 0.5 | BN56: =IF(ED56>0,$F$19,0) -> 2 | BO56: 0.234437 | BP56: 0.402219 | BQ56: 0.278348 | BR56: 0.286593 | BS56: 0.433839 | BT56: =IF(COUNTIF($I$29:$L$29,TRUE)=0,0,IF(SUMIF($I$29:$L$29,TRUE,BO56:BR56)/COUNTIF($I$29:$L$29,TRUE)>=$L$30,$F$20/2,$F$20/2*(SUMIF($I$29:$L$29,TRUE,BO56:BR56)/COUNTIF($I$29:$L$29,TRUE)/$L$30)))+IF(BS56>=10,$F$20/2,IF(BS56<(10),BS56*($F$20/2/10))) -> 0.05219208333 | BU56: =SUM(BA56+BB56+BC56+BD56+BE56+BF56+BK56+BG56+BH56+BI56+BJ56+BL56+BM56+BN56+BT56) -> 18.90552542 | BV56: =+BU56*$H$9 -> 6.301841806 | BW56: 3602.617065 | BX56: =BW56/X56 -> 0.9979548658 | BY56: =IF(BX56>0,IF(BX56>=$DC$28,$DA$28,IF(BX56<$DC$28,$DA$29,0)),0) -> 1 | BZ56: 3602.617065 | CA56: =BZ56/X56 -> 0.9979548658 | CB56: =IF(CA56,$F$23,0) -> 1 | CC56: =IF(DS56>0,$F$24,0) -> 1 | CD56: 3127.760905 | CE56: =CD56/X56 -> 0.8664157632 | CF56: =+IF(CE56>=$K$4,$F$25,0) -> 1 | CG56: 378.0166205 | CH56: =IF(CG56>0,IF(CG56>=100,$F$26,IF(CG56<100,$F$26/2)),0) -> 1 | CI56: =SUM(DW56) -> 1 | CJ56: =IF(EA56>0,$F$28,0) -> 0 | CK56: =IF(DX56>0,$F$29,0) -> 1 | CL56: =IF(EC56>0,$F$30,0) -> 1 | CM56: =SUM(BY56,CB56,CH56,CC56,CF56,CI56,CJ56,CK56,CL56) -> 8 | CN56: =+CM56*$H$22 -> 2.666666667 | CO56: =SUM(AY56,BU56,CM56) -> 41.68052542 | CP56: =SUM(AZ56,BV56,CN56) -> 13.89350847 | CQ56: =IF(D56<($Z$13*1785),1,IF(D56<(($Z$14+$Z$13)*1785),2,IF(D56<(($Z$15+$Z$13+$Z$14)*1785),3,4))) -> 1 | CR56: =VLOOKUP(A56,Taul1!$F$6:$G$1718,2,FALSE) ->  | DA56: 0 | DB56: 0 | DC56: 0 | DD56: =SUM(DA56:DC56) -> 0 | DE56: 3 | DF56: 1 | DG56: 0 | DH56: 32 | DI56: 6 | DJ56: 59 | DK56: 51 | DL56: 0 | DM56: 0 | DN56: 4 | DP56: 3602.617065 | DQ56: 32 | DR56: 1 | DS56: 22 | DT56: 3127.760905 | DU56: =+IF(AA56>$K$8,$F$27/2,0) -> 1 | DV56: =+IF(AA56/Y56>1.5,$F$27/2,0) -> 0 | DW56: =SUM(DU56:DV56) -> 1 | DX56: 1 | DY56: 0 | DZ56: 0 | EA56: =SUM(DY56:DZ56) -> 0 | EC56: 1 | ED56: 6 | EG56: 42272
A57: =CONCATENATE(S57,"_",T57,"_",U57) -> 1311_1_0 | B57: 1 | C57: =CONCATENATE(S57,"_",T57) -> 1311_1 | D57: =RANK(CP57,$CP$37:$CP$1821) -> 21 | E57: 21 | F57: =E57-D57 -> 0 | G57: =CP57 -> 13.86244164 | H57: =AZ57 -> 5 | I57: =BV57 -> 5.862441644 | J57: =CN57 -> 3 | K57: =CQ57 -> 1 | L57: =B57-K57 -> 0 | M57: =HYPERLINK(CX57,"Gmaps") -> Gmaps | N57: =IF(Y57>$K$6,"LOPUT","VÄHÄ") -> LOPUT | O57: =IF(S57<40,"Valta",IF(S57<100,"Kanta",IF(S57<1000,"Seutu",IF(S57>999,"Yhdys")))) -> Yhdys | R57: Uusimaa | S57: 1311 | T57: 1 | U57: 0 | V57: 1 | W57: 2453 | X57: 2453 | Y57: 9695 | Z57: 369 | AA57: 9598 | AC57: 50 (38 %), 70 (64 %) | AF57: PK2 (100 %) | AI57: 0.0866873065 | AJ57: 94 | AR57: =+IF(Y57>=$K$6,$F$5,($F$5/($K$6))*Y57) -> 9 | AS57: 447 | AV57: =+IF(AS57>=$L$15,$J$15,IF(AS57<($L$15),AS57*($J$15/($L$15)),)) -> 3 | AW57: 6232 | AX57: =+IF(AW57>=$L$11,$J$11,IF(AW57<($L$11),AW57*($J$11/($L$11)),)) -> 3 | AY57: =SUM(AR57,AV57,AX57) -> 15 | AZ57: =+AY57*$H$5 -> 5 | BA57: =+IF(Z57=0,0,IF(Z57>$K$7,$F$9,($F$9/$K$7)*Z57)) -> 8 | BB57: =IF(DD57>0,$F$10,0) -> 0 | BC57: =IF(DE57>0,$F$11,0) -> 1 | BD57: =IF(DF57>0,$F$12,0) -> 0 | BE57: =IF(DG57>0,$F$13,0) -> 0 | BF57: =IF(DI57>0,$F$14,IF(DH57>0,$F$14/2,0)) -> 2 | BG57: =+IF(DJ57>=$L$19,$J$19,IF(DJ57<($L$19),DJ57*($J$19/($L$19)),)) -> 0 | BH57: =+IF(DK57>=$L$20,$J$20,IF(DK57<($L$20),DK57*($J$20/($L$20)),)) -> 0.03 | BI57: =+IF(DL57>=$L$21,$J$21,IF(DL57<($L$21),DL57*($J$21/($L$21)),)) -> 0 | BJ57: =+IF(DM57>=$L$22,$J$22,IF(DM57<($L$22),DM57*($J$22/($L$22)),)) -> 0 | BK57: =IF(DN57>0,$F$16,0) -> 2 | BL57: =+IF(DQ57>=$L$25,$J$25,IF(DQ57<($L$25),DQ57*($J$25/($L$25)),)) -> 2 | BM57: =IF(EG57>100000,$F$18,IF(EG57>0,$F$18/2,0)) -> 0.5 | BN57: =IF(ED57>0,$F$19,0) -> 2 | BO57: 0.262119 | BP57: 0.198652 | BQ57: 0.308856 | BR57: 0.0275281 | BS57: 0.633414 | BT57: =IF(COUNTIF($I$29:$L$29,TRUE)=0,0,IF(SUMIF($I$29:$L$29,TRUE,BO57:BR57)/COUNTIF($I$29:$L$29,TRUE)>=$L$30,$F$20/2,$F$20/2*(SUMIF($I$29:$L$29,TRUE,BO57:BR57)/COUNTIF($I$29:$L$29,TRUE)/$L$30)))+IF(BS57>=10,$F$20/2,IF(BS57<(10),BS57*($F$20/2/10))) -> 0.05732493333 | BU57: =SUM(BA57+BB57+BC57+BD57+BE57+BF57+BK57+BG57+BH57+BI57+BJ57+BL57+BM57+BN57+BT57) -> 17.58732493 | BV57: =+BU57*$H$9 -> 5.862441644 | BW57: 2507.051755 | BX57: =BW57/X57 -> 1.022034959 | BY57: =IF(BX57>0,IF(BX57>=$DC$28,$DA$28,IF(BX57<$DC$28,$DA$29,0)),0) -> 1 | BZ57: 1398.678074 | CA57: =BZ57/X57 -> 0.5701908171 | CB57: =IF(CA57,$F$23,0) -> 1 | CC57: =IF(DS57>0,$F$24,0) -> 1 | CD57: 2281.790195 | CE57: =CD57/X57 -> 0.9302039117 | CF57: =+IF(CE57>=$K$4,$F$25,0) -> 1 | CG57: 726.7835304 | CH57: =IF(CG57>0,IF(CG57>=100,$F$26,IF(CG57<100,$F$26/2)),0) -> 1 | CI57: =SUM(DW57) -> 1 | CJ57: =IF(EA57>0,$F$28,0) -> 1 | CK57: =IF(DX57>0,$F$29,0) -> 1 | CL57: =IF(EC57>0,$F$30,0) -> 1 | CM57: =SUM(BY57,CB57,CH57,CC57,CF57,CI57,CJ57,CK57,CL57) -> 9 | CN57: =+CM57*$H$22 -> 3 | CO57: =SUM(AY57,BU57,CM57) -> 41.58732493 | CP57: =SUM(AZ57,BV57,CN57) -> 13.86244164 | CQ57: =IF(D57<($Z$13*1785),1,IF(D57<(($Z$14+$Z$13)*1785),2,IF(D57<(($Z$15+$Z$13+$Z$14)*1785),3,4))) -> 1 | CR57: =VLOOKUP(A57,Taul1!$F$6:$G$1718,2,FALSE) ->  | DA57: 0 | DB57: 0 | DC57: 0 | DD57: =SUM(DA57:DC57) -> 0 | DE57: 2 | DF57: 0 | DG57: 0 | DH57: 10 | DI57: 1 | DJ57: 0 | DK57: 6 | DL57: 0 | DM57: 0 | DN57: 2 | DP57: 2507.051755 | DQ57: 13 | DR57: 1 | DS57: 39 | DT57: 2281.790195 | DU57: =+IF(AA57>$K$8,$F$27/2,0) -> 1 | DV57: =+IF(AA57/Y57>1.5,$F$27/2,0) -> 0 | DW57: =SUM(DU57:DV57) -> 1 | DX57: 1 | DY57: 0 | DZ57: 1 | EA57: =SUM(DY57:DZ57) -> 1 | EC57: 1 | ED57: 5 | EG57: 72966
A58: =CONCATENATE(S58,"_",T58,"_",U58) -> 25_24_0 | B58: 1 | C58: =CONCATENATE(S58,"_",T58) -> 25_24 | D58: =RANK(CP58,$CP$37:$CP$1821) -> 22 | E58: 22 | F58: =E58-D58 -> 0 | G58: =CP58 -> 13.83333333 | H58: =AZ58 -> 5 | I58: =BV58 -> 6.166666667 | J58: =CN58 -> 2.666666667 | K58: =CQ58 -> 1 | L58: =B58-K58 -> 0 | M58: =HYPERLINK(CX58,"Gmaps") -> Gmaps | N58: =IF(Y58>$K$6,"LOPUT","VÄHÄ") -> LOPUT | O58: =IF(S58<40,"Valta",IF(S58<100,"Kanta",IF(S58<1000,"Seutu",IF(S58>999,"Yhdys")))) -> Valta | R58: Uusimaa | S58: 25 | T58: 24 | U58: 0 | V58: 24 | W58: 5425 | X58: 5425 | Y58: 7997 | Z58: 782 | AA58: 9890 | AC58: 60 (20 %), 80 (80 %) | AF58: PK1 (100 %) | AI58: 0.3880070547 | AJ58: 486 | AR58: =+IF(Y58>=$K$6,$F$5,($F$5/($K$6))*Y58) -> 9 | AS58: 71 | AV58: =+IF(AS58>=$L$15,$J$15,IF(AS58<($L$15),AS58*($J$15/($L$15)),)) -> 3 | AW58: 5811 | AX58: =+IF(AW58>=$L$11,$J$11,IF(AW58<($L$11),AW58*($J$11/($L$11)),)) -> 3 | AY58: =SUM(AR58,AV58,AX58) -> 15 | AZ58: =+AY58*$H$5 -> 5 | BA58: =+IF(Z58=0,0,IF(Z58>$K$7,$F$9,($F$9/$K$7)*Z58)) -> 8 | BB58: =IF(DD58>0,$F$10,0) -> 2 | BC58: =IF(DE58>0,$F$11,0) -> 1 | BD58: =IF(DF58>0,$F$12,0) -> 0 | BE58: =IF(DG58>0,$F$13,0) -> 0 | BF58: =IF(DI58>0,$F$14,IF(DH58>0,$F$14/2,0)) -> 1 | BG58: =+IF(DJ58>=$L$19,$J$19,IF(DJ58<($L$19),DJ58*($J$19/($L$19)),)) -> 0 | BH58: =+IF(DK58>=$L$20,$J$20,IF(DK58<($L$20),DK58*($J$20/($L$20)),)) -> 0.5 | BI58: =+IF(DL58>=$L$21,$J$21,IF(DL58<($L$21),DL58*($J$21/($L$21)),)) -> 0 | BJ58: =+IF(DM58>=$L$22,$J$22,IF(DM58<($L$22),DM58*($J$22/($L$22)),)) -> 0 | BK58: =IF(DN58>0,$F$16,0) -> 0 | BL58: =+IF(DQ58>=$L$25,$J$25,IF(DQ58<($L$25),DQ58*($J$25/($L$25)),)) -> 2 | BM58: =IF(EG58>100000,$F$18,IF(EG58>0,$F$18/2,0)) -> 1 | BN58: =IF(ED58>0,$F$19,0) -> 2 | BO58: 9.97136 | BP58: 9.98972 | BQ58: 6.91912 | BR58: 4.43046 | BS58: 18.2684 | BT58: =IF(COUNTIF($I$29:$L$29,TRUE)=0,0,IF(SUMIF($I$29:$L$29,TRUE,BO58:BR58)/COUNTIF($I$29:$L$29,TRUE)>=$L$30,$F$20/2,$F$20/2*(SUMIF($I$29:$L$29,TRUE,BO58:BR58)/COUNTIF($I$29:$L$29,TRUE)/$L$30)))+IF(BS58>=10,$F$20/2,IF(BS58<(10),BS58*($F$20/2/10))) -> 1 | BU58: =SUM(BA58+BB58+BC58+BD58+BE58+BF58+BK58+BG58+BH58+BI58+BJ58+BL58+BM58+BN58+BT58) -> 18.5 | BV58: =+BU58*$H$9 -> 6.166666667 | BW58: 4530.348062 | BX58: =BW58/X58 -> 0.8350872004 | BY58: =IF(BX58>0,IF(BX58>=$DC$28,$DA$28,IF(BX58<$DC$28,$DA$29,0)),0) -> 1 | BZ58: 5437.066626 | CA58: =BZ58/X58 -> 1.002224263 | CB58: =IF(CA58,$F$23,0) -> 1 | CC58: =IF(DS58>0,$F$24,0) -> 1 | CD58: 4144.428582 | CE58: =CD58/X58 -> 0.7639499689 | CF58: =+IF(CE58>=$K$4,$F$25,0) -> 1 | CG58: 389.483871 | CH58: =IF(CG58>0,IF(CG58>=100,$F$26,IF(CG58<100,$F$26/2)),0) -> 1 | CI58: =SUM(DW58) -> 1 | CJ58: =IF(EA58>0,$F$28,0) -> 0 | CK58: =IF(DX58>0,$F$29,0) -> 1 | CL58: =IF(EC58>0,$F$30,0) -> 1 | CM58: =SUM(BY58,CB58,CH58,CC58,CF58,CI58,CJ58,CK58,CL58) -> 8 | CN58: =+CM58*$H$22 -> 2.666666667 | CO58: =SUM(AY58,BU58,CM58) -> 41.5 | CP58: =SUM(AZ58,BV58,CN58) -> 13.83333333 | CQ58: =IF(D58<($Z$13*1785),1,IF(D58<(($Z$14+$Z$13)*1785),2,IF(D58<(($Z$15+$Z$13+$Z$14)*1785),3,4))) -> 1 | CR58: =VLOOKUP(A58,Taul1!$F$6:$G$1718,2,FALSE) ->  | DA58: 0 | DB58: 0 | DC58: 4 | DD58: =SUM(DA58:DC58) -> 4 | DE58: 1 | DF58: 0 | DG58: 0 | DH58: 2 | DI58: 0 | DJ58: 0 | DK58: 312 | DL58: 0 | DM58: 0 | DN58: 0 | DP58: 4530.348062 | DQ58: 3 | DR58: 1 | DS58: 28 | DT58: 4144.428582 | DU58: =+IF(AA58>$K$8,$F$27/2,0) -> 1 | DV58: =+IF(AA58/Y58>1.5,$F$27/2,0) -> 0 | DW58: =SUM(DU58:DV58) -> 1 | DX58: 2 | DY58: 0 | DZ58: 0 | EA58: =SUM(DY58:DZ58) -> 0 | EC58: 1 | ED58: 1 | EG58: 100001
A59: =CONCATENATE(S59,"_",T59,"_",U59) -> 10_17_0 | B59: 1 | C59: =CONCATENATE(S59,"_",T59) -> 10_17 | D59: =RANK(CP59,$CP$37:$CP$1821) -> 23 | E59: 23 | F59: =E59-D59 -> 0 | G59: =CP59 -> 13.81388889 | H59: =AZ59 -> 4.275 | I59: =BV59 -> 7.205555556 | J59: =CN59 -> 2.333333333 | K59: =CQ59 -> 1 | L59: =B59-K59 -> 0 | M59: =HYPERLINK(CX59,"Gmaps") -> Gmaps | N59: =IF(Y59>$K$6,"LOPUT","VÄHÄ") -> LOPUT | O59: =IF(S59<40,"Valta",IF(S59<100,"Kanta",IF(S59<1000,"Seutu",IF(S59>999,"Yhdys")))) -> Valta | R59: Kanta-Häme | S59: 10 | T59: 17 | U59: 0 | V59: 17 | W59: 6533 | X59: 6533 | Y59: 4775 | Z59: 636 | AA59: 5875 | AC59: 60 (12 %), 80 (61 %), 100 (27 %) | AF59: PK1 (99 %) | AI59: 0 | AJ59: 480 | AR59: =+IF(Y59>=$K$6,$F$5,($F$5/($K$6))*Y59) -> 9 | AS59: 11 | AV59: =+IF(AS59>=$L$15,$J$15,IF(AS59<($L$15),AS59*($J$15/($L$15)),)) -> 0.825 | AW59: 2678 | AX59: =+IF(AW59>=$L$11,$J$11,IF(AW59<($L$11),AW59*($J$11/($L$11)),)) -> 3 | AY59: =SUM(AR59,AV59,AX59) -> 12.825 | AZ59: =+AY59*$H$5 -> 4.275 | BA59: =+IF(Z59=0,0,IF(Z59>$K$7,$F$9,($F$9/$K$7)*Z59)) -> 8 | BB59: =IF(DD59>0,$F$10,0) -> 2 | BC59: =IF(DE59>0,$F$11,0) -> 1 | BD59: =IF(DF59>0,$F$12,0) -> 1 | BE59: =IF(DG59>0,$F$13,0) -> 1 | BF59: =IF(DI59>0,$F$14,IF(DH59>0,$F$14/2,0)) -> 1 | BG59: =+IF(DJ59>=$L$19,$J$19,IF(DJ59<($L$19),DJ59*($J$19/($L$19)),)) -> 0.09166666667 | BH59: =+IF(DK59>=$L$20,$J$20,IF(DK59<($L$20),DK59*($J$20/($L$20)),)) -> 0.025 | BI59: =+IF(DL59>=$L$21,$J$21,IF(DL59<($L$21),DL59*($J$21/($L$21)),)) -> 0.5 | BJ59: =+IF(DM59>=$L$22,$J$22,IF(DM59<($L$22),DM59*($J$22/($L$22)),)) -> 0 | BK59: =IF(DN59>0,$F$16,0) -> 2 | BL59: =+IF(DQ59>=$L$25,$J$25,IF(DQ59<($L$25),DQ59*($J$25/($L$25)),)) -> 2 | BM59: =IF(EG59>100000,$F$18,IF(EG59>0,$F$18/2,0)) -> 0 | BN59: =IF(ED59>0,$F$19,0) -> 2 | BO59: 16.04 | BP59: 21.4473 | BQ59: 15.4163 | BR59: 6.06521 | BS59: 28.6517 | BT59: =IF(COUNTIF($I$29:$L$29,TRUE)=0,0,IF(SUMIF($I$29:$L$29,TRUE,BO59:BR59)/COUNTIF($I$29:$L$29,TRUE)>=$L$30,$F$20/2,$F$20/2*(SUMIF($I$29:$L$29,TRUE,BO59:BR59)/COUNTIF($I$29:$L$29,TRUE)/$L$30)))+IF(BS59>=10,$F$20/2,IF(BS59<(10),BS59*($F$20/2/10))) -> 1 | BU59: =SUM(BA59+BB59+BC59+BD59+BE59+BF59+BK59+BG59+BH59+BI59+BJ59+BL59+BM59+BN59+BT59) -> 21.61666667 | BV59: =+BU59*$H$9 -> 7.205555556 | BW59: 4203.866934 | BX59: =BW59/X59 -> 0.6434818512 | BY59: =IF(BX59>0,IF(BX59>=$DC$28,$DA$28,IF(BX59<$DC$28,$DA$29,0)),0) -> 1 | BZ59: 6525.309618 | CA59: =BZ59/X59 -> 0.9988228406 | CB59: =IF(CA59,$F$23,0) -> 1 | CC59: =IF(DS59>0,$F$24,0) -> 1 | CD59: 4274.649295 | CE59: =CD59/X59 -> 0.6543164389 | CF59: =+IF(CE59>=$K$4,$F$25,0) -> 1 | CG59: 167.5518139 | CH59: =IF(CG59>0,IF(CG59>=100,$F$26,IF(CG59<100,$F$26/2)),0) -> 1 | CI59: =SUM(DW59) -> 1 | CJ59: =IF(EA59>0,$F$28,0) -> 0 | CK59: =IF(DX59>0,$F$29,0) -> 0 | CL59: =IF(EC59>0,$F$30,0) -> 1 | CM59: =SUM(BY59,CB59,CH59,CC59,CF59,CI59,CJ59,CK59,CL59) -> 7 | CN59: =+CM59*$H$22 -> 2.333333333 | CO59: =SUM(AY59,BU59,CM59) -> 41.44166667 | CP59: =SUM(AZ59,BV59,CN59) -> 13.81388889 | CQ59: =IF(D59<($Z$13*1785),1,IF(D59<(($Z$14+$Z$13)*1785),2,IF(D59<(($Z$15+$Z$13+$Z$14)*1785),3,4))) -> 1 | CR59: =VLOOKUP(A59,Taul1!$F$6:$G$1718,2,FALSE) ->  | DA59: 0 | DB59: 0 | DC59: 34 | DD59: =SUM(DA59:DC59) -> 34 | DE59: 1 | DF59: 1 | DG59: 1 | DH59: 13 | DI59: 0 | DJ59: 55 | DK59: 5 | DL59: 1851 | DM59: 0 | DN59: 1 | DP59: 4203.866934 | DQ59: 7 | DR59: 0 | DS59: 18 | DT59: 4274.649295 | DU59: =+IF(AA59>$K$8,$F$27/2,0) -> 1 | DV59: =+IF(AA59/Y59>1.5,$F$27/2,0) -> 0 | DW59: =SUM(DU59:DV59) -> 1 | DX59: 0 | DY59: 0 | DZ59: 0 | EA59: =SUM(DY59:DZ59) -> 0 | EC59: 1 | ED59: 2 | EG59: 0
A60: =CONCATENATE(S60,"_",T60,"_",U60) -> 54_16_0 | B60: 1 | C60: =CONCATENATE(S60,"_",T60) -> 54_16 | D60: =RANK(CP60,$CP$37:$CP$1821) -> 24 | E60: 24 | F60: =E60-D60 -> 0 | G60: =CP60 -> 13.80133333 | H60: =AZ60 -> 4 | I60: =BV60 -> 7.634666667 | J60: =CN60 -> 2.166666667 | K60: =CQ60 -> 1 | L60: =B60-K60 -> 0 | M60: =HYPERLINK(CX60,"Gmaps") -> Gmaps | N60: =IF(Y60>$K$6,"LOPUT","VÄHÄ") -> LOPUT | O60: =IF(S60<40,"Valta",IF(S60<100,"Kanta",IF(S60<1000,"Seutu",IF(S60>999,"Yhdys")))) -> Kanta | R60: Päijät-Häme | S60: 54 | T60: 16 | U60: 0 | V60: 16 | W60: 6495 | X60: 6495 | Y60: 4223 | Z60: 391 | AA60: 5269 | AC60: 80 (10 %), 100 (90 %) | AF60: PK1 (100 %) | AI60: 0.01287001287 | AJ60: 254 | AR60: =+IF(Y60>=$K$6,$F$5,($F$5/($K$6))*Y60) -> 9 | AS60: 0 | AV60: =+IF(AS60>=$L$15,$J$15,IF(AS60<($L$15),AS60*($J$15/($L$15)),)) -> 0 | AW60: 1689 | AX60: =+IF(AW60>=$L$11,$J$11,IF(AW60<($L$11),AW60*($J$11/($L$11)),)) -> 3 | AY60: =SUM(AR60,AV60,AX60) -> 12 | AZ60: =+AY60*$H$5 -> 4 | BA60: =+IF(Z60=0,0,IF(Z60>$K$7,$F$9,($F$9/$K$7)*Z60)) -> 8 | BB60: =IF(DD60>0,$F$10,0) -> 2 | BC60: =IF(DE60>0,$F$11,0) -> 1 | BD60: =IF(DF60>0,$F$12,0) -> 1 | BE60: =IF(DG60>0,$F$13,0) -> 0 | BF60: =IF(DI60>0,$F$14,IF(DH60>0,$F$14/2,0)) -> 2 | BG60: =+IF(DJ60>=$L$19,$J$19,IF(DJ60<($L$19),DJ60*($J$19/($L$19)),)) -> 0.5 | BH60: =+IF(DK60>=$L$20,$J$20,IF(DK60<($L$20),DK60*($J$20/($L$20)),)) -> 0.5 | BI60: =+IF(DL60>=$L$21,$J$21,IF(DL60<($L$21),DL60*($J$21/($L$21)),)) -> 0.404 | BJ60: =+IF(DM60>=$L$22,$J$22,IF(DM60<($L$22),DM60*($J$22/($L$22)),)) -> 0 | BK60: =IF(DN60>0,$F$16,0) -> 2 | BL60: =+IF(DQ60>=$L$25,$J$25,IF(DQ60<($L$25),DQ60*($J$25/($L$25)),)) -> 2 | BM60: =IF(EG60>100000,$F$18,IF(EG60>0,$F$18/2,0)) -> 0.5 | BN60: =IF(ED60>0,$F$19,0) -> 2 | BO60: 17.0093 | BP60: 32.3983 | BQ60: 28.5343 | BR60: 19.1375 | BS60: 55.8559 | BT60: =IF(COUNTIF($I$29:$L$29,TRUE)=0,0,IF(SUMIF($I$29:$L$29,TRUE,BO60:BR60)/COUNTIF($I$29:$L$29,TRUE)>=$L$30,$F$20/2,$F$20/2*(SUMIF($I$29:$L$29,TRUE,BO60:BR60)/COUNTIF($I$29:$L$29,TRUE)/$L$30)))+IF(BS60>=10,$F$20/2,IF(BS60<(10),BS60*($F$20/2/10))) -> 1 | BU60: =SUM(BA60+BB60+BC60+BD60+BE60+BF60+BK60+BG60+BH60+BI60+BJ60+BL60+BM60+BN60+BT60) -> 22.904 | BV60: =+BU60*$H$9 -> 7.634666667 | BW60: 3753.688394 | BX60: =BW60/X60 -> 0.5779350876 | BY60: =IF(BX60>0,IF(BX60>=$DC$28,$DA$28,IF(BX60<$DC$28,$DA$29,0)),0) -> 1 | BZ60: 6480.865154 | CA60: =BZ60/X60 -> 0.9978237342 | CB60: =IF(CA60,$F$23,0) -> 1 | CC60: =IF(DS60>0,$F$24,0) -> 1 | CD60: 1431.272891 | CE60: =CD60/X60 -> 0.2203653411 | CF60: =+IF(CE60>=$K$4,$F$25,0) -> 0 | CG60: 45.14626636 | CH60: =IF(CG60>0,IF(CG60>=100,$F$26,IF(CG60<100,$F$26/2)),0) -> 0.5 | CI60: =SUM(DW60) -> 1 | CJ60: =IF(EA60>0,$F$28,0) -> 1 | CK60: =IF(DX60>0,$F$29,0) -> 0 | CL60: =IF(EC60>0,$F$30,0) -> 1 | CM60: =SUM(BY60,CB60,CH60,CC60,CF60,CI60,CJ60,CK60,CL60) -> 6.5 | CN60: =+CM60*$H$22 -> 2.166666667 | CO60: =SUM(AY60,BU60,CM60) -> 41.404 | CP60: =SUM(AZ60,BV60,CN60) -> 13.80133333 | CQ60: =IF(D60<($Z$13*1785),1,IF(D60<(($Z$14+$Z$13)*1785),2,IF(D60<(($Z$15+$Z$13+$Z$14)*1785),3,4))) -> 1 | CR60: =VLOOKUP(A60,Taul1!$F$6:$G$1718,2,FALSE) ->  | DA60: 0 | DB60: 0 | DC60: 23 | DD60: =SUM(DA60:DC60) -> 23 | DE60: 2 | DF60: 13 | DG60: 0 | DH60: 30 | DI60: 2 | DJ60: 618 | DK60: 154 | DL60: 808 | DM60: 0 | DN60: 1 | DP60: 3753.688394 | DQ60: 7 | DR60: 1 | DS60: 7 | DT60: 1431.272891 | DU60: =+IF(AA60>$K$8,$F$27/2,0) -> 1 | DV60: =+IF(AA60/Y60>1.5,$F$27/2,0) -> 0 | DW60: =SUM(DU60:DV60) -> 1 | DX60: 0 | DY60: 0 | DZ60: 1 | EA60: =SUM(DY60:DZ60) -> 1 | EC60: 1 | ED60: 2 | EG60: 12161
A61: =CONCATENATE(S61,"_",T61,"_",U61) -> 133_1_0 | B61: 1 | C61: =CONCATENATE(S61,"_",T61) -> 133_1 | D61: =RANK(CP61,$CP$37:$CP$1821) -> 25 | E61: 25 | F61: =E61-D61 -> 0 | G61: =CP61 -> 13.78736344 | H61: =AZ61 -> 5 | I61: =BV61 -> 6.954030111 | J61: =CN61 -> 1.833333333 | K61: =CQ61 -> 1 | L61: =B61-K61 -> 0 | M61: =HYPERLINK(CX61,"Gmaps") -> Gmaps | N61: =IF(Y61>$K$6,"LOPUT","VÄHÄ") -> LOPUT | O61: =IF(S61<40,"Valta",IF(S61<100,"Kanta",IF(S61<1000,"Seutu",IF(S61>999,"Yhdys")))) -> Seutu | R61: Uusimaa | S61: 133 | T61: 1 | U61: 0 | V61: 1 | W61: 6490 | X61: 6490 | Y61: 2077 | Z61: 126 | AA61: 2460 | AC61: 50 (37 %), 60 (27 %), 80 (37 %) | AF61: PK2 (100 %) | AI61: 0.2773497689 | AJ61: 43 | AR61: =+IF(Y61>=$K$6,$F$5,($F$5/($K$6))*Y61) -> 9 | AS61: 158 | AV61: =+IF(AS61>=$L$15,$J$15,IF(AS61<($L$15),AS61*($J$15/($L$15)),)) -> 3 | AW61: 2209 | AX61: =+IF(AW61>=$L$11,$J$11,IF(AW61<($L$11),AW61*($J$11/($L$11)),)) -> 3 | AY61: =SUM(AR61,AV61,AX61) -> 15 | AZ61: =+AY61*$H$5 -> 5 | BA61: =+IF(Z61=0,0,IF(Z61>$K$7,$F$9,($F$9/$K$7)*Z61)) -> 8 | BB61: =IF(DD61>0,$F$10,0) -> 2 | BC61: =IF(DE61>0,$F$11,0) -> 1 | BD61: =IF(DF61>0,$F$12,0) -> 1 | BE61: =IF(DG61>0,$F$13,0) -> 1 | BF61: =IF(DI61>0,$F$14,IF(DH61>0,$F$14/2,0)) -> 1 | BG61: =+IF(DJ61>=$L$19,$J$19,IF(DJ61<($L$19),DJ61*($J$19/($L$19)),)) -> 0.1183333333 | BH61: =+IF(DK61>=$L$20,$J$20,IF(DK61<($L$20),DK61*($J$20/($L$20)),)) -> 0 | BI61: =+IF(DL61>=$L$21,$J$21,IF(DL61<($L$21),DL61*($J$21/($L$21)),)) -> 0 | BJ61: =+IF(DM61>=$L$22,$J$22,IF(DM61<($L$22),DM61*($J$22/($L$22)),)) -> 0 | BK61: =IF(DN61>0,$F$16,0) -> 2 | BL61: =+IF(DQ61>=$L$25,$J$25,IF(DQ61<($L$25),DQ61*($J$25/($L$25)),)) -> 2 | BM61: =IF(EG61>100000,$F$18,IF(EG61>0,$F$18/2,0)) -> 0.5 | BN61: =IF(ED61>0,$F$19,0) -> 2 | BO61: 1.41157 | BP61: 2.13094 | BQ61: 0.866365 | BR61: 0.519389 | BS61: 1.93589 | BT61: =IF(COUNTIF($I$29:$L$29,TRUE)=0,0,IF(SUMIF($I$29:$L$29,TRUE,BO61:BR61)/COUNTIF($I$29:$L$29,TRUE)>=$L$30,$F$20/2,$F$20/2*(SUMIF($I$29:$L$29,TRUE,BO61:BR61)/COUNTIF($I$29:$L$29,TRUE)/$L$30)))+IF(BS61>=10,$F$20/2,IF(BS61<(10),BS61*($F$20/2/10))) -> 0.243757 | BU61: =SUM(BA61+BB61+BC61+BD61+BE61+BF61+BK61+BG61+BH61+BI61+BJ61+BL61+BM61+BN61+BT61) -> 20.86209033 | BV61: =+BU61*$H$9 -> 6.954030111 | BW61: 1819.36674 | BX61: =BW61/X61 -> 0.2803338583 | BY61: =IF(BX61>0,IF(BX61>=$DC$28,$DA$28,IF(BX61<$DC$28,$DA$29,0)),0) -> 0.5 | BZ61: 6435.1 | CA61: =BZ61/X61 -> 0.991540832 | CB61: =IF(CA61,$F$23,0) -> 1 | CC61: =IF(DS61>0,$F$24,0) -> 1 | CD61: 3018.092392 | CE61: =CD61/X61 -> 0.4650373485 | CF61: =+IF(CE61>=$K$4,$F$25,0) -> 0 | CG61: 196.6687211 | CH61: =IF(CG61>0,IF(CG61>=100,$F$26,IF(CG61<100,$F$26/2)),0) -> 1 | CI61: =SUM(DW61) -> 1 | CJ61: =IF(EA61>0,$F$28,0) -> 0 | CK61: =IF(DX61>0,$F$29,0) -> 0 | CL61: =IF(EC61>0,$F$30,0) -> 1 | CM61: =SUM(BY61,CB61,CH61,CC61,CF61,CI61,CJ61,CK61,CL61) -> 5.5 | CN61: =+CM61*$H$22 -> 1.833333333 | CO61: =SUM(AY61,BU61,CM61) -> 41.36209033 | CP61: =SUM(AZ61,BV61,CN61) -> 13.78736344 | CQ61: =IF(D61<($Z$13*1785),1,IF(D61<(($Z$14+$Z$13)*1785),2,IF(D61<(($Z$15+$Z$13+$Z$14)*1785),3,4))) -> 1 | CR61: =VLOOKUP(A61,Taul1!$F$6:$G$1718,2,FALSE) ->  | DA61: 0 | DB61: 0 | DC61: 2 | DD61: =SUM(DA61:DC61) -> 2 | DE61: 1 | DF61: 5 | DG61: 1 | DH61: 5 | DI61: 0 | DJ61: 71 | DK61: 0 | DL61: 0 | DM61: 0 | DN61: 1 | DP61: 1819.36674 | DQ61: 3 | DR61: 1 | DS61: 24 | DT61: 3018.092392 | DU61: =+IF(AA61>$K$8,$F$27/2,0) -> 1 | DV61: =+IF(AA61/Y61>1.5,$F$27/2,0) -> 0 | DW61: =SUM(DU61:DV61) -> 1 | DX61: 0 | DY61: 0 | DZ61: 0 | EA61: =SUM(DY61:DZ61) -> 0 | EC61: 1 | ED61: 2 | EG61: 10088
A62: =CONCATENATE(S62,"_",T62,"_",U62) -> 148_3_0 | B62: 1 | C62: =CONCATENATE(S62,"_",T62) -> 148_3 | D62: =RANK(CP62,$CP$37:$CP$1821) -> 26 | E62: 26 | F62: =E62-D62 -> 0 | G62: =CP62 -> 13.7828838 | H62: =AZ62 -> 5 | I62: =BV62 -> 6.616217133 | J62: =CN62 -> 2.166666667 | K62: =CQ62 -> 1 | L62: =B62-K62 -> 0 | M62: =HYPERLINK(CX62,"Gmaps") -> Gmaps | N62: =IF(Y62>$K$6,"LOPUT","VÄHÄ") -> LOPUT | O62: =IF(S62<40,"Valta",IF(S62<100,"Kanta",IF(S62<1000,"Seutu",IF(S62>999,"Yhdys")))) -> Seutu | R62: Uusimaa | S62: 148 | T62: 3 | U62: 0 | V62: 3 | W62: 6891 | X62: 6891 | Y62: 7122 | Z62: 720 | AA62: 7429 | AC62: 60 (54 %), 80 (46 %) | AF62: PK2 (99 %) | AI62: 0.4572320732 | AJ62: 418 | AR62: =+IF(Y62>=$K$6,$F$5,($F$5/($K$6))*Y62) -> 9 | AS62: 636 | AV62: =+IF(AS62>=$L$15,$J$15,IF(AS62<($L$15),AS62*($J$15/($L$15)),)) -> 3 | AW62: 6332 | AX62: =+IF(AW62>=$L$11,$J$11,IF(AW62<($L$11),AW62*($J$11/($L$11)),)) -> 3 | AY62: =SUM(AR62,AV62,AX62) -> 15 | AZ62: =+AY62*$H$5 -> 5 | BA62: =+IF(Z62=0,0,IF(Z62>$K$7,$F$9,($F$9/$K$7)*Z62)) -> 8 | BB62: =IF(DD62>0,$F$10,0) -> 0 | BC62: =IF(DE62>0,$F$11,0) -> 1 | BD62: =IF(DF62>0,$F$12,0) -> 1 | BE62: =IF(DG62>0,$F$13,0) -> 0 | BF62: =IF(DI62>0,$F$14,IF(DH62>0,$F$14/2,0)) -> 2 | BG62: =+IF(DJ62>=$L$19,$J$19,IF(DJ62<($L$19),DJ62*($J$19/($L$19)),)) -> 0.5 | BH62: =+IF(DK62>=$L$20,$J$20,IF(DK62<($L$20),DK62*($J$20/($L$20)),)) -> 0 | BI62: =+IF(DL62>=$L$21,$J$21,IF(DL62<($L$21),DL62*($J$21/($L$21)),)) -> 0 | BJ62: =+IF(DM62>=$L$22,$J$22,IF(DM62<($L$22),DM62*($J$22/($L$22)),)) -> 0 | BK62: =IF(DN62>0,$F$16,0) -> 2 | BL62: =+IF(DQ62>=$L$25,$J$25,IF(DQ62<($L$25),DQ62*($J$25/($L$25)),)) -> 2 | BM62: =IF(EG62>100000,$F$18,IF(EG62>0,$F$18/2,0)) -> 1 | BN62: =IF(ED62>0,$F$19,0) -> 2 | BO62: 0.44427 | BP62: 0.847652 | BQ62: 1.54072 | BR62: 0.232297 | BS62: 5.0846 | BT62: =IF(COUNTIF($I$29:$L$29,TRUE)=0,0,IF(SUMIF($I$29:$L$29,TRUE,BO62:BR62)/COUNTIF($I$29:$L$29,TRUE)>=$L$30,$F$20/2,$F$20/2*(SUMIF($I$29:$L$29,TRUE,BO62:BR62)/COUNTIF($I$29:$L$29,TRUE)/$L$30)))+IF(BS62>=10,$F$20/2,IF(BS62<(10),BS62*($F$20/2/10))) -> 0.3486514 | BU62: =SUM(BA62+BB62+BC62+BD62+BE62+BF62+BK62+BG62+BH62+BI62+BJ62+BL62+BM62+BN62+BT62) -> 19.8486514 | BV62: =+BU62*$H$9 -> 6.616217133 | BW62: 3685.028026 | BX62: =BW62/X62 -> 0.5347595452 | BY62: =IF(BX62>0,IF(BX62>=$DC$28,$DA$28,IF(BX62<$DC$28,$DA$29,0)),0) -> 1 | BZ62: 6655.136494 | CA62: =BZ62/X62 -> 0.9657722383 | CB62: =IF(CA62,$F$23,0) -> 1 | CC62: =IF(DS62>0,$F$24,0) -> 1 | CD62: 2651.091265 | CE62: =CD62/X62 -> 0.3847179313 | CF62: =+IF(CE62>=$K$4,$F$25,0) -> 0 | CG62: 63.39544333 | CH62: =IF(CG62>0,IF(CG62>=100,$F$26,IF(CG62<100,$F$26/2)),0) -> 0.5 | CI62: =SUM(DW62) -> 1 | CJ62: =IF(EA62>0,$F$28,0) -> 0 | CK62: =IF(DX62>0,$F$29,0) -> 1 | CL62: =IF(EC62>0,$F$30,0) -> 1 | CM62: =SUM(BY62,CB62,CH62,CC62,CF62,CI62,CJ62,CK62,CL62) -> 6.5 | CN62: =+CM62*$H$22 -> 2.166666667 | CO62: =SUM(AY62,BU62,CM62) -> 41.3486514 | CP62: =SUM(AZ62,BV62,CN62) -> 13.7828838 | CQ62: =IF(D62<($Z$13*1785),1,IF(D62<(($Z$14+$Z$13)*1785),2,IF(D62<(($Z$15+$Z$13+$Z$14)*1785),3,4))) -> 1 | CR62: =VLOOKUP(A62,Taul1!$F$6:$G$1718,2,FALSE) ->  | DA62: 0 | DB62: 0 | DC62: 0 | DD62: =SUM(DA62:DC62) -> 0 | DE62: 2 | DF62: 2 | DG62: 0 | DH62: 11 | DI62: 5 | DJ62: 329 | DK62: 0 | DL62: 0 | DM62: 0 | DN62: 1 | DP62: 3685.028026 | DQ62: 20 | DR62: 4 | DS62: 15 | DT62: 2651.091265 | DU62: =+IF(AA62>$K$8,$F$27/2,0) -> 1 | DV62: =+IF(AA62/Y62>1.5,$F$27/2,0) -> 0 | DW62: =SUM(DU62:DV62) -> 1 | DX62: 2 | DY62: 0 | DZ62: 0 | EA62: =SUM(DY62:DZ62) -> 0 | EC62: 1 | ED62: 4 | EG62: 393313
A63: =CONCATENATE(S63,"_",T63,"_",U63) -> 45_3_0 | B63: 1 | C63: =CONCATENATE(S63,"_",T63) -> 45_3 | D63: =RANK(CP63,$CP$37:$CP$1821) -> 27 | E63: 27 | F63: =E63-D63 -> 0 | G63: =CP63 -> 13.73512663 | H63: =AZ63 -> 5 | I63: =BV63 -> 6.4017933 | J63: =CN63 -> 2.333333333 | K63: =CQ63 -> 1 | L63: =B63-K63 -> 0 | M63: =HYPERLINK(CX63,"Gmaps") -> Gmaps | N63: =IF(Y63>$K$6,"LOPUT","VÄHÄ") -> LOPUT | O63: =IF(S63<40,"Valta",IF(S63<100,"Kanta",IF(S63<1000,"Seutu",IF(S63>999,"Yhdys")))) -> Kanta | R63: Uusimaa | S63: 45 | T63: 3 | U63: 0 | V63: 3 | W63: 8967 | X63: 8967 | Y63: 43785 | Z63: 2047 | AA63: 43790 | AC63: 60 (3 %), 80 (11 %), 100 (87 %) | AF63: PK1 (99 %) | AI63: 0.1302011473 | AJ63: 660 | AR63: =+IF(Y63>=$K$6,$F$5,($F$5/($K$6))*Y63) -> 9 | AS63: 1234 | AV63: =+IF(AS63>=$L$15,$J$15,IF(AS63<($L$15),AS63*($J$15/($L$15)),)) -> 3 | AW63: 30602 | AX63: =+IF(AW63>=$L$11,$J$11,IF(AW63<($L$11),AW63*($J$11/($L$11)),)) -> 3 | AY63: =SUM(AR63,AV63,AX63) -> 15 | AZ63: =+AY63*$H$5 -> 5 | BA63: =+IF(Z63=0,0,IF(Z63>$K$7,$F$9,($F$9/$K$7)*Z63)) -> 8 | BB63: =IF(DD63>0,$F$10,0) -> 0 | BC63: =IF(DE63>0,$F$11,0) -> 1 | BD63: =IF(DF63>0,$F$12,0) -> 1 | BE63: =IF(DG63>0,$F$13,0) -> 0 | BF63: =IF(DI63>0,$F$14,IF(DH63>0,$F$14/2,0)) -> 2 | BG63: =+IF(DJ63>=$L$19,$J$19,IF(DJ63<($L$19),DJ63*($J$19/($L$19)),)) -> 0 | BH63: =+IF(DK63>=$L$20,$J$20,IF(DK63<($L$20),DK63*($J$20/($L$20)),)) -> 0 | BI63: =+IF(DL63>=$L$21,$J$21,IF(DL63<($L$21),DL63*($J$21/($L$21)),)) -> 0 | BJ63: =+IF(DM63>=$L$22,$J$22,IF(DM63<($L$22),DM63*($J$22/($L$22)),)) -> 0 | BK63: =IF(DN63>0,$F$16,0) -> 2 | BL63: =+IF(DQ63>=$L$25,$J$25,IF(DQ63<($L$25),DQ63*($J$25/($L$25)),)) -> 2 | BM63: =IF(EG63>100000,$F$18,IF(EG63>0,$F$18/2,0)) -> 1 | BN63: =IF(ED63>0,$F$19,0) -> 2 | BO63: 0.413829 | BP63: 0.47073 | BQ63: 0.207048 | BR63: 0.114835 | BS63: 3.37986 | BT63: =IF(COUNTIF($I$29:$L$29,TRUE)=0,0,IF(SUMIF($I$29:$L$29,TRUE,BO63:BR63)/COUNTIF($I$29:$L$29,TRUE)>=$L$30,$F$20/2,$F$20/2*(SUMIF($I$29:$L$29,TRUE,BO63:BR63)/COUNTIF($I$29:$L$29,TRUE)/$L$30)))+IF(BS63>=10,$F$20/2,IF(BS63<(10),BS63*($F$20/2/10))) -> 0.2053799 | BU63: =SUM(BA63+BB63+BC63+BD63+BE63+BF63+BK63+BG63+BH63+BI63+BJ63+BL63+BM63+BN63+BT63) -> 19.2053799 | BV63: =+BU63*$H$9 -> 6.4017933 | BW63: 8760.162141 | BX63: =BW63/X63 -> 0.9769334383 | BY63: =IF(BX63>0,IF(BX63>=$DC$28,$DA$28,IF(BX63<$DC$28,$DA$29,0)),0) -> 1 | BZ63: 8978.020896 | CA63: =BZ63/X63 -> 1.001229051 | CB63: =IF(CA63,$F$23,0) -> 1 | CC63: =IF(DS63>0,$F$24,0) -> 1 | CD63: 6559.243512 | CE63: =CD63/X63 -> 0.7314869535 | CF63: =+IF(CE63>=$K$4,$F$25,0) -> 1 | CG63: 193.8370693 | CH63: =IF(CG63>0,IF(CG63>=100,$F$26,IF(CG63<100,$F$26/2)),0) -> 1 | CI63: =SUM(DW63) -> 1 | CJ63: =IF(EA63>0,$F$28,0) -> 0 | CK63: =IF(DX63>0,$F$29,0) -> 0 | CL63: =IF(EC63>0,$F$30,0) -> 1 | CM63: =SUM(BY63,CB63,CH63,CC63,CF63,CI63,CJ63,CK63,CL63) -> 7 | CN63: =+CM63*$H$22 -> 2.333333333 | CO63: =SUM(AY63,BU63,CM63) -> 41.2053799 | CP63: =SUM(AZ63,BV63,CN63) -> 13.73512663 | CQ63: =IF(D63<($Z$13*1785),1,IF(D63<(($Z$14+$Z$13)*1785),2,IF(D63<(($Z$15+$Z$13+$Z$14)*1785),3,4))) -> 1 | CR63: =VLOOKUP(A63,Taul1!$F$6:$G$1718,2,FALSE) ->  | DA63: 0 | DB63: 0 | DC63: 0 | DD63: =SUM(DA63:DC63) -> 0 | DE63: 1 | DF63: 4 | DG63: 0 | DH63: 0 | DI63: 2 | DJ63: 0 | DK63: 0 | DL63: 0 | DM63: 0 | DN63: 4 | DP63: 8760.162141 | DQ63: 69 | DR63: 3 | DS63: 13 | DT63: 6559.243512 | DU63: =+IF(AA63>$K$8,$F$27/2,0) -> 1 | DV63: =+IF(AA63/Y63>1.5,$F$27/2,0) -> 0 | DW63: =SUM(DU63:DV63) -> 1 | DX63: 0 | DY63: 0 | DZ63: 0 | EA63: =SUM(DY63:DZ63) -> 0 | EC63: 1 | ED63: 9 | EG63: 213754
A64: =CONCATENATE(S64,"_",T64,"_",U64) -> 363_1_0 | B64: 1 | C64: =CONCATENATE(S64,"_",T64) -> 363_1 | D64: =RANK(CP64,$CP$37:$CP$1821) -> 28 | E64: 28 | F64: =E64-D64 -> 0 | G64: =CP64 -> 13.72666667 | H64: =AZ64 -> 5 | I64: =BV64 -> 6.56 | J64: =CN64 -> 2.166666667 | K64: =CQ64 -> 1 | L64: =B64-K64 -> 0 | M64: =HYPERLINK(CX64,"Gmaps") -> Gmaps | N64: =IF(Y64>$K$6,"LOPUT","VÄHÄ") -> LOPUT | O64: =IF(S64<40,"Valta",IF(S64<100,"Kanta",IF(S64<1000,"Seutu",IF(S64>999,"Yhdys")))) -> Seutu | R64: Päijät-Häme | S64: 363 | T64: 1 | U64: 0 | V64: 1 | W64: 3090 | X64: 3090 | Y64: 2798 | Z64: 200 | AA64: 3318 | AC64: 60 (100 %) | AF64: PK2 (100 %) | AI64: 0.02906976744 | AJ64: 60 | AR64: =+IF(Y64>=$K$6,$F$5,($F$5/($K$6))*Y64) -> 9 | AS64: 316 | AV64: =+IF(AS64>=$L$15,$J$15,IF(AS64<($L$15),AS64*($J$15/($L$15)),)) -> 3 | AW64: 755 | AX64: =+IF(AW64>=$L$11,$J$11,IF(AW64<($L$11),AW64*($J$11/($L$11)),)) -> 3 | AY64: =SUM(AR64,AV64,AX64) -> 15 | AZ64: =+AY64*$H$5 -> 5 | BA64: =+IF(Z64=0,0,IF(Z64>$K$7,$F$9,($F$9/$K$7)*Z64)) -> 8 | BB64: =IF(DD64>0,$F$10,0) -> 2 | BC64: =IF(DE64>0,$F$11,0) -> 0 | BD64: =IF(DF64>0,$F$12,0) -> 1 | BE64: =IF(DG64>0,$F$13,0) -> 1 | BF64: =IF(DI64>0,$F$14,IF(DH64>0,$F$14/2,0)) -> 2 | BG64: =+IF(DJ64>=$L$19,$J$19,IF(DJ64<($L$19),DJ64*($J$19/($L$19)),)) -> 0.5 | BH64: =+IF(DK64>=$L$20,$J$20,IF(DK64<($L$20),DK64*($J$20/($L$20)),)) -> 0.18 | BI64: =+IF(DL64>=$L$21,$J$21,IF(DL64<($L$21),DL64*($J$21/($L$21)),)) -> 0 | BJ64: =+IF(DM64>=$L$22,$J$22,IF(DM64<($L$22),DM64*($J$22/($L$22)),)) -> 0 | BK64: =IF(DN64>0,$F$16,0) -> 0 | BL64: =+IF(DQ64>=$L$25,$J$25,IF(DQ64<($L$25),DQ64*($J$25/($L$25)),)) -> 2 | BM64: =IF(EG64>100000,$F$18,IF(EG64>0,$F$18/2,0)) -> 0 | BN64: =IF(ED64>0,$F$19,0) -> 2 | BO64: 4.22898 | BP64: 7.90163 | BQ64: 4.91164 | BR64: 3.88296 | BS64: 22.7444 | BT64: =IF(COUNTIF($I$29:$L$29,TRUE)=0,0,IF(SUMIF($I$29:$L$29,TRUE,BO64:BR64)/COUNTIF($I$29:$L$29,TRUE)>=$L$30,$F$20/2,$F$20/2*(SUMIF($I$29:$L$29,TRUE,BO64:BR64)/COUNTIF($I$29:$L$29,TRUE)/$L$30)))+IF(BS64>=10,$F$20/2,IF(BS64<(10),BS64*($F$20/2/10))) -> 1 | BU64: =SUM(BA64+BB64+BC64+BD64+BE64+BF64+BK64+BG64+BH64+BI64+BJ64+BL64+BM64+BN64+BT64) -> 19.68 | BV64: =+BU64*$H$9 -> 6.56 | BW64: 0 | BX64: =BW64/X64 -> 0 | BY64: =IF(BX64>0,IF(BX64>=$DC$28,$DA$28,IF(BX64<$DC$28,$DA$29,0)),0) -> 0 | BZ64: 3083.195613 | CA64: =BZ64/X64 -> 0.9977979329 | CB64: =IF(CA64,$F$23,0) -> 1 | CC64: =IF(DS64>0,$F$24,0) -> 1 | CD64: 1193.609521 | CE64: =CD64/X64 -> 0.3862813985 | CF64: =+IF(CE64>=$K$4,$F$25,0) -> 0 | CG64: 26.99029126 | CH64: =IF(CG64>0,IF(CG64>=100,$F$26,IF(CG64<100,$F$26/2)),0) -> 0.5 | CI64: =SUM(DW64) -> 1 | CJ64: =IF(EA64>0,$F$28,0) -> 1 | CK64: =IF(DX64>0,$F$29,0) -> 1 | CL64: =IF(EC64>0,$F$30,0) -> 1 | CM64: =SUM(BY64,CB64,CH64,CC64,CF64,CI64,CJ64,CK64,CL64) -> 6.5 | CN64: =+CM64*$H$22 -> 2.166666667 | CO64: =SUM(AY64,BU64,CM64) -> 41.18 | CP64: =SUM(AZ64,BV64,CN64) -> 13.72666667 | CQ64: =IF(D64<($Z$13*1785),1,IF(D64<(($Z$14+$Z$13)*1785),2,IF(D64<(($Z$15+$Z$13+$Z$14)*1785),3,4))) -> 1 | CR64: =VLOOKUP(A64,Taul1!$F$6:$G$1718,2,FALSE) ->  | DA64: 0 | DB64: 0 | DC64: 2 | DD64: =SUM(DA64:DC64) -> 2 | DE64: 0 | DF64: 3 | DG64: 1 | DH64: 9 | DI64: 1 | DJ64: 491 | DK64: 36 | DL64: 0 | DM64: 0 | DN64: 0 | DP64: 0 | DQ64: 11 | DR64: 0 | DS64: 2 | DT64: 1193.609521 | DU64: =+IF(AA64>$K$8,$F$27/2,0) -> 1 | DV64: =+IF(AA64/Y64>1.5,$F$27/2,0) -> 0 | DW64: =SUM(DU64:DV64) -> 1 | DX64: 1 | DY64: 0 | DZ64: 1 | EA64: =SUM(DY64:DZ64) -> 1 | EC64: 1 | ED64: 1 | EG64: 0
A65: =CONCATENATE(S65,"_",T65,"_",U65) -> 25_14_0 | B65: 1 | C65: =CONCATENATE(S65,"_",T65) -> 25_14 | D65: =RANK(CP65,$CP$37:$CP$1821) -> 29 | E65: 29 | F65: =E65-D65 -> 0 | G65: =CP65 -> 13.71222222 | H65: =AZ65 -> 5 | I65: =BV65 -> 6.545555556 | J65: =CN65 -> 2.166666667 | K65: =CQ65 -> 1 | L65: =B65-K65 -> 0 | M65: =HYPERLINK(CX65,"Gmaps") -> Gmaps | N65: =IF(Y65>$K$6,"LOPUT","VÄHÄ") -> LOPUT | O65: =IF(S65<40,"Valta",IF(S65<100,"Kanta",IF(S65<1000,"Seutu",IF(S65>999,"Yhdys")))) -> Valta | R65: Uusimaa | S65: 25 | T65: 14 | U65: 0 | V65: 14 | W65: 1991 | X65: 1991 | Y65: 9004 | Z65: 1007 | AA65: 11663 | AC65: 60 (21 %), 80 (72 %), 100 (7 %) | AF65: PK1 (99 %) | AI65: 0 | AJ65: 603 | AR65: =+IF(Y65>=$K$6,$F$5,($F$5/($K$6))*Y65) -> 9 | AS65: 182 | AV65: =+IF(AS65>=$L$15,$J$15,IF(AS65<($L$15),AS65*($J$15/($L$15)),)) -> 3 | AW65: 3772 | AX65: =+IF(AW65>=$L$11,$J$11,IF(AW65<($L$11),AW65*($J$11/($L$11)),)) -> 3 | AY65: =SUM(AR65,AV65,AX65) -> 15 | AZ65: =+AY65*$H$5 -> 5 | BA65: =+IF(Z65=0,0,IF(Z65>$K$7,$F$9,($F$9/$K$7)*Z65)) -> 8 | BB65: =IF(DD65>0,$F$10,0) -> 2 | BC65: =IF(DE65>0,$F$11,0) -> 0 | BD65: =IF(DF65>0,$F$12,0) -> 0 | BE65: =IF(DG65>0,$F$13,0) -> 0 | BF65: =IF(DI65>0,$F$14,IF(DH65>0,$F$14/2,0)) -> 2 | BG65: =+IF(DJ65>=$L$19,$J$19,IF(DJ65<($L$19),DJ65*($J$19/($L$19)),)) -> 0.1366666667 | BH65: =+IF(DK65>=$L$20,$J$20,IF(DK65<($L$20),DK65*($J$20/($L$20)),)) -> 0.5 | BI65: =+IF(DL65>=$L$21,$J$21,IF(DL65<($L$21),DL65*($J$21/($L$21)),)) -> 0 | BJ65: =+IF(DM65>=$L$22,$J$22,IF(DM65<($L$22),DM65*($J$22/($L$22)),)) -> 0 | BK65: =IF(DN65>0,$F$16,0) -> 2 | BL65: =+IF(DQ65>=$L$25,$J$25,IF(DQ65<($L$25),DQ65*($J$25/($L$25)),)) -> 2 | BM65: =IF(EG65>100000,$F$18,IF(EG65>0,$F$18/2,0)) -> 0 | BN65: =IF(ED65>0,$F$19,0) -> 2 | BO65: 10.841 | BP65: 11.1199 | BQ65: 11.426 | BR65: 5.87554 | BS65: 11.3023 | BT65: =IF(COUNTIF($I$29:$L$29,TRUE)=0,0,IF(SUMIF($I$29:$L$29,TRUE,BO65:BR65)/COUNTIF($I$29:$L$29,TRUE)>=$L$30,$F$20/2,$F$20/2*(SUMIF($I$29:$L$29,TRUE,BO65:BR65)/COUNTIF($I$29:$L$29,TRUE)/$L$30)))+IF(BS65>=10,$F$20/2,IF(BS65<(10),BS65*($F$20/2/10))) -> 1 | BU65: =SUM(BA65+BB65+BC65+BD65+BE65+BF65+BK65+BG65+BH65+BI65+BJ65+BL65+BM65+BN65+BT65) -> 19.63666667 | BV65: =+BU65*$H$9 -> 6.545555556 | BW65: 1010.857089 | BX65: =BW65/X65 -> 0.507713254 | BY65: =IF(BX65>0,IF(BX65>=$DC$28,$DA$28,IF(BX65<$DC$28,$DA$29,0)),0) -> 1 | BZ65: 1980.16303 | CA65: =BZ65/X65 -> 0.9945570218 | CB65: =IF(CA65,$F$23,0) -> 1 | CC65: =IF(DS65>0,$F$24,0) -> 1 | CD65: 483.3733488 | CE65: =CD65/X65 -> 0.2427791807 | CF65: =+IF(CE65>=$K$4,$F$25,0) -> 0 | CG65: 32.14465093 | CH65: =IF(CG65>0,IF(CG65>=100,$F$26,IF(CG65<100,$F$26/2)),0) -> 0.5 | CI65: =SUM(DW65) -> 1 | CJ65: =IF(EA65>0,$F$28,0) -> 0 | CK65: =IF(DX65>0,$F$29,0) -> 1 | CL65: =IF(EC65>0,$F$30,0) -> 1 | CM65: =SUM(BY65,CB65,CH65,CC65,CF65,CI65,CJ65,CK65,CL65) -> 6.5 | CN65: =+CM65*$H$22 -> 2.166666667 | CO65: =SUM(AY65,BU65,CM65) -> 41.13666667 | CP65: =SUM(AZ65,BV65,CN65) -> 13.71222222 | CQ65: =IF(D65<($Z$13*1785),1,IF(D65<(($Z$14+$Z$13)*1785),2,IF(D65<(($Z$15+$Z$13+$Z$14)*1785),3,4))) -> 1 | CR65: =VLOOKUP(A65,Taul1!$F$6:$G$1718,2,FALSE) ->  | DA65: 0 | DB65: 1 | DC65: 1 | DD65: =SUM(DA65:DC65) -> 2 | DE65: 0 | DF65: 0 | DG65: 0 | DH65: 5 | DI65: 1 | DJ65: 82 | DK65: 124 | DL65: 0 | DM65: 0 | DN65: 2 | DP65: 1010.857089 | DQ65: 6 | DR65: 0 | DS65: 5 | DT65: 483.3733488 | DU65: =+IF(AA65>$K$8,$F$27/2,0) -> 1 | DV65: =+IF(AA65/Y65>1.5,$F$27/2,0) -> 0 | DW65: =SUM(DU65:DV65) -> 1 | DX65: 1 | DY65: 0 | DZ65: 0 | EA65: =SUM(DY65:DZ65) -> 0 | EC65: 1 | ED65: 4 | EG65: 0
A66: =CONCATENATE(S66,"_",T66,"_",U66) -> 170_19_0 | B66: 1 | C66: =CONCATENATE(S66,"_",T66) -> 170_19 | D66: =RANK(CP66,$CP$37:$CP$1821) -> 30 | E66: 30 | F66: =E66-D66 -> 0 | G66: =CP66 -> 13.69037151 | H66: =AZ66 -> 5 | I66: =BV66 -> 5.690371511 | J66: =CN66 -> 3 | K66: =CQ66 -> 1 | L66: =B66-K66 -> 0 | M66: =HYPERLINK(CX66,"Gmaps") -> Gmaps | N66: =IF(Y66>$K$6,"LOPUT","VÄHÄ") -> LOPUT | O66: =IF(S66<40,"Valta",IF(S66<100,"Kanta",IF(S66<1000,"Seutu",IF(S66>999,"Yhdys")))) -> Seutu | R66: Uusimaa | S66: 170 | T66: 19 | U66: 0 | V66: 19 | W66: 949 | X66: 949 | Y66: 7110 | Z66: 414 | AA66: 7821 | AC66: 50 (99 %) | AF66: PK2 (99 %) | AI66: 0.105374078 | AJ66: 161 | AR66: =+IF(Y66>=$K$6,$F$5,($F$5/($K$6))*Y66) -> 9 | AS66: 64 | AV66: =+IF(AS66>=$L$15,$J$15,IF(AS66<($L$15),AS66*($J$15/($L$15)),)) -> 3 | AW66: 1709 | AX66: =+IF(AW66>=$L$11,$J$11,IF(AW66<($L$11),AW66*($J$11/($L$11)),)) -> 3 | AY66: =SUM(AR66,AV66,AX66) -> 15 | AZ66: =+AY66*$H$5 -> 5 | BA66: =+IF(Z66=0,0,IF(Z66>$K$7,$F$9,($F$9/$K$7)*Z66)) -> 8 | BB66: =IF(DD66>0,$F$10,0) -> 0 | BC66: =IF(DE66>0,$F$11,0) -> 1 | BD66: =IF(DF66>0,$F$12,0) -> 0 | BE66: =IF(DG66>0,$F$13,0) -> 0 | BF66: =IF(DI66>0,$F$14,IF(DH66>0,$F$14/2,0)) -> 2 | BG66: =+IF(DJ66>=$L$19,$J$19,IF(DJ66<($L$19),DJ66*($J$19/($L$19)),)) -> 0 | BH66: =+IF(DK66>=$L$20,$J$20,IF(DK66<($L$20),DK66*($J$20/($L$20)),)) -> 0 | BI66: =+IF(DL66>=$L$21,$J$21,IF(DL66<($L$21),DL66*($J$21/($L$21)),)) -> 0 | BJ66: =+IF(DM66>=$L$22,$J$22,IF(DM66<($L$22),DM66*($J$22/($L$22)),)) -> 0 | BK66: =IF(DN66>0,$F$16,0) -> 2 | BL66: =+IF(DQ66>=$L$25,$J$25,IF(DQ66<($L$25),DQ66*($J$25/($L$25)),)) -> 1.333333333 | BM66: =IF(EG66>100000,$F$18,IF(EG66>0,$F$18/2,0)) -> 0.5 | BN66: =IF(ED66>0,$F$19,0) -> 2 | BO66: 1.33376 | BP66: 0.936434 | BQ66: 0.657467 | BR66: 0.247928 | BS66: 2.80385 | BT66: =IF(COUNTIF($I$29:$L$29,TRUE)=0,0,IF(SUMIF($I$29:$L$29,TRUE,BO66:BR66)/COUNTIF($I$29:$L$29,TRUE)>=$L$30,$F$20/2,$F$20/2*(SUMIF($I$29:$L$29,TRUE,BO66:BR66)/COUNTIF($I$29:$L$29,TRUE)/$L$30)))+IF(BS66>=10,$F$20/2,IF(BS66<(10),BS66*($F$20/2/10))) -> 0.2377812 | BU66: =SUM(BA66+BB66+BC66+BD66+BE66+BF66+BK66+BG66+BH66+BI66+BJ66+BL66+BM66+BN66+BT66) -> 17.07111453 | BV66: =+BU66*$H$9 -> 5.690371511 | BW66: 936.5493878 | BX66: =BW66/X66 -> 0.9868802822 | BY66: =IF(BX66>0,IF(BX66>=$DC$28,$DA$28,IF(BX66<$DC$28,$DA$29,0)),0) -> 1 | BZ66: 936.5493878 | CA66: =BZ66/X66 -> 0.9868802822 | CB66: =IF(CA66,$F$23,0) -> 1 | CC66: =IF(DS66>0,$F$24,0) -> 1 | CD66: 936.5493878 | CE66: =CD66/X66 -> 0.9868802822 | CF66: =+IF(CE66>=$K$4,$F$25,0) -> 1 | CG66: 203.7934668 | CH66: =IF(CG66>0,IF(CG66>=100,$F$26,IF(CG66<100,$F$26/2)),0) -> 1 | CI66: =SUM(DW66) -> 1 | CJ66: =IF(EA66>0,$F$28,0) -> 1 | CK66: =IF(DX66>0,$F$29,0) -> 1 | CL66: =IF(EC66>0,$F$30,0) -> 1 | CM66: =SUM(BY66,CB66,CH66,CC66,CF66,CI66,CJ66,CK66,CL66) -> 9 | CN66: =+CM66*$H$22 -> 3 | CO66: =SUM(AY66,BU66,CM66) -> 41.07111453 | CP66: =SUM(AZ66,BV66,CN66) -> 13.69037151 | CQ66: =IF(D66<($Z$13*1785),1,IF(D66<(($Z$14+$Z$13)*1785),2,IF(D66<(($Z$15+$Z$13+$Z$14)*1785),3,4))) -> 1 | CR66: =VLOOKUP(A66,Taul1!$F$6:$G$1718,2,FALSE) ->  | DA66: 0 | DB66: 0 | DC66: 0 | DD66: =SUM(DA66:DC66) -> 0 | DE66: 2 | DF66: 0 | DG66: 0 | DH66: 4 | DI66: 3 | DJ66: 0 | DK66: 0 | DL66: 0 | DM66: 0 | DN66: 1 | DP66: 936.5493878 | DQ66: 2 | DR66: 1 | DS66: 2 | DT66: 936.5493878 | DU66: =+IF(AA66>$K$8,$F$27/2,0) -> 1 | DV66: =+IF(AA66/Y66>1.5,$F$27/2,0) -> 0 | DW66: =SUM(DU66:DV66) -> 1 | DX66: 2 | DY66: 0 | DZ66: 1 | EA66: =SUM(DY66:DZ66) -> 1 | EC66: 1 | ED66: 5 | EG66: 37753
A67: =CONCATENATE(S67,"_",T67,"_",U67) -> 152_1_0 | B67: 1 | C67: =CONCATENATE(S67,"_",T67) -> 152_1 | D67: =RANK(CP67,$CP$37:$CP$1821) -> 31 | E67: 31 | F67: =E67-D67 -> 0 | G67: =CP67 -> 13.68360542 | H67: =AZ67 -> 5 | I67: =BV67 -> 6.01693875 | J67: =CN67 -> 2.666666667 | K67: =CQ67 -> 1 | L67: =B67-K67 -> 0 | M67: =HYPERLINK(CX67,"Gmaps") -> Gmaps | N67: =IF(Y67>$K$6,"LOPUT","VÄHÄ") -> LOPUT | O67: =IF(S67<40,"Valta",IF(S67<100,"Kanta",IF(S67<1000,"Seutu",IF(S67>999,"Yhdys")))) -> Seutu | R67: Uusimaa | S67: 152 | T67: 1 | U67: 0 | V67: 1 | W67: 7468 | X67: 7468 | Y67: 12901 | Z67: 736 | AA67: 12335 | AC67: 50 (32 %), 60 (68 %) | AF67: PK2 (97 %) | AI67: 0.003154242456 | AJ67: 266 | AR67: =+IF(Y67>=$K$6,$F$5,($F$5/($K$6))*Y67) -> 9 | AS67: 3907 | AV67: =+IF(AS67>=$L$15,$J$15,IF(AS67<($L$15),AS67*($J$15/($L$15)),)) -> 3 | AW67: 18740 | AX67: =+IF(AW67>=$L$11,$J$11,IF(AW67<($L$11),AW67*($J$11/($L$11)),)) -> 3 | AY67: =SUM(AR67,AV67,AX67) -> 15 | AZ67: =+AY67*$H$5 -> 5 | BA67: =+IF(Z67=0,0,IF(Z67>$K$7,$F$9,($F$9/$K$7)*Z67)) -> 8 | BB67: =IF(DD67>0,$F$10,0) -> 0 | BC67: =IF(DE67>0,$F$11,0) -> 1 | BD67: =IF(DF67>0,$F$12,0) -> 0 | BE67: =IF(DG67>0,$F$13,0) -> 0 | BF67: =IF(DI67>0,$F$14,IF(DH67>0,$F$14/2,0)) -> 2 | BG67: =+IF(DJ67>=$L$19,$J$19,IF(DJ67<($L$19),DJ67*($J$19/($L$19)),)) -> 0 | BH67: =+IF(DK67>=$L$20,$J$20,IF(DK67<($L$20),DK67*($J$20/($L$20)),)) -> 0 | BI67: =+IF(DL67>=$L$21,$J$21,IF(DL67<($L$21),DL67*($J$21/($L$21)),)) -> 0 | BJ67: =+IF(DM67>=$L$22,$J$22,IF(DM67<($L$22),DM67*($J$22/($L$22)),)) -> 0 | BK67: =IF(DN67>0,$F$16,0) -> 2 | BL67: =+IF(DQ67>=$L$25,$J$25,IF(DQ67<($L$25),DQ67*($J$25/($L$25)),)) -> 2 | BM67: =IF(EG67>100000,$F$18,IF(EG67>0,$F$18/2,0)) -> 1 | BN67: =IF(ED67>0,$F$19,0) -> 2 | BO67: 0.142074 | BP67: 0.261465 | BQ67: 0.0948075 | BR67: 0.050404 | BS67: 0.684094 | BT67: =IF(COUNTIF($I$29:$L$29,TRUE)=0,0,IF(SUMIF($I$29:$L$29,TRUE,BO67:BR67)/COUNTIF($I$29:$L$29,TRUE)>=$L$30,$F$20/2,$F$20/2*(SUMIF($I$29:$L$29,TRUE,BO67:BR67)/COUNTIF($I$29:$L$29,TRUE)/$L$30)))+IF(BS67>=10,$F$20/2,IF(BS67<(10),BS67*($F$20/2/10))) -> 0.05081625 | BU67: =SUM(BA67+BB67+BC67+BD67+BE67+BF67+BK67+BG67+BH67+BI67+BJ67+BL67+BM67+BN67+BT67) -> 18.05081625 | BV67: =+BU67*$H$9 -> 6.01693875 | BW67: 7420.160068 | BX67: =BW67/X67 -> 0.9935940101 | BY67: =IF(BX67>0,IF(BX67>=$DC$28,$DA$28,IF(BX67<$DC$28,$DA$29,0)),0) -> 1 | BZ67: 7450.550747 | CA67: =BZ67/X67 -> 0.9976634637 | CB67: =IF(CA67,$F$23,0) -> 1 | CC67: =IF(DS67>0,$F$24,0) -> 1 | CD67: 7270.083882 | CE67: =CD67/X67 -> 0.9734981096 | CF67: =+IF(CE67>=$K$4,$F$25,0) -> 1 | CG67: 1561.111944 | CH67: =IF(CG67>0,IF(CG67>=100,$F$26,IF(CG67<100,$F$26/2)),0) -> 1 | CI67: =SUM(DW67) -> 1 | CJ67: =IF(EA67>0,$F$28,0) -> 0 | CK67: =IF(DX67>0,$F$29,0) -> 1 | CL67: =IF(EC67>0,$F$30,0) -> 1 | CM67: =SUM(BY67,CB67,CH67,CC67,CF67,CI67,CJ67,CK67,CL67) -> 8 | CN67: =+CM67*$H$22 -> 2.666666667 | CO67: =SUM(AY67,BU67,CM67) -> 41.05081625 | CP67: =SUM(AZ67,BV67,CN67) -> 13.68360542 | CQ67: =IF(D67<($Z$13*1785),1,IF(D67<(($Z$14+$Z$13)*1785),2,IF(D67<(($Z$15+$Z$13+$Z$14)*1785),3,4))) -> 1 | CR67: =VLOOKUP(A67,Taul1!$F$6:$G$1718,2,FALSE) ->  | DA67: 0 | DB67: 0 | DC67: 0 | DD67: =SUM(DA67:DC67) -> 0 | DE67: 1 | DF67: 0 | DG67: 0 | DH67: 4 | DI67: 3 | DJ67: 0 | DK67: 0 | DL67: 0 | DM67: 0 | DN67: 2 | DP67: 7420.160068 | DQ67: 43 | DR67: 2 | DS67: 15 | DT67: 7270.083882 | DU67: =+IF(AA67>$K$8,$F$27/2,0) -> 1 | DV67: =+IF(AA67/Y67>1.5,$F$27/2,0) -> 0 | DW67: =SUM(DU67:DV67) -> 1 | DX67: 3 | DY67: 0 | DZ67: 0 | EA67: =SUM(DY67:DZ67) -> 0 | EC67: 1 | ED67: 8 | EG67: 160640
A68: =CONCATENATE(S68,"_",T68,"_",U68) -> 12_223_0 | B68: 1 | C68: =CONCATENATE(S68,"_",T68) -> 12_223 | D68: =RANK(CP68,$CP$37:$CP$1821) -> 32 | E68: 32 | F68: =E68-D68 -> 0 | G68: =CP68 -> 13.67361353 | H68: =AZ68 -> 5 | I68: =BV68 -> 6.673613533 | J68: =CN68 -> 2 | K68: =CQ68 -> 1 | L68: =B68-K68 -> 0 | M68: =HYPERLINK(CX68,"Gmaps") -> Gmaps | N68: =IF(Y68>$K$6,"LOPUT","VÄHÄ") -> LOPUT | O68: =IF(S68<40,"Valta",IF(S68<100,"Kanta",IF(S68<1000,"Seutu",IF(S68>999,"Yhdys")))) -> Valta | R68: Päijät-Häme | S68: 12 | T68: 223 | U68: 0 | V68: 223 | W68: 4573 | X68: 4573 | Y68: 12157 | Z68: 1254 | AA68: 13572 | AC68: 80 (101 %) | AF68: PK1 (100 %) | AI68: 0 | AJ68: 756 | AR68: =+IF(Y68>=$K$6,$F$5,($F$5/($K$6))*Y68) -> 9 | AS68: 1605 | AV68: =+IF(AS68>=$L$15,$J$15,IF(AS68<($L$15),AS68*($J$15/($L$15)),)) -> 3 | AW68: 5219 | AX68: =+IF(AW68>=$L$11,$J$11,IF(AW68<($L$11),AW68*($J$11/($L$11)),)) -> 3 | AY68: =SUM(AR68,AV68,AX68) -> 15 | AZ68: =+AY68*$H$5 -> 5 | BA68: =+IF(Z68=0,0,IF(Z68>$K$7,$F$9,($F$9/$K$7)*Z68)) -> 8 | BB68: =IF(DD68>0,$F$10,0) -> 2 | BC68: =IF(DE68>0,$F$11,0) -> 1 | BD68: =IF(DF68>0,$F$12,0) -> 0 | BE68: =IF(DG68>0,$F$13,0) -> 0 | BF68: =IF(DI68>0,$F$14,IF(DH68>0,$F$14/2,0)) -> 2 | BG68: =+IF(DJ68>=$L$19,$J$19,IF(DJ68<($L$19),DJ68*($J$19/($L$19)),)) -> 0 | BH68: =+IF(DK68>=$L$20,$J$20,IF(DK68<($L$20),DK68*($J$20/($L$20)),)) -> 0 | BI68: =+IF(DL68>=$L$21,$J$21,IF(DL68<($L$21),DL68*($J$21/($L$21)),)) -> 0 | BJ68: =+IF(DM68>=$L$22,$J$22,IF(DM68<($L$22),DM68*($J$22/($L$22)),)) -> 0 | BK68: =IF(DN68>0,$F$16,0) -> 2 | BL68: =+IF(DQ68>=$L$25,$J$25,IF(DQ68<($L$25),DQ68*($J$25/($L$25)),)) -> 2 | BM68: =IF(EG68>100000,$F$18,IF(EG68>0,$F$18/2,0)) -> 0.5 | BN68: =IF(ED68>0,$F$19,0) -> 2 | BO68: 4.31952 | BP68: 13.6228 | BQ68: 11.891 | BR68: 13.0387 | BS68: 0.416812 | BT68: =IF(COUNTIF($I$29:$L$29,TRUE)=0,0,IF(SUMIF($I$29:$L$29,TRUE,BO68:BR68)/COUNTIF($I$29:$L$29,TRUE)>=$L$30,$F$20/2,$F$20/2*(SUMIF($I$29:$L$29,TRUE,BO68:BR68)/COUNTIF($I$29:$L$29,TRUE)/$L$30)))+IF(BS68>=10,$F$20/2,IF(BS68<(10),BS68*($F$20/2/10))) -> 0.5208406 | BU68: =SUM(BA68+BB68+BC68+BD68+BE68+BF68+BK68+BG68+BH68+BI68+BJ68+BL68+BM68+BN68+BT68) -> 20.0208406 | BV68: =+BU68*$H$9 -> 6.673613533 | BW68: 4557.805621 | BX68: =BW68/X68 -> 0.9966773717 | BY68: =IF(BX68>0,IF(BX68>=$DC$28,$DA$28,IF(BX68<$DC$28,$DA$29,0)),0) -> 1 | BZ68: 0 | CA68: =BZ68/X68 -> 0 | CB68: =IF(CA68,$F$23,0) -> 0 | CC68: =IF(DS68>0,$F$24,0) -> 1 | CD68: 3460.999278 | CE68: =CD68/X68 -> 0.7568334305 | CF68: =+IF(CE68>=$K$4,$F$25,0) -> 1 | CG68: 627.9247759 | CH68: =IF(CG68>0,IF(CG68>=100,$F$26,IF(CG68<100,$F$26/2)),0) -> 1 | CI68: =SUM(DW68) -> 1 | CJ68: =IF(EA68>0,$F$28,0) -> 0 | CK68: =IF(DX68>0,$F$29,0) -> 0 | CL68: =IF(EC68>0,$F$30,0) -> 1 | CM68: =SUM(BY68,CB68,CH68,CC68,CF68,CI68,CJ68,CK68,CL68) -> 6 | CN68: =+CM68*$H$22 -> 2 | CO68: =SUM(AY68,BU68,CM68) -> 41.0208406 | CP68: =SUM(AZ68,BV68,CN68) -> 13.67361353 | CQ68: =IF(D68<($Z$13*1785),1,IF(D68<(($Z$14+$Z$13)*1785),2,IF(D68<(($Z$15+$Z$13+$Z$14)*1785),3,4))) -> 1 | CR68: =VLOOKUP(A68,Taul1!$F$6:$G$1718,2,FALSE) ->  | DA68: 0 | DB68: 0 | DC68: 7 | DD68: =SUM(DA68:DC68) -> 7 | DE68: 4 | DF68: 0 | DG68: 0 | DH68: 0 | DI68: 1 | DJ68: 0 | DK68: 0 | DL68: 0 | DM68: 0 | DN68: 1 | DP68: 4557.805621 | DQ68: 19 | DR68: 1 | DS68: 19 | DT68: 3460.999278 | DU68: =+IF(AA68>$K$8,$F$27/2,0) -> 1 | DV68: =+IF(AA68/Y68>1.5,$F$27/2,0) -> 0 | DW68: =SUM(DU68:DV68) -> 1 | DX68: 0 | DY68: 0 | DZ68: 0 | EA68: =SUM(DY68:DZ68) -> 0 | EC68: 1 | ED68: 9 | EG68: 47866
A69: =CONCATENATE(S69,"_",T69,"_",U69) -> 55_3_0 | B69: 1 | C69: =CONCATENATE(S69,"_",T69) -> 55_3 | D69: =RANK(CP69,$CP$37:$CP$1821) -> 33 | E69: 33 | F69: =E69-D69 -> 0 | G69: =CP69 -> 13.63615178 | H69: =AZ69 -> 4.575 | I69: =BV69 -> 6.894485111 | J69: =CN69 -> 2.166666667 | K69: =CQ69 -> 1 | L69: =B69-K69 -> 0 | M69: =HYPERLINK(CX69,"Gmaps") -> Gmaps | N69: =IF(Y69>$K$6,"LOPUT","VÄHÄ") -> LOPUT | O69: =IF(S69<40,"Valta",IF(S69<100,"Kanta",IF(S69<1000,"Seutu",IF(S69>999,"Yhdys")))) -> Kanta | R69: Uusimaa | S69: 55 | T69: 3 | U69: 0 | V69: 3 | W69: 15082 | X69: 15082 | Y69: 3800 | Z69: 442 | AA69: 4109 | AC69: 60 (1 %), 80 (19 %), 100 (80 %) | AF69: PK1 (100 %) | AI69: 0 | AJ69: 255 | AR69: =+IF(Y69>=$K$6,$F$5,($F$5/($K$6))*Y69) -> 9 | AS69: 23 | AV69: =+IF(AS69>=$L$15,$J$15,IF(AS69<($L$15),AS69*($J$15/($L$15)),)) -> 1.725 | AW69: 1942 | AX69: =+IF(AW69>=$L$11,$J$11,IF(AW69<($L$11),AW69*($J$11/($L$11)),)) -> 3 | AY69: =SUM(AR69,AV69,AX69) -> 13.725 | AZ69: =+AY69*$H$5 -> 4.575 | BA69: =+IF(Z69=0,0,IF(Z69>$K$7,$F$9,($F$9/$K$7)*Z69)) -> 8 | BB69: =IF(DD69>0,$F$10,0) -> 2 | BC69: =IF(DE69>0,$F$11,0) -> 1 | BD69: =IF(DF69>0,$F$12,0) -> 1 | BE69: =IF(DG69>0,$F$13,0) -> 0 | BF69: =IF(DI69>0,$F$14,IF(DH69>0,$F$14/2,0)) -> 1 | BG69: =+IF(DJ69>=$L$19,$J$19,IF(DJ69<($L$19),DJ69*($J$19/($L$19)),)) -> 0.5 | BH69: =+IF(DK69>=$L$20,$J$20,IF(DK69<($L$20),DK69*($J$20/($L$20)),)) -> 0.355 | BI69: =+IF(DL69>=$L$21,$J$21,IF(DL69<($L$21),DL69*($J$21/($L$21)),)) -> 0 | BJ69: =+IF(DM69>=$L$22,$J$22,IF(DM69<($L$22),DM69*($J$22/($L$22)),)) -> 0 | BK69: =IF(DN69>0,$F$16,0) -> 2 | BL69: =+IF(DQ69>=$L$25,$J$25,IF(DQ69<($L$25),DQ69*($J$25/($L$25)),)) -> 2 | BM69: =IF(EG69>100000,$F$18,IF(EG69>0,$F$18/2,0)) -> 0 | BN69: =IF(ED69>0,$F$19,0) -> 2 | BO69: 3.5449 | BP69: 3.0699 | BQ69: 3.23886 | BR69: 2.55628 | BS69: 11.5853 | BT69: =IF(COUNTIF($I$29:$L$29,TRUE)=0,0,IF(SUMIF($I$29:$L$29,TRUE,BO69:BR69)/COUNTIF($I$29:$L$29,TRUE)>=$L$30,$F$20/2,$F$20/2*(SUMIF($I$29:$L$29,TRUE,BO69:BR69)/COUNTIF($I$29:$L$29,TRUE)/$L$30)))+IF(BS69>=10,$F$20/2,IF(BS69<(10),BS69*($F$20/2/10))) -> 0.8284553333 | BU69: =SUM(BA69+BB69+BC69+BD69+BE69+BF69+BK69+BG69+BH69+BI69+BJ69+BL69+BM69+BN69+BT69) -> 20.68345533 | BV69: =+BU69*$H$9 -> 6.894485111 | BW69: 7892.69238 | BX69: =BW69/X69 -> 0.5233186832 | BY69: =IF(BX69>0,IF(BX69>=$DC$28,$DA$28,IF(BX69<$DC$28,$DA$29,0)),0) -> 1 | BZ69: 15079.14529 | CA69: =BZ69/X69 -> 0.9998107207 | CB69: =IF(CA69,$F$23,0) -> 1 | CC69: =IF(DS69>0,$F$24,0) -> 1 | CD69: 1720.806629 | CE69: =CD69/X69 -> 0.1140967132 | CF69: =+IF(CE69>=$K$4,$F$25,0) -> 0 | CG69: 45.51279671 | CH69: =IF(CG69>0,IF(CG69>=100,$F$26,IF(CG69<100,$F$26/2)),0) -> 0.5 | CI69: =SUM(DW69) -> 1 | CJ69: =IF(EA69>0,$F$28,0) -> 0 | CK69: =IF(DX69>0,$F$29,0) -> 1 | CL69: =IF(EC69>0,$F$30,0) -> 1 | CM69: =SUM(BY69,CB69,CH69,CC69,CF69,CI69,CJ69,CK69,CL69) -> 6.5 | CN69: =+CM69*$H$22 -> 2.166666667 | CO69: =SUM(AY69,BU69,CM69) -> 40.90845533 | CP69: =SUM(AZ69,BV69,CN69) -> 13.63615178 | CQ69: =IF(D69<($Z$13*1785),1,IF(D69<(($Z$14+$Z$13)*1785),2,IF(D69<(($Z$15+$Z$13+$Z$14)*1785),3,4))) -> 1 | CR69: =VLOOKUP(A69,Taul1!$F$6:$G$1718,2,FALSE) ->  | DA69: 0 | DB69: 1 | DC69: 14 | DD69: =SUM(DA69:DC69) -> 15 | DE69: 1 | DF69: 4 | DG69: 0 | DH69: 65 | DI69: 0 | DJ69: 796 | DK69: 71 | DL69: 0 | DM69: 0 | DN69: 1 | DP69: 7892.69238 | DQ69: 16 | DR69: 0 | DS69: 2 | DT69: 1720.806629 | DU69: =+IF(AA69>$K$8,$F$27/2,0) -> 1 | DV69: =+IF(AA69/Y69>1.5,$F$27/2,0) -> 0 | DW69: =SUM(DU69:DV69) -> 1 | DX69: 1 | DY69: 0 | DZ69: 0 | EA69: =SUM(DY69:DZ69) -> 0 | EC69: 1 | ED69: 2 | EG69: 0
A70: =CONCATENATE(S70,"_",T70,"_",U70) -> 140_30_0 | B70: 1 | C70: =CONCATENATE(S70,"_",T70) -> 140_30 | D70: =RANK(CP70,$CP$37:$CP$1821) -> 34 | E70: 34 | F70: =E70-D70 -> 0 | G70: =CP70 -> 13.58439589 | H70: =AZ70 -> 5 | I70: =BV70 -> 5.584395889 | J70: =CN70 -> 3 | K70: =CQ70 -> 1 | L70: =B70-K70 -> 0 | M70: =HYPERLINK(CX70,"Gmaps") -> Gmaps | N70: =IF(Y70>$K$6,"LOPUT","VÄHÄ") -> LOPUT | O70: =IF(S70<40,"Valta",IF(S70<100,"Kanta",IF(S70<1000,"Seutu",IF(S70>999,"Yhdys")))) -> Seutu | R70: Päijät-Häme | S70: 140 | T70: 30 | U70: 0 | V70: 30 | W70: 4366 | X70: 4366 | Y70: 3710 | Z70: 179 | AA70: 4103 | AC70: 60 (20 %), 70 (80 %) | AF70: PK2 (99 %) | AI70: 0.1570210857 | AJ70: 57 | AR70: =+IF(Y70>=$K$6,$F$5,($F$5/($K$6))*Y70) -> 9 | AS70: 489 | AV70: =+IF(AS70>=$L$15,$J$15,IF(AS70<($L$15),AS70*($J$15/($L$15)),)) -> 3 | AW70: 2071 | AX70: =+IF(AW70>=$L$11,$J$11,IF(AW70<($L$11),AW70*($J$11/($L$11)),)) -> 3 | AY70: =SUM(AR70,AV70,AX70) -> 15 | AZ70: =+AY70*$H$5 -> 5 | BA70: =+IF(Z70=0,0,IF(Z70>$K$7,$F$9,($F$9/$K$7)*Z70)) -> 8 | BB70: =IF(DD70>0,$F$10,0) -> 0 | BC70: =IF(DE70>0,$F$11,0) -> 1 | BD70: =IF(DF70>0,$F$12,0) -> 1 | BE70: =IF(DG70>0,$F$13,0) -> 0 | BF70: =IF(DI70>0,$F$14,IF(DH70>0,$F$14/2,0)) -> 2 | BG70: =+IF(DJ70>=$L$19,$J$19,IF(DJ70<($L$19),DJ70*($J$19/($L$19)),)) -> 0 | BH70: =+IF(DK70>=$L$20,$J$20,IF(DK70<($L$20),DK70*($J$20/($L$20)),)) -> 0 | BI70: =+IF(DL70>=$L$21,$J$21,IF(DL70<($L$21),DL70*($J$21/($L$21)),)) -> 0 | BJ70: =+IF(DM70>=$L$22,$J$22,IF(DM70<($L$22),DM70*($J$22/($L$22)),)) -> 0 | BK70: =IF(DN70>0,$F$16,0) -> 0 | BL70: =+IF(DQ70>=$L$25,$J$25,IF(DQ70<($L$25),DQ70*($J$25/($L$25)),)) -> 2 | BM70: =IF(EG70>100000,$F$18,IF(EG70>0,$F$18/2,0)) -> 0 | BN70: =IF(ED70>0,$F$19,0) -> 2 | BO70: 2.64412 | BP70: 2.33198 | BQ70: 2.61953 | BR70: 1.08946 | BS70: 16.675 | BT70: =IF(COUNTIF($I$29:$L$29,TRUE)=0,0,IF(SUMIF($I$29:$L$29,TRUE,BO70:BR70)/COUNTIF($I$29:$L$29,TRUE)>=$L$30,$F$20/2,$F$20/2*(SUMIF($I$29:$L$29,TRUE,BO70:BR70)/COUNTIF($I$29:$L$29,TRUE)/$L$30)))+IF(BS70>=10,$F$20/2,IF(BS70<(10),BS70*($F$20/2/10))) -> 0.7531876667 | BU70: =SUM(BA70+BB70+BC70+BD70+BE70+BF70+BK70+BG70+BH70+BI70+BJ70+BL70+BM70+BN70+BT70) -> 16.75318767 | BV70: =+BU70*$H$9 -> 5.584395889 | BW70: 4365.937924 | BX70: =BW70/X70 -> 0.999985782 | BY70: =IF(BX70>0,IF(BX70>=$DC$28,$DA$28,IF(BX70<$DC$28,$DA$29,0)),0) -> 1 | BZ70: 4365.937924 | CA70: =BZ70/X70 -> 0.999985782 | CB70: =IF(CA70,$F$23,0) -> 1 | CC70: =IF(DS70>0,$F$24,0) -> 1 | CD70: 3923.816716 | CE70: =CD70/X70 -> 0.8987211902 | CF70: =+IF(CE70>=$K$4,$F$25,0) -> 1 | CG70: 265.5519927 | CH70: =IF(CG70>0,IF(CG70>=100,$F$26,IF(CG70<100,$F$26/2)),0) -> 1 | CI70: =SUM(DW70) -> 1 | CJ70: =IF(EA70>0,$F$28,0) -> 1 | CK70: =IF(DX70>0,$F$29,0) -> 1 | CL70: =IF(EC70>0,$F$30,0) -> 1 | CM70: =SUM(BY70,CB70,CH70,CC70,CF70,CI70,CJ70,CK70,CL70) -> 9 | CN70: =+CM70*$H$22 -> 3 | CO70: =SUM(AY70,BU70,CM70) -> 40.75318767 | CP70: =SUM(AZ70,BV70,CN70) -> 13.58439589 | CQ70: =IF(D70<($Z$13*1785),1,IF(D70<(($Z$14+$Z$13)*1785),2,IF(D70<(($Z$15+$Z$13+$Z$14)*1785),3,4))) -> 1 | CR70: =VLOOKUP(A70,Taul1!$F$6:$G$1718,2,FALSE) ->  | DA70: 0 | DB70: 0 | DC70: 0 | DD70: =SUM(DA70:DC70) -> 0 | DE70: 1 | DF70: 1 | DG70: 0 | DH70: 1 | DI70: 2 | DJ70: 0 | DK70: 0 | DL70: 0 | DM70: 0 | DN70: 0 | DP70: 4365.937924 | DQ70: 4 | DR70: 0 | DS70: 3 | DT70: 3923.816716 | DU70: =+IF(AA70>$K$8,$F$27/2,0) -> 1 | DV70: =+IF(AA70/Y70>1.5,$F$27/2,0) -> 0 | DW70: =SUM(DU70:DV70) -> 1 | DX70: 1 | DY70: 0 | DZ70: 1 | EA70: =SUM(DY70:DZ70) -> 1 | EC70: 1 | ED70: 1 | EG70: 0
A71: =CONCATENATE(S71,"_",T71,"_",U71) -> 51_8_0 | B71: 1 | C71: =CONCATENATE(S71,"_",T71) -> 51_8 | D71: =RANK(CP71,$CP$37:$CP$1821) -> 35 | E71: 35 | F71: =E71-D71 -> 0 | G71: =CP71 -> 13.5550279 | H71: =AZ71 -> 5 | I71: =BV71 -> 5.888361233 | J71: =CN71 -> 2.666666667 | K71: =CQ71 -> 1 | L71: =B71-K71 -> 0 | M71: =HYPERLINK(CX71,"Gmaps") -> Gmaps | N71: =IF(Y71>$K$6,"LOPUT","VÄHÄ") -> LOPUT | O71: =IF(S71<40,"Valta",IF(S71<100,"Kanta",IF(S71<1000,"Seutu",IF(S71>999,"Yhdys")))) -> Kanta | R71: Uusimaa | S71: 51 | T71: 8 | U71: 0 | V71: 8 | W71: 5930 | X71: 5930 | Y71: 26032 | Z71: 1234 | AA71: 28796 | AC71: 80 (13 %), 100 (87 %) | AF71: PK1 (100 %) | AI71: 0.1096121417 | AJ71: 589 | AR71: =+IF(Y71>=$K$6,$F$5,($F$5/($K$6))*Y71) -> 9 | AS71: 820 | AV71: =+IF(AS71>=$L$15,$J$15,IF(AS71<($L$15),AS71*($J$15/($L$15)),)) -> 3 | AW71: 12592 | AX71: =+IF(AW71>=$L$11,$J$11,IF(AW71<($L$11),AW71*($J$11/($L$11)),)) -> 3 | AY71: =SUM(AR71,AV71,AX71) -> 15 | AZ71: =+AY71*$H$5 -> 5 | BA71: =+IF(Z71=0,0,IF(Z71>$K$7,$F$9,($F$9/$K$7)*Z71)) -> 8 | BB71: =IF(DD71>0,$F$10,0) -> 2 | BC71: =IF(DE71>0,$F$11,0) -> 0 | BD71: =IF(DF71>0,$F$12,0) -> 0 | BE71: =IF(DG71>0,$F$13,0) -> 0 | BF71: =IF(DI71>0,$F$14,IF(DH71>0,$F$14/2,0)) -> 2 | BG71: =+IF(DJ71>=$L$19,$J$19,IF(DJ71<($L$19),DJ71*($J$19/($L$19)),)) -> 0.2616666667 | BH71: =+IF(DK71>=$L$20,$J$20,IF(DK71<($L$20),DK71*($J$20/($L$20)),)) -> 0.5 | BI71: =+IF(DL71>=$L$21,$J$21,IF(DL71<($L$21),DL71*($J$21/($L$21)),)) -> 0 | BJ71: =+IF(DM71>=$L$22,$J$22,IF(DM71<($L$22),DM71*($J$22/($L$22)),)) -> 0 | BK71: =IF(DN71>0,$F$16,0) -> 0 | BL71: =+IF(DQ71>=$L$25,$J$25,IF(DQ71<($L$25),DQ71*($J$25/($L$25)),)) -> 2 | BM71: =IF(EG71>100000,$F$18,IF(EG71>0,$F$18/2,0)) -> 0.5 | BN71: =IF(ED71>0,$F$19,0) -> 2 | BO71: 1.02523 | BP71: 1.13555 | BQ71: 0.572011 | BR71: 0.118312 | BS71: 6.24648 | BT71: =IF(COUNTIF($I$29:$L$29,TRUE)=0,0,IF(SUMIF($I$29:$L$29,TRUE,BO71:BR71)/COUNTIF($I$29:$L$29,TRUE)>=$L$30,$F$20/2,$F$20/2*(SUMIF($I$29:$L$29,TRUE,BO71:BR71)/COUNTIF($I$29:$L$29,TRUE)/$L$30)))+IF(BS71>=10,$F$20/2,IF(BS71<(10),BS71*($F$20/2/10))) -> 0.4034170333 | BU71: =SUM(BA71+BB71+BC71+BD71+BE71+BF71+BK71+BG71+BH71+BI71+BJ71+BL71+BM71+BN71+BT71) -> 17.6650837 | BV71: =+BU71*$H$9 -> 5.888361233 | BW71: 5244.606552 | BX71: =BW71/X71 -> 0.8844193174 | BY71: =IF(BX71>0,IF(BX71>=$DC$28,$DA$28,IF(BX71<$DC$28,$DA$29,0)),0) -> 1 | BZ71: 4323.927714 | CA71: =BZ71/X71 -> 0.7291615032 | CB71: =IF(CA71,$F$23,0) -> 1 | CC71: =IF(DS71>0,$F$24,0) -> 1 | CD71: 3595.981726 | CE71: =CD71/X71 -> 0.6064050129 | CF71: =+IF(CE71>=$K$4,$F$25,0) -> 1 | CG71: 367.4013491 | CH71: =IF(CG71>0,IF(CG71>=100,$F$26,IF(CG71<100,$F$26/2)),0) -> 1 | CI71: =SUM(DW71) -> 1 | CJ71: =IF(EA71>0,$F$28,0) -> 0 | CK71: =IF(DX71>0,$F$29,0) -> 1 | CL71: =IF(EC71>0,$F$30,0) -> 1 | CM71: =SUM(BY71,CB71,CH71,CC71,CF71,CI71,CJ71,CK71,CL71) -> 8 | CN71: =+CM71*$H$22 -> 2.666666667 | CO71: =SUM(AY71,BU71,CM71) -> 40.6650837 | CP71: =SUM(AZ71,BV71,CN71) -> 13.5550279 | CQ71: =IF(D71<($Z$13*1785),1,IF(D71<(($Z$14+$Z$13)*1785),2,IF(D71<(($Z$15+$Z$13+$Z$14)*1785),3,4))) -> 1 | CR71: =VLOOKUP(A71,Taul1!$F$6:$G$1718,2,FALSE) ->  | DA71: 0 | DB71: 1 | DC71: 0 | DD71: =SUM(DA71:DC71) -> 1 | DE71: 0 | DF71: 0 | DG71: 0 | DH71: 12 | DI71: 2 | DJ71: 157 | DK71: 102 | DL71: 0 | DM71: 0 | DN71: 0 | DP71: 5244.606552 | DQ71: 18 | DR71: 1 | DS71: 4 | DT71: 3595.981726 | DU71: =+IF(AA71>$K$8,$F$27/2,0) -> 1 | DV71: =+IF(AA71/Y71>1.5,$F$27/2,0) -> 0 | DW71: =SUM(DU71:DV71) -> 1 | DX71: 6 | DY71: 0 | DZ71: 0 | EA71: =SUM(DY71:DZ71) -> 0 | EC71: 1 | ED71: 2 | EG71: 10747
A72: =CONCATENATE(S72,"_",T72,"_",U72) -> 10_25_0 | B72: 1 | C72: =CONCATENATE(S72,"_",T72) -> 10_25 | D72: =RANK(CP72,$CP$37:$CP$1821) -> 36 | E72: 36 | F72: =E72-D72 -> 0 | G72: =CP72 -> 13.46023917 | H72: =AZ72 -> 5 | I72: =BV72 -> 6.2935725 | J72: =CN72 -> 2.166666667 | K72: =CQ72 -> 1 | L72: =B72-K72 -> 0 | M72: =HYPERLINK(CX72,"Gmaps") -> Gmaps | N72: =IF(Y72>$K$6,"LOPUT","VÄHÄ") -> LOPUT | O72: =IF(S72<40,"Valta",IF(S72<100,"Kanta",IF(S72<1000,"Seutu",IF(S72>999,"Yhdys")))) -> Valta | R72: Kanta-Häme | S72: 10 | T72: 25 | U72: 0 | V72: 25 | W72: 6298 | X72: 6298 | Y72: 8754 | Z72: 724 | AA72: 9815 | AC72: 50 (3 %), 60 (6 %), 70 (36 %), 80 (55 %) | AF72: PK1 (100 %) | AI72: 0.3073131254 | AJ72: 372 | AR72: =+IF(Y72>=$K$6,$F$5,($F$5/($K$6))*Y72) -> 9 | AS72: 173 | AV72: =+IF(AS72>=$L$15,$J$15,IF(AS72<($L$15),AS72*($J$15/($L$15)),)) -> 3 | AW72: 9046 | AX72: =+IF(AW72>=$L$11,$J$11,IF(AW72<($L$11),AW72*($J$11/($L$11)),)) -> 3 | AY72: =SUM(AR72,AV72,AX72) -> 15 | AZ72: =+AY72*$H$5 -> 5 | BA72: =+IF(Z72=0,0,IF(Z72>$K$7,$F$9,($F$9/$K$7)*Z72)) -> 8 | BB72: =IF(DD72>0,$F$10,0) -> 2 | BC72: =IF(DE72>0,$F$11,0) -> 1 | BD72: =IF(DF72>0,$F$12,0) -> 0 | BE72: =IF(DG72>0,$F$13,0) -> 0 | BF72: =IF(DI72>0,$F$14,IF(DH72>0,$F$14/2,0)) -> 2 | BG72: =+IF(DJ72>=$L$19,$J$19,IF(DJ72<($L$19),DJ72*($J$19/($L$19)),)) -> 0 | BH72: =+IF(DK72>=$L$20,$J$20,IF(DK72<($L$20),DK72*($J$20/($L$20)),)) -> 0 | BI72: =+IF(DL72>=$L$21,$J$21,IF(DL72<($L$21),DL72*($J$21/($L$21)),)) -> 0 | BJ72: =+IF(DM72>=$L$22,$J$22,IF(DM72<($L$22),DM72*($J$22/($L$22)),)) -> 0 | BK72: =IF(DN72>0,$F$16,0) -> 0 | BL72: =+IF(DQ72>=$L$25,$J$25,IF(DQ72<($L$25),DQ72*($J$25/($L$25)),)) -> 2 | BM72: =IF(EG72>100000,$F$18,IF(EG72>0,$F$18/2,0)) -> 1 | BN72: =IF(ED72>0,$F$19,0) -> 2 | BO72: 12.263 | BP72: 14.8027 | BQ72: 10.3785 | BR72: 6.27875 | BS72: 7.61435 | BT72: =IF(COUNTIF($I$29:$L$29,TRUE)=0,0,IF(SUMIF($I$29:$L$29,TRUE,BO72:BR72)/COUNTIF($I$29:$L$29,TRUE)>=$L$30,$F$20/2,$F$20/2*(SUMIF($I$29:$L$29,TRUE,BO72:BR72)/COUNTIF($I$29:$L$29,TRUE)/$L$30)))+IF(BS72>=10,$F$20/2,IF(BS72<(10),BS72*($F$20/2/10))) -> 0.8807175 | BU72: =SUM(BA72+BB72+BC72+BD72+BE72+BF72+BK72+BG72+BH72+BI72+BJ72+BL72+BM72+BN72+BT72) -> 18.8807175 | BV72: =+BU72*$H$9 -> 6.2935725 | BW72: 5382.134028 | BX72: =BW72/X72 -> 0.8545782833 | BY72: =IF(BX72>0,IF(BX72>=$DC$28,$DA$28,IF(BX72<$DC$28,$DA$29,0)),0) -> 1 | BZ72: 6287.747689 | CA72: =BZ72/X72 -> 0.9983721322 | CB72: =IF(CA72,$F$23,0) -> 1 | CC72: =IF(DS72>0,$F$24,0) -> 1 | CD72: 1851.955226 | CE72: =CD72/X72 -> 0.2940544976 | CF72: =+IF(CE72>=$K$4,$F$25,0) -> 0 | CG72: 33.99682439 | CH72: =IF(CG72>0,IF(CG72>=100,$F$26,IF(CG72<100,$F$26/2)),0) -> 0.5 | CI72: =SUM(DW72) -> 1 | CJ72: =IF(EA72>0,$F$28,0) -> 0 | CK72: =IF(DX72>0,$F$29,0) -> 1 | CL72: =IF(EC72>0,$F$30,0) -> 1 | CM72: =SUM(BY72,CB72,CH72,CC72,CF72,CI72,CJ72,CK72,CL72) -> 6.5 | CN72: =+CM72*$H$22 -> 2.166666667 | CO72: =SUM(AY72,BU72,CM72) -> 40.3807175 | CP72: =SUM(AZ72,BV72,CN72) -> 13.46023917 | CQ72: =IF(D72<($Z$13*1785),1,IF(D72<(($Z$14+$Z$13)*1785),2,IF(D72<(($Z$15+$Z$13+$Z$14)*1785),3,4))) -> 1 | CR72: =VLOOKUP(A72,Taul1!$F$6:$G$1718,2,FALSE) ->  | DA72: 0 | DB72: 0 | DC72: 1 | DD72: =SUM(DA72:DC72) -> 1 | DE72: 4 | DF72: 0 | DG72: 0 | DH72: 3 | DI72: 1 | DJ72: 0 | DK72: 0 | DL72: 0 | DM72: 0 | DN72: 0 | DP72: 5382.134028 | DQ72: 17 | DR72: 4 | DS72: 44 | DT72: 1851.955226 | DU72: =+IF(AA72>$K$8,$F$27/2,0) -> 1 | DV72: =+IF(AA72/Y72>1.5,$F$27/2,0) -> 0 | DW72: =SUM(DU72:DV72) -> 1 | DX72: 1 | DY72: 0 | DZ72: 0 | EA72: =SUM(DY72:DZ72) -> 0 | EC72: 1 | ED72: 3 | EG72: 155580
A73: =CONCATENATE(S73,"_",T73,"_",U73) -> 170_10_0 | B73: 1 | C73: =CONCATENATE(S73,"_",T73) -> 170_10 | D73: =RANK(CP73,$CP$37:$CP$1821) -> 37 | E73: 37 | F73: =E73-D73 -> 0 | G73: =CP73 -> 13.44766749 | H73: =AZ73 -> 5 | I73: =BV73 -> 5.781000822 | J73: =CN73 -> 2.666666667 | K73: =CQ73 -> 1 | L73: =B73-K73 -> 0 | M73: =HYPERLINK(CX73,"Gmaps") -> Gmaps | N73: =IF(Y73>$K$6,"LOPUT","VÄHÄ") -> LOPUT | O73: =IF(S73<40,"Valta",IF(S73<100,"Kanta",IF(S73<1000,"Seutu",IF(S73>999,"Yhdys")))) -> Seutu | R73: Uusimaa | S73: 170 | T73: 10 | U73: 0 | V73: 10 | W73: 6037 | X73: 6037 | Y73: 6506 | Z73: 373 | AA73: 7104 | AC73: 40 (2 %), 50 (53 %), 60 (28 %), 80 (19 %) | AF73: PK2 (100 %) | AI73: 0.0828375286 | AJ73: 83 | AR73: =+IF(Y73>=$K$6,$F$5,($F$5/($K$6))*Y73) -> 9 | AS73: 1117 | AV73: =+IF(AS73>=$L$15,$J$15,IF(AS73<($L$15),AS73*($J$15/($L$15)),)) -> 3 | AW73: 9961 | AX73: =+IF(AW73>=$L$11,$J$11,IF(AW73<($L$11),AW73*($J$11/($L$11)),)) -> 3 | AY73: =SUM(AR73,AV73,AX73) -> 15 | AZ73: =+AY73*$H$5 -> 5 | BA73: =+IF(Z73=0,0,IF(Z73>$K$7,$F$9,($F$9/$K$7)*Z73)) -> 8 | BB73: =IF(DD73>0,$F$10,0) -> 0 | BC73: =IF(DE73>0,$F$11,0) -> 0 | BD73: =IF(DF73>0,$F$12,0) -> 1 | BE73: =IF(DG73>0,$F$13,0) -> 0 | BF73: =IF(DI73>0,$F$14,IF(DH73>0,$F$14/2,0)) -> 2 | BG73: =+IF(DJ73>=$L$19,$J$19,IF(DJ73<($L$19),DJ73*($J$19/($L$19)),)) -> 0 | BH73: =+IF(DK73>=$L$20,$J$20,IF(DK73<($L$20),DK73*($J$20/($L$20)),)) -> 0.035 | BI73: =+IF(DL73>=$L$21,$J$21,IF(DL73<($L$21),DL73*($J$21/($L$21)),)) -> 0 | BJ73: =+IF(DM73>=$L$22,$J$22,IF(DM73<($L$22),DM73*($J$22/($L$22)),)) -> 0 | BK73: =IF(DN73>0,$F$16,0) -> 2 | BL73: =+IF(DQ73>=$L$25,$J$25,IF(DQ73<($L$25),DQ73*($J$25/($L$25)),)) -> 2 | BM73: =IF(EG73>100000,$F$18,IF(EG73>0,$F$18/2,0)) -> 0 | BN73: =IF(ED73>0,$F$19,0) -> 2 | BO73: 0.191537 | BP73: 0.110956 | BQ73: 0.120821 | BR73: 0.0750112 | BS73: 5.87784 | BT73: =IF(COUNTIF($I$29:$L$29,TRUE)=0,0,IF(SUMIF($I$29:$L$29,TRUE,BO73:BR73)/COUNTIF($I$29:$L$29,TRUE)>=$L$30,$F$20/2,$F$20/2*(SUMIF($I$29:$L$29,TRUE,BO73:BR73)/COUNTIF($I$29:$L$29,TRUE)/$L$30)))+IF(BS73>=10,$F$20/2,IF(BS73<(10),BS73*($F$20/2/10))) -> 0.3080024667 | BU73: =SUM(BA73+BB73+BC73+BD73+BE73+BF73+BK73+BG73+BH73+BI73+BJ73+BL73+BM73+BN73+BT73) -> 17.34300247 | BV73: =+BU73*$H$9 -> 5.781000822 | BW73: 6113.937583 | BX73: =BW73/X73 -> 1.01274434 | BY73: =IF(BX73>0,IF(BX73>=$DC$28,$DA$28,IF(BX73<$DC$28,$DA$29,0)),0) -> 1 | BZ73: 6113.937583 | CA73: =BZ73/X73 -> 1.01274434 | CB73: =IF(CA73,$F$23,0) -> 1 | CC73: =IF(DS73>0,$F$24,0) -> 1 | CD73: 4934.635552 | CE73: =CD73/X73 -> 0.8173986337 | CF73: =+IF(CE73>=$K$4,$F$25,0) -> 1 | CG73: 1022.113633 | CH73: =IF(CG73>0,IF(CG73>=100,$F$26,IF(CG73<100,$F$26/2)),0) -> 1 | CI73: =SUM(DW73) -> 1 | CJ73: =IF(EA73>0,$F$28,0) -> 0 | CK73: =IF(DX73>0,$F$29,0) -> 1 | CL73: =IF(EC73>0,$F$30,0) -> 1 | CM73: =SUM(BY73,CB73,CH73,CC73,CF73,CI73,CJ73,CK73,CL73) -> 8 | CN73: =+CM73*$H$22 -> 2.666666667 | CO73: =SUM(AY73,BU73,CM73) -> 40.34300247 | CP73: =SUM(AZ73,BV73,CN73) -> 13.44766749 | CQ73: =IF(D73<($Z$13*1785),1,IF(D73<(($Z$14+$Z$13)*1785),2,IF(D73<(($Z$15+$Z$13+$Z$14)*1785),3,4))) -> 1 | CR73: =VLOOKUP(A73,Taul1!$F$6:$G$1718,2,FALSE) ->  | DA73: 0 | DB73: 0 | DC73: 0 | DD73: =SUM(DA73:DC73) -> 0 | DE73: 0 | DF73: 1 | DG73: 0 | DH73: 7 | DI73: 2 | DJ73: 0 | DK73: 7 | DL73: 0 | DM73: 0 | DN73: 1 | DP73: 6113.937583 | DQ73: 21 | DR73: 0 | DS73: 11 | DT73: 4934.635552 | DU73: =+IF(AA73>$K$8,$F$27/2,0) -> 1 | DV73: =+IF(AA73/Y73>1.5,$F$27/2,0) -> 0 | DW73: =SUM(DU73:DV73) -> 1 | DX73: 1 | DY73: 0 | DZ73: 0 | EA73: =SUM(DY73:DZ73) -> 0 | EC73: 1 | ED73: 13 | EG73: 0
A74: =CONCATENATE(S74,"_",T74,"_",U74) -> 4_216_0 | B74: 1 | C74: =CONCATENATE(S74,"_",T74) -> 4_216 | D74: =RANK(CP74,$CP$37:$CP$1821) -> 38 | E74: 38 | F74: =E74-D74 -> 0 | G74: =CP74 -> 13.44119183 | H74: =AZ74 -> 5 | I74: =BV74 -> 5.941191833 | J74: =CN74 -> 2.5 | K74: =CQ74 -> 1 | L74: =B74-K74 -> 0 | M74: =HYPERLINK(CX74,"Gmaps") -> Gmaps | N74: =IF(Y74>$K$6,"LOPUT","VÄHÄ") -> LOPUT | O74: =IF(S74<40,"Valta",IF(S74<100,"Kanta",IF(S74<1000,"Seutu",IF(S74>999,"Yhdys")))) -> Valta | R74: Päijät-Häme | S74: 4 | T74: 216 | U74: 0 | V74: 216 | W74: 3952 | X74: 3952 | Y74: 7009 | Z74: 979 | AA74: 8958 | AC74: 80 (100 %) | AF74: PK1 (100 %) | AI74: 0.2928274095 | AJ74: 684 | AR74: =+IF(Y74>=$K$6,$F$5,($F$5/($K$6))*Y74) -> 9 | AS74: 114 | AV74: =+IF(AS74>=$L$15,$J$15,IF(AS74<($L$15),AS74*($J$15/($L$15)),)) -> 3 | AW74: 882 | AX74: =+IF(AW74>=$L$11,$J$11,IF(AW74<($L$11),AW74*($J$11/($L$11)),)) -> 3 | AY74: =SUM(AR74,AV74,AX74) -> 15 | AZ74: =+AY74*$H$5 -> 5 | BA74: =+IF(Z74=0,0,IF(Z74>$K$7,$F$9,($F$9/$K$7)*Z74)) -> 8 | BB74: =IF(DD74>0,$F$10,0) -> 2 | BC74: =IF(DE74>0,$F$11,0) -> 0 | BD74: =IF(DF74>0,$F$12,0) -> 0 | BE74: =IF(DG74>0,$F$13,0) -> 1 | BF74: =IF(DI74>0,$F$14,IF(DH74>0,$F$14/2,0)) -> 2 | BG74: =+IF(DJ74>=$L$19,$J$19,IF(DJ74<($L$19),DJ74*($J$19/($L$19)),)) -> 0 | BH74: =+IF(DK74>=$L$20,$J$20,IF(DK74<($L$20),DK74*($J$20/($L$20)),)) -> 0 | BI74: =+IF(DL74>=$L$21,$J$21,IF(DL74<($L$21),DL74*($J$21/($L$21)),)) -> 0 | BJ74: =+IF(DM74>=$L$22,$J$22,IF(DM74<($L$22),DM74*($J$22/($L$22)),)) -> 0 | BK74: =IF(DN74>0,$F$16,0) -> 0 | BL74: =+IF(DQ74>=$L$25,$J$25,IF(DQ74<($L$25),DQ74*($J$25/($L$25)),)) -> 2 | BM74: =IF(EG74>100000,$F$18,IF(EG74>0,$F$18/2,0)) -> 0 | BN74: =IF(ED74>0,$F$19,0) -> 2 | BO74: 23.4625 | BP74: 33.7633 | BQ74: 22.9239 | BR74: 9.54594 | BS74: 6.47151 | BT74: =IF(COUNTIF($I$29:$L$29,TRUE)=0,0,IF(SUMIF($I$29:$L$29,TRUE,BO74:BR74)/COUNTIF($I$29:$L$29,TRUE)>=$L$30,$F$20/2,$F$20/2*(SUMIF($I$29:$L$29,TRUE,BO74:BR74)/COUNTIF($I$29:$L$29,TRUE)/$L$30)))+IF(BS74>=10,$F$20/2,IF(BS74<(10),BS74*($F$20/2/10))) -> 0.8235755 | BU74: =SUM(BA74+BB74+BC74+BD74+BE74+BF74+BK74+BG74+BH74+BI74+BJ74+BL74+BM74+BN74+BT74) -> 17.8235755 | BV74: =+BU74*$H$9 -> 5.941191833 | BW74: 3318.310516 | BX74: =BW74/X74 -> 0.8396534707 | BY74: =IF(BX74>0,IF(BX74>=$DC$28,$DA$28,IF(BX74<$DC$28,$DA$29,0)),0) -> 1 | BZ74: 3946.628233 | CA74: =BZ74/X74 -> 0.9986407472 | CB74: =IF(CA74,$F$23,0) -> 1 | CC74: =IF(DS74>0,$F$24,0) -> 0 | CD74: 2169.915687 | CE74: =CD74/X74 -> 0.5490677345 | CF74: =+IF(CE74>=$K$4,$F$25,0) -> 1 | CG74: 58.79352227 | CH74: =IF(CG74>0,IF(CG74>=100,$F$26,IF(CG74<100,$F$26/2)),0) -> 0.5 | CI74: =SUM(DW74) -> 1 | CJ74: =IF(EA74>0,$F$28,0) -> 1 | CK74: =IF(DX74>0,$F$29,0) -> 1 | CL74: =IF(EC74>0,$F$30,0) -> 1 | CM74: =SUM(BY74,CB74,CH74,CC74,CF74,CI74,CJ74,CK74,CL74) -> 7.5 | CN74: =+CM74*$H$22 -> 2.5 | CO74: =SUM(AY74,BU74,CM74) -> 40.3235755 | CP74: =SUM(AZ74,BV74,CN74) -> 13.44119183 | CQ74: =IF(D74<($Z$13*1785),1,IF(D74<(($Z$14+$Z$13)*1785),2,IF(D74<(($Z$15+$Z$13+$Z$14)*1785),3,4))) -> 1 | CR74: =VLOOKUP(A74,Taul1!$F$6:$G$1718,2,FALSE) ->  | DA74: 0 | DB74: 0 | DC74: 8 | DD74: =SUM(DA74:DC74) -> 8 | DE74: 0 | DF74: 0 | DG74: 1 | DH74: 0 | DI74: 1 | DJ74: 0 | DK74: 0 | DL74: 0 | DM74: 0 | DN74: 0 | DP74: 3318.310516 | DQ74: 3 | DR74: 0 | DS74: 0 | DT74: 2169.915687 | DU74: =+IF(AA74>$K$8,$F$27/2,0) -> 1 | DV74: =+IF(AA74/Y74>1.5,$F$27/2,0) -> 0 | DW74: =SUM(DU74:DV74) -> 1 | DX74: 3 | DY74: 0 | DZ74: 1 | EA74: =SUM(DY74:DZ74) -> 1 | EC74: 1 | ED74: 1 | EG74: 0
A75: =CONCATENATE(S75,"_",T75,"_",U75) -> 25_9_0 | B75: 1 | C75: =CONCATENATE(S75,"_",T75) -> 25_9 | D75: =RANK(CP75,$CP$37:$CP$1821) -> 39 | E75: 39 | F75: =E75-D75 -> 0 | G75: =CP75 -> 13.38579422 | H75: =AZ75 -> 5 | I75: =BV75 -> 5.719127556 | J75: =CN75 -> 2.666666667 | K75: =CQ75 -> 1 | L75: =B75-K75 -> 0 | M75: =HYPERLINK(CX75,"Gmaps") -> Gmaps | N75: =IF(Y75>$K$6,"LOPUT","VÄHÄ") -> LOPUT | O75: =IF(S75<40,"Valta",IF(S75<100,"Kanta",IF(S75<1000,"Seutu",IF(S75>999,"Yhdys")))) -> Valta | R75: Uusimaa | S75: 25 | T75: 9 | U75: 0 | V75: 9 | W75: 3688 | X75: 3688 | Y75: 10328 | Z75: 873 | AA75: 12251 | AC75: 50 (2 %), 60 (44 %), 80 (54 %) | AF75: PK1 (100 %) | AI75: 0.07714561234 | AJ75: 579 | AR75: =+IF(Y75>=$K$6,$F$5,($F$5/($K$6))*Y75) -> 9 | AS75: 40 | AV75: =+IF(AS75>=$L$15,$J$15,IF(AS75<($L$15),AS75*($J$15/($L$15)),)) -> 3 | AW75: 3602 | AX75: =+IF(AW75>=$L$11,$J$11,IF(AW75<($L$11),AW75*($J$11/($L$11)),)) -> 3 | AY75: =SUM(AR75,AV75,AX75) -> 15 | AZ75: =+AY75*$H$5 -> 5 | BA75: =+IF(Z75=0,0,IF(Z75>$K$7,$F$9,($F$9/$K$7)*Z75)) -> 8 | BB75: =IF(DD75>0,$F$10,0) -> 2 | BC75: =IF(DE75>0,$F$11,0) -> 0 | BD75: =IF(DF75>0,$F$12,0) -> 0 | BE75: =IF(DG75>0,$F$13,0) -> 0 | BF75: =IF(DI75>0,$F$14,IF(DH75>0,$F$14/2,0)) -> 2 | BG75: =+IF(DJ75>=$L$19,$J$19,IF(DJ75<($L$19),DJ75*($J$19/($L$19)),)) -> 0.2016666667 | BH75: =+IF(DK75>=$L$20,$J$20,IF(DK75<($L$20),DK75*($J$20/($L$20)),)) -> 0.035 | BI75: =+IF(DL75>=$L$21,$J$21,IF(DL75<($L$21),DL75*($J$21/($L$21)),)) -> 0 | BJ75: =+IF(DM75>=$L$22,$J$22,IF(DM75<($L$22),DM75*($J$22/($L$22)),)) -> 0 | BK75: =IF(DN75>0,$F$16,0) -> 0 | BL75: =+IF(DQ75>=$L$25,$J$25,IF(DQ75<($L$25),DQ75*($J$25/($L$25)),)) -> 2 | BM75: =IF(EG75>100000,$F$18,IF(EG75>0,$F$18/2,0)) -> 0 | BN75: =IF(ED75>0,$F$19,0) -> 2 | BO75: 8.83563 | BP75: 9.02866 | BQ75: 8.52166 | BR75: 4.59288 | BS75: 8.41432 | BT75: =IF(COUNTIF($I$29:$L$29,TRUE)=0,0,IF(SUMIF($I$29:$L$29,TRUE,BO75:BR75)/COUNTIF($I$29:$L$29,TRUE)>=$L$30,$F$20/2,$F$20/2*(SUMIF($I$29:$L$29,TRUE,BO75:BR75)/COUNTIF($I$29:$L$29,TRUE)/$L$30)))+IF(BS75>=10,$F$20/2,IF(BS75<(10),BS75*($F$20/2/10))) -> 0.920716 | BU75: =SUM(BA75+BB75+BC75+BD75+BE75+BF75+BK75+BG75+BH75+BI75+BJ75+BL75+BM75+BN75+BT75) -> 17.15738267 | BV75: =+BU75*$H$9 -> 5.719127556 | BW75: 3689.631932 | BX75: =BW75/X75 -> 1.000442498 | BY75: =IF(BX75>0,IF(BX75>=$DC$28,$DA$28,IF(BX75<$DC$28,$DA$29,0)),0) -> 1 | BZ75: 3097.307545 | CA75: =BZ75/X75 -> 0.8398339331 | CB75: =IF(CA75,$F$23,0) -> 1 | CC75: =IF(DS75>0,$F$24,0) -> 0 | CD75: 3676.057644 | CE75: =CD75/X75 -> 0.9967618339 | CF75: =+IF(CE75>=$K$4,$F$25,0) -> 1 | CG75: 222.8655098 | CH75: =IF(CG75>0,IF(CG75>=100,$F$26,IF(CG75<100,$F$26/2)),0) -> 1 | CI75: =SUM(DW75) -> 1 | CJ75: =IF(EA75>0,$F$28,0) -> 1 | CK75: =IF(DX75>0,$F$29,0) -> 1 | CL75: =IF(EC75>0,$F$30,0) -> 1 | CM75: =SUM(BY75,CB75,CH75,CC75,CF75,CI75,CJ75,CK75,CL75) -> 8 | CN75: =+CM75*$H$22 -> 2.666666667 | CO75: =SUM(AY75,BU75,CM75) -> 40.15738267 | CP75: =SUM(AZ75,BV75,CN75) -> 13.38579422 | CQ75: =IF(D75<($Z$13*1785),1,IF(D75<(($Z$14+$Z$13)*1785),2,IF(D75<(($Z$15+$Z$13+$Z$14)*1785),3,4))) -> 1 | CR75: =VLOOKUP(A75,Taul1!$F$6:$G$1718,2,FALSE) ->  | DA75: 0 | DB75: 0 | DC75: 1 | DD75: =SUM(DA75:DC75) -> 1 | DE75: 0 | DF75: 0 | DG75: 0 | DH75: 3 | DI75: 1 | DJ75: 121 | DK75: 7 | DL75: 0 | DM75: 0 | DN75: 0 | DP75: 3689.631932 | DQ75: 11 | DR75: 0 | DS75: 0 | DT75: 3676.057644 | DU75: =+IF(AA75>$K$8,$F$27/2,0) -> 1 | DV75: =+IF(AA75/Y75>1.5,$F$27/2,0) -> 0 | DW75: =SUM(DU75:DV75) -> 1 | DX75: 4 | DY75: 0 | DZ75: 1 | EA75: =SUM(DY75:DZ75) -> 1 | EC75: 1 | ED75: 7 | EG75: 0
A76: =CONCATENATE(S76,"_",T76,"_",U76) -> 1361_1_3207 | B76: 1 | C76: =CONCATENATE(S76,"_",T76) -> 1361_1 | D76: =RANK(CP76,$CP$37:$CP$1821) -> 40 | E76: 40 | F76: =E76-D76 -> 0 | G76: =CP76 -> 13.38075497 | H76: =AZ76 -> 4.25 | I76: =BV76 -> 6.797421639 | J76: =CN76 -> 2.333333333 | K76: =CQ76 -> 1 | L76: =B76-K76 -> 0 | M76: =HYPERLINK(CX76,"Gmaps") -> Gmaps | N76: =IF(Y76>$K$6,"LOPUT","VÄHÄ") -> LOPUT | O76: =IF(S76<40,"Valta",IF(S76<100,"Kanta",IF(S76<1000,"Seutu",IF(S76>999,"Yhdys")))) -> Yhdys | R76: Uusimaa | S76: 1361 | T76: 1 | U76: 3207 | V76: 1 | W76: 12163 | X76: 8956 | Y76: 2532 | Z76: 97 | AA76: 3083 | AC76: 50 (25 %), 70 (75 %) | AF76: PK2 (99 %) | AI76: 0.3573023671 | AJ76: 31 | AR76: =+IF(Y76>=$K$6,$F$5,($F$5/($K$6))*Y76) -> 9 | AS76: 10 | AV76: =+IF(AS76>=$L$15,$J$15,IF(AS76<($L$15),AS76*($J$15/($L$15)),)) -> 0.75 | AW76: 6727 | AX76: =+IF(AW76>=$L$11,$J$11,IF(AW76<($L$11),AW76*($J$11/($L$11)),)) -> 3 | AY76: =SUM(AR76,AV76,AX76) -> 12.75 | AZ76: =+AY76*$H$5 -> 4.25 | BA76: =+IF(Z76=0,0,IF(Z76>$K$7,$F$9,($F$9/$K$7)*Z76)) -> 8 | BB76: =IF(DD76>0,$F$10,0) -> 2 | BC76: =IF(DE76>0,$F$11,0) -> 1 | BD76: =IF(DF76>0,$F$12,0) -> 1 | BE76: =IF(DG76>0,$F$13,0) -> 0 | BF76: =IF(DI76>0,$F$14,IF(DH76>0,$F$14/2,0)) -> 2 | BG76: =+IF(DJ76>=$L$19,$J$19,IF(DJ76<($L$19),DJ76*($J$19/($L$19)),)) -> 0.02166666667 | BH76: =+IF(DK76>=$L$20,$J$20,IF(DK76<($L$20),DK76*($J$20/($L$20)),)) -> 0.225 | BI76: =+IF(DL76>=$L$21,$J$21,IF(DL76<($L$21),DL76*($J$21/($L$21)),)) -> 0 | BJ76: =+IF(DM76>=$L$22,$J$22,IF(DM76<($L$22),DM76*($J$22/($L$22)),)) -> 0 | BK76: =IF(DN76>0,$F$16,0) -> 2 | BL76: =+IF(DQ76>=$L$25,$J$25,IF(DQ76<($L$25),DQ76*($J$25/($L$25)),)) -> 2 | BM76: =IF(EG76>100000,$F$18,IF(EG76>0,$F$18/2,0)) -> 0 | BN76: =IF(ED76>0,$F$19,0) -> 2 | BO76: 0.996715 | BP76: 1.45481 | BQ76: 0.954645 | BR76: 0.675735 | BS76: 0.641185 | BT76: =IF(COUNTIF($I$29:$L$29,TRUE)=0,0,IF(SUMIF($I$29:$L$29,TRUE,BO76:BR76)/COUNTIF($I$29:$L$29,TRUE)>=$L$30,$F$20/2,$F$20/2*(SUMIF($I$29:$L$29,TRUE,BO76:BR76)/COUNTIF($I$29:$L$29,TRUE)/$L$30)))+IF(BS76>=10,$F$20/2,IF(BS76<(10),BS76*($F$20/2/10))) -> 0.14559825 | BU76: =SUM(BA76+BB76+BC76+BD76+BE76+BF76+BK76+BG76+BH76+BI76+BJ76+BL76+BM76+BN76+BT76) -> 20.39226492 | BV76: =+BU76*$H$9 -> 6.797421639 | BW76: 1383.370186 | BX76: =BW76/X76 -> 0.1544629506 | BY76: =IF(BX76>0,IF(BX76>=$DC$28,$DA$28,IF(BX76<$DC$28,$DA$29,0)),0) -> 0.5 | BZ76: 8784.901376 | CA76: =BZ76/X76 -> 0.9808956427 | CB76: =IF(CA76,$F$23,0) -> 1 | CC76: =IF(DS76>0,$F$24,0) -> 1 | CD76: 771.0977506 | CE76: =CD76/X76 -> 0.08609845362 | CF76: =+IF(CE76>=$K$4,$F$25,0) -> 0 | CG76: 12.88521661 | CH76: =IF(CG76>0,IF(CG76>=100,$F$26,IF(CG76<100,$F$26/2)),0) -> 0.5 | CI76: =SUM(DW76) -> 1 | CJ76: =IF(EA76>0,$F$28,0) -> 1 | CK76: =IF(DX76>0,$F$29,0) -> 1 | CL76: =IF(EC76>0,$F$30,0) -> 1 | CM76: =SUM(BY76,CB76,CH76,CC76,CF76,CI76,CJ76,CK76,CL76) -> 7 | CN76: =+CM76*$H$22 -> 2.333333333 | CO76: =SUM(AY76,BU76,CM76) -> 40.14226492 | CP76: =SUM(AZ76,BV76,CN76) -> 13.38075497 | CQ76: =IF(D76<($Z$13*1785),1,IF(D76<(($Z$14+$Z$13)*1785),2,IF(D76<(($Z$15+$Z$13+$Z$14)*1785),3,4))) -> 1 | CR76: =VLOOKUP(A76,Taul1!$F$6:$G$1718,2,FALSE) ->  | DA76: 1 | DB76: 0 | DC76: 0 | DD76: =SUM(DA76:DC76) -> 1 | DE76: 1 | DF76: 2 | DG76: 0 | DH76: 2 | DI76: 3 | DJ76: 13 | DK76: 45 | DL76: 0 | DM76: 0 | DN76: 1 | DP76: 1383.370186 | DQ76: 15 | DR76: 0 | DS76: 18 | DT76: 771.0977506 | DU76: =+IF(AA76>$K$8,$F$27/2,0) -> 1 | DV76: =+IF(AA76/Y76>1.5,$F$27/2,0) -> 0 | DW76: =SUM(DU76:DV76) -> 1 | DX76: 2 | DY76: 0 | DZ76: 1 | EA76: =SUM(DY76:DZ76) -> 1 | EC76: 1 | ED76: 4 | EG76: 0
A77: =CONCATENATE(S77,"_",T77,"_",U77) -> 12_222_0 | B77: 1 | C77: =CONCATENATE(S77,"_",T77) -> 12_222 | D77: =RANK(CP77,$CP$37:$CP$1821) -> 41 | E77: 41 | F77: =E77-D77 -> 0 | G77: =CP77 -> 13.36334067 | H77: =AZ77 -> 5 | I77: =BV77 -> 6.696674 | J77: =CN77 -> 1.666666667 | K77: =CQ77 -> 1 | L77: =B77-K77 -> 0 | M77: =HYPERLINK(CX77,"Gmaps") -> Gmaps | N77: =IF(Y77>$K$6,"LOPUT","VÄHÄ") -> LOPUT | O77: =IF(S77<40,"Valta",IF(S77<100,"Kanta",IF(S77<1000,"Seutu",IF(S77>999,"Yhdys")))) -> Valta | R77: Päijät-Häme | S77: 12 | T77: 222 | U77: 0 | V77: 222 | W77: 5044 | X77: 5044 | Y77: 10068 | Z77: 1123 | AA77: 9967 | AC77: 80 (54 %), 100 (46 %) | AF77: PK1 (100 %) | AI77: 0.05614823133 | AJ77: 777 | AR77: =+IF(Y77>=$K$6,$F$5,($F$5/($K$6))*Y77) -> 9 | AS77: 225 | AV77: =+IF(AS77>=$L$15,$J$15,IF(AS77<($L$15),AS77*($J$15/($L$15)),)) -> 3 | AW77: 4324 | AX77: =+IF(AW77>=$L$11,$J$11,IF(AW77<($L$11),AW77*($J$11/($L$11)),)) -> 3 | AY77: =SUM(AR77,AV77,AX77) -> 15 | AZ77: =+AY77*$H$5 -> 5 | BA77: =+IF(Z77=0,0,IF(Z77>$K$7,$F$9,($F$9/$K$7)*Z77)) -> 8 | BB77: =IF(DD77>0,$F$10,0) -> 2 | BC77: =IF(DE77>0,$F$11,0) -> 1 | BD77: =IF(DF77>0,$F$12,0) -> 1 | BE77: =IF(DG77>0,$F$13,0) -> 0 | BF77: =IF(DI77>0,$F$14,IF(DH77>0,$F$14/2,0)) -> 1 | BG77: =+IF(DJ77>=$L$19,$J$19,IF(DJ77<($L$19),DJ77*($J$19/($L$19)),)) -> 0 | BH77: =+IF(DK77>=$L$20,$J$20,IF(DK77<($L$20),DK77*($J$20/($L$20)),)) -> 0.025 | BI77: =+IF(DL77>=$L$21,$J$21,IF(DL77<($L$21),DL77*($J$21/($L$21)),)) -> 0 | BJ77: =+IF(DM77>=$L$22,$J$22,IF(DM77<($L$22),DM77*($J$22/($L$22)),)) -> 0 | BK77: =IF(DN77>0,$F$16,0) -> 2 | BL77: =+IF(DQ77>=$L$25,$J$25,IF(DQ77<($L$25),DQ77*($J$25/($L$25)),)) -> 2 | BM77: =IF(EG77>100000,$F$18,IF(EG77>0,$F$18/2,0)) -> 0.5 | BN77: =IF(ED77>0,$F$19,0) -> 2 | BO77: 5.9956 | BP77: 19.0499 | BQ77: 16.6253 | BR77: 18.8028 | BS77: 1.30044 | BT77: =IF(COUNTIF($I$29:$L$29,TRUE)=0,0,IF(SUMIF($I$29:$L$29,TRUE,BO77:BR77)/COUNTIF($I$29:$L$29,TRUE)>=$L$30,$F$20/2,$F$20/2*(SUMIF($I$29:$L$29,TRUE,BO77:BR77)/COUNTIF($I$29:$L$29,TRUE)/$L$30)))+IF(BS77>=10,$F$20/2,IF(BS77<(10),BS77*($F$20/2/10))) -> 0.565022 | BU77: =SUM(BA77+BB77+BC77+BD77+BE77+BF77+BK77+BG77+BH77+BI77+BJ77+BL77+BM77+BN77+BT77) -> 20.090022 | BV77: =+BU77*$H$9 -> 6.696674 | BW77: 3812.529641 | BX77: =BW77/X77 -> 0.7558544094 | BY77: =IF(BX77>0,IF(BX77>=$DC$28,$DA$28,IF(BX77<$DC$28,$DA$29,0)),0) -> 1 | BZ77: 0 | CA77: =BZ77/X77 -> 0 | CB77: =IF(CA77,$F$23,0) -> 0 | CC77: =IF(DS77>0,$F$24,0) -> 1 | CD77: 1139.151417 | CE77: =CD77/X77 -> 0.2258428663 | CF77: =+IF(CE77>=$K$4,$F$25,0) -> 0 | CG77: 115.59318 | CH77: =IF(CG77>0,IF(CG77>=100,$F$26,IF(CG77<100,$F$26/2)),0) -> 1 | CI77: =SUM(DW77) -> 1 | CJ77: =IF(EA77>0,$F$28,0) -> 0 | CK77: =IF(DX77>0,$F$29,0) -> 0 | CL77: =IF(EC77>0,$F$30,0) -> 1 | CM77: =SUM(BY77,CB77,CH77,CC77,CF77,CI77,CJ77,CK77,CL77) -> 5 | CN77: =+CM77*$H$22 -> 1.666666667 | CO77: =SUM(AY77,BU77,CM77) -> 40.090022 | CP77: =SUM(AZ77,BV77,CN77) -> 13.36334067 | CQ77: =IF(D77<($Z$13*1785),1,IF(D77<(($Z$14+$Z$13)*1785),2,IF(D77<(($Z$15+$Z$13+$Z$14)*1785),3,4))) -> 1 | CR77: =VLOOKUP(A77,Taul1!$F$6:$G$1718,2,FALSE) ->  | DA77: 0 | DB77: 0 | DC77: 6 | DD77: =SUM(DA77:DC77) -> 6 | DE77: 5 | DF77: 1 | DG77: 0 | DH77: 4 | DI77: 0 | DJ77: 0 | DK77: 5 | DL77: 0 | DM77: 0 | DN77: 2 | DP77: 3812.529641 | DQ77: 26 | DR77: 5 | DS77: 13 | DT77: 1139.151417 | DU77: =+IF(AA77>$K$8,$F$27/2,0) -> 1 | DV77: =+IF(AA77/Y77>1.5,$F$27/2,0) -> 0 | DW77: =SUM(DU77:DV77) -> 1 | DX77: 0 | DY77: 0 | DZ77: 0 | EA77: =SUM(DY77:DZ77) -> 0 | EC77: 1 | ED77: 3 | EG77: 82842
A78: =CONCATENATE(S78,"_",T78,"_",U78) -> 290_13_0 | B78: 1 | C78: =CONCATENATE(S78,"_",T78) -> 290_13 | D78: =RANK(CP78,$CP$37:$CP$1821) -> 42 | E78: 42 | F78: =E78-D78 -> 0 | G78: =CP78 -> 13.32765728 | H78: =AZ78 -> 5 | I78: =BV78 -> 5.660990611 | J78: =CN78 -> 2.666666667 | K78: =CQ78 -> 1 | L78: =B78-K78 -> 0 | M78: =HYPERLINK(CX78,"Gmaps") -> Gmaps | N78: =IF(Y78>$K$6,"LOPUT","VÄHÄ") -> LOPUT | O78: =IF(S78<40,"Valta",IF(S78<100,"Kanta",IF(S78<1000,"Seutu",IF(S78>999,"Yhdys")))) -> Seutu | R78: Kanta-Häme | S78: 290 | T78: 13 | U78: 0 | V78: 13 | W78: 5425 | X78: 5425 | Y78: 6586 | Z78: 302 | AA78: 6525 | AC78: 50 (18 %), 60 (63 %), 80 (19 %) | AF78: PK2 (100 %) | AI78: 0.003709198813 | AJ78: 122 | AR78: =+IF(Y78>=$K$6,$F$5,($F$5/($K$6))*Y78) -> 9 | AS78: 266 | AV78: =+IF(AS78>=$L$15,$J$15,IF(AS78<($L$15),AS78*($J$15/($L$15)),)) -> 3 | AW78: 3860 | AX78: =+IF(AW78>=$L$11,$J$11,IF(AW78<($L$11),AW78*($J$11/($L$11)),)) -> 3 | AY78: =SUM(AR78,AV78,AX78) -> 15 | AZ78: =+AY78*$H$5 -> 5 | BA78: =+IF(Z78=0,0,IF(Z78>$K$7,$F$9,($F$9/$K$7)*Z78)) -> 8 | BB78: =IF(DD78>0,$F$10,0) -> 0 | BC78: =IF(DE78>0,$F$11,0) -> 0 | BD78: =IF(DF78>0,$F$12,0) -> 0 | BE78: =IF(DG78>0,$F$13,0) -> 0 | BF78: =IF(DI78>0,$F$14,IF(DH78>0,$F$14/2,0)) -> 2 | BG78: =+IF(DJ78>=$L$19,$J$19,IF(DJ78<($L$19),DJ78*($J$19/($L$19)),)) -> 0 | BH78: =+IF(DK78>=$L$20,$J$20,IF(DK78<($L$20),DK78*($J$20/($L$20)),)) -> 0 | BI78: =+IF(DL78>=$L$21,$J$21,IF(DL78<($L$21),DL78*($J$21/($L$21)),)) -> 0 | BJ78: =+IF(DM78>=$L$22,$J$22,IF(DM78<($L$22),DM78*($J$22/($L$22)),)) -> 0 | BK78: =IF(DN78>0,$F$16,0) -> 2 | BL78: =+IF(DQ78>=$L$25,$J$25,IF(DQ78<($L$25),DQ78*($J$25/($L$25)),)) -> 2 | BM78: =IF(EG78>100000,$F$18,IF(EG78>0,$F$18/2,0)) -> 0.5 | BN78: =IF(ED78>0,$F$19,0) -> 2 | BO78: 2.95534 | BP78: 5.38024 | BQ78: 2.73932 | BR78: 0.812028 | BS78: 2.27617 | BT78: =IF(COUNTIF($I$29:$L$29,TRUE)=0,0,IF(SUMIF($I$29:$L$29,TRUE,BO78:BR78)/COUNTIF($I$29:$L$29,TRUE)>=$L$30,$F$20/2,$F$20/2*(SUMIF($I$29:$L$29,TRUE,BO78:BR78)/COUNTIF($I$29:$L$29,TRUE)/$L$30)))+IF(BS78>=10,$F$20/2,IF(BS78<(10),BS78*($F$20/2/10))) -> 0.4829718333 | BU78: =SUM(BA78+BB78+BC78+BD78+BE78+BF78+BK78+BG78+BH78+BI78+BJ78+BL78+BM78+BN78+BT78) -> 16.98297183 | BV78: =+BU78*$H$9 -> 5.660990611 | BW78: 5419.514051 | BX78: =BW78/X78 -> 0.9989887651 | BY78: =IF(BX78>0,IF(BX78>=$DC$28,$DA$28,IF(BX78<$DC$28,$DA$29,0)),0) -> 1 | BZ78: 5419.514051 | CA78: =BZ78/X78 -> 0.9989887651 | CB78: =IF(CA78,$F$23,0) -> 1 | CC78: =IF(DS78>0,$F$24,0) -> 1 | CD78: 4785.895176 | CE78: =CD78/X78 -> 0.8821926591 | CF78: =+IF(CE78>=$K$4,$F$25,0) -> 1 | CG78: 491.5437788 | CH78: =IF(CG78>0,IF(CG78>=100,$F$26,IF(CG78<100,$F$26/2)),0) -> 1 | CI78: =SUM(DW78) -> 1 | CJ78: =IF(EA78>0,$F$28,0) -> 1 | CK78: =IF(DX78>0,$F$29,0) -> 0 | CL78: =IF(EC78>0,$F$30,0) -> 1 | CM78: =SUM(BY78,CB78,CH78,CC78,CF78,CI78,CJ78,CK78,CL78) -> 8 | CN78: =+CM78*$H$22 -> 2.666666667 | CO78: =SUM(AY78,BU78,CM78) -> 39.98297183 | CP78: =SUM(AZ78,BV78,CN78) -> 13.32765728 | CQ78: =IF(D78<($Z$13*1785),1,IF(D78<(($Z$14+$Z$13)*1785),2,IF(D78<(($Z$15+$Z$13+$Z$14)*1785),3,4))) -> 1 | CR78: =VLOOKUP(A78,Taul1!$F$6:$G$1718,2,FALSE) ->  | DA78: 0 | DB78: 0 | DC78: 0 | DD78: =SUM(DA78:DC78) -> 0 | DE78: 0 | DF78: 0 | DG78: 0 | DH78: 7 | DI78: 1 | DJ78: 0 | DK78: 0 | DL78: 0 | DM78: 0 | DN78: 1 | DP78: 5419.514051 | DQ78: 8 | DR78: 1 | DS78: 16 | DT78: 4785.895176 | DU78: =+IF(AA78>$K$8,$F$27/2,0) -> 1 | DV78: =+IF(AA78/Y78>1.5,$F$27/2,0) -> 0 | DW78: =SUM(DU78:DV78) -> 1 | DX78: 0 | DY78: 0 | DZ78: 1 | EA78: =SUM(DY78:DZ78) -> 1 | EC78: 1 | ED78: 4 | EG78: 30983
A79: =CONCATENATE(S79,"_",T79,"_",U79) -> 6_120_0 | B79: 1 | C79: =CONCATENATE(S79,"_",T79) -> 6_120 | D79: =RANK(CP79,$CP$37:$CP$1821) -> 43 | E79: 43 | F79: =E79-D79 -> 0 | G79: =CP79 -> 13.305 | H79: =AZ79 -> 5 | I79: =BV79 -> 6.138333333 | J79: =CN79 -> 2.166666667 | K79: =CQ79 -> 1 | L79: =B79-K79 -> 0 | M79: =HYPERLINK(CX79,"Gmaps") -> Gmaps | N79: =IF(Y79>$K$6,"LOPUT","VÄHÄ") -> LOPUT | O79: =IF(S79<40,"Valta",IF(S79<100,"Kanta",IF(S79<1000,"Seutu",IF(S79>999,"Yhdys")))) -> Valta | R79: Uusimaa | S79: 6 | T79: 120 | U79: 0 | V79: 120 | W79: 9320 | X79: 9320 | Y79: 5739 | Z79: 649 | AA79: 7069 | AC79: 80 (32 %), 100 (68 %) | AF79: PK1 (100 %) | AI79: 0.076478586 | AJ79: 480 | AR79: =+IF(Y79>=$K$6,$F$5,($F$5/($K$6))*Y79) -> 9 | AS79: 70 | AV79: =+IF(AS79>=$L$15,$J$15,IF(AS79<($L$15),AS79*($J$15/($L$15)),)) -> 3 | AW79: 2239 | AX79: =+IF(AW79>=$L$11,$J$11,IF(AW79<($L$11),AW79*($J$11/($L$11)),)) -> 3 | AY79: =SUM(AR79,AV79,AX79) -> 15 | AZ79: =+AY79*$H$5 -> 5 | BA79: =+IF(Z79=0,0,IF(Z79>$K$7,$F$9,($F$9/$K$7)*Z79)) -> 8 | BB79: =IF(DD79>0,$F$10,0) -> 2 | BC79: =IF(DE79>0,$F$11,0) -> 0 | BD79: =IF(DF79>0,$F$12,0) -> 0 | BE79: =IF(DG79>0,$F$13,0) -> 1 | BF79: =IF(DI79>0,$F$14,IF(DH79>0,$F$14/2,0)) -> 1 | BG79: =+IF(DJ79>=$L$19,$J$19,IF(DJ79<($L$19),DJ79*($J$19/($L$19)),)) -> 0.5 | BH79: =+IF(DK79>=$L$20,$J$20,IF(DK79<($L$20),DK79*($J$20/($L$20)),)) -> 0.415 | BI79: =+IF(DL79>=$L$21,$J$21,IF(DL79<($L$21),DL79*($J$21/($L$21)),)) -> 0.5 | BJ79: =+IF(DM79>=$L$22,$J$22,IF(DM79<($L$22),DM79*($J$22/($L$22)),)) -> 0 | BK79: =IF(DN79>0,$F$16,0) -> 0 | BL79: =+IF(DQ79>=$L$25,$J$25,IF(DQ79<($L$25),DQ79*($J$25/($L$25)),)) -> 2 | BM79: =IF(EG79>100000,$F$18,IF(EG79>0,$F$18/2,0)) -> 0 | BN79: =IF(ED79>0,$F$19,0) -> 2 | BO79: 7.17048 | BP79: 7.93112 | BQ79: 7.80137 | BR79: 6.52581 | BS79: 29.487 | BT79: =IF(COUNTIF($I$29:$L$29,TRUE)=0,0,IF(SUMIF($I$29:$L$29,TRUE,BO79:BR79)/COUNTIF($I$29:$L$29,TRUE)>=$L$30,$F$20/2,$F$20/2*(SUMIF($I$29:$L$29,TRUE,BO79:BR79)/COUNTIF($I$29:$L$29,TRUE)/$L$30)))+IF(BS79>=10,$F$20/2,IF(BS79<(10),BS79*($F$20/2/10))) -> 1 | BU79: =SUM(BA79+BB79+BC79+BD79+BE79+BF79+BK79+BG79+BH79+BI79+BJ79+BL79+BM79+BN79+BT79) -> 18.415 | BV79: =+BU79*$H$9 -> 6.138333333 | BW79: 5784.05689 | BX79: =BW79/X79 -> 0.6206069625 | BY79: =IF(BX79>0,IF(BX79>=$DC$28,$DA$28,IF(BX79<$DC$28,$DA$29,0)),0) -> 1 | BZ79: 8705.3052 | CA79: =BZ79/X79 -> 0.9340456223 | CB79: =IF(CA79,$F$23,0) -> 1 | CC79: =IF(DS79>0,$F$24,0) -> 1 | CD79: 2583.032761 | CE79: =CD79/X79 -> 0.2771494379 | CF79: =+IF(CE79>=$K$4,$F$25,0) -> 0 | CG79: 63.1223176 | CH79: =IF(CG79>0,IF(CG79>=100,$F$26,IF(CG79<100,$F$26/2)),0) -> 0.5 | CI79: =SUM(DW79) -> 1 | CJ79: =IF(EA79>0,$F$28,0) -> 0 | CK79: =IF(DX79>0,$F$29,0) -> 1 | CL79: =IF(EC79>0,$F$30,0) -> 1 | CM79: =SUM(BY79,CB79,CH79,CC79,CF79,CI79,CJ79,CK79,CL79) -> 6.5 | CN79: =+CM79*$H$22 -> 2.166666667 | CO79: =SUM(AY79,BU79,CM79) -> 39.915 | CP79: =SUM(AZ79,BV79,CN79) -> 13.305 | CQ79: =IF(D79<($Z$13*1785),1,IF(D79<(($Z$14+$Z$13)*1785),2,IF(D79<(($Z$15+$Z$13+$Z$14)*1785),3,4))) -> 1 | CR79: =VLOOKUP(A79,Taul1!$F$6:$G$1718,2,FALSE) ->  | DA79: 0 | DB79: 2 | DC79: 3 | DD79: =SUM(DA79:DC79) -> 5 | DE79: 0 | DF79: 0 | DG79: 1 | DH79: 27 | DI79: 0 | DJ79: 595 | DK79: 83 | DL79: 5041 | DM79: 0 | DN79: 0 | DP79: 5784.05689 | DQ79: 7 | DR79: 0 | DS79: 1 | DT79: 2583.032761 | DU79: =+IF(AA79>$K$8,$F$27/2,0) -> 1 | DV79: =+IF(AA79/Y79>1.5,$F$27/2,0) -> 0 | DW79: =SUM(DU79:DV79) -> 1 | DX79: 1 | DY79: 0 | DZ79: 0 | EA79: =SUM(DY79:DZ79) -> 0 | EC79: 1 | ED79: 1 | EG79: 0
A80: =CONCATENATE(S80,"_",T80,"_",U80) -> 151_2_5839 | B80: 1 | C80: =CONCATENATE(S80,"_",T80) -> 151_2 | D80: =RANK(CP80,$CP$37:$CP$1821) -> 44 | E80: 44 | F80: =E80-D80 -> 0 | G80: =CP80 -> 13.25901049 | H80: =AZ80 -> 5 | I80: =BV80 -> 5.925677156 | J80: =CN80 -> 2.333333333 | K80: =CQ80 -> 1 | L80: =B80-K80 -> 0 | M80: =HYPERLINK(CX80,"Gmaps") -> Gmaps | N80: =IF(Y80>$K$6,"LOPUT","VÄHÄ") -> LOPUT | O80: =IF(S80<40,"Valta",IF(S80<100,"Kanta",IF(S80<1000,"Seutu",IF(S80>999,"Yhdys")))) -> Seutu | R80: Uusimaa | S80: 151 | T80: 2 | U80: 5839 | V80: 2 | W80: 6912 | X80: 1073 | Y80: 2900 | Z80: 105 | AA80: 3190 | AC80: 40 (100 %) | AF80: PK2 (100 %) | AI80: 0.1030092593 | AJ80: 20 | AR80: =+IF(Y80>=$K$6,$F$5,($F$5/($K$6))*Y80) -> 9 | AS80: 60 | AV80: =+IF(AS80>=$L$15,$J$15,IF(AS80<($L$15),AS80*($J$15/($L$15)),)) -> 3 | AW80: 550 | AX80: =+IF(AW80>=$L$11,$J$11,IF(AW80<($L$11),AW80*($J$11/($L$11)),)) -> 3 | AY80: =SUM(AR80,AV80,AX80) -> 15 | AZ80: =+AY80*$H$5 -> 5 | BA80: =+IF(Z80=0,0,IF(Z80>$K$7,$F$9,($F$9/$K$7)*Z80)) -> 8 | BB80: =IF(DD80>0,$F$10,0) -> 2 | BC80: =IF(DE80>0,$F$11,0) -> 0 | BD80: =IF(DF80>0,$F$12,0) -> 0 | BE80: =IF(DG80>0,$F$13,0) -> 0 | BF80: =IF(DI80>0,$F$14,IF(DH80>0,$F$14/2,0)) -> 1 | BG80: =+IF(DJ80>=$L$19,$J$19,IF(DJ80<($L$19),DJ80*($J$19/($L$19)),)) -> 0.18 | BH80: =+IF(DK80>=$L$20,$J$20,IF(DK80<($L$20),DK80*($J$20/($L$20)),)) -> 0.5 | BI80: =+IF(DL80>=$L$21,$J$21,IF(DL80<($L$21),DL80*($J$21/($L$21)),)) -> 0 | BJ80: =+IF(DM80>=$L$22,$J$22,IF(DM80<($L$22),DM80*($J$22/($L$22)),)) -> 0 | BK80: =IF(DN80>0,$F$16,0) -> 2 | BL80: =+IF(DQ80>=$L$25,$J$25,IF(DQ80<($L$25),DQ80*($J$25/($L$25)),)) -> 2 | BM80: =IF(EG80>100000,$F$18,IF(EG80>0,$F$18/2,0)) -> 0 | BN80: =IF(ED80>0,$F$19,0) -> 2 | BO80: 1.13865 | BP80: 0.666584 | BQ80: 0.823941 | BR80: 0.199241 | BS80: 0.187846 | BT80: =IF(COUNTIF($I$29:$L$29,TRUE)=0,0,IF(SUMIF($I$29:$L$29,TRUE,BO80:BR80)/COUNTIF($I$29:$L$29,TRUE)>=$L$30,$F$20/2,$F$20/2*(SUMIF($I$29:$L$29,TRUE,BO80:BR80)/COUNTIF($I$29:$L$29,TRUE)/$L$30)))+IF(BS80>=10,$F$20/2,IF(BS80<(10),BS80*($F$20/2/10))) -> 0.09703146667 | BU80: =SUM(BA80+BB80+BC80+BD80+BE80+BF80+BK80+BG80+BH80+BI80+BJ80+BL80+BM80+BN80+BT80) -> 17.77703147 | BV80: =+BU80*$H$9 -> 5.925677156 | BW80: 1072.616711 | BX80: =BW80/X80 -> 0.9996427875 | BY80: =IF(BX80>0,IF(BX80>=$DC$28,$DA$28,IF(BX80<$DC$28,$DA$29,0)),0) -> 1 | BZ80: 0 | CA80: =BZ80/X80 -> 0 | CB80: =IF(CA80,$F$23,0) -> 0 | CC80: =IF(DS80>0,$F$24,0) -> 1 | CD80: 1072.616711 | CE80: =CD80/X80 -> 0.9996427875 | CF80: =+IF(CE80>=$K$4,$F$25,0) -> 1 | CG80: 578.3932898 | CH80: =IF(CG80>0,IF(CG80>=100,$F$26,IF(CG80<100,$F$26/2)),0) -> 1 | CI80: =SUM(DW80) -> 1 | CJ80: =IF(EA80>0,$F$28,0) -> 0 | CK80: =IF(DX80>0,$F$29,0) -> 1 | CL80: =IF(EC80>0,$F$30,0) -> 1 | CM80: =SUM(BY80,CB80,CH80,CC80,CF80,CI80,CJ80,CK80,CL80) -> 7 | CN80: =+CM80*$H$22 -> 2.333333333 | CO80: =SUM(AY80,BU80,CM80) -> 39.77703147 | CP80: =SUM(AZ80,BV80,CN80) -> 13.25901049 | CQ80: =IF(D80<($Z$13*1785),1,IF(D80<(($Z$14+$Z$13)*1785),2,IF(D80<(($Z$15+$Z$13+$Z$14)*1785),3,4))) -> 1 | CR80: =VLOOKUP(A80,Taul1!$F$6:$G$1718,2,FALSE) ->  | DA80: 0 | DB80: 0 | DC80: 9 | DD80: =SUM(DA80:DC80) -> 9 | DE80: 0 | DF80: 0 | DG80: 0 | DH80: 11 | DI80: 0 | DJ80: 108 | DK80: 152 | DL80: 0 | DM80: 0 | DN80: 1 | DP80: 1072.616711 | DQ80: 4 | DR80: 0 | DS80: 4 | DT80: 1072.616711 | DU80: =+IF(AA80>$K$8,$F$27/2,0) -> 1 | DV80: =+IF(AA80/Y80>1.5,$F$27/2,0) -> 0 | DW80: =SUM(DU80:DV80) -> 1 | DX80: 1 | DY80: 0 | DZ80: 0 | EA80: =SUM(DY80:DZ80) -> 0 | EC80: 1 | ED80: 3 | EG80: 0
A81: =CONCATENATE(S81,"_",T81,"_",U81) -> 167_4_0 | B81: 1 | C81: =CONCATENATE(S81,"_",T81) -> 167_4 | D81: =RANK(CP81,$CP$37:$CP$1821) -> 45 | E81: 45 | F81: =E81-D81 -> 0 | G81: =CP81 -> 13.24281278 | H81: =AZ81 -> 5 | I81: =BV81 -> 6.076146111 | J81: =CN81 -> 2.166666667 | K81: =CQ81 -> 1 | L81: =B81-K81 -> 0 | M81: =HYPERLINK(CX81,"Gmaps") -> Gmaps | N81: =IF(Y81>$K$6,"LOPUT","VÄHÄ") -> LOPUT | O81: =IF(S81<40,"Valta",IF(S81<100,"Kanta",IF(S81<1000,"Seutu",IF(S81>999,"Yhdys")))) -> Seutu | R81: Päijät-Häme | S81: 167 | T81: 4 | U81: 0 | V81: 4 | W81: 4145 | X81: 4145 | Y81: 7519 | Z81: 407 | AA81: 7443 | AC81: 80 (100 %) | AF81: PK2 (100 %) | AI81: 0 | AJ81: 86 | AR81: =+IF(Y81>=$K$6,$F$5,($F$5/($K$6))*Y81) -> 9 | AS81: 448 | AV81: =+IF(AS81>=$L$15,$J$15,IF(AS81<($L$15),AS81*($J$15/($L$15)),)) -> 3 | AW81: 2475 | AX81: =+IF(AW81>=$L$11,$J$11,IF(AW81<($L$11),AW81*($J$11/($L$11)),)) -> 3 | AY81: =SUM(AR81,AV81,AX81) -> 15 | AZ81: =+AY81*$H$5 -> 5 | BA81: =+IF(Z81=0,0,IF(Z81>$K$7,$F$9,($F$9/$K$7)*Z81)) -> 8 | BB81: =IF(DD81>0,$F$10,0) -> 2 | BC81: =IF(DE81>0,$F$11,0) -> 0 | BD81: =IF(DF81>0,$F$12,0) -> 0 | BE81: =IF(DG81>0,$F$13,0) -> 0 | BF81: =IF(DI81>0,$F$14,IF(DH81>0,$F$14/2,0)) -> 1 | BG81: =+IF(DJ81>=$L$19,$J$19,IF(DJ81<($L$19),DJ81*($J$19/($L$19)),)) -> 0.06 | BH81: =+IF(DK81>=$L$20,$J$20,IF(DK81<($L$20),DK81*($J$20/($L$20)),)) -> 0.5 | BI81: =+IF(DL81>=$L$21,$J$21,IF(DL81<($L$21),DL81*($J$21/($L$21)),)) -> 0 | BJ81: =+IF(DM81>=$L$22,$J$22,IF(DM81<($L$22),DM81*($J$22/($L$22)),)) -> 0 | BK81: =IF(DN81>0,$F$16,0) -> 2 | BL81: =+IF(DQ81>=$L$25,$J$25,IF(DQ81<($L$25),DQ81*($J$25/($L$25)),)) -> 2 | BM81: =IF(EG81>100000,$F$18,IF(EG81>0,$F$18/2,0)) -> 0 | BN81: =IF(ED81>0,$F$19,0) -> 2 | BO81: 1.31404 | BP81: 2.75545 | BQ81: 0.98366 | BR81: 1.04438 | BS81: 10.1711 | BT81: =IF(COUNTIF($I$29:$L$29,TRUE)=0,0,IF(SUMIF($I$29:$L$29,TRUE,BO81:BR81)/COUNTIF($I$29:$L$29,TRUE)>=$L$30,$F$20/2,$F$20/2*(SUMIF($I$29:$L$29,TRUE,BO81:BR81)/COUNTIF($I$29:$L$29,TRUE)/$L$30)))+IF(BS81>=10,$F$20/2,IF(BS81<(10),BS81*($F$20/2/10))) -> 0.6684383333 | BU81: =SUM(BA81+BB81+BC81+BD81+BE81+BF81+BK81+BG81+BH81+BI81+BJ81+BL81+BM81+BN81+BT81) -> 18.22843833 | BV81: =+BU81*$H$9 -> 6.076146111 | BW81: 4140.061005 | BX81: =BW81/X81 -> 0.9988084451 | BY81: =IF(BX81>0,IF(BX81>=$DC$28,$DA$28,IF(BX81<$DC$28,$DA$29,0)),0) -> 1 | BZ81: 4140.061005 | CA81: =BZ81/X81 -> 0.9988084451 | CB81: =IF(CA81,$F$23,0) -> 1 | CC81: =IF(DS81>0,$F$24,0) -> 1 | CD81: 1220.065245 | CE81: =CD81/X81 -> 0.2943462593 | CF81: =+IF(CE81>=$K$4,$F$25,0) -> 0 | CG81: 39.36308806 | CH81: =IF(CG81>0,IF(CG81>=100,$F$26,IF(CG81<100,$F$26/2)),0) -> 0.5 | CI81: =SUM(DW81) -> 1 | CJ81: =IF(EA81>0,$F$28,0) -> 1 | CK81: =IF(DX81>0,$F$29,0) -> 0 | CL81: =IF(EC81>0,$F$30,0) -> 1 | CM81: =SUM(BY81,CB81,CH81,CC81,CF81,CI81,CJ81,CK81,CL81) -> 6.5 | CN81: =+CM81*$H$22 -> 2.166666667 | CO81: =SUM(AY81,BU81,CM81) -> 39.72843833 | CP81: =SUM(AZ81,BV81,CN81) -> 13.24281278 | CQ81: =IF(D81<($Z$13*1785),1,IF(D81<(($Z$14+$Z$13)*1785),2,IF(D81<(($Z$15+$Z$13+$Z$14)*1785),3,4))) -> 1 | CR81: =VLOOKUP(A81,Taul1!$F$6:$G$1718,2,FALSE) ->  | DA81: 0 | DB81: 0 | DC81: 2 | DD81: =SUM(DA81:DC81) -> 2 | DE81: 0 | DF81: 0 | DG81: 0 | DH81: 11 | DI81: 0 | DJ81: 36 | DK81: 108 | DL81: 0 | DM81: 0 | DN81: 1 | DP81: 4140.061005 | DQ81: 4 | DR81: 0 | DS81: 4 | DT81: 1220.065245 | DU81: =+IF(AA81>$K$8,$F$27/2,0) -> 1 | DV81: =+IF(AA81/Y81>1.5,$F$27/2,0) -> 0 | DW81: =SUM(DU81:DV81) -> 1 | DX81: 0 | DY81: 0 | DZ81: 1 | EA81: =SUM(DY81:DZ81) -> 1 | EC81: 1 | ED81: 1 | EG81: 0
A82: =CONCATENATE(S82,"_",T82,"_",U82) -> 1125_1_0 | B82: 1 | C82: =CONCATENATE(S82,"_",T82) -> 1125_1 | D82: =RANK(CP82,$CP$37:$CP$1821) -> 46 | E82: 46 | F82: =E82-D82 -> 0 | G82: =CP82 -> 13.22203886 | H82: =AZ82 -> 5 | I82: =BV82 -> 5.888705528 | J82: =CN82 -> 2.333333333 | K82: =CQ82 -> 1 | L82: =B82-K82 -> 0 | M82: =HYPERLINK(CX82,"Gmaps") -> Gmaps | N82: =IF(Y82>$K$6,"LOPUT","VÄHÄ") -> LOPUT | O82: =IF(S82<40,"Valta",IF(S82<100,"Kanta",IF(S82<1000,"Seutu",IF(S82>999,"Yhdys")))) -> Yhdys | R82: Uusimaa | S82: 1125 | T82: 1 | U82: 0 | V82: 1 | W82: 6364 | X82: 6364 | Y82: 5584 | Z82: 350 | AA82: 6142 | AC82: 40 (3 %), 50 (62 %), 60 (33 %) | AF82: PK2 (99 %) | AI82: 0.07848285923 | AJ82: 77 | AR82: =+IF(Y82>=$K$6,$F$5,($F$5/($K$6))*Y82) -> 9 | AS82: 186 | AV82: =+IF(AS82>=$L$15,$J$15,IF(AS82<($L$15),AS82*($J$15/($L$15)),)) -> 3 | AW82: 2854 | AX82: =+IF(AW82>=$L$11,$J$11,IF(AW82<($L$11),AW82*($J$11/($L$11)),)) -> 3 | AY82: =SUM(AR82,AV82,AX82) -> 15 | AZ82: =+AY82*$H$5 -> 5 | BA82: =+IF(Z82=0,0,IF(Z82>$K$7,$F$9,($F$9/$K$7)*Z82)) -> 8 | BB82: =IF(DD82>0,$F$10,0) -> 2 | BC82: =IF(DE82>0,$F$11,0) -> 1 | BD82: =IF(DF82>0,$F$12,0) -> 1 | BE82: =IF(DG82>0,$F$13,0) -> 0 | BF82: =IF(DI82>0,$F$14,IF(DH82>0,$F$14/2,0)) -> 1 | BG82: =+IF(DJ82>=$L$19,$J$19,IF(DJ82<($L$19),DJ82*($J$19/($L$19)),)) -> 0.008333333333 | BH82: =+IF(DK82>=$L$20,$J$20,IF(DK82<($L$20),DK82*($J$20/($L$20)),)) -> 0 | BI82: =+IF(DL82>=$L$21,$J$21,IF(DL82<($L$21),DL82*($J$21/($L$21)),)) -> 0 | BJ82: =+IF(DM82>=$L$22,$J$22,IF(DM82<($L$22),DM82*($J$22/($L$22)),)) -> 0 | BK82: =IF(DN82>0,$F$16,0) -> 0 | BL82: =+IF(DQ82>=$L$25,$J$25,IF(DQ82<($L$25),DQ82*($J$25/($L$25)),)) -> 2 | BM82: =IF(EG82>100000,$F$18,IF(EG82>0,$F$18/2,0)) -> 0.5 | BN82: =IF(ED82>0,$F$19,0) -> 2 | BO82: 2.23836 | BP82: 1.5273 | BQ82: 0.262398 | BR82: 0.332228 | BS82: 0.470293 | BT82: =IF(COUNTIF($I$29:$L$29,TRUE)=0,0,IF(SUMIF($I$29:$L$29,TRUE,BO82:BR82)/COUNTIF($I$29:$L$29,TRUE)>=$L$30,$F$20/2,$F$20/2*(SUMIF($I$29:$L$29,TRUE,BO82:BR82)/COUNTIF($I$29:$L$29,TRUE)/$L$30)))+IF(BS82>=10,$F$20/2,IF(BS82<(10),BS82*($F$20/2/10))) -> 0.15778325 | BU82: =SUM(BA82+BB82+BC82+BD82+BE82+BF82+BK82+BG82+BH82+BI82+BJ82+BL82+BM82+BN82+BT82) -> 17.66611658 | BV82: =+BU82*$H$9 -> 5.888705528 | BW82: 6309.693584 | BX82: =BW82/X82 -> 0.9914666222 | BY82: =IF(BX82>0,IF(BX82>=$DC$28,$DA$28,IF(BX82<$DC$28,$DA$29,0)),0) -> 1 | BZ82: 6171.590909 | CA82: =BZ82/X82 -> 0.9697660133 | CB82: =IF(CA82,$F$23,0) -> 1 | CC82: =IF(DS82>0,$F$24,0) -> 1 | CD82: 5272.269767 | CE82: =CD82/X82 -> 0.8284521947 | CF82: =+IF(CE82>=$K$4,$F$25,0) -> 1 | CG82: 481.433061 | CH82: =IF(CG82>0,IF(CG82>=100,$F$26,IF(CG82<100,$F$26/2)),0) -> 1 | CI82: =SUM(DW82) -> 1 | CJ82: =IF(EA82>0,$F$28,0) -> 0 | CK82: =IF(DX82>0,$F$29,0) -> 0 | CL82: =IF(EC82>0,$F$30,0) -> 1 | CM82: =SUM(BY82,CB82,CH82,CC82,CF82,CI82,CJ82,CK82,CL82) -> 7 | CN82: =+CM82*$H$22 -> 2.333333333 | CO82: =SUM(AY82,BU82,CM82) -> 39.66611658 | CP82: =SUM(AZ82,BV82,CN82) -> 13.22203886 | CQ82: =IF(D82<($Z$13*1785),1,IF(D82<(($Z$14+$Z$13)*1785),2,IF(D82<(($Z$15+$Z$13+$Z$14)*1785),3,4))) -> 1 | CR82: =VLOOKUP(A82,Taul1!$F$6:$G$1718,2,FALSE) ->  | DA82: 0 | DB82: 0 | DC82: 2 | DD82: =SUM(DA82:DC82) -> 2 | DE82: 1 | DF82: 1 | DG82: 0 | DH82: 2 | DI82: 0 | DJ82: 5 | DK82: 0 | DL82: 0 | DM82: 0 | DN82: 0 | DP82: 6309.693584 | DQ82: 13 | DR82: 1 | DS82: 23 | DT82: 5272.269767 | DU82: =+IF(AA82>$K$8,$F$27/2,0) -> 1 | DV82: =+IF(AA82/Y82>1.5,$F$27/2,0) -> 0 | DW82: =SUM(DU82:DV82) -> 1 | DX82: 0 | DY82: 0 | DZ82: 0 | EA82: =SUM(DY82:DZ82) -> 0 | EC82: 1 | ED82: 4 | EG82: 11553
A83: =CONCATENATE(S83,"_",T83,"_",U83) -> 312_3_0 | B83: 1 | C83: =CONCATENATE(S83,"_",T83) -> 312_3 | D83: =RANK(CP83,$CP$37:$CP$1821) -> 47 | E83: 47 | F83: =E83-D83 -> 0 | G83: =CP83 -> 13.21673806 | H83: =AZ83 -> 5 | I83: =BV83 -> 5.883404722 | J83: =CN83 -> 2.333333333 | K83: =CQ83 -> 1 | L83: =B83-K83 -> 0 | M83: =HYPERLINK(CX83,"Gmaps") -> Gmaps | N83: =IF(Y83>$K$6,"LOPUT","VÄHÄ") -> LOPUT | O83: =IF(S83<40,"Valta",IF(S83<100,"Kanta",IF(S83<1000,"Seutu",IF(S83>999,"Yhdys")))) -> Seutu | R83: Päijät-Häme | S83: 312 | T83: 3 | U83: 0 | V83: 3 | W83: 5809 | X83: 5809 | Y83: 4054 | Z83: 236 | AA83: 4152 | AC83: 50 (92 %), 60 (8 %) | AF83: PK2 (100 %) | AI83: 0.511310815 | AJ83: 103 | AR83: =+IF(Y83>=$K$6,$F$5,($F$5/($K$6))*Y83) -> 9 | AS83: 622 | AV83: =+IF(AS83>=$L$15,$J$15,IF(AS83<($L$15),AS83*($J$15/($L$15)),)) -> 3 | AW83: 3441 | AX83: =+IF(AW83>=$L$11,$J$11,IF(AW83<($L$11),AW83*($J$11/($L$11)),)) -> 3 | AY83: =SUM(AR83,AV83,AX83) -> 15 | AZ83: =+AY83*$H$5 -> 5 | BA83: =+IF(Z83=0,0,IF(Z83>$K$7,$F$9,($F$9/$K$7)*Z83)) -> 8 | BB83: =IF(DD83>0,$F$10,0) -> 2 | BC83: =IF(DE83>0,$F$11,0) -> 0 | BD83: =IF(DF83>0,$F$12,0) -> 1 | BE83: =IF(DG83>0,$F$13,0) -> 0 | BF83: =IF(DI83>0,$F$14,IF(DH83>0,$F$14/2,0)) -> 2 | BG83: =+IF(DJ83>=$L$19,$J$19,IF(DJ83<($L$19),DJ83*($J$19/($L$19)),)) -> 0 | BH83: =+IF(DK83>=$L$20,$J$20,IF(DK83<($L$20),DK83*($J$20/($L$20)),)) -> 0 | BI83: =+IF(DL83>=$L$21,$J$21,IF(DL83<($L$21),DL83*($J$21/($L$21)),)) -> 0 | BJ83: =+IF(DM83>=$L$22,$J$22,IF(DM83<($L$22),DM83*($J$22/($L$22)),)) -> 0 | BK83: =IF(DN83>0,$F$16,0) -> 0 | BL83: =+IF(DQ83>=$L$25,$J$25,IF(DQ83<($L$25),DQ83*($J$25/($L$25)),)) -> 2 | BM83: =IF(EG83>100000,$F$18,IF(EG83>0,$F$18/2,0)) -> 0.5 | BN83: =IF(ED83>0,$F$19,0) -> 2 | BO83: 0.649282 | BP83: 0.716511 | BQ83: 0.842512 | BR83: 0.676741 | BS83: 1.53208 | BT83: =IF(COUNTIF($I$29:$L$29,TRUE)=0,0,IF(SUMIF($I$29:$L$29,TRUE,BO83:BR83)/COUNTIF($I$29:$L$29,TRUE)>=$L$30,$F$20/2,$F$20/2*(SUMIF($I$29:$L$29,TRUE,BO83:BR83)/COUNTIF($I$29:$L$29,TRUE)/$L$30)))+IF(BS83>=10,$F$20/2,IF(BS83<(10),BS83*($F$20/2/10))) -> 0.1502141667 | BU83: =SUM(BA83+BB83+BC83+BD83+BE83+BF83+BK83+BG83+BH83+BI83+BJ83+BL83+BM83+BN83+BT83) -> 17.65021417 | BV83: =+BU83*$H$9 -> 5.883404722 | BW83: 5794.471508 | BX83: =BW83/X83 -> 0.9974989685 | BY83: =IF(BX83>0,IF(BX83>=$DC$28,$DA$28,IF(BX83<$DC$28,$DA$29,0)),0) -> 1 | BZ83: 5794.471508 | CA83: =BZ83/X83 -> 0.9974989685 | CB83: =IF(CA83,$F$23,0) -> 1 | CC83: =IF(DS83>0,$F$24,0) -> 1 | CD83: 5782.962394 | CE83: =CD83/X83 -> 0.9955177128 | CF83: =+IF(CE83>=$K$4,$F$25,0) -> 1 | CG83: 673.9894991 | CH83: =IF(CG83>0,IF(CG83>=100,$F$26,IF(CG83<100,$F$26/2)),0) -> 1 | CI83: =SUM(DW83) -> 1 | CJ83: =IF(EA83>0,$F$28,0) -> 0 | CK83: =IF(DX83>0,$F$29,0) -> 0 | CL83: =IF(EC83>0,$F$30,0) -> 1 | CM83: =SUM(BY83,CB83,CH83,CC83,CF83,CI83,CJ83,CK83,CL83) -> 7 | CN83: =+CM83*$H$22 -> 2.333333333 | CO83: =SUM(AY83,BU83,CM83) -> 39.65021417 | CP83: =SUM(AZ83,BV83,CN83) -> 13.21673806 | CQ83: =IF(D83<($Z$13*1785),1,IF(D83<(($Z$14+$Z$13)*1785),2,IF(D83<(($Z$15+$Z$13+$Z$14)*1785),3,4))) -> 1 | CR83: =VLOOKUP(A83,Taul1!$F$6:$G$1718,2,FALSE) ->  | DA83: 0 | DB83: 0 | DC83: 7 | DD83: =SUM(DA83:DC83) -> 7 | DE83: 0 | DF83: 1 | DG83: 0 | DH83: 3 | DI83: 1 | DJ83: 0 | DK83: 0 | DL83: 0 | DM83: 0 | DN83: 0 | DP83: 5794.471508 | DQ83: 8 | DR83: 1 | DS83: 13 | DT83: 5782.962394 | DU83: =+IF(AA83>$K$8,$F$27/2,0) -> 1 | DV83: =+IF(AA83/Y83>1.5,$F$27/2,0) -> 0 | DW83: =SUM(DU83:DV83) -> 1 | DX83: 0 | DY83: 0 | DZ83: 0 | EA83: =SUM(DY83:DZ83) -> 0 | EC83: 1 | ED83: 1 | EG83: 10800
A84: =CONCATENATE(S84,"_",T84,"_",U84) -> 296_1_4899 | B84: 1 | C84: =CONCATENATE(S84,"_",T84) -> 296_1 | D84: =RANK(CP84,$CP$37:$CP$1821) -> 48 | E84: 48 | F84: =E84-D84 -> 0 | G84: =CP84 -> 13.21619028 | H84: =AZ84 -> 5 | I84: =BV84 -> 5.882856944 | J84: =CN84 -> 2.333333333 | K84: =CQ84 -> 1 | L84: =B84-K84 -> 0 | M84: =HYPERLINK(CX84,"Gmaps") -> Gmaps | N84: =IF(Y84>$K$6,"LOPUT","VÄHÄ") -> LOPUT | O84: =IF(S84<40,"Valta",IF(S84<100,"Kanta",IF(S84<1000,"Seutu",IF(S84>999,"Yhdys")))) -> Seutu | R84: Päijät-Häme | S84: 296 | T84: 1 | U84: 4899 | V84: 1 | W84: 6095 | X84: 1196 | Y84: 7974 | Z84: 382 | AA84: 8771 | AC84: 60 (100 %) | AF84: PK2 (100 %) | AI84: 0 | AJ84: 122 | AR84: =+IF(Y84>=$K$6,$F$5,($F$5/($K$6))*Y84) -> 9 | AS84: 42 | AV84: =+IF(AS84>=$L$15,$J$15,IF(AS84<($L$15),AS84*($J$15/($L$15)),)) -> 3 | AW84: 2940 | AX84: =+IF(AW84>=$L$11,$J$11,IF(AW84<($L$11),AW84*($J$11/($L$11)),)) -> 3 | AY84: =SUM(AR84,AV84,AX84) -> 15 | AZ84: =+AY84*$H$5 -> 5 | BA84: =+IF(Z84=0,0,IF(Z84>$K$7,$F$9,($F$9/$K$7)*Z84)) -> 8 | BB84: =IF(DD84>0,$F$10,0) -> 2 | BC84: =IF(DE84>0,$F$11,0) -> 1 | BD84: =IF(DF84>0,$F$12,0) -> 1 | BE84: =IF(DG84>0,$F$13,0) -> 0 | BF84: =IF(DI84>0,$F$14,IF(DH84>0,$F$14/2,0)) -> 1 | BG84: =+IF(DJ84>=$L$19,$J$19,IF(DJ84<($L$19),DJ84*($J$19/($L$19)),)) -> 0 | BH84: =+IF(DK84>=$L$20,$J$20,IF(DK84<($L$20),DK84*($J$20/($L$20)),)) -> 0.025 | BI84: =+IF(DL84>=$L$21,$J$21,IF(DL84<($L$21),DL84*($J$21/($L$21)),)) -> 0 | BJ84: =+IF(DM84>=$L$22,$J$22,IF(DM84<($L$22),DM84*($J$22/($L$22)),)) -> 0 | BK84: =IF(DN84>0,$F$16,0) -> 2 | BL84: =+IF(DQ84>=$L$25,$J$25,IF(DQ84<($L$25),DQ84*($J$25/($L$25)),)) -> 2 | BM84: =IF(EG84>100000,$F$18,IF(EG84>0,$F$18/2,0)) -> 0.5 | BN84: =IF(ED84>0,$F$19,0) -> 0 | BO84: 0.47902 | BP84: 0.503582 | BQ84: 0.460768 | BR84: 0.229822 | BS84: 1.50917 | BT84: =IF(COUNTIF($I$29:$L$29,TRUE)=0,0,IF(SUMIF($I$29:$L$29,TRUE,BO84:BR84)/COUNTIF($I$29:$L$29,TRUE)>=$L$30,$F$20/2,$F$20/2*(SUMIF($I$29:$L$29,TRUE,BO84:BR84)/COUNTIF($I$29:$L$29,TRUE)/$L$30)))+IF(BS84>=10,$F$20/2,IF(BS84<(10),BS84*($F$20/2/10))) -> 0.1235708333 | BU84: =SUM(BA84+BB84+BC84+BD84+BE84+BF84+BK84+BG84+BH84+BI84+BJ84+BL84+BM84+BN84+BT84) -> 17.64857083 | BV84: =+BU84*$H$9 -> 5.882856944 | BW84: 1199.732023 | BX84: =BW84/X84 -> 1.003120421 | BY84: =IF(BX84>0,IF(BX84>=$DC$28,$DA$28,IF(BX84<$DC$28,$DA$29,0)),0) -> 1 | BZ84: 418.9199582 | CA84: =BZ84/X84 -> 0.3502675236 | CB84: =IF(CA84,$F$23,0) -> 1 | CC84: =IF(DS84>0,$F$24,0) -> 1 | CD84: 680.8062803 | CE84: =CD84/X84 -> 0.5692360203 | CF84: =+IF(CE84>=$K$4,$F$25,0) -> 1 | CG84: 102.4916388 | CH84: =IF(CG84>0,IF(CG84>=100,$F$26,IF(CG84<100,$F$26/2)),0) -> 1 | CI84: =SUM(DW84) -> 1 | CJ84: =IF(EA84>0,$F$28,0) -> 0 | CK84: =IF(DX84>0,$F$29,0) -> 0 | CL84: =IF(EC84>0,$F$30,0) -> 1 | CM84: =SUM(BY84,CB84,CH84,CC84,CF84,CI84,CJ84,CK84,CL84) -> 7 | CN84: =+CM84*$H$22 -> 2.333333333 | CO84: =SUM(AY84,BU84,CM84) -> 39.64857083 | CP84: =SUM(AZ84,BV84,CN84) -> 13.21619028 | CQ84: =IF(D84<($Z$13*1785),1,IF(D84<(($Z$14+$Z$13)*1785),2,IF(D84<(($Z$15+$Z$13+$Z$14)*1785),3,4))) -> 1 | CR84: =VLOOKUP(A84,Taul1!$F$6:$G$1718,2,FALSE) ->  | DA84: 0 | DB84: 0 | DC84: 1 | DD84: =SUM(DA84:DC84) -> 1 | DE84: 3 | DF84: 1 | DG84: 0 | DH84: 1 | DI84: 0 | DJ84: 0 | DK84: 5 | DL84: 0 | DM84: 0 | DN84: 2 | DP84: 1199.732023 | DQ84: 7 | DR84: 1 | DS84: 33 | DT84: 680.8062803 | DU84: =+IF(AA84>$K$8,$F$27/2,0) -> 1 | DV84: =+IF(AA84/Y84>1.5,$F$27/2,0) -> 0 | DW84: =SUM(DU84:DV84) -> 1 | DX84: 0 | DY84: 0 | DZ84: 0 | EA84: =SUM(DY84:DZ84) -> 0 | EC84: 1 | ED84: 0 | EG84: 10992
A85: =CONCATENATE(S85,"_",T85,"_",U85) -> 1421_2_0 | B85: 1 | C85: =CONCATENATE(S85,"_",T85) -> 1421_2 | D85: =RANK(CP85,$CP$37:$CP$1821) -> 49 | E85: 49 | F85: =E85-D85 -> 0 | G85: =CP85 -> 13.20315057 | H85: =AZ85 -> 5 | I85: =BV85 -> 5.5364839 | J85: =CN85 -> 2.666666667 | K85: =CQ85 -> 1 | L85: =B85-K85 -> 0 | M85: =HYPERLINK(CX85,"Gmaps") -> Gmaps | N85: =IF(Y85>$K$6,"LOPUT","VÄHÄ") -> LOPUT | O85: =IF(S85<40,"Valta",IF(S85<100,"Kanta",IF(S85<1000,"Seutu",IF(S85>999,"Yhdys")))) -> Yhdys | R85: Uusimaa | S85: 1421 | T85: 2 | U85: 0 | V85: 2 | W85: 15012 | X85: 15012 | Y85: 5852 | Z85: 193 | AA85: 5793 | AC85: 40 (6 %), 50 (20 %), 60 (33 %), 70 (21 %), 80 (19 %) | AF85: PK2 (95 %) | AI85: 0 | AJ85: 63 | AR85: =+IF(Y85>=$K$6,$F$5,($F$5/($K$6))*Y85) -> 9 | AS85: 238 | AV85: =+IF(AS85>=$L$15,$J$15,IF(AS85<($L$15),AS85*($J$15/($L$15)),)) -> 3 | AW85: 1636 | AX85: =+IF(AW85>=$L$11,$J$11,IF(AW85<($L$11),AW85*($J$11/($L$11)),)) -> 3 | AY85: =SUM(AR85,AV85,AX85) -> 15 | AZ85: =+AY85*$H$5 -> 5 | BA85: =+IF(Z85=0,0,IF(Z85>$K$7,$F$9,($F$9/$K$7)*Z85)) -> 8 | BB85: =IF(DD85>0,$F$10,0) -> 2 | BC85: =IF(DE85>0,$F$11,0) -> 1 | BD85: =IF(DF85>0,$F$12,0) -> 0 | BE85: =IF(DG85>0,$F$13,0) -> 0 | BF85: =IF(DI85>0,$F$14,IF(DH85>0,$F$14/2,0)) -> 2 | BG85: =+IF(DJ85>=$L$19,$J$19,IF(DJ85<($L$19),DJ85*($J$19/($L$19)),)) -> 0.04333333333 | BH85: =+IF(DK85>=$L$20,$J$20,IF(DK85<($L$20),DK85*($J$20/($L$20)),)) -> 0 | BI85: =+IF(DL85>=$L$21,$J$21,IF(DL85<($L$21),DL85*($J$21/($L$21)),)) -> 0 | BJ85: =+IF(DM85>=$L$22,$J$22,IF(DM85<($L$22),DM85*($J$22/($L$22)),)) -> 0 | BK85: =IF(DN85>0,$F$16,0) -> 2 | BL85: =+IF(DQ85>=$L$25,$J$25,IF(DQ85<($L$25),DQ85*($J$25/($L$25)),)) -> 1.333333333 | BM85: =IF(EG85>100000,$F$18,IF(EG85>0,$F$18/2,0)) -> 0 | BN85: =IF(ED85>0,$F$19,0) -> 0 | BO85: 0.546853 | BP85: 0.294189 | BQ85: 0.166434 | BR85: 0.052401 | BS85: 3.98405 | BT85: =IF(COUNTIF($I$29:$L$29,TRUE)=0,0,IF(SUMIF($I$29:$L$29,TRUE,BO85:BR85)/COUNTIF($I$29:$L$29,TRUE)>=$L$30,$F$20/2,$F$20/2*(SUMIF($I$29:$L$29,TRUE,BO85:BR85)/COUNTIF($I$29:$L$29,TRUE)/$L$30)))+IF(BS85>=10,$F$20/2,IF(BS85<(10),BS85*($F$20/2/10))) -> 0.2327850333 | BU85: =SUM(BA85+BB85+BC85+BD85+BE85+BF85+BK85+BG85+BH85+BI85+BJ85+BL85+BM85+BN85+BT85) -> 16.6094517 | BV85: =+BU85*$H$9 -> 5.5364839 | BW85: 8765.948162 | BX85: =BW85/X85 -> 0.5839294006 | BY85: =IF(BX85>0,IF(BX85>=$DC$28,$DA$28,IF(BX85<$DC$28,$DA$29,0)),0) -> 1 | BZ85: 14985.03459 | CA85: =BZ85/X85 -> 0.998203743 | CB85: =IF(CA85,$F$23,0) -> 1 | CC85: =IF(DS85>0,$F$24,0) -> 1 | CD85: 5496.33313 | CE85: =CD85/X85 -> 0.3661293052 | CF85: =+IF(CE85>=$K$4,$F$25,0) -> 0 | CG85: 206.6496136 | CH85: =IF(CG85>0,IF(CG85>=100,$F$26,IF(CG85<100,$F$26/2)),0) -> 1 | CI85: =SUM(DW85) -> 1 | CJ85: =IF(EA85>0,$F$28,0) -> 1 | CK85: =IF(DX85>0,$F$29,0) -> 1 | CL85: =IF(EC85>0,$F$30,0) -> 1 | CM85: =SUM(BY85,CB85,CH85,CC85,CF85,CI85,CJ85,CK85,CL85) -> 8 | CN85: =+CM85*$H$22 -> 2.666666667 | CO85: =SUM(AY85,BU85,CM85) -> 39.6094517 | CP85: =SUM(AZ85,BV85,CN85) -> 13.20315057 | CQ85: =IF(D85<($Z$13*1785),1,IF(D85<(($Z$14+$Z$13)*1785),2,IF(D85<(($Z$15+$Z$13+$Z$14)*1785),3,4))) -> 1 | CR85: =VLOOKUP(A85,Taul1!$F$6:$G$1718,2,FALSE) ->  | DA85: 1 | DB85: 0 | DC85: 0 | DD85: =SUM(DA85:DC85) -> 1 | DE85: 1 | DF85: 0 | DG85: 0 | DH85: 1 | DI85: 1 | DJ85: 26 | DK85: 0 | DL85: 0 | DM85: 0 | DN85: 1 | DP85: 8765.948162 | DQ85: 2 | DR85: 0 | DS85: 14 | DT85: 5496.33313 | DU85: =+IF(AA85>$K$8,$F$27/2,0) -> 1 | DV85: =+IF(AA85/Y85>1.5,$F$27/2,0) -> 0 | DW85: =SUM(DU85:DV85) -> 1 | DX85: 1 | DY85: 0 | DZ85: 1 | EA85: =SUM(DY85:DZ85) -> 1 | EC85: 1 | ED85: 0 | EG85: 0
A86: =CONCATENATE(S86,"_",T86,"_",U86) -> 2873_3_0 | B86: 1 | C86: =CONCATENATE(S86,"_",T86) -> 2873_3 | D86: =RANK(CP86,$CP$37:$CP$1821) -> 50 | E86: 50 | F86: =E86-D86 -> 0 | G86: =CP86 -> 13.1957265 | H86: =AZ86 -> 5 | I86: =BV86 -> 6.362393167 | J86: =CN86 -> 1.833333333 | K86: =CQ86 -> 1 | L86: =B86-K86 -> 0 | M86: =HYPERLINK(CX86,"Gmaps") -> Gmaps | N86: =IF(Y86>$K$6,"LOPUT","VÄHÄ") -> LOPUT | O86: =IF(S86<40,"Valta",IF(S86<100,"Kanta",IF(S86<1000,"Seutu",IF(S86>999,"Yhdys")))) -> Yhdys | R86: Kanta-Häme | S86: 2873 | T86: 3 | U86: 0 | V86: 3 | W86: 6141 | X86: 6141 | Y86: 1306 | Z86: 63 | AA86: 1646 | AC86: 50 (32 %), 60 (8 %), 70 (13 %), 80 (46 %) | AF86: PK2 (97 %) | AI86: 0.1858003582 | AJ86: 19 | AR86: =+IF(Y86>=$K$6,$F$5,($F$5/($K$6))*Y86) -> 9 | AS86: 71 | AV86: =+IF(AS86>=$L$15,$J$15,IF(AS86<($L$15),AS86*($J$15/($L$15)),)) -> 3 | AW86: 381 | AX86: =+IF(AW86>=$L$11,$J$11,IF(AW86<($L$11),AW86*($J$11/($L$11)),)) -> 3 | AY86: =SUM(AR86,AV86,AX86) -> 15 | AZ86: =+AY86*$H$5 -> 5 | BA86: =+IF(Z86=0,0,IF(Z86>$K$7,$F$9,($F$9/$K$7)*Z86)) -> 8 | BB86: =IF(DD86>0,$F$10,0) -> 0 | BC86: =IF(DE86>0,$F$11,0) -> 1 | BD86: =IF(DF86>0,$F$12,0) -> 1 | BE86: =IF(DG86>0,$F$13,0) -> 0 | BF86: =IF(DI86>0,$F$14,IF(DH86>0,$F$14/2,0)) -> 2 | BG86: =+IF(DJ86>=$L$19,$J$19,IF(DJ86<($L$19),DJ86*($J$19/($L$19)),)) -> 0.2416666667 | BH86: =+IF(DK86>=$L$20,$J$20,IF(DK86<($L$20),DK86*($J$20/($L$20)),)) -> 0.125 | BI86: =+IF(DL86>=$L$21,$J$21,IF(DL86<($L$21),DL86*($J$21/($L$21)),)) -> 0 | BJ86: =+IF(DM86>=$L$22,$J$22,IF(DM86<($L$22),DM86*($J$22/($L$22)),)) -> 0.4 | BK86: =IF(DN86>0,$F$16,0) -> 2 | BL86: =+IF(DQ86>=$L$25,$J$25,IF(DQ86<($L$25),DQ86*($J$25/($L$25)),)) -> 2 | BM86: =IF(EG86>100000,$F$18,IF(EG86>0,$F$18/2,0)) -> 0 | BN86: =IF(ED86>0,$F$19,0) -> 2 | BO86: 1.59039 | BP86: 2.87942 | BQ86: 3.30389 | BR86: 0.836891 | BS86: 1.22779 | BT86: =IF(COUNTIF($I$29:$L$29,TRUE)=0,0,IF(SUMIF($I$29:$L$29,TRUE,BO86:BR86)/COUNTIF($I$29:$L$29,TRUE)>=$L$30,$F$20/2,$F$20/2*(SUMIF($I$29:$L$29,TRUE,BO86:BR86)/COUNTIF($I$29:$L$29,TRUE)/$L$30)))+IF(BS86>=10,$F$20/2,IF(BS86<(10),BS86*($F$20/2/10))) -> 0.3205128333 | BU86: =SUM(BA86+BB86+BC86+BD86+BE86+BF86+BK86+BG86+BH86+BI86+BJ86+BL86+BM86+BN86+BT86) -> 19.0871795 | BV86: =+BU86*$H$9 -> 6.362393167 | BW86: 6108.289331 | BX86: =BW86/X86 -> 0.9946733971 | BY86: =IF(BX86>0,IF(BX86>=$DC$28,$DA$28,IF(BX86<$DC$28,$DA$29,0)),0) -> 1 | BZ86: 0 | CA86: =BZ86/X86 -> 0 | CB86: =IF(CA86,$F$23,0) -> 0 | CC86: =IF(DS86>0,$F$24,0) -> 1 | CD86: 847.9505697 | CE86: =CD86/X86 -> 0.13808021 | CF86: =+IF(CE86>=$K$4,$F$25,0) -> 0 | CG86: 81.97361993 | CH86: =IF(CG86>0,IF(CG86>=100,$F$26,IF(CG86<100,$F$26/2)),0) -> 0.5 | CI86: =SUM(DW86) -> 1 | CJ86: =IF(EA86>0,$F$28,0) -> 0 | CK86: =IF(DX86>0,$F$29,0) -> 1 | CL86: =IF(EC86>0,$F$30,0) -> 1 | CM86: =SUM(BY86,CB86,CH86,CC86,CF86,CI86,CJ86,CK86,CL86) -> 5.5 | CN86: =+CM86*$H$22 -> 1.833333333 | CO86: =SUM(AY86,BU86,CM86) -> 39.5871795 | CP86: =SUM(AZ86,BV86,CN86) -> 13.1957265 | CQ86: =IF(D86<($Z$13*1785),1,IF(D86<(($Z$14+$Z$13)*1785),2,IF(D86<(($Z$15+$Z$13+$Z$14)*1785),3,4))) -> 1 | CR86: =VLOOKUP(A86,Taul1!$F$6:$G$1718,2,FALSE) ->  | DA86: 0 | DB86: 0 | DC86: 0 | DD86: =SUM(DA86:DC86) -> 0 | DE86: 1 | DF86: 3 | DG86: 0 | DH86: 18 | DI86: 1 | DJ86: 145 | DK86: 25 | DL86: 0 | DM86: 24 | DN86: 1 | DP86: 6108.289331 | DQ86: 8 | DR86: 0 | DS86: 5 | DT86: 847.9505697 | DU86: =+IF(AA86>$K$8,$F$27/2,0) -> 1 | DV86: =+IF(AA86/Y86>1.5,$F$27/2,0) -> 0 | DW86: =SUM(DU86:DV86) -> 1 | DX86: 1 | DY86: 0 | DZ86: 0 | EA86: =SUM(DY86:DZ86) -> 0 | EC86: 1 | ED86: 2 | EG86: 0
A87: =CONCATENATE(S87,"_",T87,"_",U87) -> 24_2_0 | B87: 1 | C87: =CONCATENATE(S87,"_",T87) -> 24_2 | D87: =RANK(CP87,$CP$37:$CP$1821) -> 51 | E87: 51 | F87: =E87-D87 -> 0 | G87: =CP87 -> 13.16666667 | H87: =AZ87 -> 5 | I87: =BV87 -> 5.5 | J87: =CN87 -> 2.666666667 | K87: =CQ87 -> 1 | L87: =B87-K87 -> 0 | M87: =HYPERLINK(CX87,"Gmaps") -> Gmaps | N87: =IF(Y87>$K$6,"LOPUT","VÄHÄ") -> LOPUT | O87: =IF(S87<40,"Valta",IF(S87<100,"Kanta",IF(S87<1000,"Seutu",IF(S87>999,"Yhdys")))) -> Valta | R87: Päijät-Häme | S87: 24 | T87: 2 | U87: 0 | V87: 2 | W87: 5897 | X87: 5897 | Y87: 13726 | Z87: 530 | AA87: 17778 | AC87: 60 (62 %), 70 (18 %), 80 (20 %) | AF87: PK2 (100 %) | AI87: 0.004037808571 | AJ87: 178 | AR87: =+IF(Y87>=$K$6,$F$5,($F$5/($K$6))*Y87) -> 9 | AS87: 783 | AV87: =+IF(AS87>=$L$15,$J$15,IF(AS87<($L$15),AS87*($J$15/($L$15)),)) -> 3 | AW87: 4771 | AX87: =+IF(AW87>=$L$11,$J$11,IF(AW87<($L$11),AW87*($J$11/($L$11)),)) -> 3 | AY87: =SUM(AR87,AV87,AX87) -> 15 | AZ87: =+AY87*$H$5 -> 5 | BA87: =+IF(Z87=0,0,IF(Z87>$K$7,$F$9,($F$9/$K$7)*Z87)) -> 8 | BB87: =IF(DD87>0,$F$10,0) -> 2 | BC87: =IF(DE87>0,$F$11,0) -> 0 | BD87: =IF(DF87>0,$F$12,0) -> 0 | BE87: =IF(DG87>0,$F$13,0) -> 0 | BF87: =IF(DI87>0,$F$14,IF(DH87>0,$F$14/2,0)) -> 1 | BG87: =+IF(DJ87>=$L$19,$J$19,IF(DJ87<($L$19),DJ87*($J$19/($L$19)),)) -> 0 | BH87: =+IF(DK87>=$L$20,$J$20,IF(DK87<($L$20),DK87*($J$20/($L$20)),)) -> 0 | BI87: =+IF(DL87>=$L$21,$J$21,IF(DL87<($L$21),DL87*($J$21/($L$21)),)) -> 0 | BJ87: =+IF(DM87>=$L$22,$J$22,IF(DM87<($L$22),DM87*($J$22/($L$22)),)) -> 0 | BK87: =IF(DN87>0,$F$16,0) -> 0 | BL87: =+IF(DQ87>=$L$25,$J$25,IF(DQ87<($L$25),DQ87*($J$25/($L$25)),)) -> 2 | BM87: =IF(EG87>100000,$F$18,IF(EG87>0,$F$18/2,0)) -> 0.5 | BN87: =IF(ED87>0,$F$19,0) -> 2 | BO87: 6.26151 | BP87: 6.55788 | BQ87: 3.05613 | BR87: 5.3713 | BS87: 17.0435 | BT87: =IF(COUNTIF($I$29:$L$29,TRUE)=0,0,IF(SUMIF($I$29:$L$29,TRUE,BO87:BR87)/COUNTIF($I$29:$L$29,TRUE)>=$L$30,$F$20/2,$F$20/2*(SUMIF($I$29:$L$29,TRUE,BO87:BR87)/COUNTIF($I$29:$L$29,TRUE)/$L$30)))+IF(BS87>=10,$F$20/2,IF(BS87<(10),BS87*($F$20/2/10))) -> 1 | BU87: =SUM(BA87+BB87+BC87+BD87+BE87+BF87+BK87+BG87+BH87+BI87+BJ87+BL87+BM87+BN87+BT87) -> 16.5 | BV87: =+BU87*$H$9 -> 5.5 | BW87: 5883.063906 | BX87: =BW87/X87 -> 0.9976367485 | BY87: =IF(BX87>0,IF(BX87>=$DC$28,$DA$28,IF(BX87<$DC$28,$DA$29,0)),0) -> 1 | BZ87: 5883.063906 | CA87: =BZ87/X87 -> 0.9976367485 | CB87: =IF(CA87,$F$23,0) -> 1 | CC87: =IF(DS87>0,$F$24,0) -> 1 | CD87: 5378.1637 | CE87: =CD87/X87 -> 0.9120169068 | CF87: =+IF(CE87>=$K$4,$F$25,0) -> 1 | CG87: 468.1159912 | CH87: =IF(CG87>0,IF(CG87>=100,$F$26,IF(CG87<100,$F$26/2)),0) -> 1 | CI87: =SUM(DW87) -> 1 | CJ87: =IF(EA87>0,$F$28,0) -> 1 | CK87: =IF(DX87>0,$F$29,0) -> 0 | CL87: =IF(EC87>0,$F$30,0) -> 1 | CM87: =SUM(BY87,CB87,CH87,CC87,CF87,CI87,CJ87,CK87,CL87) -> 8 | CN87: =+CM87*$H$22 -> 2.666666667 | CO87: =SUM(AY87,BU87,CM87) -> 39.5 | CP87: =SUM(AZ87,BV87,CN87) -> 13.16666667 | CQ87: =IF(D87<($Z$13*1785),1,IF(D87<(($Z$14+$Z$13)*1785),2,IF(D87<(($Z$15+$Z$13+$Z$14)*1785),3,4))) -> 1 | CR87: =VLOOKUP(A87,Taul1!$F$6:$G$1718,2,FALSE) ->  | DA87: 0 | DB87: 0 | DC87: 1 | DD87: =SUM(DA87:DC87) -> 1 | DE87: 0 | DF87: 0 | DG87: 0 | DH87: 1 | DI87: 0 | DJ87: 0 | DK87: 0 | DL87: 0 | DM87: 0 | DN87: 0 | DP87: 5883.063906 | DQ87: 8 | DR87: 1 | DS87: 15 | DT87: 5378.1637 | DU87: =+IF(AA87>$K$8,$F$27/2,0) -> 1 | DV87: =+IF(AA87/Y87>1.5,$F$27/2,0) -> 0 | DW87: =SUM(DU87:DV87) -> 1 | DX87: 0 | DY87: 0 | DZ87: 1 | EA87: =SUM(DY87:DZ87) -> 1 | EC87: 1 | ED87: 4 | EG87: 31013
A88: =CONCATENATE(S88,"_",T88,"_",U88) -> 12_218_0 | B88: 1 | C88: =CONCATENATE(S88,"_",T88) -> 12_218 | D88: =RANK(CP88,$CP$37:$CP$1821) -> 52 | E88: 52 | F88: =E88-D88 -> 0 | G88: =CP88 -> 13.15388889 | H88: =AZ88 -> 5 | I88: =BV88 -> 6.320555556 | J88: =CN88 -> 1.833333333 | K88: =CQ88 -> 1 | L88: =B88-K88 -> 0 | M88: =HYPERLINK(CX88,"Gmaps") -> Gmaps | N88: =IF(Y88>$K$6,"LOPUT","VÄHÄ") -> LOPUT | O88: =IF(S88<40,"Valta",IF(S88<100,"Kanta",IF(S88<1000,"Seutu",IF(S88>999,"Yhdys")))) -> Valta | R88: Päijät-Häme | S88: 12 | T88: 218 | U88: 0 | V88: 218 | W88: 5157 | X88: 5157 | Y88: 5889 | Z88: 560 | AA88: 7017 | AC88: 80 (77 %), 100 (22 %) | AF88: PK1 (97 %) | AI88: 0 | AJ88: 330 | AR88: =+IF(Y88>=$K$6,$F$5,($F$5/($K$6))*Y88) -> 9 | AS88: 75 | AV88: =+IF(AS88>=$L$15,$J$15,IF(AS88<($L$15),AS88*($J$15/($L$15)),)) -> 3 | AW88: 2051 | AX88: =+IF(AW88>=$L$11,$J$11,IF(AW88<($L$11),AW88*($J$11/($L$11)),)) -> 3 | AY88: =SUM(AR88,AV88,AX88) -> 15 | AZ88: =+AY88*$H$5 -> 5 | BA88: =+IF(Z88=0,0,IF(Z88>$K$7,$F$9,($F$9/$K$7)*Z88)) -> 8 | BB88: =IF(DD88>0,$F$10,0) -> 2 | BC88: =IF(DE88>0,$F$11,0) -> 1 | BD88: =IF(DF88>0,$F$12,0) -> 1 | BE88: =IF(DG88>0,$F$13,0) -> 0 | BF88: =IF(DI88>0,$F$14,IF(DH88>0,$F$14/2,0)) -> 2 | BG88: =+IF(DJ88>=$L$19,$J$19,IF(DJ88<($L$19),DJ88*($J$19/($L$19)),)) -> 0.5 | BH88: =+IF(DK88>=$L$20,$J$20,IF(DK88<($L$20),DK88*($J$20/($L$20)),)) -> 0.295 | BI88: =+IF(DL88>=$L$21,$J$21,IF(DL88<($L$21),DL88*($J$21/($L$21)),)) -> 0.5 | BJ88: =+IF(DM88>=$L$22,$J$22,IF(DM88<($L$22),DM88*($J$22/($L$22)),)) -> 0 | BK88: =IF(DN88>0,$F$16,0) -> 0 | BL88: =+IF(DQ88>=$L$25,$J$25,IF(DQ88<($L$25),DQ88*($J$25/($L$25)),)) -> 0.6666666667 | BM88: =IF(EG88>100000,$F$18,IF(EG88>0,$F$18/2,0)) -> 0 | BN88: =IF(ED88>0,$F$19,0) -> 2 | BO88: 21.5192 | BP88: 27.4865 | BQ88: 18.6758 | BR88: 15.6068 | BS88: 26.392 | BT88: =IF(COUNTIF($I$29:$L$29,TRUE)=0,0,IF(SUMIF($I$29:$L$29,TRUE,BO88:BR88)/COUNTIF($I$29:$L$29,TRUE)>=$L$30,$F$20/2,$F$20/2*(SUMIF($I$29:$L$29,TRUE,BO88:BR88)/COUNTIF($I$29:$L$29,TRUE)/$L$30)))+IF(BS88>=10,$F$20/2,IF(BS88<(10),BS88*($F$20/2/10))) -> 1 | BU88: =SUM(BA88+BB88+BC88+BD88+BE88+BF88+BK88+BG88+BH88+BI88+BJ88+BL88+BM88+BN88+BT88) -> 18.96166667 | BV88: =+BU88*$H$9 -> 6.320555556 | BW88: 3720.936198 | BX88: =BW88/X88 -> 0.721531161 | BY88: =IF(BX88>0,IF(BX88>=$DC$28,$DA$28,IF(BX88<$DC$28,$DA$29,0)),0) -> 1 | BZ88: 5149.025716 | CA88: =BZ88/X88 -> 0.9984536971 | CB88: =IF(CA88,$F$23,0) -> 1 | CC88: =IF(DS88>0,$F$24,0) -> 1 | CD88: 1252.027145 | CE88: =CD88/X88 -> 0.2427820719 | CF88: =+IF(CE88>=$K$4,$F$25,0) -> 0 | CG88: 61.29765367 | CH88: =IF(CG88>0,IF(CG88>=100,$F$26,IF(CG88<100,$F$26/2)),0) -> 0.5 | CI88: =SUM(DW88) -> 1 | CJ88: =IF(EA88>0,$F$28,0) -> 0 | CK88: =IF(DX88>0,$F$29,0) -> 0 | CL88: =IF(EC88>0,$F$30,0) -> 1 | CM88: =SUM(BY88,CB88,CH88,CC88,CF88,CI88,CJ88,CK88,CL88) -> 5.5 | CN88: =+CM88*$H$22 -> 1.833333333 | CO88: =SUM(AY88,BU88,CM88) -> 39.46166667 | CP88: =SUM(AZ88,BV88,CN88) -> 13.15388889 | CQ88: =IF(D88<($Z$13*1785),1,IF(D88<(($Z$14+$Z$13)*1785),2,IF(D88<(($Z$15+$Z$13+$Z$14)*1785),3,4))) -> 1 | CR88: =VLOOKUP(A88,Taul1!$F$6:$G$1718,2,FALSE) ->  | DA88: 0 | DB88: 1 | DC88: 10 | DD88: =SUM(DA88:DC88) -> 11 | DE88: 1 | DF88: 3 | DG88: 0 | DH88: 32 | DI88: 2 | DJ88: 388 | DK88: 59 | DL88: 2590 | DM88: 0 | DN88: 0 | DP88: 3720.936198 | DQ88: 1 | DR88: 0 | DS88: 2 | DT88: 1252.027145 | DU88: =+IF(AA88>$K$8,$F$27/2,0) -> 1 | DV88: =+IF(AA88/Y88>1.5,$F$27/2,0) -> 0 | DW88: =SUM(DU88:DV88) -> 1 | DX88: 0 | DY88: 0 | DZ88: 0 | EA88: =SUM(DY88:DZ88) -> 0 | EC88: 1 | ED88: 1 | EG88: 0
A89: =CONCATENATE(S89,"_",T89,"_",U89) -> 295_4_0 | B89: 1 | C89: =CONCATENATE(S89,"_",T89) -> 295_4 | D89: =RANK(CP89,$CP$37:$CP$1821) -> 53 | E89: 53 | F89: =E89-D89 -> 0 | G89: =CP89 -> 13.143 | H89: =AZ89 -> 4 | I89: =BV89 -> 6.809666667 | J89: =CN89 -> 2.333333333 | K89: =CQ89 -> 1 | L89: =B89-K89 -> 0 | M89: =HYPERLINK(CX89,"Gmaps") -> Gmaps | N89: =IF(Y89>$K$6,"LOPUT","VÄHÄ") -> LOPUT | O89: =IF(S89<40,"Valta",IF(S89<100,"Kanta",IF(S89<1000,"Seutu",IF(S89>999,"Yhdys")))) -> Seutu | R89: Päijät-Häme | S89: 295 | T89: 4 | U89: 0 | V89: 4 | W89: 5206 | X89: 5206 | Y89: 2396 | Z89: 139 | AA89: 2619 | AC89: 40 (10 %), 50 (49 %), 60 (41 %) | AF89: PK2 (100 %) | AI89: 0.07270083606 | AJ89: 51 | AR89: =+IF(Y89>=$K$6,$F$5,($F$5/($K$6))*Y89) -> 9 | AS89: 0 | AV89: =+IF(AS89>=$L$15,$J$15,IF(AS89<($L$15),AS89*($J$15/($L$15)),)) -> 0 | AW89: 884 | AX89: =+IF(AW89>=$L$11,$J$11,IF(AW89<($L$11),AW89*($J$11/($L$11)),)) -> 3 | AY89: =SUM(AR89,AV89,AX89) -> 12 | AZ89: =+AY89*$H$5 -> 4 | BA89: =+IF(Z89=0,0,IF(Z89>$K$7,$F$9,($F$9/$K$7)*Z89)) -> 8 | BB89: =IF(DD89>0,$F$10,0) -> 2 | BC89: =IF(DE89>0,$F$11,0) -> 1 | BD89: =IF(DF89>0,$F$12,0) -> 1 | BE89: =IF(DG89>0,$F$13,0) -> 0 | BF89: =IF(DI89>0,$F$14,IF(DH89>0,$F$14/2,0)) -> 2 | BG89: =+IF(DJ89>=$L$19,$J$19,IF(DJ89<($L$19),DJ89*($J$19/($L$19)),)) -> 0.42 | BH89: =+IF(DK89>=$L$20,$J$20,IF(DK89<($L$20),DK89*($J$20/($L$20)),)) -> 0.5 | BI89: =+IF(DL89>=$L$21,$J$21,IF(DL89<($L$21),DL89*($J$21/($L$21)),)) -> 0.009 | BJ89: =+IF(DM89>=$L$22,$J$22,IF(DM89<($L$22),DM89*($J$22/($L$22)),)) -> 0 | BK89: =IF(DN89>0,$F$16,0) -> 0 | BL89: =+IF(DQ89>=$L$25,$J$25,IF(DQ89<($L$25),DQ89*($J$25/($L$25)),)) -> 2 | BM89: =IF(EG89>100000,$F$18,IF(EG89>0,$F$18/2,0)) -> 0.5 | BN89: =IF(ED89>0,$F$19,0) -> 2 | BO89: 10.6054 | BP89: 18.0309 | BQ89: 12.833 | BR89: 9.16925 | BS89: 10.7367 | BT89: =IF(COUNTIF($I$29:$L$29,TRUE)=0,0,IF(SUMIF($I$29:$L$29,TRUE,BO89:BR89)/COUNTIF($I$29:$L$29,TRUE)>=$L$30,$F$20/2,$F$20/2*(SUMIF($I$29:$L$29,TRUE,BO89:BR89)/COUNTIF($I$29:$L$29,TRUE)/$L$30)))+IF(BS89>=10,$F$20/2,IF(BS89<(10),BS89*($F$20/2/10))) -> 1 | BU89: =SUM(BA89+BB89+BC89+BD89+BE89+BF89+BK89+BG89+BH89+BI89+BJ89+BL89+BM89+BN89+BT89) -> 20.429 | BV89: =+BU89*$H$9 -> 6.809666667 | BW89: 2640.323538 | BX89: =BW89/X89 -> 0.5071693312 | BY89: =IF(BX89>0,IF(BX89>=$DC$28,$DA$28,IF(BX89<$DC$28,$DA$29,0)),0) -> 1 | BZ89: 0 | CA89: =BZ89/X89 -> 0 | CB89: =IF(CA89,$F$23,0) -> 0 | CC89: =IF(DS89>0,$F$24,0) -> 1 | CD89: 5204.68735 | CE89: =CD89/X89 -> 0.9997478583 | CF89: =+IF(CE89>=$K$4,$F$25,0) -> 1 | CG89: 265.6715328 | CH89: =IF(CG89>0,IF(CG89>=100,$F$26,IF(CG89<100,$F$26/2)),0) -> 1 | CI89: =SUM(DW89) -> 1 | CJ89: =IF(EA89>0,$F$28,0) -> 1 | CK89: =IF(DX89>0,$F$29,0) -> 0 | CL89: =IF(EC89>0,$F$30,0) -> 1 | CM89: =SUM(BY89,CB89,CH89,CC89,CF89,CI89,CJ89,CK89,CL89) -> 7 | CN89: =+CM89*$H$22 -> 2.333333333 | CO89: =SUM(AY89,BU89,CM89) -> 39.429 | CP89: =SUM(AZ89,BV89,CN89) -> 13.143 | CQ89: =IF(D89<($Z$13*1785),1,IF(D89<(($Z$14+$Z$13)*1785),2,IF(D89<(($Z$15+$Z$13+$Z$14)*1785),3,4))) -> 1 | CR89: =VLOOKUP(A89,Taul1!$F$6:$G$1718,2,FALSE) ->  | DA89: 0 | DB89: 0 | DC89: 5 | DD89: =SUM(DA89:DC89) -> 5 | DE89: 1 | DF89: 10 | DG89: 0 | DH89: 13 | DI89: 2 | DJ89: 252 | DK89: 107 | DL89: 18 | DM89: 0 | DN89: 0 | DP89: 2640.323538 | DQ89: 5 | DR89: 1 | DS89: 52 | DT89: 5204.68735 | DU89: =+IF(AA89>$K$8,$F$27/2,0) -> 1 | DV89: =+IF(AA89/Y89>1.5,$F$27/2,0) -> 0 | DW89: =SUM(DU89:DV89) -> 1 | DX89: 0 | DY89: 0 | DZ89: 1 | EA89: =SUM(DY89:DZ89) -> 1 | EC89: 1 | ED89: 2 | EG89: 12161
A90: =CONCATENATE(S90,"_",T90,"_",U90) -> 290_12_0 | B90: 1 | C90: =CONCATENATE(S90,"_",T90) -> 290_12 | D90: =RANK(CP90,$CP$37:$CP$1821) -> 54 | E90: 54 | F90: =E90-D90 -> 0 | G90: =CP90 -> 13.11485467 | H90: =AZ90 -> 5 | I90: =BV90 -> 5.448188 | J90: =CN90 -> 2.666666667 | K90: =CQ90 -> 1 | L90: =B90-K90 -> 0 | M90: =HYPERLINK(CX90,"Gmaps") -> Gmaps | N90: =IF(Y90>$K$6,"LOPUT","VÄHÄ") -> LOPUT | O90: =IF(S90<40,"Valta",IF(S90<100,"Kanta",IF(S90<1000,"Seutu",IF(S90>999,"Yhdys")))) -> Seutu | R90: Kanta-Häme | S90: 290 | T90: 12 | U90: 0 | V90: 12 | W90: 5627 | X90: 5627 | Y90: 5678 | Z90: 245 | AA90: 5914 | AC90: 40 (12 %), 50 (8 %), 60 (34 %), 80 (46 %) | AF90: PK2 (97 %) | AI90: 0.2532973621 | AJ90: 61 | AR90: =+IF(Y90>=$K$6,$F$5,($F$5/($K$6))*Y90) -> 9 | AS90: 168 | AV90: =+IF(AS90>=$L$15,$J$15,IF(AS90<($L$15),AS90*($J$15/($L$15)),)) -> 3 | AW90: 2440 | AX90: =+IF(AW90>=$L$11,$J$11,IF(AW90<($L$11),AW90*($J$11/($L$11)),)) -> 3 | AY90: =SUM(AR90,AV90,AX90) -> 15 | AZ90: =+AY90*$H$5 -> 5 | BA90: =+IF(Z90=0,0,IF(Z90>$K$7,$F$9,($F$9/$K$7)*Z90)) -> 8 | BB90: =IF(DD90>0,$F$10,0) -> 0 | BC90: =IF(DE90>0,$F$11,0) -> 1 | BD90: =IF(DF90>0,$F$12,0) -> 0 | BE90: =IF(DG90>0,$F$13,0) -> 0 | BF90: =IF(DI90>0,$F$14,IF(DH90>0,$F$14/2,0)) -> 1 | BG90: =+IF(DJ90>=$L$19,$J$19,IF(DJ90<($L$19),DJ90*($J$19/($L$19)),)) -> 0 | BH90: =+IF(DK90>=$L$20,$J$20,IF(DK90<($L$20),DK90*($J$20/($L$20)),)) -> 0 | BI90: =+IF(DL90>=$L$21,$J$21,IF(DL90<($L$21),DL90*($J$21/($L$21)),)) -> 0 | BJ90: =+IF(DM90>=$L$22,$J$22,IF(DM90<($L$22),DM90*($J$22/($L$22)),)) -> 0 | BK90: =IF(DN90>0,$F$16,0) -> 2 | BL90: =+IF(DQ90>=$L$25,$J$25,IF(DQ90<($L$25),DQ90*($J$25/($L$25)),)) -> 2 | BM90: =IF(EG90>100000,$F$18,IF(EG90>0,$F$18/2,0)) -> 0 | BN90: =IF(ED90>0,$F$19,0) -> 2 | BO90: 2.27632 | BP90: 3.91299 | BQ90: 1.17272 | BR90: 0.458673 | BS90: 1.98326 | BT90: =IF(COUNTIF($I$29:$L$29,TRUE)=0,0,IF(SUMIF($I$29:$L$29,TRUE,BO90:BR90)/COUNTIF($I$29:$L$29,TRUE)>=$L$30,$F$20/2,$F$20/2*(SUMIF($I$29:$L$29,TRUE,BO90:BR90)/COUNTIF($I$29:$L$29,TRUE)/$L$30)))+IF(BS90>=10,$F$20/2,IF(BS90<(10),BS90*($F$20/2/10))) -> 0.344564 | BU90: =SUM(BA90+BB90+BC90+BD90+BE90+BF90+BK90+BG90+BH90+BI90+BJ90+BL90+BM90+BN90+BT90) -> 16.344564 | BV90: =+BU90*$H$9 -> 5.448188 | BW90: 5610.052682 | BX90: =BW90/X90 -> 0.9969882142 | BY90: =IF(BX90>0,IF(BX90>=$DC$28,$DA$28,IF(BX90<$DC$28,$DA$29,0)),0) -> 1 | BZ90: 5610.052681 | CA90: =BZ90/X90 -> 0.9969882142 | CB90: =IF(CA90,$F$23,0) -> 1 | CC90: =IF(DS90>0,$F$24,0) -> 1 | CD90: 3415.491032 | CE90: =CD90/X90 -> 0.6069825896 | CF90: =+IF(CE90>=$K$4,$F$25,0) -> 1 | CG90: 331.47201 | CH90: =IF(CG90>0,IF(CG90>=100,$F$26,IF(CG90<100,$F$26/2)),0) -> 1 | CI90: =SUM(DW90) -> 1 | CJ90: =IF(EA90>0,$F$28,0) -> 1 | CK90: =IF(DX90>0,$F$29,0) -> 0 | CL90: =IF(EC90>0,$F$30,0) -> 1 | CM90: =SUM(BY90,CB90,CH90,CC90,CF90,CI90,CJ90,CK90,CL90) -> 8 | CN90: =+CM90*$H$22 -> 2.666666667 | CO90: =SUM(AY90,BU90,CM90) -> 39.344564 | CP90: =SUM(AZ90,BV90,CN90) -> 13.11485467 | CQ90: =IF(D90<($Z$13*1785),1,IF(D90<(($Z$14+$Z$13)*1785),2,IF(D90<(($Z$15+$Z$13+$Z$14)*1785),3,4))) -> 1 | CR90: =VLOOKUP(A90,Taul1!$F$6:$G$1718,2,FALSE) ->  | DA90: 0 | DB90: 0 | DC90: 0 | DD90: =SUM(DA90:DC90) -> 0 | DE90: 1 | DF90: 0 | DG90: 0 | DH90: 5 | DI90: 0 | DJ90: 0 | DK90: 0 | DL90: 0 | DM90: 0 | DN90: 3 | DP90: 5610.052682 | DQ90: 5 | DR90: 0 | DS90: 12 | DT90: 3415.491032 | DU90: =+IF(AA90>$K$8,$F$27/2,0) -> 1 | DV90: =+IF(AA90/Y90>1.5,$F$27/2,0) -> 0 | DW90: =SUM(DU90:DV90) -> 1 | DX90: 0 | DY90: 0 | DZ90: 1 | EA90: =SUM(DY90:DZ90) -> 1 | EC90: 1 | ED90: 4 | EG90: 0
A91: =CONCATENATE(S91,"_",T91,"_",U91) -> 45_4_0 | B91: 1 | C91: =CONCATENATE(S91,"_",T91) -> 45_4 | D91: =RANK(CP91,$CP$37:$CP$1821) -> 55 | E91: 55 | F91: =E91-D91 -> 0 | G91: =CP91 -> 13.07367467 | H91: =AZ91 -> 5 | I91: =BV91 -> 5.740341333 | J91: =CN91 -> 2.333333333 | K91: =CQ91 -> 1 | L91: =B91-K91 -> 0 | M91: =HYPERLINK(CX91,"Gmaps") -> Gmaps | N91: =IF(Y91>$K$6,"LOPUT","VÄHÄ") -> LOPUT | O91: =IF(S91<40,"Valta",IF(S91<100,"Kanta",IF(S91<1000,"Seutu",IF(S91>999,"Yhdys")))) -> Kanta | R91: Uusimaa | S91: 45 | T91: 4 | U91: 0 | V91: 4 | W91: 3428 | X91: 3428 | Y91: 24264 | Z91: 861 | AA91: 26481 | AC91: 50 (33 %), 60 (66 %) | AF91: PK1 (99 %) | AI91: 0.01643006413 | AJ91: 306 | AR91: =+IF(Y91>=$K$6,$F$5,($F$5/($K$6))*Y91) -> 9 | AS91: 1323 | AV91: =+IF(AS91>=$L$15,$J$15,IF(AS91<($L$15),AS91*($J$15/($L$15)),)) -> 3 | AW91: 11634 | AX91: =+IF(AW91>=$L$11,$J$11,IF(AW91<($L$11),AW91*($J$11/($L$11)),)) -> 3 | AY91: =SUM(AR91,AV91,AX91) -> 15 | AZ91: =+AY91*$H$5 -> 5 | BA91: =+IF(Z91=0,0,IF(Z91>$K$7,$F$9,($F$9/$K$7)*Z91)) -> 8 | BB91: =IF(DD91>0,$F$10,0) -> 0 | BC91: =IF(DE91>0,$F$11,0) -> 1 | BD91: =IF(DF91>0,$F$12,0) -> 1 | BE91: =IF(DG91>0,$F$13,0) -> 0 | BF91: =IF(DI91>0,$F$14,IF(DH91>0,$F$14/2,0)) -> 0 | BG91: =+IF(DJ91>=$L$19,$J$19,IF(DJ91<($L$19),DJ91*($J$19/($L$19)),)) -> 0 | BH91: =+IF(DK91>=$L$20,$J$20,IF(DK91<($L$20),DK91*($J$20/($L$20)),)) -> 0 | BI91: =+IF(DL91>=$L$21,$J$21,IF(DL91<($L$21),DL91*($J$21/($L$21)),)) -> 0 | BJ91: =+IF(DM91>=$L$22,$J$22,IF(DM91<($L$22),DM91*($J$22/($L$22)),)) -> 0 | BK91: =IF(DN91>0,$F$16,0) -> 2 | BL91: =+IF(DQ91>=$L$25,$J$25,IF(DQ91<($L$25),DQ91*($J$25/($L$25)),)) -> 2 | BM91: =IF(EG91>100000,$F$18,IF(EG91>0,$F$18/2,0)) -> 1 | BN91: =IF(ED91>0,$F$19,0) -> 2 | BO91: 0.264461 | BP91: 0.348688 | BQ91: 0.105711 | BR91: 0.0873367 | BS91: 3.94124 | BT91: =IF(COUNTIF($I$29:$L$29,TRUE)=0,0,IF(SUMIF($I$29:$L$29,TRUE,BO91:BR91)/COUNTIF($I$29:$L$29,TRUE)>=$L$30,$F$20/2,$F$20/2*(SUMIF($I$29:$L$29,TRUE,BO91:BR91)/COUNTIF($I$29:$L$29,TRUE)/$L$30)))+IF(BS91>=10,$F$20/2,IF(BS91<(10),BS91*($F$20/2/10))) -> 0.221024 | BU91: =SUM(BA91+BB91+BC91+BD91+BE91+BF91+BK91+BG91+BH91+BI91+BJ91+BL91+BM91+BN91+BT91) -> 17.221024 | BV91: =+BU91*$H$9 -> 5.740341333 | BW91: 3409.124687 | BX91: =BW91/X91 -> 0.9944937826 | BY91: =IF(BX91>0,IF(BX91>=$DC$28,$DA$28,IF(BX91<$DC$28,$DA$29,0)),0) -> 1 | BZ91: 3409.124687 | CA91: =BZ91/X91 -> 0.9944937826 | CB91: =IF(CA91,$F$23,0) -> 1 | CC91: =IF(DS91>0,$F$24,0) -> 1 | CD91: 3161.620083 | CE91: =CD91/X91 -> 0.9222929062 | CF91: =+IF(CE91>=$K$4,$F$25,0) -> 1 | CG91: 958.5775963 | CH91: =IF(CG91>0,IF(CG91>=100,$F$26,IF(CG91<100,$F$26/2)),0) -> 1 | CI91: =SUM(DW91) -> 1 | CJ91: =IF(EA91>0,$F$28,0) -> 0 | CK91: =IF(DX91>0,$F$29,0) -> 0 | CL91: =IF(EC91>0,$F$30,0) -> 1 | CM91: =SUM(BY91,CB91,CH91,CC91,CF91,CI91,CJ91,CK91,CL91) -> 7 | CN91: =+CM91*$H$22 -> 2.333333333 | CO91: =SUM(AY91,BU91,CM91) -> 39.221024 | CP91: =SUM(AZ91,BV91,CN91) -> 13.07367467 | CQ91: =IF(D91<($Z$13*1785),1,IF(D91<(($Z$14+$Z$13)*1785),2,IF(D91<(($Z$15+$Z$13+$Z$14)*1785),3,4))) -> 1 | CR91: =VLOOKUP(A91,Taul1!$F$6:$G$1718,2,FALSE) ->  | DA91: 0 | DB91: 0 | DC91: 0 | DD91: =SUM(DA91:DC91) -> 0 | DE91: 1 | DF91: 4 | DG91: 0 | DH91: 0 | DI91: 0 | DJ91: 0 | DK91: 0 | DL91: 0 | DM91: 0 | DN91: 3 | DP91: 3409.124687 | DQ91: 16 | DR91: 2 | DS91: 2 | DT91: 3161.620083 | DU91: =+IF(AA91>$K$8,$F$27/2,0) -> 1 | DV91: =+IF(AA91/Y91>1.5,$F$27/2,0) -> 0 | DW91: =SUM(DU91:DV91) -> 1 | DX91: 0 | DY91: 0 | DZ91: 0 | EA91: =SUM(DY91:DZ91) -> 0 | EC91: 1 | ED91: 5 | EG91: 100306
A92: =CONCATENATE(S92,"_",T92,"_",U92) -> 140_11_0 | B92: 1 | C92: =CONCATENATE(S92,"_",T92) -> 140_11 | D92: =RANK(CP92,$CP$37:$CP$1821) -> 56 | E92: 56 | F92: =E92-D92 -> 0 | G92: =CP92 -> 13.07183016 | H92: =AZ92 -> 5 | I92: =BV92 -> 5.738496822 | J92: =CN92 -> 2.333333333 | K92: =CQ92 -> 1 | L92: =B92-K92 -> 0 | M92: =HYPERLINK(CX92,"Gmaps") -> Gmaps | N92: =IF(Y92>$K$6,"LOPUT","VÄHÄ") -> LOPUT | O92: =IF(S92<40,"Valta",IF(S92<100,"Kanta",IF(S92<1000,"Seutu",IF(S92>999,"Yhdys")))) -> Seutu | R92: Uusimaa | S92: 140 | T92: 11 | U92: 0 | V92: 11 | W92: 4590 | X92: 4590 | Y92: 4400 | Z92: 250 | AA92: 4356 | AC92: 50 (40 %), 60 (20 %), 80 (40 %) | AF92: PK2 (99 %) | AI92: 0.08054772453 | AJ92: 86 | AR92: =+IF(Y92>=$K$6,$F$5,($F$5/($K$6))*Y92) -> 9 | AS92: 100 | AV92: =+IF(AS92>=$L$15,$J$15,IF(AS92<($L$15),AS92*($J$15/($L$15)),)) -> 3 | AW92: 814 | AX92: =+IF(AW92>=$L$11,$J$11,IF(AW92<($L$11),AW92*($J$11/($L$11)),)) -> 3 | AY92: =SUM(AR92,AV92,AX92) -> 15 | AZ92: =+AY92*$H$5 -> 5 | BA92: =+IF(Z92=0,0,IF(Z92>$K$7,$F$9,($F$9/$K$7)*Z92)) -> 8 | BB92: =IF(DD92>0,$F$10,0) -> 2 | BC92: =IF(DE92>0,$F$11,0) -> 1 | BD92: =IF(DF92>0,$F$12,0) -> 1 | BE92: =IF(DG92>0,$F$13,0) -> 0 | BF92: =IF(DI92>0,$F$14,IF(DH92>0,$F$14/2,0)) -> 2 | BG92: =+IF(DJ92>=$L$19,$J$19,IF(DJ92<($L$19),DJ92*($J$19/($L$19)),)) -> 0 | BH92: =+IF(DK92>=$L$20,$J$20,IF(DK92<($L$20),DK92*($J$20/($L$20)),)) -> 0 | BI92: =+IF(DL92>=$L$21,$J$21,IF(DL92<($L$21),DL92*($J$21/($L$21)),)) -> 0 | BJ92: =+IF(DM92>=$L$22,$J$22,IF(DM92<($L$22),DM92*($J$22/($L$22)),)) -> 0 | BK92: =IF(DN92>0,$F$16,0) -> 0 | BL92: =+IF(DQ92>=$L$25,$J$25,IF(DQ92<($L$25),DQ92*($J$25/($L$25)),)) -> 0.6666666667 | BM92: =IF(EG92>100000,$F$18,IF(EG92>0,$F$18/2,0)) -> 0 | BN92: =IF(ED92>0,$F$19,0) -> 2 | BO92: 0.830301 | BP92: 0.318875 | BQ92: 0.315538 | BR92: 0.237599 | BS92: 17.3569 | BT92: =IF(COUNTIF($I$29:$L$29,TRUE)=0,0,IF(SUMIF($I$29:$L$29,TRUE,BO92:BR92)/COUNTIF($I$29:$L$29,TRUE)>=$L$30,$F$20/2,$F$20/2*(SUMIF($I$29:$L$29,TRUE,BO92:BR92)/COUNTIF($I$29:$L$29,TRUE)/$L$30)))+IF(BS92>=10,$F$20/2,IF(BS92<(10),BS92*($F$20/2/10))) -> 0.5488238 | BU92: =SUM(BA92+BB92+BC92+BD92+BE92+BF92+BK92+BG92+BH92+BI92+BJ92+BL92+BM92+BN92+BT92) -> 17.21549047 | BV92: =+BU92*$H$9 -> 5.738496822 | BW92: 2078.413417 | BX92: =BW92/X92 -> 0.4528133807 | BY92: =IF(BX92>0,IF(BX92>=$DC$28,$DA$28,IF(BX92<$DC$28,$DA$29,0)),0) -> 0.5 | BZ92: 4580.32734 | CA92: =BZ92/X92 -> 0.9978926666 | CB92: =IF(CA92,$F$23,0) -> 1 | CC92: =IF(DS92>0,$F$24,0) -> 1 | CD92: 2632.697753 | CE92: =CD92/X92 -> 0.5735724953 | CF92: =+IF(CE92>=$K$4,$F$25,0) -> 1 | CG92: 81.10457516 | CH92: =IF(CG92>0,IF(CG92>=100,$F$26,IF(CG92<100,$F$26/2)),0) -> 0.5 | CI92: =SUM(DW92) -> 1 | CJ92: =IF(EA92>0,$F$28,0) -> 1 | CK92: =IF(DX92>0,$F$29,0) -> 0 | CL92: =IF(EC92>0,$F$30,0) -> 1 | CM92: =SUM(BY92,CB92,CH92,CC92,CF92,CI92,CJ92,CK92,CL92) -> 7 | CN92: =+CM92*$H$22 -> 2.333333333 | CO92: =SUM(AY92,BU92,CM92) -> 39.21549047 | CP92: =SUM(AZ92,BV92,CN92) -> 13.07183016 | CQ92: =IF(D92<($Z$13*1785),1,IF(D92<(($Z$14+$Z$13)*1785),2,IF(D92<(($Z$15+$Z$13+$Z$14)*1785),3,4))) -> 1 | CR92: =VLOOKUP(A92,Taul1!$F$6:$G$1718,2,FALSE) ->  | DA92: 0 | DB92: 0 | DC92: 2 | DD92: =SUM(DA92:DC92) -> 2 | DE92: 1 | DF92: 2 | DG92: 0 | DH92: 5 | DI92: 4 | DJ92: 0 | DK92: 0 | DL92: 0 | DM92: 0 | DN92: 0 | DP92: 2078.413417 | DQ92: 1 | DR92: 0 | DS92: 4 | DT92: 2632.697753 | DU92: =+IF(AA92>$K$8,$F$27/2,0) -> 1 | DV92: =+IF(AA92/Y92>1.5,$F$27/2,0) -> 0 | DW92: =SUM(DU92:DV92) -> 1 | DX92: 0 | DY92: 0 | DZ92: 1 | EA92: =SUM(DY92:DZ92) -> 1 | EC92: 1 | ED92: 2 | EG92: 0
A93: =CONCATENATE(S93,"_",T93,"_",U93) -> 167_5_0 | B93: 1 | C93: =CONCATENATE(S93,"_",T93) -> 167_5 | D93: =RANK(CP93,$CP$37:$CP$1821) -> 57 | E93: 57 | F93: =E93-D93 -> 0 | G93: =CP93 -> 13.0683375 | H93: =AZ93 -> 5 | I93: =BV93 -> 5.735004167 | J93: =CN93 -> 2.333333333 | K93: =CQ93 -> 1 | L93: =B93-K93 -> 0 | M93: =HYPERLINK(CX93,"Gmaps") -> Gmaps | N93: =IF(Y93>$K$6,"LOPUT","VÄHÄ") -> LOPUT | O93: =IF(S93<40,"Valta",IF(S93<100,"Kanta",IF(S93<1000,"Seutu",IF(S93>999,"Yhdys")))) -> Seutu | R93: Päijät-Häme | S93: 167 | T93: 5 | U93: 0 | V93: 5 | W93: 4613 | X93: 4613 | Y93: 7401 | Z93: 400 | AA93: 7371 | AC93: 50 (32 %), 60 (5 %), 80 (63 %) | AF93: PK2 (98 %) | AI93: 0.002818122697 | AJ93: 106 | AR93: =+IF(Y93>=$K$6,$F$5,($F$5/($K$6))*Y93) -> 9 | AS93: 483 | AV93: =+IF(AS93>=$L$15,$J$15,IF(AS93<($L$15),AS93*($J$15/($L$15)),)) -> 3 | AW93: 2637 | AX93: =+IF(AW93>=$L$11,$J$11,IF(AW93<($L$11),AW93*($J$11/($L$11)),)) -> 3 | AY93: =SUM(AR93,AV93,AX93) -> 15 | AZ93: =+AY93*$H$5 -> 5 | BA93: =+IF(Z93=0,0,IF(Z93>$K$7,$F$9,($F$9/$K$7)*Z93)) -> 8 | BB93: =IF(DD93>0,$F$10,0) -> 2 | BC93: =IF(DE93>0,$F$11,0) -> 0 | BD93: =IF(DF93>0,$F$12,0) -> 0 | BE93: =IF(DG93>0,$F$13,0) -> 0 | BF93: =IF(DI93>0,$F$14,IF(DH93>0,$F$14/2,0)) -> 1 | BG93: =+IF(DJ93>=$L$19,$J$19,IF(DJ93<($L$19),DJ93*($J$19/($L$19)),)) -> 0.06 | BH93: =+IF(DK93>=$L$20,$J$20,IF(DK93<($L$20),DK93*($J$20/($L$20)),)) -> 0.14 | BI93: =+IF(DL93>=$L$21,$J$21,IF(DL93<($L$21),DL93*($J$21/($L$21)),)) -> 0 | BJ93: =+IF(DM93>=$L$22,$J$22,IF(DM93<($L$22),DM93*($J$22/($L$22)),)) -> 0 | BK93: =IF(DN93>0,$F$16,0) -> 2 | BL93: =+IF(DQ93>=$L$25,$J$25,IF(DQ93<($L$25),DQ93*($J$25/($L$25)),)) -> 1.333333333 | BM93: =IF(EG93>100000,$F$18,IF(EG93>0,$F$18/2,0)) -> 0 | BN93: =IF(ED93>0,$F$19,0) -> 2 | BO93: 1.73102 | BP93: 2.82672 | BQ93: 0.833715 | BR93: 0.393865 | BS93: 9.83928 | BT93: =IF(COUNTIF($I$29:$L$29,TRUE)=0,0,IF(SUMIF($I$29:$L$29,TRUE,BO93:BR93)/COUNTIF($I$29:$L$29,TRUE)>=$L$30,$F$20/2,$F$20/2*(SUMIF($I$29:$L$29,TRUE,BO93:BR93)/COUNTIF($I$29:$L$29,TRUE)/$L$30)))+IF(BS93>=10,$F$20/2,IF(BS93<(10),BS93*($F$20/2/10))) -> 0.6716791667 | BU93: =SUM(BA93+BB93+BC93+BD93+BE93+BF93+BK93+BG93+BH93+BI93+BJ93+BL93+BM93+BN93+BT93) -> 17.2050125 | BV93: =+BU93*$H$9 -> 5.735004167 | BW93: 4619.889892 | BX93: =BW93/X93 -> 1.001493582 | BY93: =IF(BX93>0,IF(BX93>=$DC$28,$DA$28,IF(BX93<$DC$28,$DA$29,0)),0) -> 1 | BZ93: 4619.889892 | CA93: =BZ93/X93 -> 1.001493582 | CB93: =IF(CA93,$F$23,0) -> 1 | CC93: =IF(DS93>0,$F$24,0) -> 1 | CD93: 2226.271729 | CE93: =CD93/X93 -> 0.4826082222 | CF93: =+IF(CE93>=$K$4,$F$25,0) -> 0 | CG93: 233.4487318 | CH93: =IF(CG93>0,IF(CG93>=100,$F$26,IF(CG93<100,$F$26/2)),0) -> 1 | CI93: =SUM(DW93) -> 1 | CJ93: =IF(EA93>0,$F$28,0) -> 1 | CK93: =IF(DX93>0,$F$29,0) -> 0 | CL93: =IF(EC93>0,$F$30,0) -> 1 | CM93: =SUM(BY93,CB93,CH93,CC93,CF93,CI93,CJ93,CK93,CL93) -> 7 | CN93: =+CM93*$H$22 -> 2.333333333 | CO93: =SUM(AY93,BU93,CM93) -> 39.2050125 | CP93: =SUM(AZ93,BV93,CN93) -> 13.0683375 | CQ93: =IF(D93<($Z$13*1785),1,IF(D93<(($Z$14+$Z$13)*1785),2,IF(D93<(($Z$15+$Z$13+$Z$14)*1785),3,4))) -> 1 | CR93: =VLOOKUP(A93,Taul1!$F$6:$G$1718,2,FALSE) ->  | DA93: 0 | DB93: 0 | DC93: 2 | DD93: =SUM(DA93:DC93) -> 2 | DE93: 0 | DF93: 0 | DG93: 0 | DH93: 3 | DI93: 0 | DJ93: 36 | DK93: 28 | DL93: 0 | DM93: 0 | DN93: 1 | DP93: 4619.889892 | DQ93: 2 | DR93: 0 | DS93: 4 | DT93: 2226.271729 | DU93: =+IF(AA93>$K$8,$F$27/2,0) -> 1 | DV93: =+IF(AA93/Y93>1.5,$F$27/2,0) -> 0 | DW93: =SUM(DU93:DV93) -> 1 | DX93: 0 | DY93: 0 | DZ93: 1 | EA93: =SUM(DY93:DZ93) -> 1 | EC93: 1 | ED93: 1 | EG93: 0
A94: =CONCATENATE(S94,"_",T94,"_",U94) -> 130_13_0 | B94: 1 | C94: =CONCATENATE(S94,"_",T94) -> 130_13 | D94: =RANK(CP94,$CP$37:$CP$1821) -> 58 | E94: 58 | F94: =E94-D94 -> 0 | G94: =CP94 -> 13.06143619 | H94: =AZ94 -> 5 | I94: =BV94 -> 5.894769522 | J94: =CN94 -> 2.166666667 | K94: =CQ94 -> 1 | L94: =B94-K94 -> 0 | M94: =HYPERLINK(CX94,"Gmaps") -> Gmaps | N94: =IF(Y94>$K$6,"LOPUT","VÄHÄ") -> LOPUT | O94: =IF(S94<40,"Valta",IF(S94<100,"Kanta",IF(S94<1000,"Seutu",IF(S94>999,"Yhdys")))) -> Seutu | R94: Kanta-Häme | S94: 130 | T94: 13 | U94: 0 | V94: 13 | W94: 15730 | X94: 15730 | Y94: 3373 | Z94: 248 | AA94: 3613 | AC94: 50 (1 %), 60 (12 %), 80 (87 %) | AF94: PK2 (100 %) | AI94: 0.001907183725 | AJ94: 81 | AR94: =+IF(Y94>=$K$6,$F$5,($F$5/($K$6))*Y94) -> 9 | AS94: 94 | AV94: =+IF(AS94>=$L$15,$J$15,IF(AS94<($L$15),AS94*($J$15/($L$15)),)) -> 3 | AW94: 2549 | AX94: =+IF(AW94>=$L$11,$J$11,IF(AW94<($L$11),AW94*($J$11/($L$11)),)) -> 3 | AY94: =SUM(AR94,AV94,AX94) -> 15 | AZ94: =+AY94*$H$5 -> 5 | BA94: =+IF(Z94=0,0,IF(Z94>$K$7,$F$9,($F$9/$K$7)*Z94)) -> 8 | BB94: =IF(DD94>0,$F$10,0) -> 2 | BC94: =IF(DE94>0,$F$11,0) -> 1 | BD94: =IF(DF94>0,$F$12,0) -> 0 | BE94: =IF(DG94>0,$F$13,0) -> 0 | BF94: =IF(DI94>0,$F$14,IF(DH94>0,$F$14/2,0)) -> 2 | BG94: =+IF(DJ94>=$L$19,$J$19,IF(DJ94<($L$19),DJ94*($J$19/($L$19)),)) -> 0.2166666667 | BH94: =+IF(DK94>=$L$20,$J$20,IF(DK94<($L$20),DK94*($J$20/($L$20)),)) -> 0.085 | BI94: =+IF(DL94>=$L$21,$J$21,IF(DL94<($L$21),DL94*($J$21/($L$21)),)) -> 0 | BJ94: =+IF(DM94>=$L$22,$J$22,IF(DM94<($L$22),DM94*($J$22/($L$22)),)) -> 0 | BK94: =IF(DN94>0,$F$16,0) -> 0 | BL94: =+IF(DQ94>=$L$25,$J$25,IF(DQ94<($L$25),DQ94*($J$25/($L$25)),)) -> 2 | BM94: =IF(EG94>100000,$F$18,IF(EG94>0,$F$18/2,0)) -> 0 | BN94: =IF(ED94>0,$F$19,0) -> 2 | BO94: 0.401442 | BP94: 0.64643 | BQ94: 1.13404 | BR94: 0.0794372 | BS94: 6.19823 | BT94: =IF(COUNTIF($I$29:$L$29,TRUE)=0,0,IF(SUMIF($I$29:$L$29,TRUE,BO94:BR94)/COUNTIF($I$29:$L$29,TRUE)>=$L$30,$F$20/2,$F$20/2*(SUMIF($I$29:$L$29,TRUE,BO94:BR94)/COUNTIF($I$29:$L$29,TRUE)/$L$30)))+IF(BS94>=10,$F$20/2,IF(BS94<(10),BS94*($F$20/2/10))) -> 0.3826419 | BU94: =SUM(BA94+BB94+BC94+BD94+BE94+BF94+BK94+BG94+BH94+BI94+BJ94+BL94+BM94+BN94+BT94) -> 17.68430857 | BV94: =+BU94*$H$9 -> 5.894769522 | BW94: 8992.93142 | BX94: =BW94/X94 -> 0.5717057483 | BY94: =IF(BX94>0,IF(BX94>=$DC$28,$DA$28,IF(BX94<$DC$28,$DA$29,0)),0) -> 1 | BZ94: 15238.62478 | CA94: =BZ94/X94 -> 0.9687619061 | CB94: =IF(CA94,$F$23,0) -> 1 | CC94: =IF(DS94>0,$F$24,0) -> 1 | CD94: 2095.879594 | CE94: =CD94/X94 -> 0.1332409151 | CF94: =+IF(CE94>=$K$4,$F$25,0) -> 0 | CG94: 34.51366815 | CH94: =IF(CG94>0,IF(CG94>=100,$F$26,IF(CG94<100,$F$26/2)),0) -> 0.5 | CI94: =SUM(DW94) -> 1 | CJ94: =IF(EA94>0,$F$28,0) -> 1 | CK94: =IF(DX94>0,$F$29,0) -> 0 | CL94: =IF(EC94>0,$F$30,0) -> 1 | CM94: =SUM(BY94,CB94,CH94,CC94,CF94,CI94,CJ94,CK94,CL94) -> 6.5 | CN94: =+CM94*$H$22 -> 2.166666667 | CO94: =SUM(AY94,BU94,CM94) -> 39.18430857 | CP94: =SUM(AZ94,BV94,CN94) -> 13.06143619 | CQ94: =IF(D94<($Z$13*1785),1,IF(D94<(($Z$14+$Z$13)*1785),2,IF(D94<(($Z$15+$Z$13+$Z$14)*1785),3,4))) -> 1 | CR94: =VLOOKUP(A94,Taul1!$F$6:$G$1718,2,FALSE) ->  | DA94: 0 | DB94: 1 | DC94: 0 | DD94: =SUM(DA94:DC94) -> 1 | DE94: 3 | DF94: 0 | DG94: 0 | DH94: 17 | DI94: 1 | DJ94: 130 | DK94: 17 | DL94: 0 | DM94: 0 | DN94: 0 | DP94: 8992.93142 | DQ94: 5 | DR94: 0 | DS94: 17 | DT94: 2095.879594 | DU94: =+IF(AA94>$K$8,$F$27/2,0) -> 1 | DV94: =+IF(AA94/Y94>1.5,$F$27/2,0) -> 0 | DW94: =SUM(DU94:DV94) -> 1 | DX94: 0 | DY94: 0 | DZ94: 1 | EA94: =SUM(DY94:DZ94) -> 1 | EC94: 1 | ED94: 2 | EG94: 0
A95: =CONCATENATE(S95,"_",T95,"_",U95) -> 1403_1_0 | B95: 1 | C95: =CONCATENATE(S95,"_",T95) -> 1403_1 | D95: =RANK(CP95,$CP$37:$CP$1821) -> 59 | E95: 59 | F95: =E95-D95 -> 0 | G95: =CP95 -> 13.05667179 | H95: =AZ95 -> 4.35 | I95: =BV95 -> 6.040005128 | J95: =CN95 -> 2.666666667 | K95: =CQ95 -> 1 | L95: =B95-K95 -> 0 | M95: =HYPERLINK(CX95,"Gmaps") -> Gmaps | N95: =IF(Y95>$K$6,"LOPUT","VÄHÄ") -> LOPUT | O95: =IF(S95<40,"Valta",IF(S95<100,"Kanta",IF(S95<1000,"Seutu",IF(S95>999,"Yhdys")))) -> Yhdys | R95: Uusimaa | S95: 1403 | T95: 1 | U95: 0 | V95: 1 | W95: 6702 | X95: 6702 | Y95: 2661 | Z95: 178 | AA95: 2741 | AC95: 40 (6 %), 50 (28 %), 60 (66 %) | AF95: PK2 (99 %) | AI95: 0.02984183826 | AJ95: 66 | AR95: =+IF(Y95>=$K$6,$F$5,($F$5/($K$6))*Y95) -> 9 | AS95: 14 | AV95: =+IF(AS95>=$L$15,$J$15,IF(AS95<($L$15),AS95*($J$15/($L$15)),)) -> 1.05 | AW95: 2117 | AX95: =+IF(AW95>=$L$11,$J$11,IF(AW95<($L$11),AW95*($J$11/($L$11)),)) -> 3 | AY95: =SUM(AR95,AV95,AX95) -> 13.05 | AZ95: =+AY95*$H$5 -> 4.35 | BA95: =+IF(Z95=0,0,IF(Z95>$K$7,$F$9,($F$9/$K$7)*Z95)) -> 8 | BB95: =IF(DD95>0,$F$10,0) -> 2 | BC95: =IF(DE95>0,$F$11,0) -> 0 | BD95: =IF(DF95>0,$F$12,0) -> 0 | BE95: =IF(DG95>0,$F$13,0) -> 0 | BF95: =IF(DI95>0,$F$14,IF(DH95>0,$F$14/2,0)) -> 2 | BG95: =+IF(DJ95>=$L$19,$J$19,IF(DJ95<($L$19),DJ95*($J$19/($L$19)),)) -> 0.04333333333 | BH95: =+IF(DK95>=$L$20,$J$20,IF(DK95<($L$20),DK95*($J$20/($L$20)),)) -> 0 | BI95: =+IF(DL95>=$L$21,$J$21,IF(DL95<($L$21),DL95*($J$21/($L$21)),)) -> 0 | BJ95: =+IF(DM95>=$L$22,$J$22,IF(DM95<($L$22),DM95*($J$22/($L$22)),)) -> 0 | BK95: =IF(DN95>0,$F$16,0) -> 2 | BL95: =+IF(DQ95>=$L$25,$J$25,IF(DQ95<($L$25),DQ95*($J$25/($L$25)),)) -> 2 | BM95: =IF(EG95>100000,$F$18,IF(EG95>0,$F$18/2,0)) -> 0 | BN95: =IF(ED95>0,$F$19,0) -> 2 | BO95: 1.02095 | BP95: 0.334983 | BQ95: 0.300331 | BR95: 0.140308 | BS95: 0.429465 | BT95: =IF(COUNTIF($I$29:$L$29,TRUE)=0,0,IF(SUMIF($I$29:$L$29,TRUE,BO95:BR95)/COUNTIF($I$29:$L$29,TRUE)>=$L$30,$F$20/2,$F$20/2*(SUMIF($I$29:$L$29,TRUE,BO95:BR95)/COUNTIF($I$29:$L$29,TRUE)/$L$30)))+IF(BS95>=10,$F$20/2,IF(BS95<(10),BS95*($F$20/2/10))) -> 0.07668205 | BU95: =SUM(BA95+BB95+BC95+BD95+BE95+BF95+BK95+BG95+BH95+BI95+BJ95+BL95+BM95+BN95+BT95) -> 18.12001538 | BV95: =+BU95*$H$9 -> 6.040005128 | BW95: 6690.445092 | BX95: =BW95/X95 -> 0.9982759015 | BY95: =IF(BX95>0,IF(BX95>=$DC$28,$DA$28,IF(BX95<$DC$28,$DA$29,0)),0) -> 1 | BZ95: 3564.431851 | CA95: =BZ95/X95 -> 0.531845994 | CB95: =IF(CA95,$F$23,0) -> 1 | CC95: =IF(DS95>0,$F$24,0) -> 1 | CD95: 4410.958964 | CE95: =CD95/X95 -> 0.6581556198 | CF95: =+IF(CE95>=$K$4,$F$25,0) -> 1 | CG95: 475.9653835 | CH95: =IF(CG95>0,IF(CG95>=100,$F$26,IF(CG95<100,$F$26/2)),0) -> 1 | CI95: =SUM(DW95) -> 1 | CJ95: =IF(EA95>0,$F$28,0) -> 0 | CK95: =IF(DX95>0,$F$29,0) -> 1 | CL95: =IF(EC95>0,$F$30,0) -> 1 | CM95: =SUM(BY95,CB95,CH95,CC95,CF95,CI95,CJ95,CK95,CL95) -> 8 | CN95: =+CM95*$H$22 -> 2.666666667 | CO95: =SUM(AY95,BU95,CM95) -> 39.17001538 | CP95: =SUM(AZ95,BV95,CN95) -> 13.05667179 | CQ95: =IF(D95<($Z$13*1785),1,IF(D95<(($Z$14+$Z$13)*1785),2,IF(D95<(($Z$15+$Z$13+$Z$14)*1785),3,4))) -> 1 | CR95: =VLOOKUP(A95,Taul1!$F$6:$G$1718,2,FALSE) ->  | DA95: 1 | DB95: 0 | DC95: 0 | DD95: =SUM(DA95:DC95) -> 1 | DE95: 0 | DF95: 0 | DG95: 0 | DH95: 2 | DI95: 1 | DJ95: 26 | DK95: 0 | DL95: 0 | DM95: 0 | DN95: 1 | DP95: 6690.445092 | DQ95: 5 | DR95: 0 | DS95: 9 | DT95: 4410.958964 | DU95: =+IF(AA95>$K$8,$F$27/2,0) -> 1 | DV95: =+IF(AA95/Y95>1.5,$F$27/2,0) -> 0 | DW95: =SUM(DU95:DV95) -> 1 | DX95: 1 | DY95: 0 | DZ95: 0 | EA95: =SUM(DY95:DZ95) -> 0 | EC95: 1 | ED95: 2 | EG95: 0
A96: =CONCATENATE(S96,"_",T96,"_",U96) -> 1311_4_117 | B96: 1 | C96: =CONCATENATE(S96,"_",T96) -> 1311_4 | D96: =RANK(CP96,$CP$37:$CP$1821) -> 60 | E96: 60 | F96: =E96-D96 -> 0 | G96: =CP96 -> 13.04958908 | H96: =AZ96 -> 5 | I96: =BV96 -> 5.382922411 | J96: =CN96 -> 2.666666667 | K96: =CQ96 -> 1 | L96: =B96-K96 -> 0 | M96: =HYPERLINK(CX96,"Gmaps") -> Gmaps | N96: =IF(Y96>$K$6,"LOPUT","VÄHÄ") -> LOPUT | O96: =IF(S96<40,"Valta",IF(S96<100,"Kanta",IF(S96<1000,"Seutu",IF(S96>999,"Yhdys")))) -> Yhdys | R96: Uusimaa | S96: 1311 | T96: 4 | U96: 117 | V96: 4 | W96: 2096 | X96: 1979 | Y96: 5682 | Z96: 326 | AA96: 6250 | AC96: 50 (58 %), 60 (41 %) | AF96: PK2 (99 %) | AI96: 0.04850934816 | AJ96: 137 | AR96: =+IF(Y96>=$K$6,$F$5,($F$5/($K$6))*Y96) -> 9 | AS96: 78 | AV96: =+IF(AS96>=$L$15,$J$15,IF(AS96<($L$15),AS96*($J$15/($L$15)),)) -> 3 | AW96: 1526 | AX96: =+IF(AW96>=$L$11,$J$11,IF(AW96<($L$11),AW96*($J$11/($L$11)),)) -> 3 | AY96: =SUM(AR96,AV96,AX96) -> 15 | AZ96: =+AY96*$H$5 -> 5 | BA96: =+IF(Z96=0,0,IF(Z96>$K$7,$F$9,($F$9/$K$7)*Z96)) -> 8 | BB96: =IF(DD96>0,$F$10,0) -> 0 | BC96: =IF(DE96>0,$F$11,0) -> 0 | BD96: =IF(DF96>0,$F$12,0) -> 0 | BE96: =IF(DG96>0,$F$13,0) -> 0 | BF96: =IF(DI96>0,$F$14,IF(DH96>0,$F$14/2,0)) -> 2 | BG96: =+IF(DJ96>=$L$19,$J$19,IF(DJ96<($L$19),DJ96*($J$19/($L$19)),)) -> 0 | BH96: =+IF(DK96>=$L$20,$J$20,IF(DK96<($L$20),DK96*($J$20/($L$20)),)) -> 0 | BI96: =+IF(DL96>=$L$21,$J$21,IF(DL96<($L$21),DL96*($J$21/($L$21)),)) -> 0 | BJ96: =+IF(DM96>=$L$22,$J$22,IF(DM96<($L$22),DM96*($J$22/($L$22)),)) -> 0 | BK96: =IF(DN96>0,$F$16,0) -> 2 | BL96: =+IF(DQ96>=$L$25,$J$25,IF(DQ96<($L$25),DQ96*($J$25/($L$25)),)) -> 2 | BM96: =IF(EG96>100000,$F$18,IF(EG96>0,$F$18/2,0)) -> 0 | BN96: =IF(ED96>0,$F$19,0) -> 2 | BO96: 0.557229 | BP96: 0.789503 | BQ96: 1.39646 | BR96: 0.389068 | BS96: 1.14655 | BT96: =IF(COUNTIF($I$29:$L$29,TRUE)=0,0,IF(SUMIF($I$29:$L$29,TRUE,BO96:BR96)/COUNTIF($I$29:$L$29,TRUE)>=$L$30,$F$20/2,$F$20/2*(SUMIF($I$29:$L$29,TRUE,BO96:BR96)/COUNTIF($I$29:$L$29,TRUE)/$L$30)))+IF(BS96>=10,$F$20/2,IF(BS96<(10),BS96*($F$20/2/10))) -> 0.1487672333 | BU96: =SUM(BA96+BB96+BC96+BD96+BE96+BF96+BK96+BG96+BH96+BI96+BJ96+BL96+BM96+BN96+BT96) -> 16.14876723 | BV96: =+BU96*$H$9 -> 5.382922411 | BW96: 1952.652157 | BX96: =BW96/X96 -> 0.9866862845 | BY96: =IF(BX96>0,IF(BX96>=$DC$28,$DA$28,IF(BX96<$DC$28,$DA$29,0)),0) -> 1 | BZ96: 1952.652157 | CA96: =BZ96/X96 -> 0.9866862845 | CB96: =IF(CA96,$F$23,0) -> 1 | CC96: =IF(DS96>0,$F$24,0) -> 1 | CD96: 1274.023876 | CE96: =CD96/X96 -> 0.6437715391 | CF96: =+IF(CE96>=$K$4,$F$25,0) -> 1 | CG96: 297.2713492 | CH96: =IF(CG96>0,IF(CG96>=100,$F$26,IF(CG96<100,$F$26/2)),0) -> 1 | CI96: =SUM(DW96) -> 1 | CJ96: =IF(EA96>0,$F$28,0) -> 1 | CK96: =IF(DX96>0,$F$29,0) -> 0 | CL96: =IF(EC96>0,$F$30,0) -> 1 | CM96: =SUM(BY96,CB96,CH96,CC96,CF96,CI96,CJ96,CK96,CL96) -> 8 | CN96: =+CM96*$H$22 -> 2.666666667 | CO96: =SUM(AY96,BU96,CM96) -> 39.14876723 | CP96: =SUM(AZ96,BV96,CN96) -> 13.04958908 | CQ96: =IF(D96<($Z$13*1785),1,IF(D96<(($Z$14+$Z$13)*1785),2,IF(D96<(($Z$15+$Z$13+$Z$14)*1785),3,4))) -> 1 | CR96: =VLOOKUP(A96,Taul1!$F$6:$G$1718,2,FALSE) ->  | DA96: 0 | DB96: 0 | DC96: 0 | DD96: =SUM(DA96:DC96) -> 0 | DE96: 0 | DF96: 0 | DG96: 0 | DH96: 1 | DI96: 3 | DJ96: 0 | DK96: 0 | DL96: 0 | DM96: 0 | DN96: 1 | DP96: 1952.652157 | DQ96: 5 | DR96: 0 | DS96: 17 | DT96: 1274.023876 | DU96: =+IF(AA96>$K$8,$F$27/2,0) -> 1 | DV96: =+IF(AA96/Y96>1.5,$F$27/2,0) -> 0 | DW96: =SUM(DU96:DV96) -> 1 | DX96: 0 | DY96: 0 | DZ96: 1 | EA96: =SUM(DY96:DZ96) -> 1 | EC96: 1 | ED96: 2 | EG96: 0
A97: =CONCATENATE(S97,"_",T97,"_",U97) -> 145_4_0 | B97: 1 | C97: =CONCATENATE(S97,"_",T97) -> 145_4 | D97: =RANK(CP97,$CP$37:$CP$1821) -> 61 | E97: 61 | F97: =E97-D97 -> 0 | G97: =CP97 -> 13.03842054 | H97: =AZ97 -> 4.55 | I97: =BV97 -> 6.321753878 | J97: =CN97 -> 2.166666667 | K97: =CQ97 -> 1 | L97: =B97-K97 -> 0 | M97: =HYPERLINK(CX97,"Gmaps") -> Gmaps | N97: =IF(Y97>$K$6,"LOPUT","VÄHÄ") -> LOPUT | O97: =IF(S97<40,"Valta",IF(S97<100,"Kanta",IF(S97<1000,"Seutu",IF(S97>999,"Yhdys")))) -> Seutu | R97: Uusimaa | S97: 145 | T97: 4 | U97: 0 | V97: 4 | W97: 1129 | X97: 1129 | Y97: 8867 | Z97: 356 | AA97: 8752 | AC97: 60 (99 %) | AF97: PK2 (92 %) | AI97: 0 | AJ97: 121 | AR97: =+IF(Y97>=$K$6,$F$5,($F$5/($K$6))*Y97) -> 9 | AS97: 22 | AV97: =+IF(AS97>=$L$15,$J$15,IF(AS97<($L$15),AS97*($J$15/($L$15)),)) -> 1.65 | AW97: 12557 | AX97: =+IF(AW97>=$L$11,$J$11,IF(AW97<($L$11),AW97*($J$11/($L$11)),)) -> 3 | AY97: =SUM(AR97,AV97,AX97) -> 13.65 | AZ97: =+AY97*$H$5 -> 4.55 | BA97: =+IF(Z97=0,0,IF(Z97>$K$7,$F$9,($F$9/$K$7)*Z97)) -> 8 | BB97: =IF(DD97>0,$F$10,0) -> 0 | BC97: =IF(DE97>0,$F$11,0) -> 1 | BD97: =IF(DF97>0,$F$12,0) -> 1 | BE97: =IF(DG97>0,$F$13,0) -> 0 | BF97: =IF(DI97>0,$F$14,IF(DH97>0,$F$14/2,0)) -> 2 | BG97: =+IF(DJ97>=$L$19,$J$19,IF(DJ97<($L$19),DJ97*($J$19/($L$19)),)) -> 0.2166666667 | BH97: =+IF(DK97>=$L$20,$J$20,IF(DK97<($L$20),DK97*($J$20/($L$20)),)) -> 0.075 | BI97: =+IF(DL97>=$L$21,$J$21,IF(DL97<($L$21),DL97*($J$21/($L$21)),)) -> 0 | BJ97: =+IF(DM97>=$L$22,$J$22,IF(DM97<($L$22),DM97*($J$22/($L$22)),)) -> 0 | BK97: =IF(DN97>0,$F$16,0) -> 2 | BL97: =+IF(DQ97>=$L$25,$J$25,IF(DQ97<($L$25),DQ97*($J$25/($L$25)),)) -> 2 | BM97: =IF(EG97>100000,$F$18,IF(EG97>0,$F$18/2,0)) -> 0.5 | BN97: =IF(ED97>0,$F$19,0) -> 2 | BO97: 2.10399 | BP97: 0.88625 | BQ97: 0.473349 | BR97: 0.143748 | BS97: 1.16284 | BT97: =IF(COUNTIF($I$29:$L$29,TRUE)=0,0,IF(SUMIF($I$29:$L$29,TRUE,BO97:BR97)/COUNTIF($I$29:$L$29,TRUE)>=$L$30,$F$20/2,$F$20/2*(SUMIF($I$29:$L$29,TRUE,BO97:BR97)/COUNTIF($I$29:$L$29,TRUE)/$L$30)))+IF(BS97>=10,$F$20/2,IF(BS97<(10),BS97*($F$20/2/10))) -> 0.1735949667 | BU97: =SUM(BA97+BB97+BC97+BD97+BE97+BF97+BK97+BG97+BH97+BI97+BJ97+BL97+BM97+BN97+BT97) -> 18.96526163 | BV97: =+BU97*$H$9 -> 6.321753878 | BW97: 1121.146399 | BX97: =BW97/X97 -> 0.9930437543 | BY97: =IF(BX97>0,IF(BX97>=$DC$28,$DA$28,IF(BX97<$DC$28,$DA$29,0)),0) -> 1 | BZ97: 664.4059836 | CA97: =BZ97/X97 -> 0.5884906852 | CB97: =IF(CA97,$F$23,0) -> 1 | CC97: =IF(DS97>0,$F$24,0) -> 1 | CD97: 424.5976831 | CE97: =CD97/X97 -> 0.3760829788 | CF97: =+IF(CE97>=$K$4,$F$25,0) -> 0 | CG97: 15.58901683 | CH97: =IF(CG97>0,IF(CG97>=100,$F$26,IF(CG97<100,$F$26/2)),0) -> 0.5 | CI97: =SUM(DW97) -> 1 | CJ97: =IF(EA97>0,$F$28,0) -> 0 | CK97: =IF(DX97>0,$F$29,0) -> 1 | CL97: =IF(EC97>0,$F$30,0) -> 1 | CM97: =SUM(BY97,CB97,CH97,CC97,CF97,CI97,CJ97,CK97,CL97) -> 6.5 | CN97: =+CM97*$H$22 -> 2.166666667 | CO97: =SUM(AY97,BU97,CM97) -> 39.11526163 | CP97: =SUM(AZ97,BV97,CN97) -> 13.03842054 | CQ97: =IF(D97<($Z$13*1785),1,IF(D97<(($Z$14+$Z$13)*1785),2,IF(D97<(($Z$15+$Z$13+$Z$14)*1785),3,4))) -> 1 | CR97: =VLOOKUP(A97,Taul1!$F$6:$G$1718,2,FALSE) ->  | DA97: 0 | DB97: 0 | DC97: 0 | DD97: =SUM(DA97:DC97) -> 0 | DE97: 5 | DF97: 5 | DG97: 0 | DH97: 14 | DI97: 4 | DJ97: 130 | DK97: 15 | DL97: 0 | DM97: 0 | DN97: 3 | DP97: 1121.146399 | DQ97: 14 | DR97: 2 | DS97: 14 | DT97: 424.5976831 | DU97: =+IF(AA97>$K$8,$F$27/2,0) -> 1 | DV97: =+IF(AA97/Y97>1.5,$F$27/2,0) -> 0 | DW97: =SUM(DU97:DV97) -> 1 | DX97: 2 | DY97: 0 | DZ97: 0 | EA97: =SUM(DY97:DZ97) -> 0 | EC97: 1 | ED97: 16 | EG97: 90767
A98: =CONCATENATE(S98,"_",T98,"_",U98) -> 10_14_0 | B98: 1 | C98: =CONCATENATE(S98,"_",T98) -> 10_14 | D98: =RANK(CP98,$CP$37:$CP$1821) -> 62 | E98: 62 | F98: =E98-D98 -> 0 | G98: =CP98 -> 13.01183333 | H98: =AZ98 -> 4.275 | I98: =BV98 -> 6.9035 | J98: =CN98 -> 1.833333333 | K98: =CQ98 -> 1 | L98: =B98-K98 -> 0 | M98: =HYPERLINK(CX98,"Gmaps") -> Gmaps | N98: =IF(Y98>$K$6,"LOPUT","VÄHÄ") -> LOPUT | O98: =IF(S98<40,"Valta",IF(S98<100,"Kanta",IF(S98<1000,"Seutu",IF(S98>999,"Yhdys")))) -> Valta | R98: Kanta-Häme | S98: 10 | T98: 14 | U98: 0 | V98: 14 | W98: 6742 | X98: 6742 | Y98: 5348 | Z98: 707 | AA98: 6111 | AC98: 80 (4 %), 100 (96 %) | AF98: PK1 (100 %) | AI98: 0 | AJ98: 438 | AR98: =+IF(Y98>=$K$6,$F$5,($F$5/($K$6))*Y98) -> 9 | AS98: 11 | AV98: =+IF(AS98>=$L$15,$J$15,IF(AS98<($L$15),AS98*($J$15/($L$15)),)) -> 0.825 | AW98: 2188 | AX98: =+IF(AW98>=$L$11,$J$11,IF(AW98<($L$11),AW98*($J$11/($L$11)),)) -> 3 | AY98: =SUM(AR98,AV98,AX98) -> 12.825 | AZ98: =+AY98*$H$5 -> 4.275 | BA98: =+IF(Z98=0,0,IF(Z98>$K$7,$F$9,($F$9/$K$7)*Z98)) -> 8 | BB98: =IF(DD98>0,$F$10,0) -> 2 | BC98: =IF(DE98>0,$F$11,0) -> 1 | BD98: =IF(DF98>0,$F$12,0) -> 1 | BE98: =IF(DG98>0,$F$13,0) -> 0 | BF98: =IF(DI98>0,$F$14,IF(DH98>0,$F$14/2,0)) -> 1 | BG98: =+IF(DJ98>=$L$19,$J$19,IF(DJ98<($L$19),DJ98*($J$19/($L$19)),)) -> 0.24 | BH98: =+IF(DK98>=$L$20,$J$20,IF(DK98<($L$20),DK98*($J$20/($L$20)),)) -> 0.185 | BI98: =+IF(DL98>=$L$21,$J$21,IF(DL98<($L$21),DL98*($J$21/($L$21)),)) -> 0.2855 | BJ98: =+IF(DM98>=$L$22,$J$22,IF(DM98<($L$22),DM98*($J$22/($L$22)),)) -> 0 | BK98: =IF(DN98>0,$F$16,0) -> 2 | BL98: =+IF(DQ98>=$L$25,$J$25,IF(DQ98<($L$25),DQ98*($J$25/($L$25)),)) -> 2 | BM98: =IF(EG98>100000,$F$18,IF(EG98>0,$F$18/2,0)) -> 0 | BN98: =IF(ED98>0,$F$19,0) -> 2 | BO98: 9.77496 | BP98: 12.5764 | BQ98: 8.38075 | BR98: 2.64682 | BS98: 27.1566 | BT98: =IF(COUNTIF($I$29:$L$29,TRUE)=0,0,IF(SUMIF($I$29:$L$29,TRUE,BO98:BR98)/COUNTIF($I$29:$L$29,TRUE)>=$L$30,$F$20/2,$F$20/2*(SUMIF($I$29:$L$29,TRUE,BO98:BR98)/COUNTIF($I$29:$L$29,TRUE)/$L$30)))+IF(BS98>=10,$F$20/2,IF(BS98<(10),BS98*($F$20/2/10))) -> 1 | BU98: =SUM(BA98+BB98+BC98+BD98+BE98+BF98+BK98+BG98+BH98+BI98+BJ98+BL98+BM98+BN98+BT98) -> 20.7105 | BV98: =+BU98*$H$9 -> 6.9035 | BW98: 4026.448299 | BX98: =BW98/X98 -> 0.5972186738 | BY98: =IF(BX98>0,IF(BX98>=$DC$28,$DA$28,IF(BX98<$DC$28,$DA$29,0)),0) -> 1 | BZ98: 6740.759777 | CA98: =BZ98/X98 -> 0.9998160452 | CB98: =IF(CA98,$F$23,0) -> 1 | CC98: =IF(DS98>0,$F$24,0) -> 1 | CD98: 2467.864133 | CE98: =CD98/X98 -> 0.3660433303 | CF98: =+IF(CE98>=$K$4,$F$25,0) -> 0 | CG98: 82.57935331 | CH98: =IF(CG98>0,IF(CG98>=100,$F$26,IF(CG98<100,$F$26/2)),0) -> 0.5 | CI98: =SUM(DW98) -> 1 | CJ98: =IF(EA98>0,$F$28,0) -> 0 | CK98: =IF(DX98>0,$F$29,0) -> 0 | CL98: =IF(EC98>0,$F$30,0) -> 1 | CM98: =SUM(BY98,CB98,CH98,CC98,CF98,CI98,CJ98,CK98,CL98) -> 5.5 | CN98: =+CM98*$H$22 -> 1.833333333 | CO98: =SUM(AY98,BU98,CM98) -> 39.0355 | CP98: =SUM(AZ98,BV98,CN98) -> 13.01183333 | CQ98: =IF(D98<($Z$13*1785),1,IF(D98<(($Z$14+$Z$13)*1785),2,IF(D98<(($Z$15+$Z$13+$Z$14)*1785),3,4))) -> 1 | CR98: =VLOOKUP(A98,Taul1!$F$6:$G$1718,2,FALSE) ->  | DA98: 0 | DB98: 0 | DC98: 19 | DD98: =SUM(DA98:DC98) -> 19 | DE98: 2 | DF98: 1 | DG98: 0 | DH98: 11 | DI98: 0 | DJ98: 144 | DK98: 37 | DL98: 571 | DM98: 0 | DN98: 1 | DP98: 4026.448299 | DQ98: 9 | DR98: 0 | DS98: 8 | DT98: 2467.864133 | DU98: =+IF(AA98>$K$8,$F$27/2,0) -> 1 | DV98: =+IF(AA98/Y98>1.5,$F$27/2,0) -> 0 | DW98: =SUM(DU98:DV98) -> 1 | DX98: 0 | DY98: 0 | DZ98: 0 | EA98: =SUM(DY98:DZ98) -> 0 | EC98: 1 | ED98: 1 | EG98: 0
A99: =CONCATENATE(S99,"_",T99,"_",U99) -> 140_13_0 | B99: 1 | C99: =CONCATENATE(S99,"_",T99) -> 140_13 | D99: =RANK(CP99,$CP$37:$CP$1821) -> 63 | E99: 63 | F99: =E99-D99 -> 0 | G99: =CP99 -> 13.00898454 | H99: =AZ99 -> 4.45 | I99: =BV99 -> 6.392317878 | J99: =CN99 -> 2.166666667 | K99: =CQ99 -> 1 | L99: =B99-K99 -> 0 | M99: =HYPERLINK(CX99,"Gmaps") -> Gmaps | N99: =IF(Y99>$K$6,"LOPUT","VÄHÄ") -> LOPUT | O99: =IF(S99<40,"Valta",IF(S99<100,"Kanta",IF(S99<1000,"Seutu",IF(S99>999,"Yhdys")))) -> Seutu | R99: Uusimaa | S99: 140 | T99: 13 | U99: 0 | V99: 13 | W99: 8498 | X99: 8498 | Y99: 3992 | Z99: 237 | AA99: 4356 | AC99: 50 (19 %), 60 (25 %), 80 (56 %) | AF99: PK2 (100 %) | AI99: 0.1664970863 | AJ99: 69 | AR99: =+IF(Y99>=$K$6,$F$5,($F$5/($K$6))*Y99) -> 9 | AS99: 18 | AV99: =+IF(AS99>=$L$15,$J$15,IF(AS99<($L$15),AS99*($J$15/($L$15)),)) -> 1.35 | AW99: 2381 | AX99: =+IF(AW99>=$L$11,$J$11,IF(AW99<($L$11),AW99*($J$11/($L$11)),)) -> 3 | AY99: =SUM(AR99,AV99,AX99) -> 13.35 | AZ99: =+AY99*$H$5 -> 4.45 | BA99: =+IF(Z99=0,0,IF(Z99>$K$7,$F$9,($F$9/$K$7)*Z99)) -> 8 | BB99: =IF(DD99>0,$F$10,0) -> 2 | BC99: =IF(DE99>0,$F$11,0) -> 1 | BD99: =IF(DF99>0,$F$12,0) -> 1 | BE99: =IF(DG99>0,$F$13,0) -> 0 | BF99: =IF(DI99>0,$F$14,IF(DH99>0,$F$14/2,0)) -> 2 | BG99: =+IF(DJ99>=$L$19,$J$19,IF(DJ99<($L$19),DJ99*($J$19/($L$19)),)) -> 0.2716666667 | BH99: =+IF(DK99>=$L$20,$J$20,IF(DK99<($L$20),DK99*($J$20/($L$20)),)) -> 0.245 | BI99: =+IF(DL99>=$L$21,$J$21,IF(DL99<($L$21),DL99*($J$21/($L$21)),)) -> 0.0015 | BJ99: =+IF(DM99>=$L$22,$J$22,IF(DM99<($L$22),DM99*($J$22/($L$22)),)) -> 0 | BK99: =IF(DN99>0,$F$16,0) -> 2 | BL99: =+IF(DQ99>=$L$25,$J$25,IF(DQ99<($L$25),DQ99*($J$25/($L$25)),)) -> 2 | BM99: =IF(EG99>100000,$F$18,IF(EG99>0,$F$18/2,0)) -> 0 | BN99: =IF(ED99>0,$F$19,0) -> 0 | BO99: 2.05316 | BP99: 1.7784 | BQ99: 0.932049 | BR99: 0.626823 | BS99: 15.0714 | BT99: =IF(COUNTIF($I$29:$L$29,TRUE)=0,0,IF(SUMIF($I$29:$L$29,TRUE,BO99:BR99)/COUNTIF($I$29:$L$29,TRUE)>=$L$30,$F$20/2,$F$20/2*(SUMIF($I$29:$L$29,TRUE,BO99:BR99)/COUNTIF($I$29:$L$29,TRUE)/$L$30)))+IF(BS99>=10,$F$20/2,IF(BS99<(10),BS99*($F$20/2/10))) -> 0.6587869667 | BU99: =SUM(BA99+BB99+BC99+BD99+BE99+BF99+BK99+BG99+BH99+BI99+BJ99+BL99+BM99+BN99+BT99) -> 19.17695363 | BV99: =+BU99*$H$9 -> 6.392317878 | BW99: 3469.354674 | BX99: =BW99/X99 -> 0.4082554335 | BY99: =IF(BX99>0,IF(BX99>=$DC$28,$DA$28,IF(BX99<$DC$28,$DA$29,0)),0) -> 0.5 | BZ99: 8498.245118 | CA99: =BZ99/X99 -> 1.000028844 | CB99: =IF(CA99,$F$23,0) -> 1 | CC99: =IF(DS99>0,$F$24,0) -> 1 | CD99: 2015.464739 | CE99: =CD99/X99 -> 0.2371693033 | CF99: =+IF(CE99>=$K$4,$F$25,0) -> 0 | CG99: 238.0129442 | CH99: =IF(CG99>0,IF(CG99>=100,$F$26,IF(CG99<100,$F$26/2)),0) -> 1 | CI99: =SUM(DW99) -> 1 | CJ99: =IF(EA99>0,$F$28,0) -> 1 | CK99: =IF(DX99>0,$F$29,0) -> 0 | CL99: =IF(EC99>0,$F$30,0) -> 1 | CM99: =SUM(BY99,CB99,CH99,CC99,CF99,CI99,CJ99,CK99,CL99) -> 6.5 | CN99: =+CM99*$H$22 -> 2.166666667 | CO99: =SUM(AY99,BU99,CM99) -> 39.02695363 | CP99: =SUM(AZ99,BV99,CN99) -> 13.00898454 | CQ99: =IF(D99<($Z$13*1785),1,IF(D99<(($Z$14+$Z$13)*1785),2,IF(D99<(($Z$15+$Z$13+$Z$14)*1785),3,4))) -> 1 | CR99: =VLOOKUP(A99,Taul1!$F$6:$G$1718,2,FALSE) ->  | DA99: 0 | DB99: 1 | DC99: 1 | DD99: =SUM(DA99:DC99) -> 2 | DE99: 2 | DF99: 2 | DG99: 0 | DH99: 17 | DI99: 3 | DJ99: 163 | DK99: 49 | DL99: 3 | DM99: 0 | DN99: 2 | DP99: 3469.354674 | DQ99: 15 | DR99: 0 | DS99: 13 | DT99: 2015.464739 | DU99: =+IF(AA99>$K$8,$F$27/2,0) -> 1 | DV99: =+IF(AA99/Y99>1.5,$F$27/2,0) -> 0 | DW99: =SUM(DU99:DV99) -> 1 | DX99: 0 | DY99: 0 | DZ99: 1 | EA99: =SUM(DY99:DZ99) -> 1 | EC99: 1 | ED99: 0 | EG99: 0
A100: =CONCATENATE(S100,"_",T100,"_",U100) -> 167_6_0 | B100: 1 | C100: =CONCATENATE(S100,"_",T100) -> 167_6 | D100: =RANK(CP100,$CP$37:$CP$1821) -> 64 | E100: 64 | F100: =E100-D100 -> 0 | G100: =CP100 -> 13.00718371 | H100: =AZ100 -> 5 | I100: =BV100 -> 5.340517044 | J100: =CN100 -> 2.666666667 | K100: =CQ100 -> 1 | L100: =B100-K100 -> 0 | M100: =HYPERLINK(CX100,"Gmaps") -> Gmaps | N100: =IF(Y100>$K$6,"LOPUT","VÄHÄ") -> LOPUT | O100: =IF(S100<40,"Valta",IF(S100<100,"Kanta",IF(S100<1000,"Seutu",IF(S100>999,"Yhdys")))) -> Seutu | R100: Päijät-Häme | S100: 167 | T100: 6 | U100: 0 | V100: 6 | W100: 923 | X100: 923 | Y100: 8897 | Z100: 398 | AA100: 9830 | AC100: 50 (100 %) | AF100: PK2 (100 %) | AI100: 0.08984725966 | AJ100: 114 | AR100: =+IF(Y100>=$K$6,$F$5,($F$5/($K$6))*Y100) -> 9 | AS100: 477 | AV100: =+IF(AS100>=$L$15,$J$15,IF(AS100<($L$15),AS100*($J$15/($L$15)),)) -> 3 | AW100: 2292 | AX100: =+IF(AW100>=$L$11,$J$11,IF(AW100<($L$11),AW100*($J$11/($L$11)),)) -> 3 | AY100: =SUM(AR100,AV100,AX100) -> 15 | AZ100: =+AY100*$H$5 -> 5 | BA100: =+IF(Z100=0,0,IF(Z100>$K$7,$F$9,($F$9/$K$7)*Z100)) -> 8 | BB100: =IF(DD100>0,$F$10,0) -> 2 | BC100: =IF(DE100>0,$F$11,0) -> 0 | BD100: =IF(DF100>0,$F$12,0) -> 1 | BE100: =IF(DG100>0,$F$13,0) -> 0 | BF100: =IF(DI100>0,$F$14,IF(DH100>0,$F$14/2,0)) -> 1 | BG100: =+IF(DJ100>=$L$19,$J$19,IF(DJ100<($L$19),DJ100*($J$19/($L$19)),)) -> 0 | BH100: =+IF(DK100>=$L$20,$J$20,IF(DK100<($L$20),DK100*($J$20/($L$20)),)) -> 0.035 | BI100: =+IF(DL100>=$L$21,$J$21,IF(DL100<($L$21),DL100*($J$21/($L$21)),)) -> 0 | BJ100: =+IF(DM100>=$L$22,$J$22,IF(DM100<($L$22),DM100*($J$22/($L$22)),)) -> 0 | BK100: =IF(DN100>0,$F$16,0) -> 0 | BL100: =+IF(DQ100>=$L$25,$J$25,IF(DQ100<($L$25),DQ100*($J$25/($L$25)),)) -> 1.333333333 | BM100: =IF(EG100>100000,$F$18,IF(EG100>0,$F$18/2,0)) -> 0 | BN100: =IF(ED100>0,$F$19,0) -> 2 | BO100: 1.55963 | BP100: 2.29984 | BQ100: 0.737064 | BR100: 0.358744 | BS100: 11.0493 | BT100: =IF(COUNTIF($I$29:$L$29,TRUE)=0,0,IF(SUMIF($I$29:$L$29,TRUE,BO100:BR100)/COUNTIF($I$29:$L$29,TRUE)>=$L$30,$F$20/2,$F$20/2*(SUMIF($I$29:$L$29,TRUE,BO100:BR100)/COUNTIF($I$29:$L$29,TRUE)/$L$30)))+IF(BS100>=10,$F$20/2,IF(BS100<(10),BS100*($F$20/2/10))) -> 0.6532178 | BU100: =SUM(BA100+BB100+BC100+BD100+BE100+BF100+BK100+BG100+BH100+BI100+BJ100+BL100+BM100+BN100+BT100) -> 16.02155113 | BV100: =+BU100*$H$9 -> 5.340517044 | BW100: 922.9690075 | BX100: =BW100/X100 -> 0.9999664219 | BY100: =IF(BX100>0,IF(BX100>=$DC$28,$DA$28,IF(BX100<$DC$28,$DA$29,0)),0) -> 1 | BZ100: 922.9690075 | CA100: =BZ100/X100 -> 0.9999664219 | CB100: =IF(CA100,$F$23,0) -> 1 | CC100: =IF(DS100>0,$F$24,0) -> 1 | CD100: 922.9690075 | CE100: =CD100/X100 -> 0.9999664219 | CF100: =+IF(CE100>=$K$4,$F$25,0) -> 1 | CG100: 1902.127844 | CH100: =IF(CG100>0,IF(CG100>=100,$F$26,IF(CG100<100,$F$26/2)),0) -> 1 | CI100: =SUM(DW100) -> 1 | CJ100: =IF(EA100>0,$F$28,0) -> 1 | CK100: =IF(DX100>0,$F$29,0) -> 0 | CL100: =IF(EC100>0,$F$30,0) -> 1 | CM100: =SUM(BY100,CB100,CH100,CC100,CF100,CI100,CJ100,CK100,CL100) -> 8 | CN100: =+CM100*$H$22 -> 2.666666667 | CO100: =SUM(AY100,BU100,CM100) -> 39.02155113 | CP100: =SUM(AZ100,BV100,CN100) -> 13.00718371 | CQ100: =IF(D100<($Z$13*1785),1,IF(D100<(($Z$14+$Z$13)*1785),2,IF(D100<(($Z$15+$Z$13+$Z$14)*1785),3,4))) -> 1 | CR100: =VLOOKUP(A100,Taul1!$F$6:$G$1718,2,FALSE) ->  | DA100: 0 | DB100: 0 | DC100: 1 | DD100: =SUM(DA100:DC100) -> 1 | DE100: 0 | DF100: 3 | DG100: 0 | DH100: 1 | DI100: 0 | DJ100: 0 | DK100: 7 | DL100: 0 | DM100: 0 | DN100: 0 | DP100: 922.9690075 | DQ100: 2 | DR100: 0 | DS100: 3 | DT100: 922.9690075 | DU100: =+IF(AA100>$K$8,$F$27/2,0) -> 1 | DV100: =+IF(AA100/Y100>1.5,$F$27/2,0) -> 0 | DW100: =SUM(DU100:DV100) -> 1 | DX100: 0 | DY100: 0 | DZ100: 1 | EA100: =SUM(DY100:DZ100) -> 1 | EC100: 1 | ED100: 3 | EG100: 0
A101: =CONCATENATE(S101,"_",T101,"_",U101) -> 120_3_0 | B101: 1 | C101: =CONCATENATE(S101,"_",T101) -> 120_3 | D101: =RANK(CP101,$CP$37:$CP$1821) -> 65 | E101: 65 | F101: =E101-D101 -> 0 | G101: =CP101 -> 13.0055846 | H101: =AZ101 -> 5 | I101: =BV101 -> 5.672251266 | J101: =CN101 -> 2.333333333 | K101: =CQ101 -> 1 | L101: =B101-K101 -> 0 | M101: =HYPERLINK(CX101,"Gmaps") -> Gmaps | N101: =IF(Y101>$K$6,"LOPUT","VÄHÄ") -> LOPUT | O101: =IF(S101<40,"Valta",IF(S101<100,"Kanta",IF(S101<1000,"Seutu",IF(S101>999,"Yhdys")))) -> Seutu | R101: Uusimaa | S101: 120 | T101: 3 | U101: 0 | V101: 3 | W101: 5569 | X101: 5569 | Y101: 18088 | Z101: 733 | AA101: 18017 | AC101: 60 (100 %) | AF101: PK1 (100 %) | AI101: 0.1200156033 | AJ101: 160 | AR101: =+IF(Y101>=$K$6,$F$5,($F$5/($K$6))*Y101) -> 9 | AS101: 11653 | AV101: =+IF(AS101>=$L$15,$J$15,IF(AS101<($L$15),AS101*($J$15/($L$15)),)) -> 3 | AW101: 25802 | AX101: =+IF(AW101>=$L$11,$J$11,IF(AW101<($L$11),AW101*($J$11/($L$11)),)) -> 3 | AY101: =SUM(AR101,AV101,AX101) -> 15 | AZ101: =+AY101*$H$5 -> 5 | BA101: =+IF(Z101=0,0,IF(Z101>$K$7,$F$9,($F$9/$K$7)*Z101)) -> 8 | BB101: =IF(DD101>0,$F$10,0) -> 0 | BC101: =IF(DE101>0,$F$11,0) -> 1 | BD101: =IF(DF101>0,$F$12,0) -> 0 | BE101: =IF(DG101>0,$F$13,0) -> 0 | BF101: =IF(DI101>0,$F$14,IF(DH101>0,$F$14/2,0)) -> 1 | BG101: =+IF(DJ101>=$L$19,$J$19,IF(DJ101<($L$19),DJ101*($J$19/($L$19)),)) -> 0 | BH101: =+IF(DK101>=$L$20,$J$20,IF(DK101<($L$20),DK101*($J$20/($L$20)),)) -> 0 | BI101: =+IF(DL101>=$L$21,$J$21,IF(DL101<($L$21),DL101*($J$21/($L$21)),)) -> 0 | BJ101: =+IF(DM101>=$L$22,$J$22,IF(DM101<($L$22),DM101*($J$22/($L$22)),)) -> 0 | BK101: =IF(DN101>0,$F$16,0) -> 2 | BL101: =+IF(DQ101>=$L$25,$J$25,IF(DQ101<($L$25),DQ101*($J$25/($L$25)),)) -> 2 | BM101: =IF(EG101>100000,$F$18,IF(EG101>0,$F$18/2,0)) -> 1 | BN101: =IF(ED101>0,$F$19,0) -> 2 | BO101: 0.294542 | BP101: 0.150476 | BQ101: 0.0101787 | BR101: 0.0100388 | BS101: 0.0316115 | BT101: =IF(COUNTIF($I$29:$L$29,TRUE)=0,0,IF(SUMIF($I$29:$L$29,TRUE,BO101:BR101)/COUNTIF($I$29:$L$29,TRUE)>=$L$30,$F$20/2,$F$20/2*(SUMIF($I$29:$L$29,TRUE,BO101:BR101)/COUNTIF($I$29:$L$29,TRUE)/$L$30)))+IF(BS101>=10,$F$20/2,IF(BS101<(10),BS101*($F$20/2/10))) -> 0.01675379833 | BU101: =SUM(BA101+BB101+BC101+BD101+BE101+BF101+BK101+BG101+BH101+BI101+BJ101+BL101+BM101+BN101+BT101) -> 17.0167538 | BV101: =+BU101*$H$9 -> 5.672251266 | BW101: 5576.233916 | BX101: =BW101/X101 -> 1.001298961 | BY101: =IF(BX101>0,IF(BX101>=$DC$28,$DA$28,IF(BX101<$DC$28,$DA$29,0)),0) -> 1 | BZ101: 5378.764974 | CA101: =BZ101/X101 -> 0.9658403616 | CB101: =IF(CA101,$F$23,0) -> 1 | CC101: =IF(DS101>0,$F$24,0) -> 1 | CD101: 5576.233916 | CE101: =CD101/X101 -> 1.001298961 | CF101: =+IF(CE101>=$K$4,$F$25,0) -> 1 | CG101: 1731.294846 | CH101: =IF(CG101>0,IF(CG101>=100,$F$26,IF(CG101<100,$F$26/2)),0) -> 1 | CI101: =SUM(DW101) -> 1 | CJ101: =IF(EA101>0,$F$28,0) -> 0 | CK101: =IF(DX101>0,$F$29,0) -> 0 | CL101: =IF(EC101>0,$F$30,0) -> 1 | CM101: =SUM(BY101,CB101,CH101,CC101,CF101,CI101,CJ101,CK101,CL101) -> 7 | CN101: =+CM101*$H$22 -> 2.333333333 | CO101: =SUM(AY101,BU101,CM101) -> 39.0167538 | CP101: =SUM(AZ101,BV101,CN101) -> 13.0055846 | CQ101: =IF(D101<($Z$13*1785),1,IF(D101<(($Z$14+$Z$13)*1785),2,IF(D101<(($Z$15+$Z$13+$Z$14)*1785),3,4))) -> 1 | CR101: =VLOOKUP(A101,Taul1!$F$6:$G$1718,2,FALSE) ->  | DA101: 0 | DB101: 0 | DC101: 0 | DD101: =SUM(DA101:DC101) -> 0 | DE101: 2 | DF101: 0 | DG101: 0 | DH101: 1 | DI101: 0 | DJ101: 0 | DK101: 0 | DL101: 0 | DM101: 0 | DN101: 1 | DP101: 5576.233916 | DQ101: 31 | DR101: 2 | DS101: 2 | DT101: 5576.233916 | DU101: =+IF(AA101>$K$8,$F$27/2,0) -> 1 | DV101: =+IF(AA101/Y101>1.5,$F$27/2,0) -> 0 | DW101: =SUM(DU101:DV101) -> 1 | DX101: 0 | DY101: 0 | DZ101: 0 | EA101: =SUM(DY101:DZ101) -> 0 | EC101: 1 | ED101: 14 | EG101: 219183
A102: =CONCATENATE(S102,"_",T102,"_",U102) -> 54_10_0 | B102: 1 | C102: =CONCATENATE(S102,"_",T102) -> 54_10 | D102: =RANK(CP102,$CP$37:$CP$1821) -> 66 | E102: 66 | F102: =E102-D102 -> 0 | G102: =CP102 -> 13.00166667 | H102: =AZ102 -> 5 | I102: =BV102 -> 6.168333333 | J102: =CN102 -> 1.833333333 | K102: =CQ102 -> 1 | L102: =B102-K102 -> 0 | M102: =HYPERLINK(CX102,"Gmaps") -> Gmaps | N102: =IF(Y102>$K$6,"LOPUT","VÄHÄ") -> LOPUT | O102: =IF(S102<40,"Valta",IF(S102<100,"Kanta",IF(S102<1000,"Seutu",IF(S102>999,"Yhdys")))) -> Kanta | R102: Kanta-Häme | S102: 54 | T102: 10 | U102: 0 | V102: 10 | W102: 4557 | X102: 4557 | Y102: 6268 | Z102: 620 | AA102: 6893 | AC102: 70 (22 %), 80 (77 %) | AF102: PK1 (99 %) | AI102: 0.01598976655 | AJ102: 361 | AR102: =+IF(Y102>=$K$6,$F$5,($F$5/($K$6))*Y102) -> 9 | AS102: 48 | AV102: =+IF(AS102>=$L$15,$J$15,IF(AS102<($L$15),AS102*($J$15/($L$15)),)) -> 3 | AW102: 2781 | AX102: =+IF(AW102>=$L$11,$J$11,IF(AW102<($L$11),AW102*($J$11/($L$11)),)) -> 3 | AY102: =SUM(AR102,AV102,AX102) -> 15 | AZ102: =+AY102*$H$5 -> 5 | BA102: =+IF(Z102=0,0,IF(Z102>$K$7,$F$9,($F$9/$K$7)*Z102)) -> 8 | BB102: =IF(DD102>0,$F$10,0) -> 2 | BC102: =IF(DE102>0,$F$11,0) -> 1 | BD102: =IF(DF102>0,$F$12,0) -> 0 | BE102: =IF(DG102>0,$F$13,0) -> 1 | BF102: =IF(DI102>0,$F$14,IF(DH102>0,$F$14/2,0)) -> 1 | BG102: =+IF(DJ102>=$L$19,$J$19,IF(DJ102<($L$19),DJ102*($J$19/($L$19)),)) -> 0.005 | BH102: =+IF(DK102>=$L$20,$J$20,IF(DK102<($L$20),DK102*($J$20/($L$20)),)) -> 0 | BI102: =+IF(DL102>=$L$21,$J$21,IF(DL102<($L$21),DL102*($J$21/($L$21)),)) -> 0 | BJ102: =+IF(DM102>=$L$22,$J$22,IF(DM102<($L$22),DM102*($J$22/($L$22)),)) -> 0 | BK102: =IF(DN102>0,$F$16,0) -> 0 | BL102: =+IF(DQ102>=$L$25,$J$25,IF(DQ102<($L$25),DQ102*($J$25/($L$25)),)) -> 2 | BM102: =IF(EG102>100000,$F$18,IF(EG102>0,$F$18/2,0)) -> 0.5 | BN102: =IF(ED102>0,$F$19,0) -> 2 | BO102: 6.65259 | BP102: 6.74875 | BQ102: 6.24982 | BR102: 1.8952 | BS102: 34.3519 | BT102: =IF(COUNTIF($I$29:$L$29,TRUE)=0,0,IF(SUMIF($I$29:$L$29,TRUE,BO102:BR102)/COUNTIF($I$29:$L$29,TRUE)>=$L$30,$F$20/2,$F$20/2*(SUMIF($I$29:$L$29,TRUE,BO102:BR102)/COUNTIF($I$29:$L$29,TRUE)/$L$30)))+IF(BS102>=10,$F$20/2,IF(BS102<(10),BS102*($F$20/2/10))) -> 1 | BU102: =SUM(BA102+BB102+BC102+BD102+BE102+BF102+BK102+BG102+BH102+BI102+BJ102+BL102+BM102+BN102+BT102) -> 18.505 | BV102: =+BU102*$H$9 -> 6.168333333 | BW102: 4434.563045 | BX102: =BW102/X102 -> 0.9731321143 | BY102: =IF(BX102>0,IF(BX102>=$DC$28,$DA$28,IF(BX102<$DC$28,$DA$29,0)),0) -> 1 | BZ102: 4543.472515 | CA102: =BZ102/X102 -> 0.9970314932 | CB102: =IF(CA102,$F$23,0) -> 1 | CC102: =IF(DS102>0,$F$24,0) -> 1 | CD102: 361.570214 | CE102: =CD102/X102 -> 0.07934391355 | CF102: =+IF(CE102>=$K$4,$F$25,0) -> 0 | CG102: 19.34408602 | CH102: =IF(CG102>0,IF(CG102>=100,$F$26,IF(CG102<100,$F$26/2)),0) -> 0.5 | CI102: =SUM(DW102) -> 1 | CJ102: =IF(EA102>0,$F$28,0) -> 0 | CK102: =IF(DX102>0,$F$29,0) -> 0 | CL102: =IF(EC102>0,$F$30,0) -> 1 | CM102: =SUM(BY102,CB102,CH102,CC102,CF102,CI102,CJ102,CK102,CL102) -> 5.5 | CN102: =+CM102*$H$22 -> 1.833333333 | CO102: =SUM(AY102,BU102,CM102) -> 39.005 | CP102: =SUM(AZ102,BV102,CN102) -> 13.00166667 | CQ102: =IF(D102<($Z$13*1785),1,IF(D102<(($Z$14+$Z$13)*1785),2,IF(D102<(($Z$15+$Z$13+$Z$14)*1785),3,4))) -> 1 | CR102: =VLOOKUP(A102,Taul1!$F$6:$G$1718,2,FALSE) ->  | DA102: 0 | DB102: 0 | DC102: 36 | DD102: =SUM(DA102:DC102) -> 36 | DE102: 1 | DF102: 0 | DG102: 1 | DH102: 11 | DI102: 0 | DJ102: 3 | DK102: 0 | DL102: 0 | DM102: 0 | DN102: 0 | DP102: 4434.563045 | DQ102: 3 | DR102: 1 | DS102: 24 | DT102: 361.570214 | DU102: =+IF(AA102>$K$8,$F$27/2,0) -> 1 | DV102: =+IF(AA102/Y102>1.5,$F$27/2,0) -> 0 | DW102: =SUM(DU102:DV102) -> 1 | DX102: 0 | DY102: 0 | DZ102: 0 | EA102: =SUM(DY102:DZ102) -> 0 | EC102: 1 | ED102: 1 | EG102: 13216
A103: =CONCATENATE(S103,"_",T103,"_",U103) -> 313_1_710 | B103: 1 | C103: =CONCATENATE(S103,"_",T103) -> 313_1 | D103: =RANK(CP103,$CP$37:$CP$1821) -> 67 | E103: 67 | F103: =E103-D103 -> 0 | G103: =CP103 -> 12.98908178 | H103: =AZ103 -> 5 | I103: =BV103 -> 5.489081778 | J103: =CN103 -> 2.5 | K103: =CQ103 -> 1 | L103: =B103-K103 -> 0 | M103: =HYPERLINK(CX103,"Gmaps") -> Gmaps | N103: =IF(Y103>$K$6,"LOPUT","VÄHÄ") -> LOPUT | O103: =IF(S103<40,"Valta",IF(S103<100,"Kanta",IF(S103<1000,"Seutu",IF(S103>999,"Yhdys")))) -> Seutu | R103: Päijät-Häme | S103: 313 | T103: 1 | U103: 710 | V103: 1 | W103: 6362 | X103: 5652 | Y103: 2261 | Z103: 143 | AA103: 3465 | AC103: 50 (47 %), 60 (12 %), 80 (41 %) | AF103: PK2 (97 %) | AI103: 0.2800197661 | AJ103: 53 | AR103: =+IF(Y103>=$K$6,$F$5,($F$5/($K$6))*Y103) -> 9 | AS103: 110 | AV103: =+IF(AS103>=$L$15,$J$15,IF(AS103<($L$15),AS103*($J$15/($L$15)),)) -> 3 | AW103: 685 | AX103: =+IF(AW103>=$L$11,$J$11,IF(AW103<($L$11),AW103*($J$11/($L$11)),)) -> 3 | AY103: =SUM(AR103,AV103,AX103) -> 15 | AZ103: =+AY103*$H$5 -> 5 | BA103: =+IF(Z103=0,0,IF(Z103>$K$7,$F$9,($F$9/$K$7)*Z103)) -> 8 | BB103: =IF(DD103>0,$F$10,0) -> 0 | BC103: =IF(DE103>0,$F$11,0) -> 0 | BD103: =IF(DF103>0,$F$12,0) -> 1 | BE103: =IF(DG103>0,$F$13,0) -> 0 | BF103: =IF(DI103>0,$F$14,IF(DH103>0,$F$14/2,0)) -> 2 | BG103: =+IF(DJ103>=$L$19,$J$19,IF(DJ103<($L$19),DJ103*($J$19/($L$19)),)) -> 0.5 | BH103: =+IF(DK103>=$L$20,$J$20,IF(DK103<($L$20),DK103*($J$20/($L$20)),)) -> 0.045 | BI103: =+IF(DL103>=$L$21,$J$21,IF(DL103<($L$21),DL103*($J$21/($L$21)),)) -> 0 | BJ103: =+IF(DM103>=$L$22,$J$22,IF(DM103<($L$22),DM103*($J$22/($L$22)),)) -> 0 | BK103: =IF(DN103>0,$F$16,0) -> 0 | BL103: =+IF(DQ103>=$L$25,$J$25,IF(DQ103<($L$25),DQ103*($J$25/($L$25)),)) -> 2 | BM103: =IF(EG103>100000,$F$18,IF(EG103>0,$F$18/2,0)) -> 0 | BN103: =IF(ED103>0,$F$19,0) -> 2 | BO103: 4.31935 | BP103: 4.90007 | BQ103: 3.44794 | BR103: 1.79816 | BS103: 28.5247 | BT103: =IF(COUNTIF($I$29:$L$29,TRUE)=0,0,IF(SUMIF($I$29:$L$29,TRUE,BO103:BR103)/COUNTIF($I$29:$L$29,TRUE)>=$L$30,$F$20/2,$F$20/2*(SUMIF($I$29:$L$29,TRUE,BO103:BR103)/COUNTIF($I$29:$L$29,TRUE)/$L$30)))+IF(BS103>=10,$F$20/2,IF(BS103<(10),BS103*($F$20/2/10))) -> 0.9222453333 | BU103: =SUM(BA103+BB103+BC103+BD103+BE103+BF103+BK103+BG103+BH103+BI103+BJ103+BL103+BM103+BN103+BT103) -> 16.46724533 | BV103: =+BU103*$H$9 -> 5.489081778 | BW103: 1453.897074 | BX103: =BW103/X103 -> 0.2572358587 | BY103: =IF(BX103>0,IF(BX103>=$DC$28,$DA$28,IF(BX103<$DC$28,$DA$29,0)),0) -> 0.5 | BZ103: 5659.969226 | CA103: =BZ103/X103 -> 1.001409983 | CB103: =IF(CA103,$F$23,0) -> 1 | CC103: =IF(DS103>0,$F$24,0) -> 0 | CD103: 4359.367915 | CE103: =CD103/X103 -> 0.7712965172 | CF103: =+IF(CE103>=$K$4,$F$25,0) -> 1 | CG103: 312.6680821 | CH103: =IF(CG103>0,IF(CG103>=100,$F$26,IF(CG103<100,$F$26/2)),0) -> 1 | CI103: =SUM(DW103) -> 2 | CJ103: =IF(EA103>0,$F$28,0) -> 1 | CK103: =IF(DX103>0,$F$29,0) -> 0 | CL103: =IF(EC103>0,$F$30,0) -> 1 | CM103: =SUM(BY103,CB103,CH103,CC103,CF103,CI103,CJ103,CK103,CL103) -> 7.5 | CN103: =+CM103*$H$22 -> 2.5 | CO103: =SUM(AY103,BU103,CM103) -> 38.96724533 | CP103: =SUM(AZ103,BV103,CN103) -> 12.98908178 | CQ103: =IF(D103<($Z$13*1785),1,IF(D103<(($Z$14+$Z$13)*1785),2,IF(D103<(($Z$15+$Z$13+$Z$14)*1785),3,4))) -> 1 | CR103: =VLOOKUP(A103,Taul1!$F$6:$G$1718,2,FALSE) ->  | DA103: 0 | DB103: 0 | DC103: 0 | DD103: =SUM(DA103:DC103) -> 0 | DE103: 0 | DF103: 4 | DG103: 0 | DH103: 9 | DI103: 2 | DJ103: 575 | DK103: 9 | DL103: 0 | DM103: 0 | DN103: 0 | DP103: 1453.897074 | DQ103: 6 | DR103: 0 | DS103: 0 | DT103: 4359.367915 | DU103: =+IF(AA103>$K$8,$F$27/2,0) -> 1 | DV103: =+IF(AA103/Y103>1.5,$F$27/2,0) -> 1 | DW103: =SUM(DU103:DV103) -> 2 | DX103: 0 | DY103: 0 | DZ103: 1 | EA103: =SUM(DY103:DZ103) -> 1 | EC103: 1 | ED103: 1 | EG103: 0
A104: =CONCATENATE(S104,"_",T104,"_",U104) -> 170_11_2524 | B104: 1 | C104: =CONCATENATE(S104,"_",T104) -> 170_11 | D104: =RANK(CP104,$CP$37:$CP$1821) -> 68 | E104: 68 | F104: =E104-D104 -> 0 | G104: =CP104 -> 12.97225049 | H104: =AZ104 -> 5 | I104: =BV104 -> 5.805583822 | J104: =CN104 -> 2.166666667 | K104: =CQ104 -> 1 | L104: =B104-K104 -> 0 | M104: =HYPERLINK(CX104,"Gmaps") -> Gmaps | N104: =IF(Y104>$K$6,"LOPUT","VÄHÄ") -> LOPUT | O104: =IF(S104<40,"Valta",IF(S104<100,"Kanta",IF(S104<1000,"Seutu",IF(S104>999,"Yhdys")))) -> Seutu | R104: Uusimaa | S104: 170 | T104: 11 | U104: 2524 | V104: 11 | W104: 9237 | X104: 6713 | Y104: 2845 | Z104: 118 | AA104: 3195 | AC104: 60 (31 %), 80 (69 %) | AF104: PK2 (99 %) | AI104: 0.05776173285 | AJ104: 22 | AR104: =+IF(Y104>=$K$6,$F$5,($F$5/($K$6))*Y104) -> 9 | AS104: 212 | AV104: =+IF(AS104>=$L$15,$J$15,IF(AS104<($L$15),AS104*($J$15/($L$15)),)) -> 3 | AW104: 2033 | AX104: =+IF(AW104>=$L$11,$J$11,IF(AW104<($L$11),AW104*($J$11/($L$11)),)) -> 3 | AY104: =SUM(AR104,AV104,AX104) -> 15 | AZ104: =+AY104*$H$5 -> 5 | BA104: =+IF(Z104=0,0,IF(Z104>$K$7,$F$9,($F$9/$K$7)*Z104)) -> 8 | BB104: =IF(DD104>0,$F$10,0) -> 2 | BC104: =IF(DE104>0,$F$11,0) -> 0 | BD104: =IF(DF104>0,$F$12,0) -> 0 | BE104: =IF(DG104>0,$F$13,0) -> 0 | BF104: =IF(DI104>0,$F$14,IF(DH104>0,$F$14/2,0)) -> 1 | BG104: =+IF(DJ104>=$L$19,$J$19,IF(DJ104<($L$19),DJ104*($J$19/($L$19)),)) -> 0 | BH104: =+IF(DK104>=$L$20,$J$20,IF(DK104<($L$20),DK104*($J$20/($L$20)),)) -> 0 | BI104: =+IF(DL104>=$L$21,$J$21,IF(DL104<($L$21),DL104*($J$21/($L$21)),)) -> 0 | BJ104: =+IF(DM104>=$L$22,$J$22,IF(DM104<($L$22),DM104*($J$22/($L$22)),)) -> 0 | BK104: =IF(DN104>0,$F$16,0) -> 2 | BL104: =+IF(DQ104>=$L$25,$J$25,IF(DQ104<($L$25),DQ104*($J$25/($L$25)),)) -> 2 | BM104: =IF(EG104>100000,$F$18,IF(EG104>0,$F$18/2,0)) -> 0 | BN104: =IF(ED104>0,$F$19,0) -> 2 | BO104: 0.574426 | BP104: 0.524788 | BQ104: 0.952845 | BR104: 0.473781 | BS104: 6.96699 | BT104: =IF(COUNTIF($I$29:$L$29,TRUE)=0,0,IF(SUMIF($I$29:$L$29,TRUE,BO104:BR104)/COUNTIF($I$29:$L$29,TRUE)>=$L$30,$F$20/2,$F$20/2*(SUMIF($I$29:$L$29,TRUE,BO104:BR104)/COUNTIF($I$29:$L$29,TRUE)/$L$30)))+IF(BS104>=10,$F$20/2,IF(BS104<(10),BS104*($F$20/2/10))) -> 0.4167514667 | BU104: =SUM(BA104+BB104+BC104+BD104+BE104+BF104+BK104+BG104+BH104+BI104+BJ104+BL104+BM104+BN104+BT104) -> 17.41675147 | BV104: =+BU104*$H$9 -> 5.805583822 | BW104: 4011.177523 | BX104: =BW104/X104 -> 0.5975238378 | BY104: =IF(BX104>0,IF(BX104>=$DC$28,$DA$28,IF(BX104<$DC$28,$DA$29,0)),0) -> 1 | BZ104: 6670.08894 | CA104: =BZ104/X104 -> 0.993607767 | CB104: =IF(CA104,$F$23,0) -> 1 | CC104: =IF(DS104>0,$F$24,0) -> 1 | CD104: 2273.633236 | CE104: =CD104/X104 -> 0.3386910823 | CF104: =+IF(CE104>=$K$4,$F$25,0) -> 0 | CG104: 40.8940861 | CH104: =IF(CG104>0,IF(CG104>=100,$F$26,IF(CG104<100,$F$26/2)),0) -> 0.5 | CI104: =SUM(DW104) -> 1 | CJ104: =IF(EA104>0,$F$28,0) -> 0 | CK104: =IF(DX104>0,$F$29,0) -> 1 | CL104: =IF(EC104>0,$F$30,0) -> 1 | CM104: =SUM(BY104,CB104,CH104,CC104,CF104,CI104,CJ104,CK104,CL104) -> 6.5 | CN104: =+CM104*$H$22 -> 2.166666667 | CO104: =SUM(AY104,BU104,CM104) -> 38.91675147 | CP104: =SUM(AZ104,BV104,CN104) -> 12.97225049 | CQ104: =IF(D104<($Z$13*1785),1,IF(D104<(($Z$14+$Z$13)*1785),2,IF(D104<(($Z$15+$Z$13+$Z$14)*1785),3,4))) -> 1 | CR104: =VLOOKUP(A104,Taul1!$F$6:$G$1718,2,FALSE) ->  | DA104: 0 | DB104: 1 | DC104: 0 | DD104: =SUM(DA104:DC104) -> 1 | DE104: 0 | DF104: 0 | DG104: 0 | DH104: 3 | DI104: 0 | DJ104: 0 | DK104: 0 | DL104: 0 | DM104: 0 | DN104: 1 | DP104: 4011.177523 | DQ104: 12 | DR104: 0 | DS104: 5 | DT104: 2273.633236 | DU104: =+IF(AA104>$K$8,$F$27/2,0) -> 1 | DV104: =+IF(AA104/Y104>1.5,$F$27/2,0) -> 0 | DW104: =SUM(DU104:DV104) -> 1 | DX104: 1 | DY104: 0 | DZ104: 0 | EA104: =SUM(DY104:DZ104) -> 0 | EC104: 1 | ED104: 1 | EG104: 0
A105: =CONCATENATE(S105,"_",T105,"_",U105) -> 25_20_0 | B105: 1 | C105: =CONCATENATE(S105,"_",T105) -> 25_20 | D105: =RANK(CP105,$CP$37:$CP$1821) -> 69 | E105: 69 | F105: =E105-D105 -> 0 | G105: =CP105 -> 12.96666667 | H105: =AZ105 -> 4.275 | I105: =BV105 -> 6.358333333 | J105: =CN105 -> 2.333333333 | K105: =CQ105 -> 1 | L105: =B105-K105 -> 0 | M105: =HYPERLINK(CX105,"Gmaps") -> Gmaps | N105: =IF(Y105>$K$6,"LOPUT","VÄHÄ") -> LOPUT | O105: =IF(S105<40,"Valta",IF(S105<100,"Kanta",IF(S105<1000,"Seutu",IF(S105>999,"Yhdys")))) -> Valta | R105: Uusimaa | S105: 25 | T105: 20 | U105: 0 | V105: 20 | W105: 7496 | X105: 7496 | Y105: 16476 | Z105: 935 | AA105: 17750 | AC105: 50 (2 %), 60 (15 %), 80 (83 %) | AF105: PK1 (100 %) | AI105: 0.005959830741 | AJ105: 518 | AR105: =+IF(Y105>=$K$6,$F$5,($F$5/($K$6))*Y105) -> 9 | AS105: 11 | AV105: =+IF(AS105>=$L$15,$J$15,IF(AS105<($L$15),AS105*($J$15/($L$15)),)) -> 0.825 | AW105: 11809 | AX105: =+IF(AW105>=$L$11,$J$11,IF(AW105<($L$11),AW105*($J$11/($L$11)),)) -> 3 | AY105: =SUM(AR105,AV105,AX105) -> 12.825 | AZ105: =+AY105*$H$5 -> 4.275 | BA105: =+IF(Z105=0,0,IF(Z105>$K$7,$F$9,($F$9/$K$7)*Z105)) -> 8 | BB105: =IF(DD105>0,$F$10,0) -> 2 | BC105: =IF(DE105>0,$F$11,0) -> 1 | BD105: =IF(DF105>0,$F$12,0) -> 1 | BE105: =IF(DG105>0,$F$13,0) -> 0 | BF105: =IF(DI105>0,$F$14,IF(DH105>0,$F$14/2,0)) -> 1 | BG105: =+IF(DJ105>=$L$19,$J$19,IF(DJ105<($L$19),DJ105*($J$19/($L$19)),)) -> 0.075 | BH105: =+IF(DK105>=$L$20,$J$20,IF(DK105<($L$20),DK105*($J$20/($L$20)),)) -> 0.5 | BI105: =+IF(DL105>=$L$21,$J$21,IF(DL105<($L$21),DL105*($J$21/($L$21)),)) -> 0 | BJ105: =+IF(DM105>=$L$22,$J$22,IF(DM105<($L$22),DM105*($J$22/($L$22)),)) -> 0 | BK105: =IF(DN105>0,$F$16,0) -> 0 | BL105: =+IF(DQ105>=$L$25,$J$25,IF(DQ105<($L$25),DQ105*($J$25/($L$25)),)) -> 2 | BM105: =IF(EG105>100000,$F$18,IF(EG105>0,$F$18/2,0)) -> 0.5 | BN105: =IF(ED105>0,$F$19,0) -> 2 | BO105: 10.8781 | BP105: 13.3728 | BQ105: 8.11953 | BR105: 5.86852 | BS105: 11.7447 | BT105: =IF(COUNTIF($I$29:$L$29,TRUE)=0,0,IF(SUMIF($I$29:$L$29,TRUE,BO105:BR105)/COUNTIF($I$29:$L$29,TRUE)>=$L$30,$F$20/2,$F$20/2*(SUMIF($I$29:$L$29,TRUE,BO105:BR105)/COUNTIF($I$29:$L$29,TRUE)/$L$30)))+IF(BS105>=10,$F$20/2,IF(BS105<(10),BS105*($F$20/2/10))) -> 1 | BU105: =SUM(BA105+BB105+BC105+BD105+BE105+BF105+BK105+BG105+BH105+BI105+BJ105+BL105+BM105+BN105+BT105) -> 19.075 | BV105: =+BU105*$H$9 -> 6.358333333 | BW105: 7463.93396 | BX105: =BW105/X105 -> 0.9957222465 | BY105: =IF(BX105>0,IF(BX105>=$DC$28,$DA$28,IF(BX105<$DC$28,$DA$29,0)),0) -> 1 | BZ105: 6807.451784 | CA105: =BZ105/X105 -> 0.9081445817 | CB105: =IF(CA105,$F$23,0) -> 1 | CC105: =IF(DS105>0,$F$24,0) -> 0 | CD105: 6770.590595 | CE105: =CD105/X105 -> 0.9032271338 | CF105: =+IF(CE105>=$K$4,$F$25,0) -> 1 | CG105: 699.310032 | CH105: =IF(CG105>0,IF(CG105>=100,$F$26,IF(CG105<100,$F$26/2)),0) -> 1 | CI105: =SUM(DW105) -> 1 | CJ105: =IF(EA105>0,$F$28,0) -> 0 | CK105: =IF(DX105>0,$F$29,0) -> 1 | CL105: =IF(EC105>0,$F$30,0) -> 1 | CM105: =SUM(BY105,CB105,CH105,CC105,CF105,CI105,CJ105,CK105,CL105) -> 7 | CN105: =+CM105*$H$22 -> 2.333333333 | CO105: =SUM(AY105,BU105,CM105) -> 38.9 | CP105: =SUM(AZ105,BV105,CN105) -> 12.96666667 | CQ105: =IF(D105<($Z$13*1785),1,IF(D105<(($Z$14+$Z$13)*1785),2,IF(D105<(($Z$15+$Z$13+$Z$14)*1785),3,4))) -> 1 | CR105: =VLOOKUP(A105,Taul1!$F$6:$G$1718,2,FALSE) ->  | DA105: 0 | DB105: 0 | DC105: 2 | DD105: =SUM(DA105:DC105) -> 2 | DE105: 7 | DF105: 3 | DG105: 0 | DH105: 7 | DI105: 0 | DJ105: 45 | DK105: 243 | DL105: 0 | DM105: 0 | DN105: 0 | DP105: 7463.93396 | DQ105: 27 | DR105: 2 | DS105: 0 | DT105: 6770.590595 | DU105: =+IF(AA105>$K$8,$F$27/2,0) -> 1 | DV105: =+IF(AA105/Y105>1.5,$F$27/2,0) -> 0 | DW105: =SUM(DU105:DV105) -> 1 | DX105: 3 | DY105: 0 | DZ105: 0 | EA105: =SUM(DY105:DZ105) -> 0 | EC105: 1 | ED105: 11 | EG105: 27518
A106: =CONCATENATE(S106,"_",T106,"_",U106) -> 167_7_0 | B106: 1 | C106: =CONCATENATE(S106,"_",T106) -> 167_7 | D106: =RANK(CP106,$CP$37:$CP$1821) -> 70 | E106: 70 | F106: =E106-D106 -> 0 | G106: =CP106 -> 12.95532861 | H106: =AZ106 -> 5 | I106: =BV106 -> 5.621995278 | J106: =CN106 -> 2.333333333 | K106: =CQ106 -> 1 | L106: =B106-K106 -> 0 | M106: =HYPERLINK(CX106,"Gmaps") -> Gmaps | N106: =IF(Y106>$K$6,"LOPUT","VÄHÄ") -> LOPUT | O106: =IF(S106<40,"Valta",IF(S106<100,"Kanta",IF(S106<1000,"Seutu",IF(S106>999,"Yhdys")))) -> Seutu | R106: Päijät-Häme | S106: 167 | T106: 7 | U106: 0 | V106: 7 | W106: 3549 | X106: 3549 | Y106: 3937 | Z106: 247 | AA106: 4190 | AC106: 50 (42 %), 60 (58 %) | AF106: PK2 (99 %) | AI106: 0.112707805 | AJ106: 89 | AR106: =+IF(Y106>=$K$6,$F$5,($F$5/($K$6))*Y106) -> 9 | AS106: 429 | AV106: =+IF(AS106>=$L$15,$J$15,IF(AS106<($L$15),AS106*($J$15/($L$15)),)) -> 3 | AW106: 1535 | AX106: =+IF(AW106>=$L$11,$J$11,IF(AW106<($L$11),AW106*($J$11/($L$11)),)) -> 3 | AY106: =SUM(AR106,AV106,AX106) -> 15 | AZ106: =+AY106*$H$5 -> 5 | BA106: =+IF(Z106=0,0,IF(Z106>$K$7,$F$9,($F$9/$K$7)*Z106)) -> 8 | BB106: =IF(DD106>0,$F$10,0) -> 2 | BC106: =IF(DE106>0,$F$11,0) -> 0 | BD106: =IF(DF106>0,$F$12,0) -> 1 | BE106: =IF(DG106>0,$F$13,0) -> 0 | BF106: =IF(DI106>0,$F$14,IF(DH106>0,$F$14/2,0)) -> 1 | BG106: =+IF(DJ106>=$L$19,$J$19,IF(DJ106<($L$19),DJ106*($J$19/($L$19)),)) -> 0.003333333333 | BH106: =+IF(DK106>=$L$20,$J$20,IF(DK106<($L$20),DK106*($J$20/($L$20)),)) -> 0.125 | BI106: =+IF(DL106>=$L$21,$J$21,IF(DL106<($L$21),DL106*($J$21/($L$21)),)) -> 0 | BJ106: =+IF(DM106>=$L$22,$J$22,IF(DM106<($L$22),DM106*($J$22/($L$22)),)) -> 0 | BK106: =IF(DN106>0,$F$16,0) -> 0 | BL106: =+IF(DQ106>=$L$25,$J$25,IF(DQ106<($L$25),DQ106*($J$25/($L$25)),)) -> 2 | BM106: =IF(EG106>100000,$F$18,IF(EG106>0,$F$18/2,0)) -> 0 | BN106: =IF(ED106>0,$F$19,0) -> 2 | BO106: 3.191 | BP106: 3.32364 | BQ106: 3.04318 | BR106: 1.05817 | BS106: 8.38117 | BT106: =IF(COUNTIF($I$29:$L$29,TRUE)=0,0,IF(SUMIF($I$29:$L$29,TRUE,BO106:BR106)/COUNTIF($I$29:$L$29,TRUE)>=$L$30,$F$20/2,$F$20/2*(SUMIF($I$29:$L$29,TRUE,BO106:BR106)/COUNTIF($I$29:$L$29,TRUE)/$L$30)))+IF(BS106>=10,$F$20/2,IF(BS106<(10),BS106*($F$20/2/10))) -> 0.7376525 | BU106: =SUM(BA106+BB106+BC106+BD106+BE106+BF106+BK106+BG106+BH106+BI106+BJ106+BL106+BM106+BN106+BT106) -> 16.86598583 | BV106: =+BU106*$H$9 -> 5.621995278 | BW106: 2799.241174 | BX106: =BW106/X106 -> 0.788740821 | BY106: =IF(BX106>0,IF(BX106>=$DC$28,$DA$28,IF(BX106<$DC$28,$DA$29,0)),0) -> 1 | BZ106: 3543.593912 | CA106: =BZ106/X106 -> 0.9984767292 | CB106: =IF(CA106,$F$23,0) -> 1 | CC106: =IF(DS106>0,$F$24,0) -> 1 | CD106: 3156.649142 | CE106: =CD106/X106 -> 0.88944749 | CF106: =+IF(CE106>=$K$4,$F$25,0) -> 1 | CG106: 613.534235 | CH106: =IF(CG106>0,IF(CG106>=100,$F$26,IF(CG106<100,$F$26/2)),0) -> 1 | CI106: =SUM(DW106) -> 1 | CJ106: =IF(EA106>0,$F$28,0) -> 0 | CK106: =IF(DX106>0,$F$29,0) -> 0 | CL106: =IF(EC106>0,$F$30,0) -> 1 | CM106: =SUM(BY106,CB106,CH106,CC106,CF106,CI106,CJ106,CK106,CL106) -> 7 | CN106: =+CM106*$H$22 -> 2.333333333 | CO106: =SUM(AY106,BU106,CM106) -> 38.86598583 | CP106: =SUM(AZ106,BV106,CN106) -> 12.95532861 | CQ106: =IF(D106<($Z$13*1785),1,IF(D106<(($Z$14+$Z$13)*1785),2,IF(D106<(($Z$15+$Z$13+$Z$14)*1785),3,4))) -> 1 | CR106: =VLOOKUP(A106,Taul1!$F$6:$G$1718,2,FALSE) ->  | DA106: 0 | DB106: 1 | DC106: 0 | DD106: =SUM(DA106:DC106) -> 1 | DE106: 0 | DF106: 6 | DG106: 0 | DH106: 5 | DI106: 0 | DJ106: 2 | DK106: 25 | DL106: 0 | DM106: 0 | DN106: 0 | DP106: 2799.241174 | DQ106: 4 | DR106: 0 | DS106: 5 | DT106: 3156.649142 | DU106: =+IF(AA106>$K$8,$F$27/2,0) -> 1 | DV106: =+IF(AA106/Y106>1.5,$F$27/2,0) -> 0 | DW106: =SUM(DU106:DV106) -> 1 | DX106: 0 | DY106: 0 | DZ106: 0 | EA106: =SUM(DY106:DZ106) -> 0 | EC106: 1 | ED106: 1 | EG106: 0
A107: =CONCATENATE(S107,"_",T107,"_",U107) -> 111_1_0 | B107: 1 | C107: =CONCATENATE(S107,"_",T107) -> 111_1 | D107: =RANK(CP107,$CP$37:$CP$1821) -> 71 | E107: 71 | F107: =E107-D107 -> 0 | G107: =CP107 -> 12.95141978 | H107: =AZ107 -> 5 | I107: =BV107 -> 5.284753111 | J107: =CN107 -> 2.666666667 | K107: =CQ107 -> 1 | L107: =B107-K107 -> 0 | M107: =HYPERLINK(CX107,"Gmaps") -> Gmaps | N107: =IF(Y107>$K$6,"LOPUT","VÄHÄ") -> LOPUT | O107: =IF(S107<40,"Valta",IF(S107<100,"Kanta",IF(S107<1000,"Seutu",IF(S107>999,"Yhdys")))) -> Seutu | R107: Uusimaa | S107: 111 | T107: 1 | U107: 0 | V107: 1 | W107: 4422 | X107: 4422 | Y107: 3674 | Z107: 222 | AA107: 4050 | AC107: 50 (41 %), 60 (60 %) | AF107: PK2 (100 %) | AI107: 0.2939846223 | AJ107: 69 | AR107: =+IF(Y107>=$K$6,$F$5,($F$5/($K$6))*Y107) -> 9 | AS107: 78 | AV107: =+IF(AS107>=$L$15,$J$15,IF(AS107<($L$15),AS107*($J$15/($L$15)),)) -> 3 | AW107: 1848 | AX107: =+IF(AW107>=$L$11,$J$11,IF(AW107<($L$11),AW107*($J$11/($L$11)),)) -> 3 | AY107: =SUM(AR107,AV107,AX107) -> 15 | AZ107: =+AY107*$H$5 -> 5 | BA107: =+IF(Z107=0,0,IF(Z107>$K$7,$F$9,($F$9/$K$7)*Z107)) -> 8 | BB107: =IF(DD107>0,$F$10,0) -> 0 | BC107: =IF(DE107>0,$F$11,0) -> 1 | BD107: =IF(DF107>0,$F$12,0) -> 0 | BE107: =IF(DG107>0,$F$13,0) -> 0 | BF107: =IF(DI107>0,$F$14,IF(DH107>0,$F$14/2,0)) -> 2 | BG107: =+IF(DJ107>=$L$19,$J$19,IF(DJ107<($L$19),DJ107*($J$19/($L$19)),)) -> 0 | BH107: =+IF(DK107>=$L$20,$J$20,IF(DK107<($L$20),DK107*($J$20/($L$20)),)) -> 0.27 | BI107: =+IF(DL107>=$L$21,$J$21,IF(DL107<($L$21),DL107*($J$21/($L$21)),)) -> 0 | BJ107: =+IF(DM107>=$L$22,$J$22,IF(DM107<($L$22),DM107*($J$22/($L$22)),)) -> 0 | BK107: =IF(DN107>0,$F$16,0) -> 0 | BL107: =+IF(DQ107>=$L$25,$J$25,IF(DQ107<($L$25),DQ107*($J$25/($L$25)),)) -> 2 | BM107: =IF(EG107>100000,$F$18,IF(EG107>0,$F$18/2,0)) -> 0 | BN107: =IF(ED107>0,$F$19,0) -> 2 | BO107: 4.41154 | BP107: 4.91561 | BQ107: 5.43244 | BR107: 2.78349 | BS107: 1.84546 | BT107: =IF(COUNTIF($I$29:$L$29,TRUE)=0,0,IF(SUMIF($I$29:$L$29,TRUE,BO107:BR107)/COUNTIF($I$29:$L$29,TRUE)>=$L$30,$F$20/2,$F$20/2*(SUMIF($I$29:$L$29,TRUE,BO107:BR107)/COUNTIF($I$29:$L$29,TRUE)/$L$30)))+IF(BS107>=10,$F$20/2,IF(BS107<(10),BS107*($F$20/2/10))) -> 0.5842593333 | BU107: =SUM(BA107+BB107+BC107+BD107+BE107+BF107+BK107+BG107+BH107+BI107+BJ107+BL107+BM107+BN107+BT107) -> 15.85425933 | BV107: =+BU107*$H$9 -> 5.284753111 | BW107: 4470.722295 | BX107: =BW107/X107 -> 1.011018158 | BY107: =IF(BX107>0,IF(BX107>=$DC$28,$DA$28,IF(BX107<$DC$28,$DA$29,0)),0) -> 1 | BZ107: 4276.790608 | CA107: =BZ107/X107 -> 0.9671620551 | CB107: =IF(CA107,$F$23,0) -> 1 | CC107: =IF(DS107>0,$F$24,0) -> 1 | CD107: 3679.788365 | CE107: =CD107/X107 -> 0.8321547637 | CF107: =+IF(CE107>=$K$4,$F$25,0) -> 1 | CG107: 380.6838535 | CH107: =IF(CG107>0,IF(CG107>=100,$F$26,IF(CG107<100,$F$26/2)),0) -> 1 | CI107: =SUM(DW107) -> 1 | CJ107: =IF(EA107>0,$F$28,0) -> 0 | CK107: =IF(DX107>0,$F$29,0) -> 1 | CL107: =IF(EC107>0,$F$30,0) -> 1 | CM107: =SUM(BY107,CB107,CH107,CC107,CF107,CI107,CJ107,CK107,CL107) -> 8 | CN107: =+CM107*$H$22 -> 2.666666667 | CO107: =SUM(AY107,BU107,CM107) -> 38.85425933 | CP107: =SUM(AZ107,BV107,CN107) -> 12.95141978 | CQ107: =IF(D107<($Z$13*1785),1,IF(D107<(($Z$14+$Z$13)*1785),2,IF(D107<(($Z$15+$Z$13+$Z$14)*1785),3,4))) -> 1 | CR107: =VLOOKUP(A107,Taul1!$F$6:$G$1718,2,FALSE) ->  | DA107: 0 | DB107: 0 | DC107: 0 | DD107: =SUM(DA107:DC107) -> 0 | DE107: 2 | DF107: 0 | DG107: 0 | DH107: 3 | DI107: 1 | DJ107: 0 | DK107: 54 | DL107: 0 | DM107: 0 | DN107: 0 | DP107: 4470.722295 | DQ107: 6 | DR107: 0 | DS107: 33 | DT107: 3679.788365 | DU107: =+IF(AA107>$K$8,$F$27/2,0) -> 1 | DV107: =+IF(AA107/Y107>1.5,$F$27/2,0) -> 0 | DW107: =SUM(DU107:DV107) -> 1 | DX107: 2 | DY107: 0 | DZ107: 0 | EA107: =SUM(DY107:DZ107) -> 0 | EC107: 1 | ED107: 1 | EG107: 0
A108: =CONCATENATE(S108,"_",T108,"_",U108) -> 110_18_0 | B108: 1 | C108: =CONCATENATE(S108,"_",T108) -> 110_18 | D108: =RANK(CP108,$CP$37:$CP$1821) -> 72 | E108: 72 | F108: =E108-D108 -> 0 | G108: =CP108 -> 12.93320838 | H108: =AZ108 -> 4.675 | I108: =BV108 -> 6.591541717 | J108: =CN108 -> 1.666666667 | K108: =CQ108 -> 1 | L108: =B108-K108 -> 0 | M108: =HYPERLINK(CX108,"Gmaps") -> Gmaps | N108: =IF(Y108>$K$6,"LOPUT","VÄHÄ") -> LOPUT | O108: =IF(S108<40,"Valta",IF(S108<100,"Kanta",IF(S108<1000,"Seutu",IF(S108>999,"Yhdys")))) -> Seutu | R108: Uusimaa | S108: 110 | T108: 18 | U108: 0 | V108: 18 | W108: 5338 | X108: 5338 | Y108: 2262 | Z108: 110 | AA108: 2921 | AC108: 80 (100 %) | AF108: PK2 (100 %) | AI108: 0.1303550974 | AJ108: 17 | AR108: =+IF(Y108>=$K$6,$F$5,($F$5/($K$6))*Y108) -> 9 | AS108: 27 | AV108: =+IF(AS108>=$L$15,$J$15,IF(AS108<($L$15),AS108*($J$15/($L$15)),)) -> 2.025 | AW108: 482 | AX108: =+IF(AW108>=$L$11,$J$11,IF(AW108<($L$11),AW108*($J$11/($L$11)),)) -> 3 | AY108: =SUM(AR108,AV108,AX108) -> 14.025 | AZ108: =+AY108*$H$5 -> 4.675 | BA108: =+IF(Z108=0,0,IF(Z108>$K$7,$F$9,($F$9/$K$7)*Z108)) -> 8 | BB108: =IF(DD108>0,$F$10,0) -> 2 | BC108: =IF(DE108>0,$F$11,0) -> 0 | BD108: =IF(DF108>0,$F$12,0) -> 1 | BE108: =IF(DG108>0,$F$13,0) -> 0 | BF108: =IF(DI108>0,$F$14,IF(DH108>0,$F$14/2,0)) -> 2 | BG108: =+IF(DJ108>=$L$19,$J$19,IF(DJ108<($L$19),DJ108*($J$19/($L$19)),)) -> 0.2266666667 | BH108: =+IF(DK108>=$L$20,$J$20,IF(DK108<($L$20),DK108*($J$20/($L$20)),)) -> 0.435 | BI108: =+IF(DL108>=$L$21,$J$21,IF(DL108<($L$21),DL108*($J$21/($L$21)),)) -> 0 | BJ108: =+IF(DM108>=$L$22,$J$22,IF(DM108<($L$22),DM108*($J$22/($L$22)),)) -> 0 | BK108: =IF(DN108>0,$F$16,0) -> 2 | BL108: =+IF(DQ108>=$L$25,$J$25,IF(DQ108<($L$25),DQ108*($J$25/($L$25)),)) -> 2 | BM108: =IF(EG108>100000,$F$18,IF(EG108>0,$F$18/2,0)) -> 0 | BN108: =IF(ED108>0,$F$19,0) -> 2 | BO108: 0.718357 | BP108: 0.924222 | BQ108: 0.483411 | BR108: 0.0639312 | BS108: 0.841843 | BT108: =IF(COUNTIF($I$29:$L$29,TRUE)=0,0,IF(SUMIF($I$29:$L$29,TRUE,BO108:BR108)/COUNTIF($I$29:$L$29,TRUE)>=$L$30,$F$20/2,$F$20/2*(SUMIF($I$29:$L$29,TRUE,BO108:BR108)/COUNTIF($I$29:$L$29,TRUE)/$L$30)))+IF(BS108>=10,$F$20/2,IF(BS108<(10),BS108*($F$20/2/10))) -> 0.1129584833 | BU108: =SUM(BA108+BB108+BC108+BD108+BE108+BF108+BK108+BG108+BH108+BI108+BJ108+BL108+BM108+BN108+BT108) -> 19.77462515 | BV108: =+BU108*$H$9 -> 6.591541717 | BW108: 1293.921848 | BX108: =BW108/X108 -> 0.242398248 | BY108: =IF(BX108>0,IF(BX108>=$DC$28,$DA$28,IF(BX108<$DC$28,$DA$29,0)),0) -> 0.5 | BZ108: 5317.68457 | CA108: =BZ108/X108 -> 0.9961941869 | CB108: =IF(CA108,$F$23,0) -> 1 | CC108: =IF(DS108>0,$F$24,0) -> 1 | CD108: 236.1946907 | CE108: =CD108/X108 -> 0.04424778769 | CF108: =+IF(CE108>=$K$4,$F$25,0) -> 0 | CG108: 14.51854627 | CH108: =IF(CG108>0,IF(CG108>=100,$F$26,IF(CG108<100,$F$26/2)),0) -> 0.5 | CI108: =SUM(DW108) -> 1 | CJ108: =IF(EA108>0,$F$28,0) -> 0 | CK108: =IF(DX108>0,$F$29,0) -> 0 | CL108: =IF(EC108>0,$F$30,0) -> 1 | CM108: =SUM(BY108,CB108,CH108,CC108,CF108,CI108,CJ108,CK108,CL108) -> 5 | CN108: =+CM108*$H$22 -> 1.666666667 | CO108: =SUM(AY108,BU108,CM108) -> 38.79962515 | CP108: =SUM(AZ108,BV108,CN108) -> 12.93320838 | CQ108: =IF(D108<($Z$13*1785),1,IF(D108<(($Z$14+$Z$13)*1785),2,IF(D108<(($Z$15+$Z$13+$Z$14)*1785),3,4))) -> 1 | CR108: =VLOOKUP(A108,Taul1!$F$6:$G$1718,2,FALSE) ->  | DA108: 0 | DB108: 1 | DC108: 1 | DD108: =SUM(DA108:DC108) -> 2 | DE108: 0 | DF108: 3 | DG108: 0 | DH108: 27 | DI108: 1 | DJ108: 136 | DK108: 87 | DL108: 0 | DM108: 0 | DN108: 2 | DP108: 1293.921848 | DQ108: 3 | DR108: 0 | DS108: 2 | DT108: 236.1946907 | DU108: =+IF(AA108>$K$8,$F$27/2,0) -> 1 | DV108: =+IF(AA108/Y108>1.5,$F$27/2,0) -> 0 | DW108: =SUM(DU108:DV108) -> 1 | DX108: 0 | DY108: 0 | DZ108: 0 | EA108: =SUM(DY108:DZ108) -> 0 | EC108: 1 | ED108: 3 | EG108: 0
A109: =CONCATENATE(S109,"_",T109,"_",U109) -> 2_15_0 | B109: 1 | C109: =CONCATENATE(S109,"_",T109) -> 2_15 | D109: =RANK(CP109,$CP$37:$CP$1821) -> 73 | E109: 73 | F109: =E109-D109 -> 0 | G109: =CP109 -> 12.86388889 | H109: =AZ109 -> 5 | I109: =BV109 -> 6.197222222 | J109: =CN109 -> 1.666666667 | K109: =CQ109 -> 1 | L109: =B109-K109 -> 0 | M109: =HYPERLINK(CX109,"Gmaps") -> Gmaps | N109: =IF(Y109>$K$6,"LOPUT","VÄHÄ") -> LOPUT | O109: =IF(S109<40,"Valta",IF(S109<100,"Kanta",IF(S109<1000,"Seutu",IF(S109>999,"Yhdys")))) -> Valta | R109: Uusimaa | S109: 2 | T109: 15 | U109: 0 | V109: 15 | W109: 6921 | X109: 6921 | Y109: 4596 | Z109: 521 | AA109: 5933 | AC109: 80 (26 %), 100 (74 %) | AF109: PK1 (100 %) | AI109: 0.11199776 | AJ109: 371 | AR109: =+IF(Y109>=$K$6,$F$5,($F$5/($K$6))*Y109) -> 9 | AS109: 139 | AV109: =+IF(AS109>=$L$15,$J$15,IF(AS109<($L$15),AS109*($J$15/($L$15)),)) -> 3 | AW109: 1657 | AX109: =+IF(AW109>=$L$11,$J$11,IF(AW109<($L$11),AW109*($J$11/($L$11)),)) -> 3 | AY109: =SUM(AR109,AV109,AX109) -> 15 | AZ109: =+AY109*$H$5 -> 5 | BA109: =+IF(Z109=0,0,IF(Z109>$K$7,$F$9,($F$9/$K$7)*Z109)) -> 8 | BB109: =IF(DD109>0,$F$10,0) -> 2 | BC109: =IF(DE109>0,$F$11,0) -> 0 | BD109: =IF(DF109>0,$F$12,0) -> 1 | BE109: =IF(DG109>0,$F$13,0) -> 0 | BF109: =IF(DI109>0,$F$14,IF(DH109>0,$F$14/2,0)) -> 2 | BG109: =+IF(DJ109>=$L$19,$J$19,IF(DJ109<($L$19),DJ109*($J$19/($L$19)),)) -> 0.4166666667 | BH109: =+IF(DK109>=$L$20,$J$20,IF(DK109<($L$20),DK109*($J$20/($L$20)),)) -> 0.175 | BI109: =+IF(DL109>=$L$21,$J$21,IF(DL109<($L$21),DL109*($J$21/($L$21)),)) -> 0 | BJ109: =+IF(DM109>=$L$22,$J$22,IF(DM109<($L$22),DM109*($J$22/($L$22)),)) -> 0 | BK109: =IF(DN109>0,$F$16,0) -> 0 | BL109: =+IF(DQ109>=$L$25,$J$25,IF(DQ109<($L$25),DQ109*($J$25/($L$25)),)) -> 2 | BM109: =IF(EG109>100000,$F$18,IF(EG109>0,$F$18/2,0)) -> 0 | BN109: =IF(ED109>0,$F$19,0) -> 2 | BO109: 6.64435 | BP109: 10.0985 | BQ109: 7.10467 | BR109: 3.37531 | BS109: 10.9494 | BT109: =IF(COUNTIF($I$29:$L$29,TRUE)=0,0,IF(SUMIF($I$29:$L$29,TRUE,BO109:BR109)/COUNTIF($I$29:$L$29,TRUE)>=$L$30,$F$20/2,$F$20/2*(SUMIF($I$29:$L$29,TRUE,BO109:BR109)/COUNTIF($I$29:$L$29,TRUE)/$L$30)))+IF(BS109>=10,$F$20/2,IF(BS109<(10),BS109*($F$20/2/10))) -> 1 | BU109: =SUM(BA109+BB109+BC109+BD109+BE109+BF109+BK109+BG109+BH109+BI109+BJ109+BL109+BM109+BN109+BT109) -> 18.59166667 | BV109: =+BU109*$H$9 -> 6.197222222 | BW109: 3339.960334 | BX109: =BW109/X109 -> 0.4825834899 | BY109: =IF(BX109>0,IF(BX109>=$DC$28,$DA$28,IF(BX109<$DC$28,$DA$29,0)),0) -> 0.5 | BZ109: 6922.705095 | CA109: =BZ109/X109 -> 1.000246365 | CB109: =IF(CA109,$F$23,0) -> 1 | CC109: =IF(DS109>0,$F$24,0) -> 0 | CD109: 1274.239226 | CE109: =CD109/X109 -> 0.1841120106 | CF109: =+IF(CE109>=$K$4,$F$25,0) -> 0 | CG109: 59.08770409 | CH109: =IF(CG109>0,IF(CG109>=100,$F$26,IF(CG109<100,$F$26/2)),0) -> 0.5 | CI109: =SUM(DW109) -> 1 | CJ109: =IF(EA109>0,$F$28,0) -> 0 | CK109: =IF(DX109>0,$F$29,0) -> 1 | CL109: =IF(EC109>0,$F$30,0) -> 1 | CM109: =SUM(BY109,CB109,CH109,CC109,CF109,CI109,CJ109,CK109,CL109) -> 5 | CN109: =+CM109*$H$22 -> 1.666666667 | CO109: =SUM(AY109,BU109,CM109) -> 38.59166667 | CP109: =SUM(AZ109,BV109,CN109) -> 12.86388889 | CQ109: =IF(D109<($Z$13*1785),1,IF(D109<(($Z$14+$Z$13)*1785),2,IF(D109<(($Z$15+$Z$13+$Z$14)*1785),3,4))) -> 1 | CR109: =VLOOKUP(A109,Taul1!$F$6:$G$1718,2,FALSE) ->  | DA109: 0 | DB109: 1 | DC109: 3 | DD109: =SUM(DA109:DC109) -> 4 | DE109: 0 | DF109: 5 | DG109: 0 | DH109: 10 | DI109: 2 | DJ109: 250 | DK109: 35 | DL109: 0 | DM109: 0 | DN109: 0 | DP109: 3339.960334 | DQ109: 10 | DR109: 0 | DS109: 0 | DT109: 1274.239226 | DU109: =+IF(AA109>$K$8,$F$27/2,0) -> 1 | DV109: =+IF(AA109/Y109>1.5,$F$27/2,0) -> 0 | DW109: =SUM(DU109:DV109) -> 1 | DX109: 1 | DY109: 0 | DZ109: 0 | EA109: =SUM(DY109:DZ109) -> 0 | EC109: 1 | ED109: 1 | EG109: 0
A110: =CONCATENATE(S110,"_",T110,"_",U110) -> 2_1_0 | B110: 1 | C110: =CONCATENATE(S110,"_",T110) -> 2_1 | D110: =RANK(CP110,$CP$37:$CP$1821) -> 74 | E110: 74 | F110: =E110-D110 -> 0 | G110: =CP110 -> 12.86382426 | H110: =AZ110 -> 5 | I110: =BV110 -> 5.197157594 | J110: =CN110 -> 2.666666667 | K110: =CQ110 -> 1 | L110: =B110-K110 -> 0 | M110: =HYPERLINK(CX110,"Gmaps") -> Gmaps | N110: =IF(Y110>$K$6,"LOPUT","VÄHÄ") -> LOPUT | O110: =IF(S110<40,"Valta",IF(S110<100,"Kanta",IF(S110<1000,"Seutu",IF(S110>999,"Yhdys")))) -> Valta | R110: Uusimaa | S110: 2 | T110: 1 | U110: 0 | V110: 1 | W110: 4730 | X110: 4730 | Y110: 14386 | Z110: 684 | AA110: 14794 | AC110: 80 (18 %), 100 (82 %) | AF110: PK1 (100 %) | AI110: 0 | AJ110: 380 | AR110: =+IF(Y110>=$K$6,$F$5,($F$5/($K$6))*Y110) -> 9 | AS110: 286 | AV110: =+IF(AS110>=$L$15,$J$15,IF(AS110<($L$15),AS110*($J$15/($L$15)),)) -> 3 | AW110: 8699 | AX110: =+IF(AW110>=$L$11,$J$11,IF(AW110<($L$11),AW110*($J$11/($L$11)),)) -> 3 | AY110: =SUM(AR110,AV110,AX110) -> 15 | AZ110: =+AY110*$H$5 -> 5 | BA110: =+IF(Z110=0,0,IF(Z110>$K$7,$F$9,($F$9/$K$7)*Z110)) -> 8 | BB110: =IF(DD110>0,$F$10,0) -> 0 | BC110: =IF(DE110>0,$F$11,0) -> 0 | BD110: =IF(DF110>0,$F$12,0) -> 1 | BE110: =IF(DG110>0,$F$13,0) -> 0 | BF110: =IF(DI110>0,$F$14,IF(DH110>0,$F$14/2,0)) -> 2 | BG110: =+IF(DJ110>=$L$19,$J$19,IF(DJ110<($L$19),DJ110*($J$19/($L$19)),)) -> 0 | BH110: =+IF(DK110>=$L$20,$J$20,IF(DK110<($L$20),DK110*($J$20/($L$20)),)) -> 0.5 | BI110: =+IF(DL110>=$L$21,$J$21,IF(DL110<($L$21),DL110*($J$21/($L$21)),)) -> 0 | BJ110: =+IF(DM110>=$L$22,$J$22,IF(DM110<($L$22),DM110*($J$22/($L$22)),)) -> 0 | BK110: =IF(DN110>0,$F$16,0) -> 0 | BL110: =+IF(DQ110>=$L$25,$J$25,IF(DQ110<($L$25),DQ110*($J$25/($L$25)),)) -> 2 | BM110: =IF(EG110>100000,$F$18,IF(EG110>0,$F$18/2,0)) -> 0 | BN110: =IF(ED110>0,$F$19,0) -> 2 | BO110: 0.440074 | BP110: 0.683874 | BQ110: 0.730632 | BR110: 0.20775 | BS110: 0.593069 | BT110: =IF(COUNTIF($I$29:$L$29,TRUE)=0,0,IF(SUMIF($I$29:$L$29,TRUE,BO110:BR110)/COUNTIF($I$29:$L$29,TRUE)>=$L$30,$F$20/2,$F$20/2*(SUMIF($I$29:$L$29,TRUE,BO110:BR110)/COUNTIF($I$29:$L$29,TRUE)/$L$30)))+IF(BS110>=10,$F$20/2,IF(BS110<(10),BS110*($F$20/2/10))) -> 0.09147278333 | BU110: =SUM(BA110+BB110+BC110+BD110+BE110+BF110+BK110+BG110+BH110+BI110+BJ110+BL110+BM110+BN110+BT110) -> 15.59147278 | BV110: =+BU110*$H$9 -> 5.197157594 | BW110: 4707.778036 | BX110: =BW110/X110 -> 0.9953019103 | BY110: =IF(BX110>0,IF(BX110>=$DC$28,$DA$28,IF(BX110<$DC$28,$DA$29,0)),0) -> 1 | BZ110: 4707.77803 | CA110: =BZ110/X110 -> 0.9953019092 | CB110: =IF(CA110,$F$23,0) -> 1 | CC110: =IF(DS110>0,$F$24,0) -> 1 | CD110: 2915.785338 | CE110: =CD110/X110 -> 0.6164451032 | CF110: =+IF(CE110>=$K$4,$F$25,0) -> 1 | CG110: 251.7019027 | CH110: =IF(CG110>0,IF(CG110>=100,$F$26,IF(CG110<100,$F$26/2)),0) -> 1 | CI110: =SUM(DW110) -> 1 | CJ110: =IF(EA110>0,$F$28,0) -> 0 | CK110: =IF(DX110>0,$F$29,0) -> 1 | CL110: =IF(EC110>0,$F$30,0) -> 1 | CM110: =SUM(BY110,CB110,CH110,CC110,CF110,CI110,CJ110,CK110,CL110) -> 8 | CN110: =+CM110*$H$22 -> 2.666666667 | CO110: =SUM(AY110,BU110,CM110) -> 38.59147278 | CP110: =SUM(AZ110,BV110,CN110) -> 12.86382426 | CQ110: =IF(D110<($Z$13*1785),1,IF(D110<(($Z$14+$Z$13)*1785),2,IF(D110<(($Z$15+$Z$13+$Z$14)*1785),3,4))) -> 1 | CR110: =VLOOKUP(A110,Taul1!$F$6:$G$1718,2,FALSE) ->  | DA110: 0 | DB110: 0 | DC110: 0 | DD110: =SUM(DA110:DC110) -> 0 | DE110: 0 | DF110: 1 | DG110: 0 | DH110: 2 | DI110: 5 | DJ110: 0 | DK110: 125 | DL110: 0 | DM110: 0 | DN110: 0 | DP110: 4707.778036 | DQ110: 13 | DR110: 0 | DS110: 18 | DT110: 2915.785338 | DU110: =+IF(AA110>$K$8,$F$27/2,0) -> 1 | DV110: =+IF(AA110/Y110>1.5,$F$27/2,0) -> 0 | DW110: =SUM(DU110:DV110) -> 1 | DX110: 1 | DY110: 0 | DZ110: 0 | EA110: =SUM(DY110:DZ110) -> 0 | EC110: 1 | ED110: 4 | EG110: 0
A111: =CONCATENATE(S111,"_",T111,"_",U111) -> 362_1_0 | B111: 1 | C111: =CONCATENATE(S111,"_",T111) -> 362_1 | D111: =RANK(CP111,$CP$37:$CP$1821) -> 75 | E111: 75 | F111: =E111-D111 -> 0 | G111: =CP111 -> 12.86347668 | H111: =AZ111 -> 4 | I111: =BV111 -> 6.530143344 | J111: =CN111 -> 2.333333333 | K111: =CQ111 -> 1 | L111: =B111-K111 -> 0 | M111: =HYPERLINK(CX111,"Gmaps") -> Gmaps | N111: =IF(Y111>$K$6,"LOPUT","VÄHÄ") -> LOPUT | O111: =IF(S111<40,"Valta",IF(S111<100,"Kanta",IF(S111<1000,"Seutu",IF(S111>999,"Yhdys")))) -> Seutu | R111: Päijät-Häme | S111: 362 | T111: 1 | U111: 0 | V111: 1 | W111: 6988 | X111: 6988 | Y111: 1636 | Z111: 79 | AA111: 2200 | AC111: 40 (28 %), 50 (19 %), 60 (32 %), 80 (21 %) | AF111: PK3 (100 %) | AI111: 0.6868918145 | AJ111: 21 | AR111: =+IF(Y111>=$K$6,$F$5,($F$5/($K$6))*Y111) -> 9 | AS111: 0 | AV111: =+IF(AS111>=$L$15,$J$15,IF(AS111<($L$15),AS111*($J$15/($L$15)),)) -> 0 | AW111: 318 | AX111: =+IF(AW111>=$L$11,$J$11,IF(AW111<($L$11),AW111*($J$11/($L$11)),)) -> 3 | AY111: =SUM(AR111,AV111,AX111) -> 12 | AZ111: =+AY111*$H$5 -> 4 | BA111: =+IF(Z111=0,0,IF(Z111>$K$7,$F$9,($F$9/$K$7)*Z111)) -> 8 | BB111: =IF(DD111>0,$F$10,0) -> 2 | BC111: =IF(DE111>0,$F$11,0) -> 0 | BD111: =IF(DF111>0,$F$12,0) -> 1 | BE111: =IF(DG111>0,$F$13,0) -> 0 | BF111: =IF(DI111>0,$F$14,IF(DH111>0,$F$14/2,0)) -> 2 | BG111: =+IF(DJ111>=$L$19,$J$19,IF(DJ111<($L$19),DJ111*($J$19/($L$19)),)) -> 0.3866666667 | BH111: =+IF(DK111>=$L$20,$J$20,IF(DK111<($L$20),DK111*($J$20/($L$20)),)) -> 0.04 | BI111: =+IF(DL111>=$L$21,$J$21,IF(DL111<($L$21),DL111*($J$21/($L$21)),)) -> 0 | BJ111: =+IF(DM111>=$L$22,$J$22,IF(DM111<($L$22),DM111*($J$22/($L$22)),)) -> 0 | BK111: =IF(DN111>0,$F$16,0) -> 2 | BL111: =+IF(DQ111>=$L$25,$J$25,IF(DQ111<($L$25),DQ111*($J$25/($L$25)),)) -> 2 | BM111: =IF(EG111>100000,$F$18,IF(EG111>0,$F$18/2,0)) -> 0 | BN111: =IF(ED111>0,$F$19,0) -> 2 | BO111: 0.869103 | BP111: 0.888781 | BQ111: 0.927532 | BR111: 0.389529 | BS111: 1.48499 | BT111: =IF(COUNTIF($I$29:$L$29,TRUE)=0,0,IF(SUMIF($I$29:$L$29,TRUE,BO111:BR111)/COUNTIF($I$29:$L$29,TRUE)>=$L$30,$F$20/2,$F$20/2*(SUMIF($I$29:$L$29,TRUE,BO111:BR111)/COUNTIF($I$29:$L$29,TRUE)/$L$30)))+IF(BS111>=10,$F$20/2,IF(BS111<(10),BS111*($F$20/2/10))) -> 0.1637633667 | BU111: =SUM(BA111+BB111+BC111+BD111+BE111+BF111+BK111+BG111+BH111+BI111+BJ111+BL111+BM111+BN111+BT111) -> 19.59043003 | BV111: =+BU111*$H$9 -> 6.530143344 | BW111: 2396.50935 | BX111: =BW111/X111 -> 0.3429463867 | BY111: =IF(BX111>0,IF(BX111>=$DC$28,$DA$28,IF(BX111<$DC$28,$DA$29,0)),0) -> 0.5 | BZ111: 0 | CA111: =BZ111/X111 -> 0 | CB111: =IF(CA111,$F$23,0) -> 0 | CC111: =IF(DS111>0,$F$24,0) -> 1 | CD111: 3538.05214 | CE111: =CD111/X111 -> 0.5063039697 | CF111: =+IF(CE111>=$K$4,$F$25,0) -> 1 | CG111: 81.09044076 | CH111: =IF(CG111>0,IF(CG111>=100,$F$26,IF(CG111<100,$F$26/2)),0) -> 0.5 | CI111: =SUM(DW111) -> 1 | CJ111: =IF(EA111>0,$F$28,0) -> 1 | CK111: =IF(DX111>0,$F$29,0) -> 1 | CL111: =IF(EC111>0,$F$30,0) -> 1 | CM111: =SUM(BY111,CB111,CH111,CC111,CF111,CI111,CJ111,CK111,CL111) -> 7 | CN111: =+CM111*$H$22 -> 2.333333333 | CO111: =SUM(AY111,BU111,CM111) -> 38.59043003 | CP111: =SUM(AZ111,BV111,CN111) -> 12.86347668 | CQ111: =IF(D111<($Z$13*1785),1,IF(D111<(($Z$14+$Z$13)*1785),2,IF(D111<(($Z$15+$Z$13+$Z$14)*1785),3,4))) -> 1 | CR111: =VLOOKUP(A111,Taul1!$F$6:$G$1718,2,FALSE) ->  | DA111: 0 | DB111: 1 | DC111: 1 | DD111: =SUM(DA111:DC111) -> 2 | DE111: 0 | DF111: 2 | DG111: 0 | DH111: 6 | DI111: 1 | DJ111: 232 | DK111: 8 | DL111: 0 | DM111: 0 | DN111: 1 | DP111: 2396.50935 | DQ111: 3 | DR111: 0 | DS111: 2 | DT111: 3538.05214 | DU111: =+IF(AA111>$K$8,$F$27/2,0) -> 1 | DV111: =+IF(AA111/Y111>1.5,$F$27/2,0) -> 0 | DW111: =SUM(DU111:DV111) -> 1 | DX111: 1 | DY111: 0 | DZ111: 1 | EA111: =SUM(DY111:DZ111) -> 1 | EC111: 1 | ED111: 2 | EG111: 0
A112: =CONCATENATE(S112,"_",T112,"_",U112) -> 140_12_0 | B112: 1 | C112: =CONCATENATE(S112,"_",T112) -> 140_12 | D112: =RANK(CP112,$CP$37:$CP$1821) -> 76 | E112: 76 | F112: =E112-D112 -> 0 | G112: =CP112 -> 12.86174727 | H112: =AZ112 -> 5 | I112: =BV112 -> 5.1950806 | J112: =CN112 -> 2.666666667 | K112: =CQ112 -> 1 | L112: =B112-K112 -> 0 | M112: =HYPERLINK(CX112,"Gmaps") -> Gmaps | N112: =IF(Y112>$K$6,"LOPUT","VÄHÄ") -> LOPUT | O112: =IF(S112<40,"Valta",IF(S112<100,"Kanta",IF(S112<1000,"Seutu",IF(S112>999,"Yhdys")))) -> Seutu | R112: Uusimaa | S112: 140 | T112: 12 | U112: 0 | V112: 12 | W112: 1910 | X112: 1910 | Y112: 8237 | Z112: 327 | AA112: 8987 | AC112: 50 (99 %) | AF112: PK2 (94 %) | AI112: 0.001708817498 | AJ112: 72 | AR112: =+IF(Y112>=$K$6,$F$5,($F$5/($K$6))*Y112) -> 9 | AS112: 137 | AV112: =+IF(AS112>=$L$15,$J$15,IF(AS112<($L$15),AS112*($J$15/($L$15)),)) -> 3 | AW112: 3660 | AX112: =+IF(AW112>=$L$11,$J$11,IF(AW112<($L$11),AW112*($J$11/($L$11)),)) -> 3 | AY112: =SUM(AR112,AV112,AX112) -> 15 | AZ112: =+AY112*$H$5 -> 5 | BA112: =+IF(Z112=0,0,IF(Z112>$K$7,$F$9,($F$9/$K$7)*Z112)) -> 8 | BB112: =IF(DD112>0,$F$10,0) -> 2 | BC112: =IF(DE112>0,$F$11,0) -> 0 | BD112: =IF(DF112>0,$F$12,0) -> 0 | BE112: =IF(DG112>0,$F$13,0) -> 0 | BF112: =IF(DI112>0,$F$14,IF(DH112>0,$F$14/2,0)) -> 1 | BG112: =+IF(DJ112>=$L$19,$J$19,IF(DJ112<($L$19),DJ112*($J$19/($L$19)),)) -> 0 | BH112: =+IF(DK112>=$L$20,$J$20,IF(DK112<($L$20),DK112*($J$20/($L$20)),)) -> 0 | BI112: =+IF(DL112>=$L$21,$J$21,IF(DL112<($L$21),DL112*($J$21/($L$21)),)) -> 0 | BJ112: =+IF(DM112>=$L$22,$J$22,IF(DM112<($L$22),DM112*($J$22/($L$22)),)) -> 0 | BK112: =IF(DN112>0,$F$16,0) -> 0 | BL112: =+IF(DQ112>=$L$25,$J$25,IF(DQ112<($L$25),DQ112*($J$25/($L$25)),)) -> 2 | BM112: =IF(EG112>100000,$F$18,IF(EG112>0,$F$18/2,0)) -> 0 | BN112: =IF(ED112>0,$F$19,0) -> 2 | BO112: 1.14074 | BP112: 1.08163 | BQ112: 0.334884 | BR112: 0.31903 | BS112: 11.5193 | BT112: =IF(COUNTIF($I$29:$L$29,TRUE)=0,0,IF(SUMIF($I$29:$L$29,TRUE,BO112:BR112)/COUNTIF($I$29:$L$29,TRUE)>=$L$30,$F$20/2,$F$20/2*(SUMIF($I$29:$L$29,TRUE,BO112:BR112)/COUNTIF($I$29:$L$29,TRUE)/$L$30)))+IF(BS112>=10,$F$20/2,IF(BS112<(10),BS112*($F$20/2/10))) -> 0.5852418 | BU112: =SUM(BA112+BB112+BC112+BD112+BE112+BF112+BK112+BG112+BH112+BI112+BJ112+BL112+BM112+BN112+BT112) -> 15.5852418 | BV112: =+BU112*$H$9 -> 5.1950806 | BW112: 1899.664741 | BX112: =BW112/X112 -> 0.9945888698 | BY112: =IF(BX112>0,IF(BX112>=$DC$28,$DA$28,IF(BX112<$DC$28,$DA$29,0)),0) -> 1 | BZ112: 1899.664741 | CA112: =BZ112/X112 -> 0.9945888698 | CB112: =IF(CA112,$F$23,0) -> 1 | CC112: =IF(DS112>0,$F$24,0) -> 1 | CD112: 1899.664741 | CE112: =CD112/X112 -> 0.9945888698 | CF112: =+IF(CE112>=$K$4,$F$25,0) -> 1 | CG112: 1528.780105 | CH112: =IF(CG112>0,IF(CG112>=100,$F$26,IF(CG112<100,$F$26/2)),0) -> 1 | CI112: =SUM(DW112) -> 1 | CJ112: =IF(EA112>0,$F$28,0) -> 1 | CK112: =IF(DX112>0,$F$29,0) -> 0 | CL112: =IF(EC112>0,$F$30,0) -> 1 | CM112: =SUM(BY112,CB112,CH112,CC112,CF112,CI112,CJ112,CK112,CL112) -> 8 | CN112: =+CM112*$H$22 -> 2.666666667 | CO112: =SUM(AY112,BU112,CM112) -> 38.5852418 | CP112: =SUM(AZ112,BV112,CN112) -> 12.86174727 | CQ112: =IF(D112<($Z$13*1785),1,IF(D112<(($Z$14+$Z$13)*1785),2,IF(D112<(($Z$15+$Z$13+$Z$14)*1785),3,4))) -> 1 | CR112: =VLOOKUP(A112,Taul1!$F$6:$G$1718,2,FALSE) ->  | DA112: 0 | DB112: 1 | DC112: 3 | DD112: =SUM(DA112:DC112) -> 4 | DE112: 0 | DF112: 0 | DG112: 0 | DH112: 5 | DI112: 0 | DJ112: 0 | DK112: 0 | DL112: 0 | DM112: 0 | DN112: 0 | DP112: 1899.664741 | DQ112: 8 | DR112: 0 | DS112: 23 | DT112: 1899.664741 | DU112: =+IF(AA112>$K$8,$F$27/2,0) -> 1 | DV112: =+IF(AA112/Y112>1.5,$F$27/2,0) -> 0 | DW112: =SUM(DU112:DV112) -> 1 | DX112: 0 | DY112: 0 | DZ112: 1 | EA112: =SUM(DY112:DZ112) -> 1 | EC112: 1 | ED112: 5 | EG112: 0
A113: =CONCATENATE(S113,"_",T113,"_",U113) -> 25_33_0 | B113: 1 | C113: =CONCATENATE(S113,"_",T113) -> 25_33 | D113: =RANK(CP113,$CP$37:$CP$1821) -> 77 | E113: 77 | F113: =E113-D113 -> 0 | G113: =CP113 -> 12.85549378 | H113: =AZ113 -> 5 | I113: =BV113 -> 6.022160444 | J113: =CN113 -> 1.833333333 | K113: =CQ113 -> 1 | L113: =B113-K113 -> 0 | M113: =HYPERLINK(CX113,"Gmaps") -> Gmaps | N113: =IF(Y113>$K$6,"LOPUT","VÄHÄ") -> LOPUT | O113: =IF(S113<40,"Valta",IF(S113<100,"Kanta",IF(S113<1000,"Seutu",IF(S113>999,"Yhdys")))) -> Valta | R113: Uusimaa | S113: 25 | T113: 33 | U113: 0 | V113: 33 | W113: 7777 | X113: 7777 | Y113: 8285 | Z113: 657 | AA113: 8976 | AC113: 80 (48 %), 100 (51 %) | AF113: PK1 (100 %) | AI113: 0 | AJ113: 478 | AR113: =+IF(Y113>=$K$6,$F$5,($F$5/($K$6))*Y113) -> 9 | AS113: 51 | AV113: =+IF(AS113>=$L$15,$J$15,IF(AS113<($L$15),AS113*($J$15/($L$15)),)) -> 3 | AW113: 5966 | AX113: =+IF(AW113>=$L$11,$J$11,IF(AW113<($L$11),AW113*($J$11/($L$11)),)) -> 3 | AY113: =SUM(AR113,AV113,AX113) -> 15 | AZ113: =+AY113*$H$5 -> 5 | BA113: =+IF(Z113=0,0,IF(Z113>$K$7,$F$9,($F$9/$K$7)*Z113)) -> 8 | BB113: =IF(DD113>0,$F$10,0) -> 2 | BC113: =IF(DE113>0,$F$11,0) -> 1 | BD113: =IF(DF113>0,$F$12,0) -> 0 | BE113: =IF(DG113>0,$F$13,0) -> 0 | BF113: =IF(DI113>0,$F$14,IF(DH113>0,$F$14/2,0)) -> 0 | BG113: =+IF(DJ113>=$L$19,$J$19,IF(DJ113<($L$19),DJ113*($J$19/($L$19)),)) -> 0.08333333333 | BH113: =+IF(DK113>=$L$20,$J$20,IF(DK113<($L$20),DK113*($J$20/($L$20)),)) -> 0.02 | BI113: =+IF(DL113>=$L$21,$J$21,IF(DL113<($L$21),DL113*($J$21/($L$21)),)) -> 0 | BJ113: =+IF(DM113>=$L$22,$J$22,IF(DM113<($L$22),DM113*($J$22/($L$22)),)) -> 0 | BK113: =IF(DN113>0,$F$16,0) -> 2 | BL113: =+IF(DQ113>=$L$25,$J$25,IF(DQ113<($L$25),DQ113*($J$25/($L$25)),)) -> 2 | BM113: =IF(EG113>100000,$F$18,IF(EG113>0,$F$18/2,0)) -> 0 | BN113: =IF(ED113>0,$F$19,0) -> 2 | BO113: 3.79196 | BP113: 5.75777 | BQ113: 4.34471 | BR113: 3.18353 | BS113: 20.0272 | BT113: =IF(COUNTIF($I$29:$L$29,TRUE)=0,0,IF(SUMIF($I$29:$L$29,TRUE,BO113:BR113)/COUNTIF($I$29:$L$29,TRUE)>=$L$30,$F$20/2,$F$20/2*(SUMIF($I$29:$L$29,TRUE,BO113:BR113)/COUNTIF($I$29:$L$29,TRUE)/$L$30)))+IF(BS113>=10,$F$20/2,IF(BS113<(10),BS113*($F$20/2/10))) -> 0.963148 | BU113: =SUM(BA113+BB113+BC113+BD113+BE113+BF113+BK113+BG113+BH113+BI113+BJ113+BL113+BM113+BN113+BT113) -> 18.06648133 | BV113: =+BU113*$H$9 -> 6.022160444 | BW113: 4230.008483 | BX113: =BW113/X113 -> 0.5439126248 | BY113: =IF(BX113>0,IF(BX113>=$DC$28,$DA$28,IF(BX113<$DC$28,$DA$29,0)),0) -> 1 | BZ113: 7457.808154 | CA113: =BZ113/X113 -> 0.9589569441 | CB113: =IF(CA113,$F$23,0) -> 1 | CC113: =IF(DS113>0,$F$24,0) -> 1 | CD113: 2113.379688 | CE113: =CD113/X113 -> 0.2717474204 | CF113: =+IF(CE113>=$K$4,$F$25,0) -> 0 | CG113: 37.76520509 | CH113: =IF(CG113>0,IF(CG113>=100,$F$26,IF(CG113<100,$F$26/2)),0) -> 0.5 | CI113: =SUM(DW113) -> 1 | CJ113: =IF(EA113>0,$F$28,0) -> 0 | CK113: =IF(DX113>0,$F$29,0) -> 0 | CL113: =IF(EC113>0,$F$30,0) -> 1 | CM113: =SUM(BY113,CB113,CH113,CC113,CF113,CI113,CJ113,CK113,CL113) -> 5.5 | CN113: =+CM113*$H$22 -> 1.833333333 | CO113: =SUM(AY113,BU113,CM113) -> 38.56648133 | CP113: =SUM(AZ113,BV113,CN113) -> 12.85549378 | CQ113: =IF(D113<($Z$13*1785),1,IF(D113<(($Z$14+$Z$13)*1785),2,IF(D113<(($Z$15+$Z$13+$Z$14)*1785),3,4))) -> 1 | CR113: =VLOOKUP(A113,Taul1!$F$6:$G$1718,2,FALSE) ->  | DA113: 1 | DB113: 0 | DC113: 0 | DD113: =SUM(DA113:DC113) -> 1 | DE113: 1 | DF113: 0 | DG113: 0 | DH113: 0 | DI113: 0 | DJ113: 50 | DK113: 4 | DL113: 0 | DM113: 0 | DN113: 2 | DP113: 4230.008483 | DQ113: 37 | DR113: 0 | DS113: 3 | DT113: 2113.379688 | DU113: =+IF(AA113>$K$8,$F$27/2,0) -> 1 | DV113: =+IF(AA113/Y113>1.5,$F$27/2,0) -> 0 | DW113: =SUM(DU113:DV113) -> 1 | DX113: 0 | DY113: 0 | DZ113: 0 | EA113: =SUM(DY113:DZ113) -> 0 | EC113: 1 | ED113: 6 | EG113: 0
A114: =CONCATENATE(S114,"_",T114,"_",U114) -> 57_2_0 | B114: 1 | C114: =CONCATENATE(S114,"_",T114) -> 57_2 | D114: =RANK(CP114,$CP$37:$CP$1821) -> 78 | E114: 78 | F114: =E114-D114 -> 0 | G114: =CP114 -> 12.817852 | H114: =AZ114 -> 5 | I114: =BV114 -> 5.651185333 | J114: =CN114 -> 2.166666667 | K114: =CQ114 -> 1 | L114: =B114-K114 -> 0 | M114: =HYPERLINK(CX114,"Gmaps") -> Gmaps | N114: =IF(Y114>$K$6,"LOPUT","VÄHÄ") -> LOPUT | O114: =IF(S114<40,"Valta",IF(S114<100,"Kanta",IF(S114<1000,"Seutu",IF(S114>999,"Yhdys")))) -> Kanta | R114: Kanta-Häme | S114: 57 | T114: 2 | U114: 0 | V114: 2 | W114: 6073 | X114: 6073 | Y114: 4485 | Z114: 298 | AA114: 5896 | AC114: 60 (19 %), 80 (42 %), 100 (39 %) | AF114: PK2 (99 %) | AI114: 0.01037967768 | AJ114: 129 | AR114: =+IF(Y114>=$K$6,$F$5,($F$5/($K$6))*Y114) -> 9 | AS114: 66 | AV114: =+IF(AS114>=$L$15,$J$15,IF(AS114<($L$15),AS114*($J$15/($L$15)),)) -> 3 | AW114: 1919 | AX114: =+IF(AW114>=$L$11,$J$11,IF(AW114<($L$11),AW114*($J$11/($L$11)),)) -> 3 | AY114: =SUM(AR114,AV114,AX114) -> 15 | AZ114: =+AY114*$H$5 -> 5 | BA114: =+IF(Z114=0,0,IF(Z114>$K$7,$F$9,($F$9/$K$7)*Z114)) -> 8 | BB114: =IF(DD114>0,$F$10,0) -> 2 | BC114: =IF(DE114>0,$F$11,0) -> 1 | BD114: =IF(DF114>0,$F$12,0) -> 0 | BE114: =IF(DG114>0,$F$13,0) -> 0 | BF114: =IF(DI114>0,$F$14,IF(DH114>0,$F$14/2,0)) -> 2 | BG114: =+IF(DJ114>=$L$19,$J$19,IF(DJ114<($L$19),DJ114*($J$19/($L$19)),)) -> 0.5 | BH114: =+IF(DK114>=$L$20,$J$20,IF(DK114<($L$20),DK114*($J$20/($L$20)),)) -> 0.04 | BI114: =+IF(DL114>=$L$21,$J$21,IF(DL114<($L$21),DL114*($J$21/($L$21)),)) -> 0 | BJ114: =+IF(DM114>=$L$22,$J$22,IF(DM114<($L$22),DM114*($J$22/($L$22)),)) -> 0.5 | BK114: =IF(DN114>0,$F$16,0) -> 0 | BL114: =+IF(DQ114>=$L$25,$J$25,IF(DQ114<($L$25),DQ114*($J$25/($L$25)),)) -> 2 | BM114: =IF(EG114>100000,$F$18,IF(EG114>0,$F$18/2,0)) -> 0 | BN114: =IF(ED114>0,$F$19,0) -> 0 | BO114: 3.01032 | BP114: 4.50835 | BQ114: 4.88801 | BR114: 1.70857 | BS114: 10.208 | BT114: =IF(COUNTIF($I$29:$L$29,TRUE)=0,0,IF(SUMIF($I$29:$L$29,TRUE,BO114:BR114)/COUNTIF($I$29:$L$29,TRUE)>=$L$30,$F$20/2,$F$20/2*(SUMIF($I$29:$L$29,TRUE,BO114:BR114)/COUNTIF($I$29:$L$29,TRUE)/$L$30)))+IF(BS114>=10,$F$20/2,IF(BS114<(10),BS114*($F$20/2/10))) -> 0.913556 | BU114: =SUM(BA114+BB114+BC114+BD114+BE114+BF114+BK114+BG114+BH114+BI114+BJ114+BL114+BM114+BN114+BT114) -> 16.953556 | BV114: =+BU114*$H$9 -> 5.651185333 | BW114: 1255.279338 | BX114: =BW114/X114 -> 0.2066983926 | BY114: =IF(BX114>0,IF(BX114>=$DC$28,$DA$28,IF(BX114<$DC$28,$DA$29,0)),0) -> 0.5 | BZ114: 6059.719521 | CA114: =BZ114/X114 -> 0.997813193 | CB114: =IF(CA114,$F$23,0) -> 1 | CC114: =IF(DS114>0,$F$24,0) -> 1 | CD114: 2736.982947 | CE114: =CD114/X114 -> 0.4506805446 | CF114: =+IF(CE114>=$K$4,$F$25,0) -> 0 | CG114: 107.3044624 | CH114: =IF(CG114>0,IF(CG114>=100,$F$26,IF(CG114<100,$F$26/2)),0) -> 1 | CI114: =SUM(DW114) -> 1 | CJ114: =IF(EA114>0,$F$28,0) -> 1 | CK114: =IF(DX114>0,$F$29,0) -> 0 | CL114: =IF(EC114>0,$F$30,0) -> 1 | CM114: =SUM(BY114,CB114,CH114,CC114,CF114,CI114,CJ114,CK114,CL114) -> 6.5 | CN114: =+CM114*$H$22 -> 2.166666667 | CO114: =SUM(AY114,BU114,CM114) -> 38.453556 | CP114: =SUM(AZ114,BV114,CN114) -> 12.817852 | CQ114: =IF(D114<($Z$13*1785),1,IF(D114<(($Z$14+$Z$13)*1785),2,IF(D114<(($Z$15+$Z$13+$Z$14)*1785),3,4))) -> 1 | CR114: =VLOOKUP(A114,Taul1!$F$6:$G$1718,2,FALSE) ->  | DA114: 0 | DB114: 2 | DC114: 2 | DD114: =SUM(DA114:DC114) -> 4 | DE114: 1 | DF114: 0 | DG114: 0 | DH114: 19 | DI114: 10 | DJ114: 535 | DK114: 8 | DL114: 0 | DM114: 1853 | DN114: 0 | DP114: 1255.279338 | DQ114: 6 | DR114: 0 | DS114: 16 | DT114: 2736.982947 | DU114: =+IF(AA114>$K$8,$F$27/2,0) -> 1 | DV114: =+IF(AA114/Y114>1.5,$F$27/2,0) -> 0 | DW114: =SUM(DU114:DV114) -> 1 | DX114: 0 | DY114: 0 | DZ114: 1 | EA114: =SUM(DY114:DZ114) -> 1 | EC114: 1 | ED114: 0 | EG114: 0
A115: =CONCATENATE(S115,"_",T115,"_",U115) -> 1320_1_0 | B115: 1 | C115: =CONCATENATE(S115,"_",T115) -> 1320_1 | D115: =RANK(CP115,$CP$37:$CP$1821) -> 79 | E115: 79 | F115: =E115-D115 -> 0 | G115: =CP115 -> 12.8162465 | H115: =AZ115 -> 5 | I115: =BV115 -> 5.982913167 | J115: =CN115 -> 1.833333333 | K115: =CQ115 -> 1 | L115: =B115-K115 -> 0 | M115: =HYPERLINK(CX115,"Gmaps") -> Gmaps | N115: =IF(Y115>$K$6,"LOPUT","VÄHÄ") -> LOPUT | O115: =IF(S115<40,"Valta",IF(S115<100,"Kanta",IF(S115<1000,"Seutu",IF(S115>999,"Yhdys")))) -> Yhdys | R115: Uusimaa | S115: 1320 | T115: 1 | U115: 0 | V115: 1 | W115: 1857 | X115: 1857 | Y115: 13605 | Z115: 476 | AA115: 13468 | AC115: 50 (14 %), 60 (85 %) | AF115: PK2 (99 %) | AI115: 0.05385029618 | AJ115: 141 | AR115: =+IF(Y115>=$K$6,$F$5,($F$5/($K$6))*Y115) -> 9 | AS115: 908 | AV115: =+IF(AS115>=$L$15,$J$15,IF(AS115<($L$15),AS115*($J$15/($L$15)),)) -> 3 | AW115: 7097 | AX115: =+IF(AW115>=$L$11,$J$11,IF(AW115<($L$11),AW115*($J$11/($L$11)),)) -> 3 | AY115: =SUM(AR115,AV115,AX115) -> 15 | AZ115: =+AY115*$H$5 -> 5 | BA115: =+IF(Z115=0,0,IF(Z115>$K$7,$F$9,($F$9/$K$7)*Z115)) -> 8 | BB115: =IF(DD115>0,$F$10,0) -> 2 | BC115: =IF(DE115>0,$F$11,0) -> 1 | BD115: =IF(DF115>0,$F$12,0) -> 0 | BE115: =IF(DG115>0,$F$13,0) -> 0 | BF115: =IF(DI115>0,$F$14,IF(DH115>0,$F$14/2,0)) -> 2 | BG115: =+IF(DJ115>=$L$19,$J$19,IF(DJ115<($L$19),DJ115*($J$19/($L$19)),)) -> 0.02 | BH115: =+IF(DK115>=$L$20,$J$20,IF(DK115<($L$20),DK115*($J$20/($L$20)),)) -> 0.335 | BI115: =+IF(DL115>=$L$21,$J$21,IF(DL115<($L$21),DL115*($J$21/($L$21)),)) -> 0 | BJ115: =+IF(DM115>=$L$22,$J$22,IF(DM115<($L$22),DM115*($J$22/($L$22)),)) -> 0 | BK115: =IF(DN115>0,$F$16,0) -> 0 | BL115: =+IF(DQ115>=$L$25,$J$25,IF(DQ115<($L$25),DQ115*($J$25/($L$25)),)) -> 2 | BM115: =IF(EG115>100000,$F$18,IF(EG115>0,$F$18/2,0)) -> 0.5 | BN115: =IF(ED115>0,$F$19,0) -> 2 | BO115: 0.40939 | BP115: 0.567782 | BQ115: 0.225393 | BR115: 0.0456213 | BS115: 1.07308 | BT115: =IF(COUNTIF($I$29:$L$29,TRUE)=0,0,IF(SUMIF($I$29:$L$29,TRUE,BO115:BR115)/COUNTIF($I$29:$L$29,TRUE)>=$L$30,$F$20/2,$F$20/2*(SUMIF($I$29:$L$29,TRUE,BO115:BR115)/COUNTIF($I$29:$L$29,TRUE)/$L$30)))+IF(BS115>=10,$F$20/2,IF(BS115<(10),BS115*($F$20/2/10))) -> 0.0937395 | BU115: =SUM(BA115+BB115+BC115+BD115+BE115+BF115+BK115+BG115+BH115+BI115+BJ115+BL115+BM115+BN115+BT115) -> 17.9487395 | BV115: =+BU115*$H$9 -> 5.982913167 | BW115: 0 | BX115: =BW115/X115 -> 0 | BY115: =IF(BX115>0,IF(BX115>=$DC$28,$DA$28,IF(BX115<$DC$28,$DA$29,0)),0) -> 0 | BZ115: 1844.234232 | CA115: =BZ115/X115 -> 0.993125596 | CB115: =IF(CA115,$F$23,0) -> 1 | CC115: =IF(DS115>0,$F$24,0) -> 1 | CD115: 1432.563868 | CE115: =CD115/X115 -> 0.7714398856 | CF115: =+IF(CE115>=$K$4,$F$25,0) -> 1 | CG115: 60.25848142 | CH115: =IF(CG115>0,IF(CG115>=100,$F$26,IF(CG115<100,$F$26/2)),0) -> 0.5 | CI115: =SUM(DW115) -> 1 | CJ115: =IF(EA115>0,$F$28,0) -> 0 | CK115: =IF(DX115>0,$F$29,0) -> 0 | CL115: =IF(EC115>0,$F$30,0) -> 1 | CM115: =SUM(BY115,CB115,CH115,CC115,CF115,CI115,CJ115,CK115,CL115) -> 5.5 | CN115: =+CM115*$H$22 -> 1.833333333 | CO115: =SUM(AY115,BU115,CM115) -> 38.4487395 | CP115: =SUM(AZ115,BV115,CN115) -> 12.8162465 | CQ115: =IF(D115<($Z$13*1785),1,IF(D115<(($Z$14+$Z$13)*1785),2,IF(D115<(($Z$15+$Z$13+$Z$14)*1785),3,4))) -> 1 | CR115: =VLOOKUP(A115,Taul1!$F$6:$G$1718,2,FALSE) ->  | DA115: 1 | DB115: 0 | DC115: 0 | DD115: =SUM(DA115:DC115) -> 1 | DE115: 4 | DF115: 0 | DG115: 0 | DH115: 10 | DI115: 9 | DJ115: 12 | DK115: 67 | DL115: 0 | DM115: 0 | DN115: 0 | DP115: 0 | DQ115: 36 | DR115: 1 | DS115: 9 | DT115: 1432.563868 | DU115: =+IF(AA115>$K$8,$F$27/2,0) -> 1 | DV115: =+IF(AA115/Y115>1.5,$F$27/2,0) -> 0 | DW115: =SUM(DU115:DV115) -> 1 | DX115: 0 | DY115: 0 | DZ115: 0 | EA115: =SUM(DY115:DZ115) -> 0 | EC115: 1 | ED115: 6 | EG115: 11817
A116: =CONCATENATE(S116,"_",T116,"_",U116) -> 110_6_2499 | B116: 1 | C116: =CONCATENATE(S116,"_",T116) -> 110_6 | D116: =RANK(CP116,$CP$37:$CP$1821) -> 80 | E116: 80 | F116: =E116-D116 -> 0 | G116: =CP116 -> 12.80242234 | H116: =AZ116 -> 5 | I116: =BV116 -> 5.135755678 | J116: =CN116 -> 2.666666667 | K116: =CQ116 -> 1 | L116: =B116-K116 -> 0 | M116: =HYPERLINK(CX116,"Gmaps") -> Gmaps | N116: =IF(Y116>$K$6,"LOPUT","VÄHÄ") -> LOPUT | O116: =IF(S116<40,"Valta",IF(S116<100,"Kanta",IF(S116<1000,"Seutu",IF(S116>999,"Yhdys")))) -> Seutu | R116: Uusimaa | S116: 110 | T116: 6 | U116: 2499 | V116: 6 | W116: 11469 | X116: 8970 | Y116: 4331 | Z116: 696 | AA116: 4756 | AC116: 50 (79 %), 60 (21 %) | AF116: PK2 (99 %) | AI116: 0 | AJ116: 130 | AR116: =+IF(Y116>=$K$6,$F$5,($F$5/($K$6))*Y116) -> 9 | AS116: 1013 | AV116: =+IF(AS116>=$L$15,$J$15,IF(AS116<($L$15),AS116*($J$15/($L$15)),)) -> 3 | AW116: 2210 | AX116: =+IF(AW116>=$L$11,$J$11,IF(AW116<($L$11),AW116*($J$11/($L$11)),)) -> 3 | AY116: =SUM(AR116,AV116,AX116) -> 15 | AZ116: =+AY116*$H$5 -> 5 | BA116: =+IF(Z116=0,0,IF(Z116>$K$7,$F$9,($F$9/$K$7)*Z116)) -> 8 | BB116: =IF(DD116>0,$F$10,0) -> 0 | BC116: =IF(DE116>0,$F$11,0) -> 1 | BD116: =IF(DF116>0,$F$12,0) -> 1 | BE116: =IF(DG116>0,$F$13,0) -> 0 | BF116: =IF(DI116>0,$F$14,IF(DH116>0,$F$14/2,0)) -> 1 | BG116: =+IF(DJ116>=$L$19,$J$19,IF(DJ116<($L$19),DJ116*($J$19/($L$19)),)) -> 0 | BH116: =+IF(DK116>=$L$20,$J$20,IF(DK116<($L$20),DK116*($J$20/($L$20)),)) -> 0.015 | BI116: =+IF(DL116>=$L$21,$J$21,IF(DL116<($L$21),DL116*($J$21/($L$21)),)) -> 0 | BJ116: =+IF(DM116>=$L$22,$J$22,IF(DM116<($L$22),DM116*($J$22/($L$22)),)) -> 0 | BK116: =IF(DN116>0,$F$16,0) -> 0 | BL116: =+IF(DQ116>=$L$25,$J$25,IF(DQ116<($L$25),DQ116*($J$25/($L$25)),)) -> 2 | BM116: =IF(EG116>100000,$F$18,IF(EG116>0,$F$18/2,0)) -> 0 | BN116: =IF(ED116>0,$F$19,0) -> 2 | BO116: 0.256325 | BP116: 0.270086 | BQ116: 0.164505 | BR116: 0.0537513 | BS116: 7.38473 | BT116: =IF(COUNTIF($I$29:$L$29,TRUE)=0,0,IF(SUMIF($I$29:$L$29,TRUE,BO116:BR116)/COUNTIF($I$29:$L$29,TRUE)>=$L$30,$F$20/2,$F$20/2*(SUMIF($I$29:$L$29,TRUE,BO116:BR116)/COUNTIF($I$29:$L$29,TRUE)/$L$30)))+IF(BS116>=10,$F$20/2,IF(BS116<(10),BS116*($F$20/2/10))) -> 0.3922670333 | BU116: =SUM(BA116+BB116+BC116+BD116+BE116+BF116+BK116+BG116+BH116+BI116+BJ116+BL116+BM116+BN116+BT116) -> 15.40726703 | BV116: =+BU116*$H$9 -> 5.135755678 | BW116: 5484.041522 | BX116: =BW116/X116 -> 0.6113758664 | BY116: =IF(BX116>0,IF(BX116>=$DC$28,$DA$28,IF(BX116<$DC$28,$DA$29,0)),0) -> 1 | BZ116: 8540.503969 | CA116: =BZ116/X116 -> 0.9521186141 | CB116: =IF(CA116,$F$23,0) -> 1 | CC116: =IF(DS116>0,$F$24,0) -> 1 | CD116: 6103.578127 | CE116: =CD116/X116 -> 0.6804434924 | CF116: =+IF(CE116>=$K$4,$F$25,0) -> 1 | CG116: 406.9107023 | CH116: =IF(CG116>0,IF(CG116>=100,$F$26,IF(CG116<100,$F$26/2)),0) -> 1 | CI116: =SUM(DW116) -> 1 | CJ116: =IF(EA116>0,$F$28,0) -> 0 | CK116: =IF(DX116>0,$F$29,0) -> 1 | CL116: =IF(EC116>0,$F$30,0) -> 1 | CM116: =SUM(BY116,CB116,CH116,CC116,CF116,CI116,CJ116,CK116,CL116) -> 8 | CN116: =+CM116*$H$22 -> 2.666666667 | CO116: =SUM(AY116,BU116,CM116) -> 38.40726703 | CP116: =SUM(AZ116,BV116,CN116) -> 12.80242234 | CQ116: =IF(D116<($Z$13*1785),1,IF(D116<(($Z$14+$Z$13)*1785),2,IF(D116<(($Z$15+$Z$13+$Z$14)*1785),3,4))) -> 1 | CR116: =VLOOKUP(A116,Taul1!$F$6:$G$1718,2,FALSE) ->  | DA116: 0 | DB116: 0 | DC116: 0 | DD116: =SUM(DA116:DC116) -> 0 | DE116: 2 | DF116: 3 | DG116: 0 | DH116: 3 | DI116: 0 | DJ116: 0 | DK116: 3 | DL116: 0 | DM116: 0 | DN116: 0 | DP116: 5484.041522 | DQ116: 3 | DR116: 0 | DS116: 28 | DT116: 6103.578127 | DU116: =+IF(AA116>$K$8,$F$27/2,0) -> 1 | DV116: =+IF(AA116/Y116>1.5,$F$27/2,0) -> 0 | DW116: =SUM(DU116:DV116) -> 1 | DX116: 7 | DY116: 0 | DZ116: 0 | EA116: =SUM(DY116:DZ116) -> 0 | EC116: 1 | ED116: 2 | EG116: 0
